Workbook

Sheet Ark1
A1: Økonomi i afgrøder og sædskifter 2018
CR2: JB_rækkenr. | CS2: Udbytte | CT2: N-gødning | CU2: Lager_rækkenr | CV2: Lagernr | DD2: Husdyrgødning
A3: Jordtype | F3: Lager til korn | CR3: 4 | CS3: =IF(CR3=1,5,IF(CR3=2,6,IF(CR3=3,7,IF(CR3=4,8,IF(CR3=5,9,""))))) -> 8 | CT3: =IF(CR3=1,25,IF(CR3=2,26,IF(CR3=3,27,IF(CR3=4,28,IF(CR3=5,29,""))))) -> 28 | CU3: 2 | CV3: =IF(CU3=1,1,IF(CU3=2,BN131,IF(CU3=3,BO131,BP131))) -> 52 | DE3: DE/ha | DF3: N | DG3: P | DH3: K
P4: Regnearket kan sammenligne økonomien i enkeltafgrøder og sædskifter. Udskrift 1 kan vise op til 3 enkeltafgrøder eller sædskifter. Du kan definere sædskifter i række 90-125 - og derefter vælge dem i række 16 (nederst i rullelisten). Du kan redigere normer fra række 130. Udskrift 2 (række 170) viser den samlede økonomi. Udskrift 3 (række 295) viser tidsforbruget (netto). | CR4: Halm | CS4: Halm_rækkenr. | CT4: Maskinomkostninger | CU4: Tørring_rækkenr. | CV4: Tørrenr | DC4: 1 | DD4: Ingen | DE4: 0 | DF4: 0 | DG4: 0 | DH4: 0 | DJ4: ton gylle pr. DE | DK4: 18
A5: Halm bjærges/nedmuldes | F5: Tørring af korn | CR5: 2 | CS5: =IF($CR$5=1,IF($CR$3=1,10,IF($CR$3=2,11,IF($CR$3=3,12,IF($CR$3=4,13,IF($CR$3=5,14,"")))))) -> FALSE | CT5: =IF($CR$5=1,IF($CR$3=1,39,IF($CR$3=2,40,IF($CR$3=3,41,IF($CR$3=4,42,IF($CR$3=5,43,""))))),IF($CR$3=1,44,IF($CR$3=2,45,IF($CR$3=3,46,IF($CR$3=4,47,IF($CR$3=5,48,"")))))) -> 47 | CU5: 2 | CV5: =IF(Tørringnr=1,BK131,BL131) -> 50 | DC5: 2 | DD5: 10 kg N svin | DE5: 0.1 | DF5: =DE5*$C$143*UdnytNsvin*0.01 -> 7.5 | DG5: =DE5*$C$145 -> 2.5 | DH5: =DE5*$C$147 -> 5 | DJ5: DE pr. ha | DK5: =VLOOKUP(Hdgnr,_Hdg2,3) -> 0
CR6: Kornkøber | CS6: Kornkøber / - sælger | CU6: Foderenheder | DC6: 3 | DD6: 10 kg N kvæg | DE6: 0.1 | DF6: =DE6*$C$149*UdnytNkvæg*0.01 -> 7 | DG6: =DE6*$C$151 -> 1.7 | DH6: =DE6*$C$153 -> 6.7
A7: Kornsælger eller kornkøber | F7: Foderenheder | CR7: 1 | CS7: =IF(CR7=2,IF(CR3=1,5,IF(CR3=2,6,IF(CR3=3,7,IF(CR3=4,8,IF(CR3=5,9,""))))),"") ->  | CU7: 1 | DC7: 4 | DD7: 20 kg N svin | DE7: 0.2 | DF7: =DE7*$C$143*UdnytNsvin*0.01 -> 15 | DG7: =DE7*$C$145 -> 5 | DH7: =DE7*$C$147 -> 10
CR8: Hdg_rækkenr | CS8: Styk uden eller med husdyrgødning | DC8: 5 | DD8: 20 kg N kvæg | DE8: 0.2 | DF8: =DE8*$C$149*UdnytNkvæg*0.01 -> 14 | DG8: =DE8*$C$151 -> 3.4 | DH8: =DE8*$C$153 -> 13.4
A9: Husdyrgødning | CR9: 1 | CS9: =IF(CR9=1,IF($CR$3=1,21,IF($CR$3=2,22,IF($CR$3=3,23,IF($CR$3=4,24,IF($CR$3=5,25,""))))),IF($CR$3=1,26,IF($CR$3=2,27,IF($CR$3=3,28,IF($CR$3=4,29,IF($CR$3=5,30,"")))))) -> 24 | DC9: 6 | DD9: 30 kg N svin | DE9: 0.3 | DF9: =DE9*$C$143*UdnytNsvin*0.01 -> 22.5 | DG9: =DE9*$C$145 -> 7.5 | DH9: =DE9*$C$147 -> 15
CS10: Forfrugtsværdi | DC10: 7 | DD10: 30 kg N kvæg | DE10: 0.3 | DF10: =DE10*$C$149*UdnytNkvæg*0.01 -> 21 | DG10: =DE10*$C$151 -> 5.1 | DH10: =DE10*$C$153 -> 20.1
A11: Forfrugtsværdi til forfrugten | CR11: 1 | CS11: =IF(CR11=1,IF($CR$3=1,15,IF($CR$3=2,16,IF($CR$3=3,17,IF($CR$3=4,18,IF($CR$3=5,19,"")))))) -> 18 | DC11: 8 | DD11: 40 kg N svin | DE11: 0.4 | DF11: =DE11*$C$143*UdnytNsvin*0.01 -> 30 | DG11: =DE11*$C$145 -> 10 | DH11: =DE11*$C$147 -> 20
DC12: 9 | DD12: 40 kg N kvæg | DE12: 0.4 | DF12: =DE12*$C$149*UdnytNkvæg*0.01 -> 28 | DG12: =DE12*$C$151 -> 6.8 | DH12: =DE12*$C$153 -> 26.8
DC13: 10 | DD13: 50 kg N svin | DE13: 0.5 | DF13: =DE13*$C$143*UdnytNsvin*0.01 -> 37.5 | DG13: =DE13*$C$145 -> 12.5 | DH13: =DE13*$C$147 -> 25
C14: Afgrøde/sædskifte | G14: Alternativ 1 | K14: Alternativ 2 | DC14: 11 | DD14: 50 kg N kvæg | DE14: 0.5 | DF14: =DE14*$C$149*UdnytNkvæg*0.01 -> 35 | DG14: =DE14*$C$151 -> 8.5 | DH14: =DE14*$C$153 -> 33.5
CR15: Afgrøde | CS15: Alternat 1 | CT15: Alternat 2 | CU15: Alternat 3 | DC15: 12 | DD15: 60 kg N svin | DE15: 0.6 | DF15: =DE15*$C$143*UdnytNsvin*0.01 -> 45 | DG15: =DE15*$C$145 -> 15 | DH15: =DE15*$C$147 -> 30
A16: Afgrøde | CQ16: Afgrøderækkenummer | CR16: 1 | CS16: 1 | CT16: 1 | CU16: 1 | DC16: 13 | DD16: 60 kg N kvæg | DE16: 0.6 | DF16: =DE16*$C$149*UdnytNkvæg*0.01 -> 42 | DG16: =DE16*$C$151 -> 10.2 | DH16: =DE16*$C$153 -> 40.2
DC17: 14 | DD17: 70 kg N svin | DE17: 0.7 | DF17: =DE17*$C$143*UdnytNsvin*0.01 -> 52.5 | DG17: =DE17*$C$145 -> 17.5 | DH17: =DE17*$C$147 -> 35
A18: Udbyttenorm pr. ha | C18: =VLOOKUP(CR16,_Afg07,CS3) -> 0 | D18: =IF($CR$16>1,IF(VLOOKUP($CR$16,_Afg07,3)="","Hkg",VLOOKUP($CR$16,_Afg07,3)),"hkg") -> hkg | G18: =VLOOKUP(CS16,_Afg07,CS3) -> 0 | H18: =IF($CS$16>1,IF(VLOOKUP($CS$16,_Afg07,3)="","Hkg",VLOOKUP($CS$16,_Afg07,3)),"hkg") -> hkg | K18: =VLOOKUP(CT16,_Afg07,CS3) -> 0 | L18: =IF($CT$16>1,IF(VLOOKUP($CT$16,_Afg07,3)="","hkg",VLOOKUP($CT$16,_Afg07,3)),"hkg") -> hkg | DC18: 15 | DD18: 70 kg N kvæg | DE18: 0.7 | DF18: =DE18*$C$149*UdnytNkvæg*0.01 -> 49 | DG18: =DE18*$C$151 -> 11.9 | DH18: =DE18*$C$153 -> 46.9
A19: Udbytte forventet | D19: =IF($CR$16>1,IF(VLOOKUP($CR$16,_Afg07,3)="","Hkg",VLOOKUP($CR$16,_Afg07,3)),"hkg") -> hkg | H19: =IF($CS$16>1,IF(VLOOKUP($CS$16,_Afg07,3)="","Hkg",VLOOKUP($CS$16,_Afg07,3)),"hkg") -> hkg | L19: =IF($CT$16>1,IF(VLOOKUP($CT$16,_Afg07,3)="","hkg",VLOOKUP($CT$16,_Afg07,3)),"hkg") -> hkg | DC19: 16 | DD19: 80 kg N svin | DE19: 0.8 | DF19: =DE19*$C$143*UdnytNsvin*0.01 -> 60 | DG19: =DE19*$C$145 -> 20 | DH19: =DE19*$C$147 -> 40
DC20: 17 | DD20: 80 kg N kvæg | DE20: 0.8 | DF20: =DE20*$C$149*UdnytNkvæg*0.01 -> 56 | DG20: =DE20*$C$151 -> 13.6 | DH20: =DE20*$C$153 -> 53.6
A21: Pris, standard pr. hkg | C21: =VLOOKUP(CR16,_Afg07,4) -> 0 | D21: kr. | G21: =VLOOKUP(CS16,_Afg07,4) -> 0 | H21: kr. | K21: =VLOOKUP(CT16,_Afg07,4) -> 0 | L21: kr. | DC21: 18 | DD21: 90 kg N svin | DE21: 0.9 | DF21: =DE21*$C$143*UdnytNsvin*0.01 -> 67.5 | DG21: =DE21*$C$145 -> 22.5 | DH21: =DE21*$C$147 -> 45
A22: Pris forventet | D22: kr. | H22: kr. | L22: kr. | DC22: 19 | DD22: 90 kg N kvæg | DE22: 0.9 | DF22: =DE22*$C$149*UdnytNkvæg*0.01 -> 63 | DG22: =DE22*$C$151 -> 15.3 | DH22: =DE22*$C$153 -> 60.3
DC23: 20 | DD23: 100 kg N svin | DE23: 1 | DF23: =DE23*$C$143*UdnytNsvin*0.01 -> 75 | DG23: =DE23*$C$145 -> 25 | DH23: =DE23*$C$147 -> 50
A24: Udskrift (side 1): | DC24: 21 | DD24: 100 kg N kvæg | DE24: 1 | DF24: =DE24*$C$149*UdnytNkvæg*0.01 -> 70 | DG24: =DE24*$C$151 -> 17 | DH24: =DE24*$C$153 -> 67
DC25: 22 | DD25: 110 kg N svin | DE25: 1.1 | DF25: =DE25*$C$143*UdnytNsvin*0.01 -> 82.5 | DG25: =DE25*$C$145 -> 27.5 | DH25: =DE25*$C$147 -> 55
A26: ="Økonomi i afgrøder og sædskifter "&Aar -> Økonomi i afgrøder og sædskifter 2018 | DC26: 23 | DD26: 110 kg N kvæg | DE26: 1.1 | DF26: =DE26*$C$149*UdnytNkvæg*0.01 -> 77 | DG26: =DE26*$C$151 -> 18.7 | DH26: =DE26*$C$153 -> 73.7
DC27: 24 | DD27: 120 kg N svin | DE27: 1.2 | DF27: =DE27*$C$143*UdnytNsvin*0.01 -> 90 | DG27: =DE27*$C$145 -> 30 | DH27: =DE27*$C$147 -> 60
E28: =IF(CR16>1,VLOOKUP(CR16,_Afg07,2),"") ->  | H28: =IF(CS16>1,VLOOKUP(CS16,_Afg07,2),"") ->  | L28: =IF(CT16>1,VLOOKUP(CT16,_Afg07,2),"") ->  | DC28: 25 | DD28: 120 kg N kvæg | DE28: 1.2 | DF28: =DE28*$C$149*UdnytNkvæg*0.01 -> 84 | DG28: =DE28*$C$151 -> 20.4 | DH28: =DE28*$C$153 -> 80.4
A29: Udbytte pr. ha | C29: =IF(CR16>1,IF(C19="",C18,C19),"") ->  | D29: =IF(AND(C29<>"",C29>0),VLOOKUP(CR16,_Afg07,3),"") ->  | G29: =IF(CS16>1,IF(G19="",G18,G19),"") ->  | H29: =IF(AND(G29<>"",G29>0),VLOOKUP(CS16,_Afg07,3),"") ->  | K29: =IF(CT16>1,IF(K19="",K18,K19),"") ->  | L29: =IF(AND(K29<>"",K29>0),VLOOKUP(CT16,_Afg07,3),"") ->  | P29: I nedenstående felter kan du overskrive tallene på udskriften. | DC29: 26 | DD29: 130 kg N svin | DE29: 1.3 | DF29: =DE29*$C$143*UdnytNsvin*0.01 -> 97.5 | DG29: =DE29*$C$145 -> 32.5 | DH29: =DE29*$C$147 -> 65
A30: Pris pr. hkg | C30: =IF(CR16>1,IF(C22="",C21,C22),"") ->  | D30: =IF(C30<>"","kr.","") ->  | G30: =IF(CS16>1,IF(G22="",G21,G22),"") ->  | H30: =IF(G30<>"","kr.","") ->  | K30: =IF(CT16>1,IF(K22="",K21,K22),"") ->  | L30: =IF(K30<>"","kr.","") ->  | P30: Husk at slette tallene igen før ny beregning. | DC30: 27 | DD30: 130 kg N kvæg | DE30: 1.3 | DF30: =DE30*$C$149*UdnytNkvæg*0.01 -> 91 | DG30: =DE30*$C$151 -> 22.1 | DH30: =DE30*$C$153 -> 87.1 | DK30: Plov (Plo) | DM30: Stubharve (Stu) | DO30: Såbedsharve (Såb) | DQ30: Marksprøjte | DS30: Såmaskine (Såm) | DU30: Mejetærsker (Mej) | DW30: Halmpresser (Hal) | DY30: Gylleudbringning | EA30: Gødningsspreder | EC30: Enkornsåmaskine | EE30: Kartoffellægger | EG30: Kartoffeloptager | EI30: Roeoptager
DC31: 28 | DD31: 140 kg N svin | DE31: 1.4 | DF31: =DE31*$C$143*UdnytNsvin*0.01 -> 105 | DG31: =DE31*$C$145 -> 35 | DH31: =DE31*$C$147 -> 70
A32: Udbytte, kerne/frø | C32: =IF(CR16>1,C29*C30,"") ->  | D32: =IF(C32<>"","kr.","") ->  | G32: =IF(CS16>1,G29*G30,"") ->  | H32: =IF(G32<>"","kr.","") ->  | K32: =IF(CT16>1,K29*K30,"") ->  | L32: =IF(K32<>"","kr.","") ->  | DC32: 29 | DD32: 140 kg N kvæg | DE32: 1.4 | DF32: =DE32*$C$149*UdnytNkvæg*0.01 -> 98 | DG32: =DE32*$C$151 -> 23.8 | DH32: =DE32*$C$153 -> 93.8 | DK32: 3 | DM32: 2 | DO32: 2 | DQ32: 1 | DS32: 2 | DU32: 2 | DW32: 2 | DY32: 2 | EA32: 2 | EC32: 1 | EE32: 2 | EG32: 1 | EI32: 1
A33: Udbytte, halm | C33: =IF(CR16>1,IF($CR$5=1,VLOOKUP(CR16,_Afg07,$CS$5,0)*Halmpris,""),"") ->  | D33: =IF(C33<>"","kr.","") ->  | G33: =IF(CS16>1,IF($CR$5=1,VLOOKUP(CS16,_Afg07,$CS$5,0)*Halmpris,""),"") ->  | H33: =IF(G33<>"","kr.","") ->  | K33: =IF(CT16>1,IF($CR$5=1,VLOOKUP(CT16,_Afg07,$CS$5,0)*Halmpris,""),"") ->  | L33: =IF(K33<>"","kr.","") ->  | Q33: Afgrøde | S33: Alternativ 1 | U33: Alternativ 2 | DC33: 30 | DD33: 150 kg N kvæg | DE33: 1.5 | DF33: =DE33*$C$149*UdnytNkvæg*0.01 -> 105 | DG33: =DE33*$C$151 -> 25.5 | DH33: =DE33*$C$153 -> 100.5 | DS33: Timer i alt
A34: Forfrugtsværdi | C34: =IF(CR16>1,IF($CR$11=1,(VLOOKUP(CR16,_Afg07,$CS$11)*ffvpris+VLOOKUP(CR16,_Afg07,20)*Npris),0),"") ->  | D34: =IF(C34<>"","kr.","") ->  | G34: =IF(CS16>1,IF($CR$11=1,(VLOOKUP(CS16,_Afg07,$CS$11)*ffvpris+VLOOKUP(CS16,_Afg07,20)*Npris),0),"") ->  | H34: =IF(G34<>"","kr.","") ->  | K34: =IF(CT16>1,IF($CR$11=1,(VLOOKUP(CT16,_Afg07,$CS$11)*ffvpris+VLOOKUP(CT16,_Afg07,20)*Npris),0),"") ->  | L34: =IF(K34<>"","kr.","") ->  | CT34: Erstatningskorn,sædskifte | CU34: Udbytte, foderkorn | CV34: Areal, foderkorn | CY34: Halm fra foderkorn | DA34: Hovedafgrøde_areal | DC34: 31 | DD34: 160 kg N kvæg | DE34: 1.6 | DF34: =DE34*$C$149*UdnytNkvæg*0.01 -> 112 | DG34: =DE34*$C$151 -> 27.2 | DH34: =DE34*$C$153 -> 107.2 | DK34: Pløjning | DM34: Harvning efter høst | DO34: Såbedsharvning | DQ34: Glyphosatsprøjtning | DS34: Pløjning vinter/forå | DT34: Pløjning august | DU34: Pløjning sept | DV34: Harvning e høst juli | DW34: Harvning e høst august | DX34: Harvning e høst oktober | DY34: Såbedsharvn forår | DZ34: Såbedsharvn august | EA34: Såbedsharvn september | EB34: Glyphosat forår | EC34: Glyphosat august | ED34: Glyphosat september | EE34: Såning forår | EF34: Såning august | EG34: Såning september | EH34: Høst juli | EI34: Høst august | EJ34: Høst oktober | EK34: Halm juli | EL34: Halm august | EM34: Enkornsåning forår | EN34: Kartof lægning forår | EO34: Kartof optag sept | EP34: Roeoptag | EQ34: Planteværn | ER34: Gødning | ES34: Gylle
A35: Tilskud | C35: =IF(Q35<>"",Q35,"") ->  | D35: =IF(C35<>"","kr.","") ->  | G35: =IF(S35<>"",S35,"") ->  | H35: =IF(G35<>"","kr.","") ->  | K35: =IF(U35<>"",U35,"") ->  | L35: =IF(K35<>"","kr.","") ->  | P35: Tilskud
A36: Bruttoudbytte i alt | C36: =IF(CR16>1,SUM(C32:C35),"") ->  | D36: =IF(C36<>"","kr.","") ->  | G36: =IF(CS16>1,SUM(G32:G35),"") ->  | H36: =IF(G36<>"","kr.","") ->  | K36: =IF(CT16>1,SUM(K32:K35),"") ->  | L36: =IF(K36<>"","kr.","") ->  | CR36: 1 | CT36: =IF(CR36>1,IF(VLOOKUP(CR36,_Afg07,$BR$131)=2,IF($CR$7=2,-VLOOKUP($O$169,_Afg07,$CS$7)*Erstatpris*C93,0),0),0) -> 0 | CU36: =IF(AND(CR36>1,VLOOKUP(CR36,_Afg07,$BR$131)=1),IF(E93<>"",E93,F93)*C93,0) -> 0 | CV36: =IF(AND(CR36>1,VLOOKUP(CR36,_Afg07,$BR$131)=1),C93,0) -> 0 | CY36: =IF(AND(CR36>1,VLOOKUP(CR36,_Afg07,$BR$131)=1),VLOOKUP(CR36,_Afg07,Halmnr)*C93,0) -> 0 | DC36: 32 | DD36: 170 kg N kvæg | DE36: 1.7 | DF36: =DE36*$C$149*UdnytNkvæg*0.01 -> 119 | DG36: =DE36*$C$151 -> 28.9 | DH36: =DE36*$C$153 -> 113.9 | DK36: TRUE | DM36: FALSE | DO36: FALSE | DQ36: FALSE | DS36: =IF(VLOOKUP($CR36,_Afg07,$BS$131)=1,IF($DK36,$C93/IF(_Plo2<>"",_Plo2,Plo),0),0) -> 0 | DT36: =IF(VLOOKUP($CR36,_Afg07,$BS$131)=2,IF($DK36,$C93/IF(_Plo2<>"",_Plo2,Plo),0),0) -> 0 | DU36: =IF(VLOOKUP($CR36,_Afg07,$BS$131)=3,IF($DK36,$C93/IF(_Plo2<>"",_Plo2,Plo),0),0) -> 0 | DV36: =IF(VLOOKUP($CR36,_Afg07,$BW$131)=1,IF($DM36,$C93/IF(_Stu2<>"",_Stu2,Stu),0),0) -> 0 | DW36: =IF(VLOOKUP($CR36,_Afg07,$BW$131)=2,IF($DM36,$C93/IF(_Stu2<>"",_Stu2,Stu),0),0) -> 0 | DX36: =IF(VLOOKUP($CR36,_Afg07,$BW$131)=3,IF($DM36,$C93/IF(_Stu2<>"",_Stu2,Stu),0),0) -> 0 | DY36: =IF(VLOOKUP($CR36,_Afg07,$BT$131)=1,IF($DO36,$C93/IF(Såb2<>"",Såb2,Såb),0),0) -> 0 | DZ36: =IF(VLOOKUP($CR36,_Afg07,$BT$131)=2,IF($DO36,$C93/IF(Såb2<>"",Såb2,Såb),0),0) -> 0 | EA36: =IF(VLOOKUP($CR36,_Afg07,$BT$131)=3,IF($DO36,$C93/IF(Såb2<>"",Såb2,Såb),0),0) -> 0 | EB36: =IF(VLOOKUP($CR36,_Afg07,$BU$131)=1,IF($DQ36,$C93/IF(_Gly2<>"",_Gly2,Gly),0),0) -> 0 | EC36: =IF(VLOOKUP($CR36,_Afg07,$BU$131)=2,IF($DQ36,$C93/IF(_Gly2<>"",_Gly2,Gly),0),0) -> 0 | ED36: =IF(VLOOKUP($CR36,_Afg07,$BU$131)=3,IF($DQ36,$C93/IF(_Gly2<>"",_Gly2,Gly),0),0) -> 0 | EE36: =IF(VLOOKUP($CR36,_Afg07,$BV$131)=1,$C93/IF(Såm2<>"",Såm2,Såm),0) -> 0 | EF36: =IF(VLOOKUP($CR36,_Afg07,$BV$131)=2,$C93/IF(Såm2<>"",Såm2,Såm),0) -> 0 | EG36: =IF(VLOOKUP($CR36,_Afg07,$BV$131)=3,$C93/IF(Såm2<>"",Såm2,Såm),0) -> 0 | EH36: =IF(VLOOKUP($CR36,_Afg07,$BX$131)=1,$C93/IF(_Mej2<>"",_Mej2,Mej)*VLOOKUP($CR36,_Afg07,$BZ$131),0) -> 0 | EI36: =IF(VLOOKUP($CR36,_Afg07,$BX$131)=2,$C93/IF(_Mej2<>"",_Mej2,Mej)*VLOOKUP($CR36,_Afg07,$BZ$131),0) -> 0 | EJ36: =IF(VLOOKUP($CR36,_Afg07,$BX$131)=3,$C93/IF(_Mej2<>"",_Mej2,Mej)*VLOOKUP($CR36,_Afg07,$BZ$131),0) -> 0 | EK36: =IF(HalmJa=1,IF(VLOOKUP($CR36,_Afg07,$BY$131)=1,$C93/IF(_Hal3<>"",_Hal3,Hal)+$C93/_Hal2,0),0) -> 0 | EL36: =IF(HalmJa=1,IF(VLOOKUP($CR36,_Afg07,$BY$131)=2,$C93/IF(_Hal3<>"",_Hal3,Hal)+$C93/_Hal2,0),0) -> 0 | EM36: =IF(VLOOKUP($CR36,_Afg07,$CA$131)=1,$C93/IF(_Enk2<>"",_Enk2,Enk),0) -> 0 | EN36: =IF(VLOOKUP($CR36,_Afg07,$CB$131)=1,$C93/IF(_Kar2<>"",_Kar2,Kar),0) -> 0 | EO36: =IF(VLOOKUP($CR36,_Afg07,$CC$131)=1,$C93/IF(Kopt2<>"",Kopt2,Kopt),0) -> 0 | EP36: =IF(VLOOKUP($CR36,_Afg07,$CD$131)=1,$C93/IF(Ropt2<>"",Ropt2,Ropt),0) -> 0 | EQ36: =VLOOKUP($CR36,_Afg07,$CE$131)*$C93/IF(_Gly2<>"",_Gly2,Gly) -> 0 | ER36: =VLOOKUP($CR36,_Afg07,$CF$131)*$C93/IF(Gød2<>"",Gød2,Gød) -> 0
CR37: 1 | CT37: =IF(CR37>1,IF(VLOOKUP(CR37,_Afg07,$BR$131)=2,IF($CR$7=2,-VLOOKUP($O$169,_Afg07,$CS$7)*Erstatpris*C113,0),0),0) -> 0 | CU37: =IF(AND(CR37>1,VLOOKUP(CR37,_Afg07,$BR$131)=1),IF(E113<>"",E113,F113)*C113,0) -> 0 | CV37: =IF(AND(CR37>1,VLOOKUP(CR37,_Afg07,$BR$131)=1),C113,0) -> 0 | CY37: =IF(AND(CR37>1,VLOOKUP(CR37,_Afg07,$BR$131)=1),VLOOKUP(CR37,_Afg07,Halmnr)*C113,0) -> 0 | DC37: 33 | DD37: 180 kg N kvæg | DE37: 1.8 | DF37: 126 | DG37: 30.6 | DH37: 120.6 | DK37: TRUE | DM37: FALSE | DO37: FALSE | DQ37: FALSE | DS37: =IF(VLOOKUP($CR37,_Afg07,$BS$131)=1,IF($DK37,$C113/IF(_Plo2<>"",_Plo2,Plo),0),0) -> 0 | DT37: =IF(VLOOKUP($CR37,_Afg07,$BS$131)=2,IF($DK37,$C113/IF(_Plo2<>"",_Plo2,Plo),0),0) -> 0 | DU37: =IF(VLOOKUP($CR37,_Afg07,$BS$131)=3,IF($DK37,$C113/IF(_Plo2<>"",_Plo2,Plo),0),0) -> 0 | DV37: =IF(VLOOKUP($CR37,_Afg07,$BW$131)=1,IF($DM37,$C113/IF(_Stu2<>"",_Stu2,Stu),0),0) -> 0 | DW37: =IF(VLOOKUP($CR37,_Afg07,$BW$131)=2,IF($DM37,$C113/IF(_Stu2<>"",_Stu2,Stu),0),0) -> 0 | DX37: =IF(VLOOKUP($CR37,_Afg07,$BW$131)=3,IF($DM37,$C113/IF(_Stu2<>"",_Stu2,Stu),0),0) -> 0 | DY37: =IF(VLOOKUP($CR37,_Afg07,$BT$131)=1,IF($DO37,$C113/IF(Såb2<>"",Såb2,Såb),0),0) -> 0 | DZ37: =IF(VLOOKUP($CR37,_Afg07,$BT$131)=2,IF($DO37,$C113/IF(Såb2<>"",Såb2,Såb),0),0) -> 0 | EA37: =IF(VLOOKUP($CR37,_Afg07,$BT$131)=3,IF($DO37,$C113/IF(Såb2<>"",Såb2,Såb),0),0) -> 0 | EB37: =IF(VLOOKUP($CR37,_Afg07,$BU$131)=1,IF($DQ37,$C113/IF(_Gly2<>"",_Gly2,Gly),0),0) -> 0 | EC37: =IF(VLOOKUP($CR37,_Afg07,$BU$131)=2,IF($DQ37,$C113/IF(_Gly2<>"",_Gly2,Gly),0),0) -> 0 | ED37: =IF(VLOOKUP($CR37,_Afg07,$BU$131)=3,IF($DQ37,$C113/IF(_Gly2<>"",_Gly2,Gly),0),0) -> 0 | EE37: =IF(VLOOKUP($CR37,_Afg07,$BV$131)=1,$C113/IF(Såm2<>"",Såm2,Såm),0) -> 0 | EF37: =IF(VLOOKUP($CR37,_Afg07,$BV$131)=2,$C113/IF(Såm2<>"",Såm2,Såm),0) -> 0 | EG37: =IF(VLOOKUP($CR37,_Afg07,$BV$131)=3,$C113/IF(Såm2<>"",Såm2,Såm),0) -> 0 | EH37: =IF(VLOOKUP($CR37,_Afg07,$BX$131)=1,$C113/IF(_Mej2<>"",_Mej2,Mej)*VLOOKUP($CR37,_Afg07,$BZ$131),0) -> 0 | EI37: =IF(VLOOKUP($CR37,_Afg07,$BX$131)=2,$C113/IF(_Mej2<>"",_Mej2,Mej)*VLOOKUP($CR37,_Afg07,$BZ$131),0) -> 0 | EJ37: =IF(VLOOKUP($CR37,_Afg07,$BX$131)=3,$C113/IF(_Mej2<>"",_Mej2,Mej)*VLOOKUP($CR37,_Afg07,$BZ$131),0) -> 0 | EK37: =IF(HalmJa=1,IF(VLOOKUP($CR37,_Afg07,$BY$131)=1,$C113/IF(_Hal3<>"",_Hal3,Hal)+$C113/_Hal2,0),0) -> 0 | EL37: =IF(HalmJa=1,IF(VLOOKUP($CR37,_Afg07,$BY$131)=2,$C113/IF(_Hal3<>"",_Hal3,Hal)+$C113/_Hal2,0),0) -> 0 | EM37: =IF(VLOOKUP($CR37,_Afg07,$CA$131)=1,$C113/IF(_Enk2<>"",_Enk2,Enk),0) -> 0 | EN37: =IF(VLOOKUP($CR37,_Afg07,$CB$131)=1,$C113/IF(_Kar2<>"",_Kar2,Kar),0) -> 0 | EO37: =IF(VLOOKUP($CR37,_Afg07,$CC$131)=1,$C113/IF(Kopt2<>"",Kopt2,Kopt),0) -> 0 | EP37: =IF(VLOOKUP($CR37,_Afg07,$CD$131)=1,$C113/IF(Ropt2<>"",Ropt2,Ropt),0) -> 0 | EQ37: =VLOOKUP($CR37,_Afg07,$CE$131)*$C113/IF(_Gly2<>"",_Gly2,Gly) -> 0 | ER37: =VLOOKUP($CR37,_Afg07,$CF$131)*$C113/IF(Gød2<>"",Gød2,Gød) -> 0
A38: Udsæd | C38: =IF(CR16>1,IF(Q38<>"",Q38,-VLOOKUP(CR16,_Afg07,AI131)),"") ->  | D38: =IF(C38<>"","kr.","") ->  | G38: =IF(CS16>1,IF(S38<>"",S38,-VLOOKUP(CS16,_Afg07,AI131)),"") ->  | H38: =IF(G38<>"","kr.","") ->  | K38: =IF(CT16>1,IF(U38<>"",U38,-VLOOKUP(CT16,_Afg07,AI131)),"") ->  | L38: =IF(K38<>"","kr.","") ->  | P38: Udsæd | CR38: 1 | CT38: =IF(CR38>1,IF(VLOOKUP(CR38,_Afg07,$BR$131)=2,IF($CR$7=2,-VLOOKUP($O$169,_Afg07,$CS$7)*Erstatpris*C95,0),0),0) -> 0 | CU38: =IF(AND(CR38>1,VLOOKUP(CR38,_Afg07,$BR$131)=1),IF(E95<>"",E95,F95)*C95,0) -> 0 | CV38: =IF(AND(CR38>1,VLOOKUP(CR38,_Afg07,$BR$131)=1),C95,0) -> 0 | CY38: =IF(AND(CR38>1,VLOOKUP(CR38,_Afg07,$BR$131)=1),VLOOKUP(CR38,_Afg07,Halmnr)*C95,0) -> 0 | DC38: 34 | DD38: 190 kg N kvæg | DE38: 1.9 | DF38: 133 | DG38: 32.3 | DH38: 127.3 | DK38: TRUE | DM38: FALSE | DO38: FALSE | DQ38: FALSE | DS38: =IF(VLOOKUP($CR38,_Afg07,$BS$131)=1,IF($DK38,$C95/IF(_Plo2<>"",_Plo2,Plo),0),0) -> 0 | DT38: =IF(VLOOKUP($CR38,_Afg07,$BS$131)=2,IF($DK38,$C95/IF(_Plo2<>"",_Plo2,Plo),0),0) -> 0 | DU38: =IF(VLOOKUP($CR38,_Afg07,$BS$131)=3,IF($DK38,$C95/IF(_Plo2<>"",_Plo2,Plo),0),0) -> 0 | DV38: =IF(VLOOKUP($CR38,_Afg07,$BW$131)=1,IF($DM38,$C95/IF(_Stu2<>"",_Stu2,Stu),0),0) -> 0 | DW38: =IF(VLOOKUP($CR38,_Afg07,$BW$131)=2,IF($DM38,$C95/IF(_Stu2<>"",_Stu2,Stu),0),0) -> 0 | DX38: =IF(VLOOKUP($CR38,_Afg07,$BW$131)=3,IF($DM38,$C95/IF(_Stu2<>"",_Stu2,Stu),0),0) -> 0 | DY38: =IF(VLOOKUP($CR38,_Afg07,$BT$131)=1,IF($DO38,$C95/IF(Såb2<>"",Såb2,Såb),0),0) -> 0 | DZ38: =IF(VLOOKUP($CR38,_Afg07,$BT$131)=2,IF($DO38,$C95/IF(Såb2<>"",Såb2,Såb),0),0) -> 0 | EA38: =IF(VLOOKUP($CR38,_Afg07,$BT$131)=3,IF($DO38,$C95/IF(Såb2<>"",Såb2,Såb),0),0) -> 0 | EB38: =IF(VLOOKUP($CR38,_Afg07,$BU$131)=1,IF($DQ38,$C95/IF(_Gly2<>"",_Gly2,Gly),0),0) -> 0 | EC38: =IF(VLOOKUP($CR38,_Afg07,$BU$131)=2,IF($DQ38,$C95/IF(_Gly2<>"",_Gly2,Gly),0),0) -> 0 | ED38: =IF(VLOOKUP($CR38,_Afg07,$BU$131)=3,IF($DQ38,$C95/IF(_Gly2<>"",_Gly2,Gly),0),0) -> 0 | EE38: =IF(VLOOKUP($CR38,_Afg07,$BV$131)=1,$C95/IF(Såm2<>"",Såm2,Såm),0) -> 0 | EF38: =IF(VLOOKUP($CR38,_Afg07,$BV$131)=2,$C95/IF(Såm2<>"",Såm2,Såm),0) -> 0 | EG38: =IF(VLOOKUP($CR38,_Afg07,$BV$131)=3,$C95/IF(Såm2<>"",Såm2,Såm),0) -> 0 | EH38: =IF(VLOOKUP($CR38,_Afg07,$BX$131)=1,$C95/IF(_Mej2<>"",_Mej2,Mej)*VLOOKUP($CR38,_Afg07,$BZ$131),0) -> 0 | EI38: =IF(VLOOKUP($CR38,_Afg07,$BX$131)=2,$C95/IF(_Mej2<>"",_Mej2,Mej)*VLOOKUP($CR38,_Afg07,$BZ$131),0) -> 0 | EJ38: =IF(VLOOKUP($CR38,_Afg07,$BX$131)=3,$C95/IF(_Mej2<>"",_Mej2,Mej)*VLOOKUP($CR38,_Afg07,$BZ$131),0) -> 0 | EK38: =IF(HalmJa=1,IF(VLOOKUP($CR38,_Afg07,$BY$131)=1,$C95/IF(_Hal3<>"",_Hal3,Hal)+$C95/_Hal2,0),0) -> 0 | EL38: =IF(HalmJa=1,IF(VLOOKUP($CR38,_Afg07,$BY$131)=2,$C95/IF(_Hal3<>"",_Hal3,Hal)+$C95/_Hal2,0),0) -> 0 | EM38: =IF(VLOOKUP($CR38,_Afg07,$CA$131)=1,$C95/IF(_Enk2<>"",_Enk2,Enk),0) -> 0 | EN38: =IF(VLOOKUP($CR38,_Afg07,$CB$131)=1,$C95/IF(_Kar2<>"",_Kar2,Kar),0) -> 0 | EO38: =IF(VLOOKUP($CR38,_Afg07,$CC$131)=1,$C95/IF(Kopt2<>"",Kopt2,Kopt),0) -> 0 | EP38: =IF(VLOOKUP($CR38,_Afg07,$CD$131)=1,$C95/IF(Ropt2<>"",Ropt2,Ropt),0) -> 0 | EQ38: =VLOOKUP($CR38,_Afg07,$CE$131)*$C95/IF(_Gly2<>"",_Gly2,Gly) -> 0 | ER38: =VLOOKUP($CR38,_Afg07,$CF$131)*$C95/IF(Gød2<>"",Gød2,Gød) -> 0
A39: Gødning | C39: =IF(Afgnr>1,IF(Q39<>"",Q39,-C421),"") ->  | D39: =IF(C39<>"","kr.","") ->  | G39: =IF(Alt1nr>1,IF(S39<>"",S39,-G421),"") ->  | H39: =IF(G39<>"","kr.","") ->  | K39: =IF(Alt2nr>1,IF(U39<>"",U39,-K421),"") ->  | L39: =IF(K39<>"","kr.","") ->  | P39: Gødning | CR39: 1 | CT39: =IF(CR39>1,IF(VLOOKUP(CR39,_Afg07,$BR$131)=2,IF($CR$7=2,-VLOOKUP($O$169,_Afg07,$CS$7)*Erstatpris*C115,0),0),0) -> 0 | CU39: =IF(AND(CR39>1,VLOOKUP(CR39,_Afg07,$BR$131)=1),IF(E115<>"",E115,F115)*C115,0) -> 0 | CV39: =IF(AND(CR39>1,VLOOKUP(CR39,_Afg07,$BR$131)=1),C115,0) -> 0 | CY39: =IF(AND(CR39>1,VLOOKUP(CR39,_Afg07,$BR$131)=1),VLOOKUP(CR39,_Afg07,Halmnr)*C115,0) -> 0 | DC39: 35 | DD39: 200 kg N kvæg | DE39: 2 | DF39: 140 | DG39: 34 | DH39: 134 | DK39: TRUE | DM39: FALSE | DO39: FALSE | DQ39: FALSE | DS39: =IF(VLOOKUP($CR39,_Afg07,$BS$131)=1,IF($DK39,$C115/IF(_Plo2<>"",_Plo2,Plo),0),0) -> 0 | DT39: =IF(VLOOKUP($CR39,_Afg07,$BS$131)=2,IF($DK39,$C115/IF(_Plo2<>"",_Plo2,Plo),0),0) -> 0 | DU39: =IF(VLOOKUP($CR39,_Afg07,$BS$131)=3,IF($DK39,$C115/IF(_Plo2<>"",_Plo2,Plo),0),0) -> 0 | DV39: =IF(VLOOKUP($CR39,_Afg07,$BW$131)=1,IF($DM39,$C115/IF(_Stu2<>"",_Stu2,Stu),0),0) -> 0 | DW39: =IF(VLOOKUP($CR39,_Afg07,$BW$131)=2,IF($DM39,$C115/IF(_Stu2<>"",_Stu2,Stu),0),0) -> 0 | DX39: =IF(VLOOKUP($CR39,_Afg07,$BW$131)=3,IF($DM39,$C115/IF(_Stu2<>"",_Stu2,Stu),0),0) -> 0 | DY39: =IF(VLOOKUP($CR39,_Afg07,$BT$131)=1,IF($DO39,$C115/IF(Såb2<>"",Såb2,Såb),0),0) -> 0 | DZ39: =IF(VLOOKUP($CR39,_Afg07,$BT$131)=2,IF($DO39,$C115/IF(Såb2<>"",Såb2,Såb),0),0) -> 0 | EA39: =IF(VLOOKUP($CR39,_Afg07,$BT$131)=3,IF($DO39,$C115/IF(Såb2<>"",Såb2,Såb),0),0) -> 0 | EB39: =IF(VLOOKUP($CR39,_Afg07,$BU$131)=1,IF($DQ39,$C115/IF(_Gly2<>"",_Gly2,Gly),0),0) -> 0 | EC39: =IF(VLOOKUP($CR39,_Afg07,$BU$131)=2,IF($DQ39,$C115/IF(_Gly2<>"",_Gly2,Gly),0),0) -> 0 | ED39: =IF(VLOOKUP($CR39,_Afg07,$BU$131)=3,IF($DQ39,$C115/IF(_Gly2<>"",_Gly2,Gly),0),0) -> 0 | EE39: =IF(VLOOKUP($CR39,_Afg07,$BV$131)=1,$C115/IF(Såm2<>"",Såm2,Såm),0) -> 0 | EF39: =IF(VLOOKUP($CR39,_Afg07,$BV$131)=2,$C115/IF(Såm2<>"",Såm2,Såm),0) -> 0 | EG39: =IF(VLOOKUP($CR39,_Afg07,$BV$131)=3,$C115/IF(Såm2<>"",Såm2,Såm),0) -> 0 | EH39: =IF(VLOOKUP($CR39,_Afg07,$BX$131)=1,$C115/IF(_Mej2<>"",_Mej2,Mej)*VLOOKUP($CR39,_Afg07,$BZ$131),0) -> 0 | EI39: =IF(VLOOKUP($CR39,_Afg07,$BX$131)=2,$C115/IF(_Mej2<>"",_Mej2,Mej)*VLOOKUP($CR39,_Afg07,$BZ$131),0) -> 0 | EJ39: =IF(VLOOKUP($CR39,_Afg07,$BX$131)=3,$C115/IF(_Mej2<>"",_Mej2,Mej)*VLOOKUP($CR39,_Afg07,$BZ$131),0) -> 0 | EK39: =IF(HalmJa=1,IF(VLOOKUP($CR39,_Afg07,$BY$131)=1,$C115/IF(_Hal3<>"",_Hal3,Hal)+$C115/_Hal2,0),0) -> 0 | EL39: =IF(HalmJa=1,IF(VLOOKUP($CR39,_Afg07,$BY$131)=2,$C115/IF(_Hal3<>"",_Hal3,Hal)+$C115/_Hal2,0),0) -> 0 | EM39: =IF(VLOOKUP($CR39,_Afg07,$CA$131)=1,$C115/IF(_Enk2<>"",_Enk2,Enk),0) -> 0 | EN39: =IF(VLOOKUP($CR39,_Afg07,$CB$131)=1,$C115/IF(_Kar2<>"",_Kar2,Kar),0) -> 0 | EO39: =IF(VLOOKUP($CR39,_Afg07,$CC$131)=1,$C115/IF(Kopt2<>"",Kopt2,Kopt),0) -> 0 | EP39: =IF(VLOOKUP($CR39,_Afg07,$CD$131)=1,$C115/IF(Ropt2<>"",Ropt2,Ropt),0) -> 0 | EQ39: =VLOOKUP($CR39,_Afg07,$CE$131)*$C115/IF(_Gly2<>"",_Gly2,Gly) -> 0 | ER39: =VLOOKUP($CR39,_Afg07,$CF$131)*$C115/IF(Gød2<>"",Gød2,Gød) -> 0
A40: Planteværn | C40: =IF(CR16>1,IF(Q40<>"",Q40,-VLOOKUP(CR16,_Afg07,AJ131)),"") ->  | D40: =IF(C40<>"","kr.","") ->  | G40: =IF(CS16>1,IF(S40<>"",S40,-VLOOKUP(CS16,_Afg07,AJ131)),"") ->  | H40: =IF(G40<>"","kr.","") ->  | K40: =IF(CT16>1,IF(U40<>"",U40,-VLOOKUP(CT16,_Afg07,AJ131)),"") ->  | L40: =IF(K40<>"","kr.","") ->  | P40: Planteværn | CR40: 1 | CT40: =IF(CR40>1,IF(VLOOKUP(CR40,_Afg07,$BR$131)=2,IF($CR$7=2,-VLOOKUP($O$169,_Afg07,$CS$7)*Erstatpris*C97,0),0),0) -> 0 | CU40: =IF(AND(CR40>1,VLOOKUP(CR40,_Afg07,$BR$131)=1),IF(E97<>"",E97,F97)*C97,0) -> 0 | CV40: =IF(AND(CR40>1,VLOOKUP(CR40,_Afg07,$BR$131)=1),C97,0) -> 0 | CY40: =IF(AND(CR40>1,VLOOKUP(CR40,_Afg07,$BR$131)=1),VLOOKUP(CR40,_Afg07,Halmnr)*C97,0) -> 0 | DC40: 36 | DD40: 210 kg N kvæg | DE40: 2.1 | DF40: 147 | DG40: 35.7 | DH40: 140.7 | DK40: TRUE | DM40: FALSE | DO40: FALSE | DQ40: FALSE | DS40: =IF(VLOOKUP($CR40,_Afg07,$BS$131)=1,IF($DK40,$C97/IF(_Plo2<>"",_Plo2,Plo),0),0) -> 0 | DT40: =IF(VLOOKUP($CR40,_Afg07,$BS$131)=2,IF($DK40,$C97/IF(_Plo2<>"",_Plo2,Plo),0),0) -> 0 | DU40: =IF(VLOOKUP($CR40,_Afg07,$BS$131)=3,IF($DK40,$C97/IF(_Plo2<>"",_Plo2,Plo),0),0) -> 0 | DV40: =IF(VLOOKUP($CR40,_Afg07,$BW$131)=1,IF($DM40,$C97/IF(_Stu2<>"",_Stu2,Stu),0),0) -> 0 | DW40: =IF(VLOOKUP($CR40,_Afg07,$BW$131)=2,IF($DM40,$C97/IF(_Stu2<>"",_Stu2,Stu),0),0) -> 0 | DX40: =IF(VLOOKUP($CR40,_Afg07,$BW$131)=3,IF($DM40,$C97/IF(_Stu2<>"",_Stu2,Stu),0),0) -> 0 | DY40: =IF(VLOOKUP($CR40,_Afg07,$BT$131)=1,IF($DO40,$C97/IF(Såb2<>"",Såb2,Såb),0),0) -> 0 | DZ40: =IF(VLOOKUP($CR40,_Afg07,$BT$131)=2,IF($DO40,$C97/IF(Såb2<>"",Såb2,Såb),0),0) -> 0 | EA40: =IF(VLOOKUP($CR40,_Afg07,$BT$131)=3,IF($DO40,$C97/IF(Såb2<>"",Såb2,Såb),0),0) -> 0 | EB40: =IF(VLOOKUP($CR40,_Afg07,$BU$131)=1,IF($DQ40,$C97/IF(_Gly2<>"",_Gly2,Gly),0),0) -> 0 | EC40: =IF(VLOOKUP($CR40,_Afg07,$BU$131)=2,IF($DQ40,$C97/IF(_Gly2<>"",_Gly2,Gly),0),0) -> 0 | ED40: =IF(VLOOKUP($CR40,_Afg07,$BU$131)=3,IF($DQ40,$C97/IF(_Gly2<>"",_Gly2,Gly),0),0) -> 0 | EE40: =IF(VLOOKUP($CR40,_Afg07,$BV$131)=1,$C97/IF(Såm2<>"",Såm2,Såm),0) -> 0 | EF40: =IF(VLOOKUP($CR40,_Afg07,$BV$131)=2,$C97/IF(Såm2<>"",Såm2,Såm),0) -> 0 | EG40: =IF(VLOOKUP($CR40,_Afg07,$BV$131)=3,$C97/IF(Såm2<>"",Såm2,Såm),0) -> 0 | EH40: =IF(VLOOKUP($CR40,_Afg07,$BX$131)=1,$C97/IF(_Mej2<>"",_Mej2,Mej)*VLOOKUP($CR40,_Afg07,$BZ$131),0) -> 0 | EI40: =IF(VLOOKUP($CR40,_Afg07,$BX$131)=2,$C97/IF(_Mej2<>"",_Mej2,Mej)*VLOOKUP($CR40,_Afg07,$BZ$131),0) -> 0 | EJ40: =IF(VLOOKUP($CR40,_Afg07,$BX$131)=3,$C97/IF(_Mej2<>"",_Mej2,Mej)*VLOOKUP($CR40,_Afg07,$BZ$131),0) -> 0 | EK40: =IF(HalmJa=1,IF(VLOOKUP($CR40,_Afg07,$BY$131)=1,$C97/IF(_Hal3<>"",_Hal3,Hal)+$C97/_Hal2,0),0) -> 0 | EL40: =IF(HalmJa=1,IF(VLOOKUP($CR40,_Afg07,$BY$131)=2,$C97/IF(_Hal3<>"",_Hal3,Hal)+$C97/_Hal2,0),0) -> 0 | EM40: =IF(VLOOKUP($CR40,_Afg07,$CA$131)=1,$C97/IF(_Enk2<>"",_Enk2,Enk),0) -> 0 | EN40: =IF(VLOOKUP($CR40,_Afg07,$CB$131)=1,$C97/IF(_Kar2<>"",_Kar2,Kar),0) -> 0 | EO40: =IF(VLOOKUP($CR40,_Afg07,$CC$131)=1,$C97/IF(Kopt2<>"",Kopt2,Kopt),0) -> 0 | EP40: =IF(VLOOKUP($CR40,_Afg07,$CD$131)=1,$C97/IF(Ropt2<>"",Ropt2,Ropt),0) -> 0 | EQ40: =VLOOKUP($CR40,_Afg07,$CE$131)*$C97/IF(_Gly2<>"",_Gly2,Gly) -> 0 | ER40: =VLOOKUP($CR40,_Afg07,$CF$131)*$C97/IF(Gød2<>"",Gød2,Gød) -> 0
A41: Diverse | C41: =IF(Afgnr>1,IF(Q41<>"",Q41,-VLOOKUP(Afgnr,_Afg07,$AK$131)-C$29*VLOOKUP(Afgnr,_Afg07,$AY$131)),"") ->  | D41: =IF(C41<>"","kr.","") ->  | G41: =IF(CS16>1,IF(S41<>"",S41,-VLOOKUP(CS16,_Afg07,AK131)-G29*VLOOKUP(CS16,_Afg07,AY131)),"") ->  | H41: =IF(G41<>"","kr.","") ->  | K41: =IF(CT16>1,IF(U41<>"",U41,-VLOOKUP(CT16,_Afg07,AK131)-K29*VLOOKUP(CT16,_Afg07,AY131)),"") ->  | L41: =IF(K41<>"","kr.","") ->  | P41: Diverse | CR41: 1 | CT41: =IF(CR41>1,IF(VLOOKUP(CR41,_Afg07,$BR$131)=2,IF($CR$7=2,-VLOOKUP($O$169,_Afg07,$CS$7)*Erstatpris*C117,0),0),0) -> 0 | CU41: =IF(AND(CR41>1,VLOOKUP(CR41,_Afg07,$BR$131)=1),IF(E117<>"",E117,F117)*C117,0) -> 0 | CV41: =IF(AND(CR41>1,VLOOKUP(CR41,_Afg07,$BR$131)=1),C117,0) -> 0 | CY41: =IF(AND(CR41>1,VLOOKUP(CR41,_Afg07,$BR$131)=1),VLOOKUP(CR41,_Afg07,Halmnr)*C117,0) -> 0 | DC41: 37 | DD41: 220 kg N kvæg | DE41: 2.2 | DF41: 154 | DG41: 37.4 | DH41: 147.4 | DK41: TRUE | DM41: FALSE | DO41: FALSE | DQ41: FALSE | DS41: =IF(VLOOKUP($CR41,_Afg07,$BS$131)=1,IF($DK41,$C117/IF(_Plo2<>"",_Plo2,Plo),0),0) -> 0 | DT41: =IF(VLOOKUP($CR41,_Afg07,$BS$131)=2,IF($DK41,$C117/IF(_Plo2<>"",_Plo2,Plo),0),0) -> 0 | DU41: =IF(VLOOKUP($CR41,_Afg07,$BS$131)=3,IF($DK41,$C117/IF(_Plo2<>"",_Plo2,Plo),0),0) -> 0 | DV41: =IF(VLOOKUP($CR41,_Afg07,$BW$131)=1,IF($DM41,$C117/IF(_Stu2<>"",_Stu2,Stu),0),0) -> 0 | DW41: =IF(VLOOKUP($CR41,_Afg07,$BW$131)=2,IF($DM41,$C117/IF(_Stu2<>"",_Stu2,Stu),0),0) -> 0 | DX41: =IF(VLOOKUP($CR41,_Afg07,$BW$131)=3,IF($DM41,$C117/IF(_Stu2<>"",_Stu2,Stu),0),0) -> 0 | DY41: =IF(VLOOKUP($CR41,_Afg07,$BT$131)=1,IF($DO41,$C117/IF(Såb2<>"",Såb2,Såb),0),0) -> 0 | DZ41: =IF(VLOOKUP($CR41,_Afg07,$BT$131)=2,IF($DO41,$C117/IF(Såb2<>"",Såb2,Såb),0),0) -> 0 | EA41: =IF(VLOOKUP($CR41,_Afg07,$BT$131)=3,IF($DO41,$C117/IF(Såb2<>"",Såb2,Såb),0),0) -> 0 | EB41: =IF(VLOOKUP($CR41,_Afg07,$BU$131)=1,IF($DQ41,$C117/IF(_Gly2<>"",_Gly2,Gly),0),0) -> 0 | EC41: =IF(VLOOKUP($CR41,_Afg07,$BU$131)=2,IF($DQ41,$C117/IF(_Gly2<>"",_Gly2,Gly),0),0) -> 0 | ED41: =IF(VLOOKUP($CR41,_Afg07,$BU$131)=3,IF($DQ41,$C117/IF(_Gly2<>"",_Gly2,Gly),0),0) -> 0 | EE41: =IF(VLOOKUP($CR41,_Afg07,$BV$131)=1,$C117/IF(Såm2<>"",Såm2,Såm),0) -> 0 | EF41: =IF(VLOOKUP($CR41,_Afg07,$BV$131)=2,$C117/IF(Såm2<>"",Såm2,Såm),0) -> 0 | EG41: =IF(VLOOKUP($CR41,_Afg07,$BV$131)=3,$C117/IF(Såm2<>"",Såm2,Såm),0) -> 0 | EH41: =IF(VLOOKUP($CR41,_Afg07,$BX$131)=1,$C117/IF(_Mej2<>"",_Mej2,Mej)*VLOOKUP($CR41,_Afg07,$BZ$131),0) -> 0 | EI41: =IF(VLOOKUP($CR41,_Afg07,$BX$131)=2,$C117/IF(_Mej2<>"",_Mej2,Mej)*VLOOKUP($CR41,_Afg07,$BZ$131),0) -> 0 | EJ41: =IF(VLOOKUP($CR41,_Afg07,$BX$131)=3,$C117/IF(_Mej2<>"",_Mej2,Mej)*VLOOKUP($CR41,_Afg07,$BZ$131),0) -> 0 | EK41: =IF(HalmJa=1,IF(VLOOKUP($CR41,_Afg07,$BY$131)=1,$C117/IF(_Hal3<>"",_Hal3,Hal)+$C117/_Hal2,0),0) -> 0 | EL41: =IF(HalmJa=1,IF(VLOOKUP($CR41,_Afg07,$BY$131)=2,$C117/IF(_Hal3<>"",_Hal3,Hal)+$C117/_Hal2,0),0) -> 0 | EM41: =IF(VLOOKUP($CR41,_Afg07,$CA$131)=1,$C117/IF(_Enk2<>"",_Enk2,Enk),0) -> 0 | EN41: =IF(VLOOKUP($CR41,_Afg07,$CB$131)=1,$C117/IF(_Kar2<>"",_Kar2,Kar),0) -> 0 | EO41: =IF(VLOOKUP($CR41,_Afg07,$CC$131)=1,$C117/IF(Kopt2<>"",Kopt2,Kopt),0) -> 0 | EP41: =IF(VLOOKUP($CR41,_Afg07,$CD$131)=1,$C117/IF(Ropt2<>"",Ropt2,Ropt),0) -> 0 | EQ41: =VLOOKUP($CR41,_Afg07,$CE$131)*$C117/IF(_Gly2<>"",_Gly2,Gly) -> 0 | ER41: =VLOOKUP($CR41,_Afg07,$CF$131)*$C117/IF(Gød2<>"",Gød2,Gød) -> 0
A42: Stykomkostninger i alt | C42: =IF(Afgnr>1,C38+C39+C40+C41,"") ->  | D42: =IF(C42<>"","kr.","") ->  | G42: =IF(Alt1nr>1,G38+G39+G40+G41,"") ->  | H42: =IF(G42<>"","kr.","") ->  | K42: =IF(Alt2nr>1,K38+K39+K40+K41,"") ->  | L42: =IF(K42<>"","kr.","") ->  | Q42: =IF(OR(Q38>0,Q39>0,Q40>0,Q41>0),"Husk minus foran","") ->  | S42: =IF(OR(S38>0,S39>0,S40>0,S41>0),"Husk minus foran","") ->  | U42: =IF(OR(U38>0,U39>0,U40>0,U41>0),"Husk minus foran","") ->  | CR42: 1 | CT42: =IF(CR42>1,IF(VLOOKUP(CR42,_Afg07,$BR$131)=2,IF($CR$7=2,-VLOOKUP($O$169,_Afg07,$CS$7)*Erstatpris*C99,0),0),0) -> 0 | CU42: =IF(AND(CR42>1,VLOOKUP(CR42,_Afg07,$BR$131)=1),IF(E99<>"",E99,F99)*C99,0) -> 0 | CV42: =IF(AND(CR42>1,VLOOKUP(CR42,_Afg07,$BR$131)=1),C99,0) -> 0 | CY42: =IF(AND(CR42>1,VLOOKUP(CR42,_Afg07,$BR$131)=1),VLOOKUP(CR42,_Afg07,Halmnr)*C99,0) -> 0 | DC42: 38 | DD42: 230 kg N kvæg | DE42: 2.3 | DF42: 161 | DG42: 39.1 | DH42: 154.1 | DK42: TRUE | DM42: FALSE | DO42: FALSE | DQ42: FALSE | DS42: =IF(VLOOKUP($CR42,_Afg07,$BS$131)=1,IF($DK42,$C99/IF(_Plo2<>"",_Plo2,Plo),0),0) -> 0 | DT42: =IF(VLOOKUP($CR42,_Afg07,$BS$131)=2,IF($DK42,$C99/IF(_Plo2<>"",_Plo2,Plo),0),0) -> 0 | DU42: =IF(VLOOKUP($CR42,_Afg07,$BS$131)=3,IF($DK42,$C99/IF(_Plo2<>"",_Plo2,Plo),0),0) -> 0 | DV42: =IF(VLOOKUP($CR42,_Afg07,$BW$131)=1,IF($DM42,$C99/IF(_Stu2<>"",_Stu2,Stu),0),0) -> 0 | DW42: =IF(VLOOKUP($CR42,_Afg07,$BW$131)=2,IF($DM42,$C99/IF(_Stu2<>"",_Stu2,Stu),0),0) -> 0 | DX42: =IF(VLOOKUP($CR42,_Afg07,$BW$131)=3,IF($DM42,$C99/IF(_Stu2<>"",_Stu2,Stu),0),0) -> 0 | DY42: =IF(VLOOKUP($CR42,_Afg07,$BT$131)=1,IF($DO42,$C99/IF(Såb2<>"",Såb2,Såb),0),0) -> 0 | DZ42: =IF(VLOOKUP($CR42,_Afg07,$BT$131)=2,IF($DO42,$C99/IF(Såb2<>"",Såb2,Såb),0),0) -> 0 | EA42: =IF(VLOOKUP($CR42,_Afg07,$BT$131)=3,IF($DO42,$C99/IF(Såb2<>"",Såb2,Såb),0),0) -> 0 | EB42: =IF(VLOOKUP($CR42,_Afg07,$BU$131)=1,IF($DQ42,$C99/IF(_Gly2<>"",_Gly2,Gly),0),0) -> 0 | EC42: =IF(VLOOKUP($CR42,_Afg07,$BU$131)=2,IF($DQ42,$C99/IF(_Gly2<>"",_Gly2,Gly),0),0) -> 0 | ED42: =IF(VLOOKUP($CR42,_Afg07,$BU$131)=3,IF($DQ42,$C99/IF(_Gly2<>"",_Gly2,Gly),0),0) -> 0 | EE42: =IF(VLOOKUP($CR42,_Afg07,$BV$131)=1,$C99/IF(Såm2<>"",Såm2,Såm),0) -> 0 | EF42: =IF(VLOOKUP($CR42,_Afg07,$BV$131)=2,$C99/IF(Såm2<>"",Såm2,Såm),0) -> 0 | EG42: =IF(VLOOKUP($CR42,_Afg07,$BV$131)=3,$C99/IF(Såm2<>"",Såm2,Såm),0) -> 0 | EH42: =IF(VLOOKUP($CR42,_Afg07,$BX$131)=1,$C99/IF(_Mej2<>"",_Mej2,Mej)*VLOOKUP($CR42,_Afg07,$BZ$131),0) -> 0 | EI42: =IF(VLOOKUP($CR42,_Afg07,$BX$131)=2,$C99/IF(_Mej2<>"",_Mej2,Mej)*VLOOKUP($CR42,_Afg07,$BZ$131),0) -> 0 | EJ42: =IF(VLOOKUP($CR42,_Afg07,$BX$131)=3,$C99/IF(_Mej2<>"",_Mej2,Mej)*VLOOKUP($CR42,_Afg07,$BZ$131),0) -> 0 | EK42: =IF(HalmJa=1,IF(VLOOKUP($CR42,_Afg07,$BY$131)=1,$C99/IF(_Hal3<>"",_Hal3,Hal)+$C99/_Hal2,0),0) -> 0 | EL42: =IF(HalmJa=1,IF(VLOOKUP($CR42,_Afg07,$BY$131)=2,$C99/IF(_Hal3<>"",_Hal3,Hal)+$C99/_Hal2,0),0) -> 0 | EM42: =IF(VLOOKUP($CR42,_Afg07,$CA$131)=1,$C99/IF(_Enk2<>"",_Enk2,Enk),0) -> 0 | EN42: =IF(VLOOKUP($CR42,_Afg07,$CB$131)=1,$C99/IF(_Kar2<>"",_Kar2,Kar),0) -> 0 | EO42: =IF(VLOOKUP($CR42,_Afg07,$CC$131)=1,$C99/IF(Kopt2<>"",Kopt2,Kopt),0) -> 0 | EP42: =IF(VLOOKUP($CR42,_Afg07,$CD$131)=1,$C99/IF(Ropt2<>"",Ropt2,Ropt),0) -> 0 | EQ42: =VLOOKUP($CR42,_Afg07,$CE$131)*$C99/IF(_Gly2<>"",_Gly2,Gly) -> 0 | ER42: =VLOOKUP($CR42,_Afg07,$CF$131)*$C99/IF(Gød2<>"",Gød2,Gød) -> 0
CR43: 1 | CT43: =IF(CR43>1,IF(VLOOKUP(CR43,_Afg07,$BR$131)=2,IF($CR$7=2,-VLOOKUP($O$169,_Afg07,$CS$7)*Erstatpris*C119,0),0),0) -> 0 | CU43: =IF(AND(CR43>1,VLOOKUP(CR43,_Afg07,$BR$131)=1),IF(E119<>"",E119,F119)*C119,0) -> 0 | CV43: =IF(AND(CR43>1,VLOOKUP(CR43,_Afg07,$BR$131)=1),C119,0) -> 0 | CY43: =IF(AND(CR43>1,VLOOKUP(CR43,_Afg07,$BR$131)=1),VLOOKUP(CR43,_Afg07,Halmnr)*C119,0) -> 0 | DK43: TRUE | DM43: FALSE | DO43: FALSE | DQ43: FALSE | DS43: =IF(VLOOKUP($CR43,_Afg07,$BS$131)=1,IF($DK43,$C119/IF(_Plo2<>"",_Plo2,Plo),0),0) -> 0 | DT43: =IF(VLOOKUP($CR43,_Afg07,$BS$131)=2,IF($DK43,$C119/IF(_Plo2<>"",_Plo2,Plo),0),0) -> 0 | DU43: =IF(VLOOKUP($CR43,_Afg07,$BS$131)=3,IF($DK43,$C119/IF(_Plo2<>"",_Plo2,Plo),0),0) -> 0 | DV43: =IF(VLOOKUP($CR43,_Afg07,$BW$131)=1,IF($DM43,$C119/IF(_Stu2<>"",_Stu2,Stu),0),0) -> 0 | DW43: =IF(VLOOKUP($CR43,_Afg07,$BW$131)=2,IF($DM43,$C119/IF(_Stu2<>"",_Stu2,Stu),0),0) -> 0 | DX43: =IF(VLOOKUP($CR43,_Afg07,$BW$131)=3,IF($DM43,$C119/IF(_Stu2<>"",_Stu2,Stu),0),0) -> 0 | DY43: =IF(VLOOKUP($CR43,_Afg07,$BT$131)=1,IF($DO43,$C119/IF(Såb2<>"",Såb2,Såb),0),0) -> 0 | DZ43: =IF(VLOOKUP($CR43,_Afg07,$BT$131)=2,IF($DO43,$C119/IF(Såb2<>"",Såb2,Såb),0),0) -> 0 | EA43: =IF(VLOOKUP($CR43,_Afg07,$BT$131)=3,IF($DO43,$C119/IF(Såb2<>"",Såb2,Såb),0),0) -> 0 | EB43: =IF(VLOOKUP($CR43,_Afg07,$BU$131)=1,IF($DQ43,$C119/IF(_Gly2<>"",_Gly2,Gly),0),0) -> 0 | EC43: =IF(VLOOKUP($CR43,_Afg07,$BU$131)=2,IF($DQ43,$C119/IF(_Gly2<>"",_Gly2,Gly),0),0) -> 0 | ED43: =IF(VLOOKUP($CR43,_Afg07,$BU$131)=3,IF($DQ43,$C119/IF(_Gly2<>"",_Gly2,Gly),0),0) -> 0 | EE43: =IF(VLOOKUP($CR43,_Afg07,$BV$131)=1,$C119/IF(Såm2<>"",Såm2,Såm),0) -> 0 | EF43: =IF(VLOOKUP($CR43,_Afg07,$BV$131)=2,$C119/IF(Såm2<>"",Såm2,Såm),0) -> 0 | EG43: =IF(VLOOKUP($CR43,_Afg07,$BV$131)=3,$C119/IF(Såm2<>"",Såm2,Såm),0) -> 0 | EH43: =IF(VLOOKUP($CR43,_Afg07,$BX$131)=1,$C119/IF(_Mej2<>"",_Mej2,Mej)*VLOOKUP($CR43,_Afg07,$BZ$131),0) -> 0 | EI43: =IF(VLOOKUP($CR43,_Afg07,$BX$131)=2,$C119/IF(_Mej2<>"",_Mej2,Mej)*VLOOKUP($CR43,_Afg07,$BZ$131),0) -> 0 | EJ43: =IF(VLOOKUP($CR43,_Afg07,$BX$131)=3,$C119/IF(_Mej2<>"",_Mej2,Mej)*VLOOKUP($CR43,_Afg07,$BZ$131),0) -> 0 | EK43: =IF(HalmJa=1,IF(VLOOKUP($CR43,_Afg07,$BY$131)=1,$C119/IF(_Hal3<>"",_Hal3,Hal)+$C119/_Hal2,0),0) -> 0 | EL43: =IF(HalmJa=1,IF(VLOOKUP($CR43,_Afg07,$BY$131)=2,$C119/IF(_Hal3<>"",_Hal3,Hal)+$C119/_Hal2,0),0) -> 0 | EM43: =IF(VLOOKUP($CR43,_Afg07,$CA$131)=1,$C119/IF(_Enk2<>"",_Enk2,Enk),0) -> 0 | EN43: =IF(VLOOKUP($CR43,_Afg07,$CB$131)=1,$C119/IF(_Kar2<>"",_Kar2,Kar),0) -> 0 | EO43: =IF(VLOOKUP($CR43,_Afg07,$CC$131)=1,$C119/IF(Kopt2<>"",Kopt2,Kopt),0) -> 0 | EP43: =IF(VLOOKUP($CR43,_Afg07,$CD$131)=1,$C119/IF(Ropt2<>"",Ropt2,Ropt),0) -> 0 | EQ43: =VLOOKUP($CR43,_Afg07,$CE$131)*$C119/IF(_Gly2<>"",_Gly2,Gly) -> 0 | ER43: =VLOOKUP($CR43,_Afg07,$CF$131)*$C119/IF(Gød2<>"",Gød2,Gød) -> 0
A44: Dækningsbidrag | C44: =IF(Afgnr>1,(C36+C42),"") ->  | D44: =IF(C46<>"","kr.","") ->  | G44: =IF(Alt1nr>1,(G36+G42),"") ->  | H44: =IF(G44<>"","kr.","") ->  | K44: =IF(Alt2nr>1,(K36+K42),"") ->  | L44: =IF(K44<>"","kr.","") ->  | CR44: 1 | CT44: =IF(CR44>1,IF(VLOOKUP(CR44,_Afg07,$BR$131)=2,IF($CR$7=2,-VLOOKUP($O$169,_Afg07,$CS$7)*Erstatpris*C101,0),0),0) -> 0 | CU44: =IF(AND(CR44>1,VLOOKUP(CR44,_Afg07,$BR$131)=1),IF(E101<>"",E101,F101)*C101,0) -> 0 | CV44: =IF(AND(CR44>1,VLOOKUP(CR44,_Afg07,$BR$131)=1),C101,0) -> 0 | CY44: =IF(AND(CR44>1,VLOOKUP(CR44,_Afg07,$BR$131)=1),VLOOKUP(CR44,_Afg07,Halmnr)*C101,0) -> 0 | DK44: TRUE | DM44: FALSE | DO44: FALSE | DQ44: FALSE | DS44: =IF(VLOOKUP($CR44,_Afg07,$BS$131)=1,IF($DK44,$C101/IF(_Plo2<>"",_Plo2,Plo),0),0) -> 0 | DT44: =IF(VLOOKUP($CR44,_Afg07,$BS$131)=2,IF($DK44,$C101/IF(_Plo2<>"",_Plo2,Plo),0),0) -> 0 | DU44: =IF(VLOOKUP($CR44,_Afg07,$BS$131)=3,IF($DK44,$C101/IF(_Plo2<>"",_Plo2,Plo),0),0) -> 0 | DV44: =IF(VLOOKUP($CR44,_Afg07,$BW$131)=1,IF($DM44,$C101/IF(_Stu2<>"",_Stu2,Stu),0),0) -> 0 | DW44: =IF(VLOOKUP($CR44,_Afg07,$BW$131)=2,IF($DM44,$C101/IF(_Stu2<>"",_Stu2,Stu),0),0) -> 0 | DX44: =IF(VLOOKUP($CR44,_Afg07,$BW$131)=3,IF($DM44,$C101/IF(_Stu2<>"",_Stu2,Stu),0),0) -> 0 | DY44: =IF(VLOOKUP($CR44,_Afg07,$BT$131)=1,IF($DO44,$C101/IF(Såb2<>"",Såb2,Såb),0),0) -> 0 | DZ44: =IF(VLOOKUP($CR44,_Afg07,$BT$131)=2,IF($DO44,$C101/IF(Såb2<>"",Såb2,Såb),0),0) -> 0 | EA44: =IF(VLOOKUP($CR44,_Afg07,$BT$131)=3,IF($DO44,$C101/IF(Såb2<>"",Såb2,Såb),0),0) -> 0 | EB44: =IF(VLOOKUP($CR44,_Afg07,$BU$131)=1,IF($DQ44,$C101/IF(_Gly2<>"",_Gly2,Gly),0),0) -> 0 | EC44: =IF(VLOOKUP($CR44,_Afg07,$BU$131)=2,IF($DQ44,$C101/IF(_Gly2<>"",_Gly2,Gly),0),0) -> 0 | ED44: =IF(VLOOKUP($CR44,_Afg07,$BU$131)=3,IF($DQ44,$C101/IF(_Gly2<>"",_Gly2,Gly),0),0) -> 0 | EE44: =IF(VLOOKUP($CR44,_Afg07,$BV$131)=1,$C101/IF(Såm2<>"",Såm2,Såm),0) -> 0 | EF44: =IF(VLOOKUP($CR44,_Afg07,$BV$131)=2,$C101/IF(Såm2<>"",Såm2,Såm),0) -> 0 | EG44: =IF(VLOOKUP($CR44,_Afg07,$BV$131)=3,$C101/IF(Såm2<>"",Såm2,Såm),0) -> 0 | EH44: =IF(VLOOKUP($CR44,_Afg07,$BX$131)=1,$C101/IF(_Mej2<>"",_Mej2,Mej)*VLOOKUP($CR44,_Afg07,$BZ$131),0) -> 0 | EI44: =IF(VLOOKUP($CR44,_Afg07,$BX$131)=2,$C101/IF(_Mej2<>"",_Mej2,Mej)*VLOOKUP($CR44,_Afg07,$BZ$131),0) -> 0 | EJ44: =IF(VLOOKUP($CR44,_Afg07,$BX$131)=3,$C101/IF(_Mej2<>"",_Mej2,Mej)*VLOOKUP($CR44,_Afg07,$BZ$131),0) -> 0 | EK44: =IF(HalmJa=1,IF(VLOOKUP($CR44,_Afg07,$BY$131)=1,$C101/IF(_Hal3<>"",_Hal3,Hal)+$C101/_Hal2,0),0) -> 0 | EL44: =IF(HalmJa=1,IF(VLOOKUP($CR44,_Afg07,$BY$131)=2,$C101/IF(_Hal3<>"",_Hal3,Hal)+$C101/_Hal2,0),0) -> 0 | EM44: =IF(VLOOKUP($CR44,_Afg07,$CA$131)=1,$C101/IF(_Enk2<>"",_Enk2,Enk),0) -> 0 | EN44: =IF(VLOOKUP($CR44,_Afg07,$CB$131)=1,$C101/IF(_Kar2<>"",_Kar2,Kar),0) -> 0 | EO44: =IF(VLOOKUP($CR44,_Afg07,$CC$131)=1,$C101/IF(Kopt2<>"",Kopt2,Kopt),0) -> 0 | EP44: =IF(VLOOKUP($CR44,_Afg07,$CD$131)=1,$C101/IF(Ropt2<>"",Ropt2,Ropt),0) -> 0 | EQ44: =VLOOKUP($CR44,_Afg07,$CE$131)*$C101/IF(_Gly2<>"",_Gly2,Gly) -> 0 | ER44: =VLOOKUP($CR44,_Afg07,$CF$131)*$C101/IF(Gød2<>"",Gød2,Gød) -> 0
CR45: 1 | CT45: =IF(CR45>1,IF(VLOOKUP(CR45,_Afg07,$BR$131)=2,IF($CR$7=2,-VLOOKUP($O$169,_Afg07,$CS$7)*Erstatpris*C121,0),0),0) -> 0 | CU45: =IF(AND(CR45>1,VLOOKUP(CR45,_Afg07,$BR$131)=1),IF(E121<>"",E121,F121)*C121,0) -> 0 | CV45: =IF(AND(CR45>1,VLOOKUP(CR45,_Afg07,$BR$131)=1),C121,0) -> 0 | CY45: =IF(AND(CR45>1,VLOOKUP(CR45,_Afg07,$BR$131)=1),VLOOKUP(CR45,_Afg07,Halmnr)*C121,0) -> 0 | DK45: TRUE | DM45: FALSE | DO45: FALSE | DQ45: FALSE | DS45: =IF(VLOOKUP($CR45,_Afg07,$BS$131)=1,IF($DK45,$C121/IF(_Plo2<>"",_Plo2,Plo),0),0) -> 0 | DT45: =IF(VLOOKUP($CR45,_Afg07,$BS$131)=2,IF($DK45,$C121/IF(_Plo2<>"",_Plo2,Plo),0),0) -> 0 | DU45: =IF(VLOOKUP($CR45,_Afg07,$BS$131)=3,IF($DK45,$C121/IF(_Plo2<>"",_Plo2,Plo),0),0) -> 0 | DV45: =IF(VLOOKUP($CR45,_Afg07,$BW$131)=1,IF($DM45,$C121/IF(_Stu2<>"",_Stu2,Stu),0),0) -> 0 | DW45: =IF(VLOOKUP($CR45,_Afg07,$BW$131)=2,IF($DM45,$C121/IF(_Stu2<>"",_Stu2,Stu),0),0) -> 0 | DX45: =IF(VLOOKUP($CR45,_Afg07,$BW$131)=3,IF($DM45,$C121/IF(_Stu2<>"",_Stu2,Stu),0),0) -> 0 | DY45: =IF(VLOOKUP($CR45,_Afg07,$BT$131)=1,IF($DO45,$C121/IF(Såb2<>"",Såb2,Såb),0),0) -> 0 | DZ45: =IF(VLOOKUP($CR45,_Afg07,$BT$131)=2,IF($DO45,$C121/IF(Såb2<>"",Såb2,Såb),0),0) -> 0 | EA45: =IF(VLOOKUP($CR45,_Afg07,$BT$131)=3,IF($DO45,$C121/IF(Såb2<>"",Såb2,Såb),0),0) -> 0 | EB45: =IF(VLOOKUP($CR45,_Afg07,$BU$131)=1,IF($DQ45,$C121/IF(_Gly2<>"",_Gly2,Gly),0),0) -> 0 | EC45: =IF(VLOOKUP($CR45,_Afg07,$BU$131)=2,IF($DQ45,$C121/IF(_Gly2<>"",_Gly2,Gly),0),0) -> 0 | ED45: =IF(VLOOKUP($CR45,_Afg07,$BU$131)=3,IF($DQ45,$C121/IF(_Gly2<>"",_Gly2,Gly),0),0) -> 0 | EE45: =IF(VLOOKUP($CR45,_Afg07,$BV$131)=1,$C121/IF(Såm2<>"",Såm2,Såm),0) -> 0 | EF45: =IF(VLOOKUP($CR45,_Afg07,$BV$131)=2,$C121/IF(Såm2<>"",Såm2,Såm),0) -> 0 | EG45: =IF(VLOOKUP($CR45,_Afg07,$BV$131)=3,$C121/IF(Såm2<>"",Såm2,Såm),0) -> 0 | EH45: =IF(VLOOKUP($CR45,_Afg07,$BX$131)=1,$C121/IF(_Mej2<>"",_Mej2,Mej)*VLOOKUP($CR45,_Afg07,$BZ$131),0) -> 0 | EI45: =IF(VLOOKUP($CR45,_Afg07,$BX$131)=2,$C121/IF(_Mej2<>"",_Mej2,Mej)*VLOOKUP($CR45,_Afg07,$BZ$131),0) -> 0 | EJ45: =IF(VLOOKUP($CR45,_Afg07,$BX$131)=3,$C121/IF(_Mej2<>"",_Mej2,Mej)*VLOOKUP($CR45,_Afg07,$BZ$131),0) -> 0 | EK45: =IF(HalmJa=1,IF(VLOOKUP($CR45,_Afg07,$BY$131)=1,$C121/IF(_Hal3<>"",_Hal3,Hal)+$C121/_Hal2,0),0) -> 0 | EL45: =IF(HalmJa=1,IF(VLOOKUP($CR45,_Afg07,$BY$131)=2,$C121/IF(_Hal3<>"",_Hal3,Hal)+$C121/_Hal2,0),0) -> 0 | EM45: =IF(VLOOKUP($CR45,_Afg07,$CA$131)=1,$C121/IF(_Enk2<>"",_Enk2,Enk),0) -> 0 | EN45: =IF(VLOOKUP($CR45,_Afg07,$CB$131)=1,$C121/IF(_Kar2<>"",_Kar2,Kar),0) -> 0 | EO45: =IF(VLOOKUP($CR45,_Afg07,$CC$131)=1,$C121/IF(Kopt2<>"",Kopt2,Kopt),0) -> 0 | EP45: =IF(VLOOKUP($CR45,_Afg07,$CD$131)=1,$C121/IF(Ropt2<>"",Ropt2,Ropt),0) -> 0 | EQ45: =VLOOKUP($CR45,_Afg07,$CE$131)*$C121/IF(_Gly2<>"",_Gly2,Gly) -> 0 | ER45: =VLOOKUP($CR45,_Afg07,$CF$131)*$C121/IF(Gød2<>"",Gød2,Gød) -> 0
A46: Maskiner og arbejde | C46: =IF(Afgnr>1,IF(Q46<>"",Q46,-VLOOKUP(Afgnr,_Afg07,$CT$5)),"")-IF(Hdgnr>1,VLOOKUP(Afgnr,_Afg07,51,FALSE)*VLOOKUP(Afgnr,_Afg07,71,FALSE),0) ->  | D46: =IF(C46<>"","kr.","") ->  | G46: =IF(CS16>1,IF(S46<>"",S46,-VLOOKUP(CS16,_Afg07,$CT$5)),"")-IF(CS16>1,VLOOKUP(CS16,_Afg07,51,FALSE)*VLOOKUP(Afgnr,_Afg07,71,FALSE),0) ->  | H46: =IF(G46<>"","kr.","") ->  | K46: =IF(CT16>1,IF(U46<>"",U46,-VLOOKUP(CT16,_Afg07,$CT$5)),"") ->  | L46: =IF(K46<>"","kr.","") ->  | P46: Maskiner og arbejde | CR46: 1 | CT46: =IF(CR46>1,IF(VLOOKUP(CR46,_Afg07,$BR$131)=2,IF($CR$7=2,-VLOOKUP($O$169,_Afg07,$CS$7)*Erstatpris*C103,0),0),0) -> 0 | CU46: =IF(AND(CR46>1,VLOOKUP(CR46,_Afg07,$BR$131)=1),IF(E103<>"",E103,F103)*C103,0) -> 0 | CV46: =IF(AND(CR46>1,VLOOKUP(CR46,_Afg07,$BR$131)=1),C103,0) -> 0 | CY46: =IF(AND(CR46>1,VLOOKUP(CR46,_Afg07,$BR$131)=1),VLOOKUP(CR46,_Afg07,Halmnr)*C103,0) -> 0 | DD46: Lager til korn | DK46: TRUE | DM46: FALSE | DO46: FALSE | DQ46: FALSE | DS46: =IF(VLOOKUP($CR46,_Afg07,$BS$131)=1,IF($DK46,$C103/IF(_Plo2<>"",_Plo2,Plo),0),0) -> 0 | DT46: =IF(VLOOKUP($CR46,_Afg07,$BS$131)=2,IF($DK46,$C103/IF(_Plo2<>"",_Plo2,Plo),0),0) -> 0 | DU46: =IF(VLOOKUP($CR46,_Afg07,$BS$131)=3,IF($DK46,$C103/IF(_Plo2<>"",_Plo2,Plo),0),0) -> 0 | DV46: =IF(VLOOKUP($CR46,_Afg07,$BW$131)=1,IF($DM46,$C103/IF(_Stu2<>"",_Stu2,Stu),0),0) -> 0 | DW46: =IF(VLOOKUP($CR46,_Afg07,$BW$131)=2,IF($DM46,$C103/IF(_Stu2<>"",_Stu2,Stu),0),0) -> 0 | DX46: =IF(VLOOKUP($CR46,_Afg07,$BW$131)=3,IF($DM46,$C103/IF(_Stu2<>"",_Stu2,Stu),0),0) -> 0 | DY46: =IF(VLOOKUP($CR46,_Afg07,$BT$131)=1,IF($DO46,$C103/IF(Såb2<>"",Såb2,Såb),0),0) -> 0 | DZ46: =IF(VLOOKUP($CR46,_Afg07,$BT$131)=2,IF($DO46,$C103/IF(Såb2<>"",Såb2,Såb),0),0) -> 0 | EA46: =IF(VLOOKUP($CR46,_Afg07,$BT$131)=3,IF($DO46,$C103/IF(Såb2<>"",Såb2,Såb),0),0) -> 0 | EB46: =IF(VLOOKUP($CR46,_Afg07,$BU$131)=1,IF($DQ46,$C103/IF(_Gly2<>"",_Gly2,Gly),0),0) -> 0 | EC46: =IF(VLOOKUP($CR46,_Afg07,$BU$131)=2,IF($DQ46,$C103/IF(_Gly2<>"",_Gly2,Gly),0),0) -> 0 | ED46: =IF(VLOOKUP($CR46,_Afg07,$BU$131)=3,IF($DQ46,$C103/IF(_Gly2<>"",_Gly2,Gly),0),0) -> 0 | EE46: =IF(VLOOKUP($CR46,_Afg07,$BV$131)=1,$C103/IF(Såm2<>"",Såm2,Såm),0) -> 0 | EF46: =IF(VLOOKUP($CR46,_Afg07,$BV$131)=2,$C103/IF(Såm2<>"",Såm2,Såm),0) -> 0 | EG46: =IF(VLOOKUP($CR46,_Afg07,$BV$131)=3,$C103/IF(Såm2<>"",Såm2,Såm),0) -> 0 | EH46: =IF(VLOOKUP($CR46,_Afg07,$BX$131)=1,$C103/IF(_Mej2<>"",_Mej2,Mej)*VLOOKUP($CR46,_Afg07,$BZ$131),0) -> 0 | EI46: =IF(VLOOKUP($CR46,_Afg07,$BX$131)=2,$C103/IF(_Mej2<>"",_Mej2,Mej)*VLOOKUP($CR46,_Afg07,$BZ$131),0) -> 0 | EJ46: =IF(VLOOKUP($CR46,_Afg07,$BX$131)=3,$C103/IF(_Mej2<>"",_Mej2,Mej)*VLOOKUP($CR46,_Afg07,$BZ$131),0) -> 0 | EK46: =IF(HalmJa=1,IF(VLOOKUP($CR46,_Afg07,$BY$131)=1,$C103/IF(_Hal3<>"",_Hal3,Hal)+$C103/_Hal2,0),0) -> 0 | EL46: =IF(HalmJa=1,IF(VLOOKUP($CR46,_Afg07,$BY$131)=2,$C103/IF(_Hal3<>"",_Hal3,Hal)+$C103/_Hal2,0),0) -> 0 | EM46: =IF(VLOOKUP($CR46,_Afg07,$CA$131)=1,$C103/IF(_Enk2<>"",_Enk2,Enk),0) -> 0 | EN46: =IF(VLOOKUP($CR46,_Afg07,$CB$131)=1,$C103/IF(_Kar2<>"",_Kar2,Kar),0) -> 0 | EO46: =IF(VLOOKUP($CR46,_Afg07,$CC$131)=1,$C103/IF(Kopt2<>"",Kopt2,Kopt),0) -> 0 | EP46: =IF(VLOOKUP($CR46,_Afg07,$CD$131)=1,$C103/IF(Ropt2<>"",Ropt2,Ropt),0) -> 0 | EQ46: =VLOOKUP($CR46,_Afg07,$CE$131)*$C103/IF(_Gly2<>"",_Gly2,Gly) -> 0 | ER46: =VLOOKUP($CR46,_Afg07,$CF$131)*$C103/IF(Gød2<>"",Gød2,Gød) -> 0
A47: =IF(Tørringnr=1,"Tørring (løntørring)","Tørring (korn i eget tørreri)") -> Tørring (korn i eget tørreri) | C47: =IF(Afgnr>1,IF(Q47<>"",Q47,IF(VLOOKUP(Afgnr,_Afg07,$BR$131)=2,-VLOOKUP(Afgnr,_Afg07,$BK$131)*C$29,IF(AND(VLOOKUP(Afgnr,_Afg07,$BR$131)=1,$CU$3=4),0,IF($CU$5=1,-VLOOKUP(Afgnr,_Afg07,$BK$131)*C$29,-VLOOKUP(Afgnr,_Afg07,$BL$131)*C$29)))),"") ->  | D47: =IF(C47<>"","kr.","") ->  | G47: =IF(Alt1nr>1,IF(S47<>"",S47,IF(VLOOKUP(Alt1nr,_Afg07,$BR$131)=2,-VLOOKUP(Alt1nr,_Afg07,$BK$131)*G29,IF(AND(VLOOKUP(Alt1nr,_Afg07,$BR$131)=1,$CU$3=4),0,IF($CU$5=1,-VLOOKUP(Alt1nr,_Afg07,$BK$131)*G29,-VLOOKUP(Alt1nr,_Afg07,$BL$131)*G29)))),"") ->  | H47: =IF(G47<>"","kr.","") ->  | K47: =IF(Alt2nr>1,IF(U47<>"",U47,IF(VLOOKUP(Alt2nr,_Afg07,$BR$131)=2,-VLOOKUP(Alt2nr,_Afg07,$BK$131)*K29,IF(AND(VLOOKUP(Alt2nr,_Afg07,$BR$131)=1,$CU$3=4),0,IF($CU$5=1,-VLOOKUP(Alt2nr,_Afg07,$BK$131)*K29,-VLOOKUP(Alt2nr,_Afg07,$BL$131)*K29)))),"") ->  | L47: =IF(K47<>"","kr.","") ->  | P47: =A47 -> Tørring (korn i eget tørreri) | CR47: 1 | CT47: =IF(CR47>1,IF(VLOOKUP(CR47,_Afg07,$BR$131)=2,IF($CR$7=2,-VLOOKUP($O$169,_Afg07,$CS$7)*Erstatpris*C123,0),0),0) -> 0 | CU47: =IF(AND(CR47>1,VLOOKUP(CR47,_Afg07,$BR$131)=1),IF(E123<>"",E123,F123)*C123,0) -> 0 | CV47: =IF(AND(CR47>1,VLOOKUP(CR47,_Afg07,$BR$131)=1),C123,0) -> 0 | CY47: =IF(AND(CR47>1,VLOOKUP(CR47,_Afg07,$BR$131)=1),VLOOKUP(CR47,_Afg07,Halmnr)*C123,0) -> 0 | DC47: 1 | DK47: TRUE | DM47: FALSE | DO47: FALSE | DQ47: FALSE | DS47: =IF(VLOOKUP($CR47,_Afg07,$BS$131)=1,IF($DK47,$C123/IF(_Plo2<>"",_Plo2,Plo),0),0) -> 0 | DT47: =IF(VLOOKUP($CR47,_Afg07,$BS$131)=2,IF($DK47,$C123/IF(_Plo2<>"",_Plo2,Plo),0),0) -> 0 | DU47: =IF(VLOOKUP($CR47,_Afg07,$BS$131)=3,IF($DK47,$C123/IF(_Plo2<>"",_Plo2,Plo),0),0) -> 0 | DV47: =IF(VLOOKUP($CR47,_Afg07,$BW$131)=1,IF($DM47,$C123/IF(_Stu2<>"",_Stu2,Stu),0),0) -> 0 | DW47: =IF(VLOOKUP($CR47,_Afg07,$BW$131)=2,IF($DM47,$C123/IF(_Stu2<>"",_Stu2,Stu),0),0) -> 0 | DX47: =IF(VLOOKUP($CR47,_Afg07,$BW$131)=3,IF($DM47,$C123/IF(_Stu2<>"",_Stu2,Stu),0),0) -> 0 | DY47: =IF(VLOOKUP($CR47,_Afg07,$BT$131)=1,IF($DO47,$C123/IF(Såb2<>"",Såb2,Såb),0),0) -> 0 | DZ47: =IF(VLOOKUP($CR47,_Afg07,$BT$131)=2,IF($DO47,$C123/IF(Såb2<>"",Såb2,Såb),0),0) -> 0 | EA47: =IF(VLOOKUP($CR47,_Afg07,$BT$131)=3,IF($DO47,$C123/IF(Såb2<>"",Såb2,Såb),0),0) -> 0 | EB47: =IF(VLOOKUP($CR47,_Afg07,$BU$131)=1,IF($DQ47,$C123/IF(_Gly2<>"",_Gly2,Gly),0),0) -> 0 | EC47: =IF(VLOOKUP($CR47,_Afg07,$BU$131)=2,IF($DQ47,$C123/IF(_Gly2<>"",_Gly2,Gly),0),0) -> 0 | ED47: =IF(VLOOKUP($CR47,_Afg07,$BU$131)=3,IF($DQ47,$C123/IF(_Gly2<>"",_Gly2,Gly),0),0) -> 0 | EE47: =IF(VLOOKUP($CR47,_Afg07,$BV$131)=1,$C123/IF(Såm2<>"",Såm2,Såm),0) -> 0 | EF47: =IF(VLOOKUP($CR47,_Afg07,$BV$131)=2,$C123/IF(Såm2<>"",Såm2,Såm),0) -> 0 | EG47: =IF(VLOOKUP($CR47,_Afg07,$BV$131)=3,$C123/IF(Såm2<>"",Såm2,Såm),0) -> 0 | EH47: =IF(VLOOKUP($CR47,_Afg07,$BX$131)=1,$C123/IF(_Mej2<>"",_Mej2,Mej)*VLOOKUP($CR47,_Afg07,$BZ$131),0) -> 0 | EI47: =IF(VLOOKUP($CR47,_Afg07,$BX$131)=2,$C123/IF(_Mej2<>"",_Mej2,Mej)*VLOOKUP($CR47,_Afg07,$BZ$131),0) -> 0 | EJ47: =IF(VLOOKUP($CR47,_Afg07,$BX$131)=3,$C123/IF(_Mej2<>"",_Mej2,Mej)*VLOOKUP($CR47,_Afg07,$BZ$131),0) -> 0 | EK47: =IF(HalmJa=1,IF(VLOOKUP($CR47,_Afg07,$BY$131)=1,$C123/IF(_Hal3<>"",_Hal3,Hal)+$C123/_Hal2,0),0) -> 0 | EL47: =IF(HalmJa=1,IF(VLOOKUP($CR47,_Afg07,$BY$131)=2,$C123/IF(_Hal3<>"",_Hal3,Hal)+$C123/_Hal2,0),0) -> 0 | EM47: =IF(VLOOKUP($CR47,_Afg07,$CA$131)=1,$C123/IF(_Enk2<>"",_Enk2,Enk),0) -> 0 | EN47: =IF(VLOOKUP($CR47,_Afg07,$CB$131)=1,$C123/IF(_Kar2<>"",_Kar2,Kar),0) -> 0 | EO47: =IF(VLOOKUP($CR47,_Afg07,$CC$131)=1,$C123/IF(Kopt2<>"",Kopt2,Kopt),0) -> 0 | EP47: =IF(VLOOKUP($CR47,_Afg07,$CD$131)=1,$C123/IF(Ropt2<>"",Ropt2,Ropt),0) -> 0 | EQ47: =VLOOKUP($CR47,_Afg07,$CE$131)*$C123/IF(_Gly2<>"",_Gly2,Gly) -> 0 | ER47: =VLOOKUP($CR47,_Afg07,$CF$131)*$C123/IF(Gød2<>"",Gød2,Gød) -> 0
A48: =IF(Købernr=2,"Erstatningskorn","") ->  | C48: =IF(CR16>1,IF($CR$7=2,IF(VLOOKUP(CR16,_Afg07,BR131)=2,(-VLOOKUP($O$169,_Afg07,$CS$7)*Erstatpris),IF(VLOOKUP(CR16,_Afg07,BR131)=3,$CT$50,IF(VLOOKUP(CR16,_Afg07,BR131)=4,$CT$51,""))),""),"") ->  | D48: =IF(C48<>"","kr.","") ->  | G48: =IF(CS16>1,IF($CR$7=2,IF(VLOOKUP(CS16,_Afg07,BR131)=2,(-VLOOKUP($O$169,_Afg07,$CS$7)*Erstatpris),IF(VLOOKUP(CS16,_Afg07,BR131)=3,$CT$50,IF(VLOOKUP(CS16,_Afg07,BR131)=4,$CT$51,""))),""),"") ->  | H48: =IF(G48<>"","kr.","") ->  | K48: =IF(CT16>1,IF($CR$7=2,IF(VLOOKUP(CT16,_Afg07,BR131)=2,(-VLOOKUP($O$169,_Afg07,$CS$7)*Erstatpris),IF(VLOOKUP(CT16,_Afg07,BR131)=3,$CT$50,IF(VLOOKUP(CT16,_Afg07,BR131)=4,$CT$51,""))),""),"") ->  | L48: =IF(K48<>"","kr.","") ->  | Q48: =IF(OR(Q46>0,Q47>0),"Husk minus foran","") ->  | S48: =IF(OR(S46>0,S47>0),"Husk minus foran","") ->  | U48: =IF(OR(U46>0,U47>0),"Husk minus foran","") ->  | CR48: 1 | CT48: =IF(CR48>1,IF(VLOOKUP(CR48,_Afg07,$BR$131)=2,IF($CR$7=2,-VLOOKUP($O$169,_Afg07,$CS$7)*Erstatpris*C105,0),0),0) -> 0 | CU48: =IF(AND(CR48>1,VLOOKUP(CR48,_Afg07,$BR$131)=1),IF(E105<>"",E105,F105)*C105,0) -> 0 | CV48: =IF(AND(CR48>1,VLOOKUP(CR48,_Afg07,$BR$131)=1),C105,0) -> 0 | CY48: =IF(AND(CR48>1,VLOOKUP(CR48,_Afg07,$BR$131)=1),VLOOKUP(CR48,_Afg07,Halmnr)*C105,0) -> 0 | DC48: 2 | DD48: Planlager | DK48: TRUE | DM48: FALSE | DO48: FALSE | DQ48: FALSE | DS48: =IF(VLOOKUP($CR48,_Afg07,$BS$131)=1,IF($DK48,$C105/IF(_Plo2<>"",_Plo2,Plo),0),0) -> 0 | DT48: =IF(VLOOKUP($CR48,_Afg07,$BS$131)=2,IF($DK48,$C105/IF(_Plo2<>"",_Plo2,Plo),0),0) -> 0 | DU48: =IF(VLOOKUP($CR48,_Afg07,$BS$131)=3,IF($DK48,$C105/IF(_Plo2<>"",_Plo2,Plo),0),0) -> 0 | DV48: =IF(VLOOKUP($CR48,_Afg07,$BW$131)=1,IF($DM48,$C105/IF(_Stu2<>"",_Stu2,Stu),0),0) -> 0 | DW48: =IF(VLOOKUP($CR48,_Afg07,$BW$131)=2,IF($DM48,$C105/IF(_Stu2<>"",_Stu2,Stu),0),0) -> 0 | DX48: =IF(VLOOKUP($CR48,_Afg07,$BW$131)=3,IF($DM48,$C105/IF(_Stu2<>"",_Stu2,Stu),0),0) -> 0 | DY48: =IF(VLOOKUP($CR48,_Afg07,$BT$131)=1,IF($DO48,$C105/IF(Såb2<>"",Såb2,Såb),0),0) -> 0 | DZ48: =IF(VLOOKUP($CR48,_Afg07,$BT$131)=2,IF($DO48,$C105/IF(Såb2<>"",Såb2,Såb),0),0) -> 0 | EA48: =IF(VLOOKUP($CR48,_Afg07,$BT$131)=3,IF($DO48,$C105/IF(Såb2<>"",Såb2,Såb),0),0) -> 0 | EB48: =IF(VLOOKUP($CR48,_Afg07,$BU$131)=1,IF($DQ48,$C105/IF(_Gly2<>"",_Gly2,Gly),0),0) -> 0 | EC48: =IF(VLOOKUP($CR48,_Afg07,$BU$131)=2,IF($DQ48,$C105/IF(_Gly2<>"",_Gly2,Gly),0),0) -> 0 | ED48: =IF(VLOOKUP($CR48,_Afg07,$BU$131)=3,IF($DQ48,$C105/IF(_Gly2<>"",_Gly2,Gly),0),0) -> 0 | EE48: =IF(VLOOKUP($CR48,_Afg07,$BV$131)=1,$C105/IF(Såm2<>"",Såm2,Såm),0) -> 0 | EF48: =IF(VLOOKUP($CR48,_Afg07,$BV$131)=2,$C105/IF(Såm2<>"",Såm2,Såm),0) -> 0 | EG48: =IF(VLOOKUP($CR48,_Afg07,$BV$131)=3,$C105/IF(Såm2<>"",Såm2,Såm),0) -> 0 | EH48: =IF(VLOOKUP($CR48,_Afg07,$BX$131)=1,$C105/IF(_Mej2<>"",_Mej2,Mej)*VLOOKUP($CR48,_Afg07,$BZ$131),0) -> 0 | EI48: =IF(VLOOKUP($CR48,_Afg07,$BX$131)=2,$C105/IF(_Mej2<>"",_Mej2,Mej)*VLOOKUP($CR48,_Afg07,$BZ$131),0) -> 0 | EJ48: =IF(VLOOKUP($CR48,_Afg07,$BX$131)=3,$C105/IF(_Mej2<>"",_Mej2,Mej)*VLOOKUP($CR48,_Afg07,$BZ$131),0) -> 0 | EK48: =IF(HalmJa=1,IF(VLOOKUP($CR48,_Afg07,$BY$131)=1,$C105/IF(_Hal3<>"",_Hal3,Hal)+$C105/_Hal2,0),0) -> 0 | EL48: =IF(HalmJa=1,IF(VLOOKUP($CR48,_Afg07,$BY$131)=2,$C105/IF(_Hal3<>"",_Hal3,Hal)+$C105/_Hal2,0),0) -> 0 | EM48: =IF(VLOOKUP($CR48,_Afg07,$CA$131)=1,$C105/IF(_Enk2<>"",_Enk2,Enk),0) -> 0 | EN48: =IF(VLOOKUP($CR48,_Afg07,$CB$131)=1,$C105/IF(_Kar2<>"",_Kar2,Kar),0) -> 0 | EO48: =IF(VLOOKUP($CR48,_Afg07,$CC$131)=1,$C105/IF(Kopt2<>"",Kopt2,Kopt),0) -> 0 | EP48: =IF(VLOOKUP($CR48,_Afg07,$CD$131)=1,$C105/IF(Ropt2<>"",Ropt2,Ropt),0) -> 0 | EQ48: =VLOOKUP($CR48,_Afg07,$CE$131)*$C105/IF(_Gly2<>"",_Gly2,Gly) -> 0 | ER48: =VLOOKUP($CR48,_Afg07,$CF$131)*$C105/IF(Gød2<>"",Gød2,Gød) -> 0
CR49: 1 | CT49: =IF(CR49>1,IF(VLOOKUP(CR49,_Afg07,$BR$131)=2,IF($CR$7=2,-VLOOKUP($O$169,_Afg07,$CS$7)*Erstatpris*C125,0),0),0) -> 0 | CU49: =IF(AND(CR49>1,VLOOKUP(CR49,_Afg07,$BR$131)=1),IF(E125<>"",E125,F125)*C125,0) -> 0 | CV49: =IF(AND(CR49>1,VLOOKUP(CR49,_Afg07,$BR$131)=1),C125,0) -> 0 | CW49: Kornudbytte i gns pr. ha af alle ha i sædskiftet | CX49: Udbytte foderkorn i gns pr. ha med foderkorn | CY49: =IF(AND(CR49>1,VLOOKUP(CR49,_Afg07,$BR$131)=1),VLOOKUP(CR49,_Afg07,Halmnr)*C125,0) -> 0 | DC49: 3 | DD49: Stålsilo | DK49: TRUE | DM49: FALSE | DO49: FALSE | DQ49: FALSE | DS49: =IF(VLOOKUP($CR49,_Afg07,$BS$131)=1,IF($DK49,$C125/IF(_Plo2<>"",_Plo2,Plo),0),0) -> 0 | DT49: =IF(VLOOKUP($CR49,_Afg07,$BS$131)=2,IF($DK49,$C125/IF(_Plo2<>"",_Plo2,Plo),0),0) -> 0 | DU49: =IF(VLOOKUP($CR49,_Afg07,$BS$131)=3,IF($DK49,$C125/IF(_Plo2<>"",_Plo2,Plo),0),0) -> 0 | DV49: =IF(VLOOKUP($CR49,_Afg07,$BW$131)=1,IF($DM49,$C125/IF(_Stu2<>"",_Stu2,Stu),0),0) -> 0 | DW49: =IF(VLOOKUP($CR49,_Afg07,$BW$131)=2,IF($DM49,$C125/IF(_Stu2<>"",_Stu2,Stu),0),0) -> 0 | DX49: =IF(VLOOKUP($CR49,_Afg07,$BW$131)=3,IF($DM49,$C125/IF(_Stu2<>"",_Stu2,Stu),0),0) -> 0 | DY49: =IF(VLOOKUP($CR49,_Afg07,$BT$131)=1,IF($DO49,$C125/IF(Såb2<>"",Såb2,Såb),0),0) -> 0 | DZ49: =IF(VLOOKUP($CR49,_Afg07,$BT$131)=2,IF($DO49,$C125/IF(Såb2<>"",Såb2,Såb),0),0) -> 0 | EA49: =IF(VLOOKUP($CR49,_Afg07,$BT$131)=3,IF($DO49,$C125/IF(Såb2<>"",Såb2,Såb),0),0) -> 0 | EB49: =IF(VLOOKUP($CR49,_Afg07,$BU$131)=1,IF($DQ49,$C125/IF(_Gly2<>"",_Gly2,Gly),0),0) -> 0 | EC49: =IF(VLOOKUP($CR49,_Afg07,$BU$131)=2,IF($DQ49,$C125/IF(_Gly2<>"",_Gly2,Gly),0),0) -> 0 | ED49: =IF(VLOOKUP($CR49,_Afg07,$BU$131)=3,IF($DQ49,$C125/IF(_Gly2<>"",_Gly2,Gly),0),0) -> 0 | EE49: =IF(VLOOKUP($CR49,_Afg07,$BV$131)=1,$C125/IF(Såm2<>"",Såm2,Såm),0) -> 0 | EF49: =IF(VLOOKUP($CR49,_Afg07,$BV$131)=2,$C125/IF(Såm2<>"",Såm2,Såm),0) -> 0 | EG49: =IF(VLOOKUP($CR49,_Afg07,$BV$131)=3,$C125/IF(Såm2<>"",Såm2,Såm),0) -> 0 | EH49: =IF(VLOOKUP($CR49,_Afg07,$BX$131)=1,$C125/IF(_Mej2<>"",_Mej2,Mej)*VLOOKUP($CR49,_Afg07,$BZ$131),0) -> 0 | EI49: =IF(VLOOKUP($CR49,_Afg07,$BX$131)=2,$C125/IF(_Mej2<>"",_Mej2,Mej)*VLOOKUP($CR49,_Afg07,$BZ$131),0) -> 0 | EJ49: =IF(VLOOKUP($CR49,_Afg07,$BX$131)=3,$C125/IF(_Mej2<>"",_Mej2,Mej)*VLOOKUP($CR49,_Afg07,$BZ$131),0) -> 0 | EK49: =IF(HalmJa=1,IF(VLOOKUP($CR49,_Afg07,$BY$131)=1,$C125/IF(_Hal3<>"",_Hal3,Hal)+$C125/_Hal2,0),0) -> 0 | EL49: =IF(HalmJa=1,IF(VLOOKUP($CR49,_Afg07,$BY$131)=2,$C125/IF(_Hal3<>"",_Hal3,Hal)+$C125/_Hal2,0),0) -> 0 | EM49: =IF(VLOOKUP($CR49,_Afg07,$CA$131)=1,$C125/IF(_Enk2<>"",_Enk2,Enk),0) -> 0 | EN49: =IF(VLOOKUP($CR49,_Afg07,$CB$131)=1,$C125/IF(_Kar2<>"",_Kar2,Kar),0) -> 0 | EO49: =IF(VLOOKUP($CR49,_Afg07,$CC$131)=1,$C125/IF(Kopt2<>"",Kopt2,Kopt),0) -> 0 | EP49: =IF(VLOOKUP($CR49,_Afg07,$CD$131)=1,$C125/IF(Ropt2<>"",Ropt2,Ropt),0) -> 0 | EQ49: =VLOOKUP($CR49,_Afg07,$CE$131)*$C125/IF(_Gly2<>"",_Gly2,Gly) -> 0 | ER49: =VLOOKUP($CR49,_Afg07,$CF$131)*$C125/IF(Gød2<>"",Gød2,Gød) -> 0
A50: Resultat | C50: =IF(Afgnr>1,IF(C48="",C44+C46+C47,C44+C46+C47+C48),"") ->  | D50: =IF(C50<>"","kr.","") ->  | G50: =IF(Alt1nr>1,IF(G48="",G44+G46+G47,G44+G46+G47+G48),"") ->  | H50: =IF(G50<>"","kr.","") ->  | K50: =IF(Alt2nr>1,IF(K48="",K44+K46+K47,K44+K46+K47+K48),"") ->  | L50: =IF(K50<>"","kr.","") ->  | CS50: Erstatkorn 1, gns. | CT50: =(CT36+CT38+CT40+CT42+CT44+CT46+CT48)/C107 ->  | CU50: =CU36+CU38+CU40+CU42+CU44+CU46+CU48 -> 0 | CV50: =CV36+CV38+CV40+CV42+CV44+CV46+CV48 -> 0 | CW50: =CU50/C107 ->  | CX50: =CU50/CV50 ->  | CY50: =CY36+CY38+CY40+CY42+CY44+CY46+CY48 -> 0 | DC50: 4 | DD50: Gastæt silo | DR50: Sædskifte 1 | DS50: =DS36+DS38+DS40+DS42+DS44+DS46+DS48 -> 0 | DT50: =DT36+DT38+DT40+DT42+DT44+DT46+DT48 -> 0 | DU50: 0 | DV50: 0 | DW50: 0 | DX50: 0 | DY50: 0 | DZ50: 0 | EA50: 0 | EB50: 0 | EC50: 0 | ED50: 0 | EE50: 0 | EF50: 0 | EG50: 0 | EH50: 0 | EI50: 0 | EJ50: 0 | EK50: 0 | EL50: 0 | EM50: =EM36+EM38+EM40+EM42+EM44+EM46+EM48 -> 0 | EN50: 0 | EO50: 0 | EP50: 0 | EQ50: 0 | ER50: 0 | ES50: =C107*DE_ha*ton_DE/IF(_Gyl2<>"",_Gyl2,Gyl) -> 0
CS51: Erstatkorn 2, gns. | CT51: =(CT37+CT39+CT41+CT43+CT45+CT47+CT49)/C127 ->  | CU51: =CU37+CU39+CU41+CU43+CU45+CU47+CU49 -> 0 | CV51: =CV37+CV39+CV41+CV43+CV45+CV47+CV49 -> 0 | CW51: =CU51/C127 ->  | CX51: =CU51/CV51 ->  | CY51: =CY37+CY39+CY41+CY43+CY45+CY47+CY49 -> 0 | DR51: Sædskifte 2 | DS51: =DS37+DS39+DS41+DS43+DS45+DS47+DS49 -> 0 | DT51: =DT37+DT39+DT41+DT43+DT45+DT47+DT49 -> 0 | DU51: 0 | DV51: 0 | DW51: 0 | DX51: 0 | DY51: 0 | DZ51: 0 | EA51: 0 | EB51: 0 | EC51: 0 | ED51: 0 | EE51: 0 | EF51: 0 | EG51: 0 | EH51: 0 | EI51: 0 | EJ51: 0 | EK51: 0 | EL51: 0 | EM51: 0 | EN51: 0 | EO51: 0 | EP51: 0 | EQ51: 0 | ER51: 0 | ES51: =C127*DE_ha*ton_DE/IF(_Gyl2<>"",_Gyl2,Gyl) -> 0
DD52: Tørring korn
A53: Ligevægtspris | G53: =IF(ISERROR(IF(AND(CS16>1,CS16<O185,CR16>1),(($C$50-G50)/G29)+G30,"")),"",IF(AND(CS16>1,CS16<O185,CR16>1),(($C$50-G50)/G29)+G30,"")) ->  | H53: =IF(G53<>"","kr.","") ->  | K53: =IF(ISERROR(IF(AND(CT16>1,CT16<O185,CR16>1),(($C$50-K50)/K29)+K30,"")),"",IF(AND(CT16>1,CT16<O185,CR16>1),(($C$50-K50)/K29)+K30,"")) ->  | L53: =IF(K53<>"","kr.","") ->  | DC53: 1 | DD53: Løntørring | DS53: Forår | DT53: August | DU53: Sept | DV53: Juli | DW53: August | DX53: Oktober | DY53: Forår | DZ53: August | EA53: Sept | EB53: Forår | EC53: August | ED53: Sept | EE53: Forår | EF53: August | EG53: Sept | EH53: Juli | EI53: August | EJ53: Oktober | EK53: Juli | EL53: August | EM53: Forår | EN53: Forår | EO53: Sept. | EP53: Oktober | EQ53: Hele året | ER53: Hele året | ES53: Hele året
A54: Ligevægtsudbytte | G54: =IF(ISERROR(IF(AND(CS16>1,CS16<O185,CR16>1),(($C$50-G50)/G30)+G29,"")),"",IF(AND(CS16>1,CS16<O185,CR16>1),(($C$50-G50)/G30)+G29,"")) ->  | H54: =IF(G54<>"",VLOOKUP(CS16,_Afg07,3),"") ->  | K54: =IF(ISERROR(IF(AND(CT16>1,CT16<O185,CR16>1),(($C$50-K50)/K30)+K29,"")),"",IF(AND(CT16>1,CT16<O185,CR16>1),(($C$50-K50)/K30)+K29,"")) ->  | L54: =IF(K54<>"",VLOOKUP(CT16,_Afg07,3),"") ->  | DC54: 2 | DD54: Eget tørreri
CS55: Jordtyper
CS56: 1 | CT56: JB 1+3 | DD56: Foderenheder
A57: =IF(FEnr=1,"Foderenheder pr. ha","") -> Foderenheder pr. ha | C57: =IF(AND(Afgnr>1,FEnr=1),IF(VLOOKUP(Afgnr,_Afg07,$BR$131)=1,C29*VLOOKUP(Afgnr,_Afg07,$BQ$131),IF(VLOOKUP(Afgnr,_Afg07,$BR$131)=3,$CW$50*VLOOKUP(1,Foderkorn,$BQ$131),IF(VLOOKUP(Afgnr,_Afg07,$BR$131)=4,$CW$51*VLOOKUP(2,Foderkorn,$BQ$131),""))),"") ->  | D57: =IF(C57<>"","FEsv","") ->  | G57: =IF(AND(Alt1nr>1,FEnr=1),IF(VLOOKUP(Alt1nr,_Afg07,$BR$131)=1,G29*VLOOKUP(Alt1nr,_Afg07,$BQ$131),IF(VLOOKUP(Alt1nr,_Afg07,$BR$131)=3,$CW$50*VLOOKUP(1,Foderkorn,$BQ$131),IF(VLOOKUP(Alt1nr,_Afg07,$BR$131)=4,$CW$51*VLOOKUP(2,Foderkorn,$BQ$131),""))),"") ->  | H57: =IF(G57<>"","FEsv","") ->  | K57: =IF(AND(Alt2nr>1,FEnr=1),IF(VLOOKUP(Alt2nr,_Afg07,$BR$131)=1,K29*VLOOKUP(Alt2nr,_Afg07,$BQ$131),IF(VLOOKUP(Alt2nr,_Afg07,$BR$131)=3,$CW$50*VLOOKUP(1,Foderkorn,$BQ$131),IF(VLOOKUP(Alt2nr,_Afg07,$BR$131)=4,$CW$51*VLOOKUP(2,Foderkorn,$BQ$131),""))),"") ->  | L57: =IF(K57<>"","FEsv","") ->  | CS57: 2 | CT57: JB 2+4 | DC57: 1 | DD57: Vis
A58: =IF(OR(Lagernr=1,FEnr=2),"",IF(Lagernr=BN131,"Lager (planlager)",IF(Lagernr=BO131,"Lager (stålsilo)","Lager (gastæt silo)"))) -> Lager (planlager) | C58: =IF(AND(Afgnr>1,FEnr=1,Lagernr<>1),IF(VLOOKUP(Afgnr,_Afg07,$BR$131)=1,-C29*VLOOKUP(Afgnr,_Afg07,Lagernr)/C57,IF(VLOOKUP(Afgnr,_Afg07,$BR$131)=3,-$CW$50*VLOOKUP(1,Foderkorn,Lagernr)/C57,IF(VLOOKUP(Afgnr,_Afg07,$BR$131)=4,-$CW$51*VLOOKUP(2,Foderkorn,Lagernr)/C57,""))),"") ->  | D58: =IF(C58<>"","kr./FEsv","") ->  | G58: =IF(AND(Alt1nr>1,FEnr=1,Lagernr<>1),IF(VLOOKUP(Alt1nr,_Afg07,$BR$131)=1,-G29*VLOOKUP(Alt1nr,_Afg07,Lagernr)/G57,IF(VLOOKUP(Alt1nr,_Afg07,$BR$131)=3,-$CW$50*VLOOKUP(1,Foderkorn,Lagernr)/G57,IF(VLOOKUP(Alt1nr,_Afg07,$BR$131)=4,-$CW$51*VLOOKUP(2,Foderkorn,Lagernr)/G57,""))),"") ->  | H58: =IF(G58<>"","kr./FEsv","") ->  | K58: =IF(AND(Alt2nr>1,FEnr=1,Lagernr<>1),IF(VLOOKUP(Alt2nr,_Afg07,$BR$131)=1,-K29*VLOOKUP(Alt2nr,_Afg07,Lagernr)/K57,IF(VLOOKUP(Alt2nr,_Afg07,$BR$131)=3,-$CW$50*VLOOKUP(1,Foderkorn,Lagernr)/K57,IF(VLOOKUP(Alt2nr,_Afg07,$BR$131)=4,-$CW$51*VLOOKUP(2,Foderkorn,Lagernr)/K57,""))),"") ->  | L58: =IF(K58<>"","kr./FEsv","") ->  | CS58: 3 | CT58: JB 1-4 vandet | DC58: 2 | DD58: Vis ikke
A59: =IF(AND(FEnr=1,Lagernr<>1),"Omkostninger ab lager","") -> Omkostninger ab lager | C59: =IF(AND(Afgnr>1,FEnr=1,Lagernr<>1,VLOOKUP(Afgnr,_Afg07,$BR$131,)=1),(C42+C46+C47)/C57+C58,IF(AND(Afgnr>1,FEnr=1,Lagernr<>1,VLOOKUP(Afgnr,_Afg07,$BR$131,)=3),-C$452*$CV$50/$C$107/C$57+C58,IF(AND(Afgnr>1,FEnr=1,Lagernr<>1,VLOOKUP(Afgnr,_Afg07,$BR$131,)=4),-C$452*$CV$51/$C$127/C$57+C58,""))) ->  | D59: =IF(C59<>"","kr./FEsv","") ->  | G59: =IF(AND(Alt1nr>1,FEnr=1,Lagernr<>1,VLOOKUP(Alt1nr,_Afg07,$BR$131,)=1),(G42+G46+G47)/G57+G58,IF(AND(Alt1nr>1,FEnr=1,Lagernr<>1,VLOOKUP(Alt1nr,_Afg07,$BR$131,)=3),-G$452*$CV$50/$C$107/G$57+G58,IF(AND(Alt1nr>1,FEnr=1,Lagernr<>1,VLOOKUP(Alt1nr,_Afg07,$BR$131,)=4),-G$452*$CV$51/$C$127/G$57+G58,""))) ->  | H59: =IF(G59<>"","kr./FEsv","") ->  | K59: =IF(AND(Alt2nr>1,FEnr=1,Lagernr<>1,VLOOKUP(Alt2nr,_Afg07,$BR$131,)=1),(K42+K46+K47)/K57+K58,IF(AND(Alt2nr>1,FEnr=1,Lagernr<>1,VLOOKUP(Alt2nr,_Afg07,$BR$131,)=3),-K$452*$CV$50/$C$107/K$57+K58,IF(AND(Alt2nr>1,FEnr=1,Lagernr<>1,VLOOKUP(Alt2nr,_Afg07,$BR$131,)=4),-K$452*$CV$51/$C$127/K$57+K58,""))) ->  | L59: =IF(K59<>"","kr./FEsv","") ->  | CS59: 4 | CT59: JB 5-6
CS60: 5 | CT60: JB 7-9
A62: Kvælstof (normtilførsel) | C62: =IF(Afgnr>1,VLOOKUP(Afgnr,_Afg07,Nnr),"") ->  | D62: =IF(C62<>"","kg N","") ->  | G62: =IF(Alt1nr>1,VLOOKUP(Alt1nr,_Afg07,Nnr),"") ->  | H62: =IF(G62<>"","kg N","") ->  | K62: =IF(Alt2nr>1,VLOOKUP(Alt2nr,_Afg07,Nnr),"") ->  | L62: =IF(K62<>"","kg N","") ->  | CS62: Halm anvendelse
A63: Fosfor (bortførsel + startgødn.) | C63: =IF(Afgnr>1,(C408+C409+C410+C411)/Ppris,"") ->  | D63: =IF(C63<>"","kg P","") ->  | G63: =IF(Alt1nr>1,(G408+G409+G410+G411)/Ppris,"") ->  | H63: =IF(G63<>"","kg P","") ->  | K63: =IF(Alt2nr>1,(K408+K409+K410+K411)/Ppris,"") ->  | L63: =IF(K63<>"","kg P","") ->  | CT63: Bjærges
A64: Kalium (bortførsel) | C64: =IF(Afgnr>1,(C415+C416+C417)/Kpris,"") ->  | D64: =IF(C64<>"","kg K","") ->  | G64: =IF(Alt1nr>1,(G415+G416+G417)/Kpris,"") ->  | H64: =IF(G64<>"","kg K","") ->  | K64: =IF(Alt2nr>1,(K415+K416+K417)/Kpris,"") ->  | L64: =IF(K64<>"","kg K","") ->  | CT64: Nedmuldes
CS66: Kornsælger eller -køber
F67: =IF(OR($CR$16=$O$185,$CS$16=$O$185,$CT$16=$O$185,$CU$16=$O$185),$P$185,"") ->  | CT67: Sælger | DC67: Plove | DI67: Stubharver | DN67: Mejetærsker | DQ67: Såmaskiner | DU67: Halmpresser | DZ67: Kartoffellægger | EC67: ha/time
F68: =IF($F$67="Sædskifte 1",IF($CR$36>1,VLOOKUP($CR$36,_Afg07,2),""),"") ->  | H68: =IF($F$67="Sædskifte 1",IF($CR$36>1,$C$93,""),"") ->  | I68: =IF(H68<>"","ha","") ->  | J68: =IF($F$67="Sædskifte 1",IF($CR$36>1,IF($E$93<>"",$E$93,$F$93),""),"") ->  | K68: =IF(J68<>"",G93,"") ->  | L68: =IF($F$67="Sædskifte 1",IF($CR$36>1,IF($H$93<>"",$H$93,$J$93),""),"") ->  | M68: =IF(L68<>"","kr.","") ->  | CT68: Køber | DD68: Type | DE68: Kapacitet, ha/time | DF68: Lav-høj anvendelse, antal ha | DJ68: Type | DK68: Kapacitet, ha/time | DL68: Lav-høj anvendelse, antal ha | DO68: Type | DR68: Type | DS68: Kapacitet, ha/time | DV68: Type | DW68: Kapacitet, ha/time | DX68: Transport, ha/time | DZ68: 1 | EA68: 4 rækker u/ gødningsudstyr | EC68: 0.7
F69: =IF($F$67="Sædskifte 1",IF($CR$38>1,VLOOKUP($CR$38,_Afg07,2),""),"") ->  | H69: =IF($F$67="Sædskifte 1",IF($CR$38>1,$C$95,""),"") ->  | J69: =IF($F$67="Sædskifte 1",IF($CR$38>1,IF($E$95<>"",$E$95,$F$95),""),"") ->  | K69: =IF(J69<>"",G95,"") ->  | L69: =IF($F$67="Sædskifte 1",IF($CR$38>1,IF($H$95<>"",$H$95,$J$95),""),"") ->  | DC69: 1 | DD69: Vendeplov 4 fure | DE69: 0.9 | DF69: 70-140 ha | DI69: 1 | DJ69: Stubharve 4 m (let) | DK69: 2.9 | DL69: 200-400 ha | DN69: 1 | DO69: Mejetærsker 5,4 m | DP69: 1.7 | DQ69: 1 | DR69: Kombiharve/såmaskine 3,0 m | DS69: 2.4 | DU69: 1 | DV69: Minibigballer 1,5 kbm | DW69: 4.9 | DX69: 2 | DZ69: 2 | EA69: 4 rækker m/ gødningsudstyr | EC69: 0.7
F70: =IF($F$67="Sædskifte 1",IF($CR$40>1,VLOOKUP($CR$40,_Afg07,2),""),"") ->  | H70: =IF($F$67="Sædskifte 1",IF($CR$40>1,$C$97,""),"") ->  | J70: =IF($F$67="Sædskifte 1",IF($CR$40>1,IF($E$97<>"",$E$97,$F$97),""),"") ->  | K70: =IF(J70<>"",G97,"") ->  | L70: =IF($F$67="Sædskifte 1",IF($CR$40>1,IF($H$97<>"",$H$97,$J$97),""),"") ->  | CS70: Husdyrgødning | DC70: 2 | DD70: Vendeplov 5 fure | DE70: 1.1 | DF70: 85-170 ha | DI70: 2 | DJ70: Stubharve 4 m (tung) | DK70: 2.7 | DL70: 200-400 ha | DN70: 2 | DO70: Mejetærsker 6,0 m | DP70: 1.9 | DQ70: 2 | DR70: Kombiharve/såmaskine 4,0 m | DS70: 2.9 | DU70: 2 | DV70: Bigballer 3,5 kbm | DW70: 5.3 | DX70: 3.2
F71: =IF($F$67="Sædskifte 1",IF($CR$42>1,VLOOKUP($CR$42,_Afg07,2),""),"") ->  | H71: =IF($F$67="Sædskifte 1",IF($CR$42>1,$C$99,""),"") ->  | J71: =IF($F$67="Sædskifte 1",IF($CR$42>1,IF($E$99<>"",$E$99,$F$99),""),"") ->  | K71: =IF(J71<>"",G99,"") ->  | L71: =IF($F$67="Sædskifte 1",IF($CR$42>1,IF($H$99<>"",$H$99,$J$99),""),"") ->  | CT71: Uden | DC71: 3 | DD71: Vendeplov 8 fure | DE71: 1.6 | DF71: 120-240 ha | DI71: 3 | DJ71: Stubharve 6 m (tung) | DK71: 4 | DL71: 400-800 ha | DN71: 3 | DO71: Mejetærsker 7,5 m | DP71: 2.7 | DQ71: 3 | DR71: Radsåmaskine 3,0 m | DS71: 1.7 | DZ71: Kartoffeloptager | EC71: ha/time
F72: =IF($F$67="Sædskifte 1",IF($CR$44>1,VLOOKUP($CR$44,_Afg07,2),""),"") ->  | H72: =IF($F$67="Sædskifte 1",IF($CR$44>1,$C$101,""),"") ->  | J72: =IF($F$67="Sædskifte 1",IF($CR$44>1,IF($E$101<>"",$E$101,$F$101),""),"") ->  | K72: =IF(J72<>"",G101,"") ->  | L72: =IF($F$67="Sædskifte 1",IF($CR$44>1,IF($H$101<>"",$H$101,$J$101),""),"") ->  | CT72: Med | DC72: 4 | DD72: Vendeplov 12 fure | DE72: 2.3 | DF72: 175-350 ha | DI72: 4 | DJ72: Tallerken / disc 4 m | DK72: 2.8 | DL72: 280-560 ha | DN72: 4 | DO72: Mejetærsker 9,0 m | DP72: 3.3 | DQ72: 4 | DR72: Radsåmaskine 4,0 m | DS72: 2.1 | DU72: Gyllevogn | DX72: ton/time | DZ72: 1 | EA72: 2 rk frilægger | EC72: 0.8
F73: =IF($F$67="Sædskifte 1",IF($CR$46>1,VLOOKUP($CR$46,_Afg07,2),""),"") ->  | H73: =IF($F$67="Sædskifte 1",IF($CR$46>1,$C$103,""),"") ->  | J73: =IF($F$67="Sædskifte 1",IF($CR$46>1,IF($E$103<>"",$E$103,$F$103),""),"") ->  | K73: =IF(J73<>"",G103,"") ->  | L73: =IF($F$67="Sædskifte 1",IF($CR$46>1,IF($H$103<>"",$H$103,$J$103),""),"") ->  | DI73: 5 | DJ73: Tallerken / disc 6 m | DK73: 4.1 | DL73: 410-820 ha | DN73: 5 | DO73: Mejetærsker 10,5 m | DP73: 4 | DQ73: 5 | DR73: Rotorharve/såmaskine 4,0 m | DS73: 1.5 | DU73: 1 | DV73: Slæbeslanger 16 m / 15 ton | DX73: 51 | DZ73: 2 | EA73: 1 rk m/ tank/stensep. | EC73: 0.3
F74: =IF($F$67="Sædskifte 1",IF($CR$48>1,VLOOKUP($CR$48,_Afg07,2),""),"") ->  | H74: =IF($F$67="Sædskifte 1",IF($CR$48>1,$C$105,""),"") ->  | J74: =IF($F$67="Sædskifte 1",IF($CR$48>1,IF($E$105<>"",$E$105,$F$105),""),"") ->  | K74: =IF(J74<>"",G105,"") ->  | L74: =IF($F$67="Sædskifte 1",IF($CR$48>1,IF($H$105<>"",$H$105,$J$105),""),"") ->  | CS74: Forfrugtsværdi | DC74: Såbedsharver | DI74: Marksprøjte | DQ74: 6 | DR74: Rotorharve/såmaskine 6,0 m | DS74: 2.6 | DU74: 2 | DV74: Slæbeslanger 24 m / 20 ton | DX74: 60 | DZ74: 3 | EA74: Selvkørende 2 rk m/ tank | EC74: 0.9
CT75: Ja | DD75: Type | DE75: Kapacitet, ha/time | DJ75: Type | DK75: Kapacitet, ha/time | DQ75: 7 | DR75: Skiveskærmaskine 4 m | DS75: 2.8 | DU75: 3 | DV75: Slæbeslanger 24 m / 25 ton | DX75: 66
F76: =IF(OR(CR16=O186,CS16=O186,CT16=O186,CU16=O186),P186,"") ->  | CT76: Nej | DC76: 1 | DD76: Såbedsharve 4,5 m | DE76: 3.3 | DI76: 1 | DJ76: Sprøjte 24 m, 2800 liter | DK76: 5.3 | DQ76: 8 | DR76: Skiveskærmaskine 6 m | DS76: 3.8 | DU76: 4 | DV76: Nedfælder 6,0 m / 25 ton | DX76: 54
F77: =IF($F$76="Sædskifte 2",IF(CR37>1,VLOOKUP(CR37,_Afg07,2),""),"") ->  | H77: =IF($F$76="Sædskifte 2",IF(CR37>1,C113,""),"") ->  | I77: =IF(H77<>"","ha","") ->  | J77: =IF($F$76="Sædskifte 2",IF($CR37>1,IF(E113<>"",E113,F113),""),"") ->  | K77: =IF(J77<>"",G113,"") ->  | L77: =IF($F$76="Sædskifte 2",IF($CR37>1,IF(H113<>"",H113,J113),""),"") ->  | M77: =IF(L77<>"","kr.","") ->  | DC77: 2 | DD77: Såbedsharve 6,4 m | DE77: 4.7 | DI77: 2 | DJ77: Sprøjte 24 m, 4000 liter | DK77: 7 | DQ77: 9 | DR77: Tandskærsmaskine 4 m | DS77: 2.1 | DU77: 5 | DV77: Nedfælder 7,5 m / 25 ton | DX77: 60
F78: =IF($F$76="Sædskifte 2",IF(CR39>1,VLOOKUP(CR39,_Afg07,2),""),"") ->  | H78: =IF($F$76="Sædskifte 2",IF(CR39>1,C115,""),"") ->  | J78: =IF($F$76="Sædskifte 2",IF($CR39>1,IF(E115<>"",E115,F115),""),"") ->  | K78: =IF(J78<>"",G115,"") ->  | L78: =IF($F$76="Sædskifte 2",IF($CR39>1,IF(H115<>"",H115,J115),""),"") ->  | M78: =IF(L78<>"","kr.","") ->  | DC78: 3 | DD78: Såbedsharve 9,1 m | DE78: 6.6 | DI78: 3 | DJ78: Sprøjte 36 m, 4000 liter | DK78: 9 | DQ78: 10 | DR78: Tandskærsmaskine 6 m | DS78: 2.8 | DU78: 6 | DV78: Selvkør. nedfælder 9 m/16 ton | DX78: 51 | DZ78: Roeoptager | EC78: ha/time
F79: =IF($F$76="Sædskifte 2",IF(CR41>1,VLOOKUP(CR41,_Afg07,2),""),"") ->  | H79: =IF($F$76="Sædskifte 2",IF(CR41>1,C117,""),"") ->  | J79: =IF($F$76="Sædskifte 2",IF($CR41>1,IF(E117<>"",E117,F117),""),"") ->  | K79: =IF(J79<>"",G117,"") ->  | L79: =IF($F$76="Sædskifte 2",IF($CR41>1,IF(H117<>"",H117,J117),""),"") ->  | DC79: 4 | DD79: Tallerken / disc 4 m | DE79: 2.8 | DI79: 4 | DJ79: Sprøjte m/luft 24 m, 4400 liter | DK79: 8 | DZ79: 1 | EA79: Selvkørende 6 rk > 40 kbm tank | EC79: 1.3
F80: =IF($F$76="Sædskifte 2",IF(CR43>1,VLOOKUP(CR43,_Afg07,2),""),"") ->  | H80: =IF($F$76="Sædskifte 2",IF(CR43>1,C119,""),"") ->  | J80: =IF($F$76="Sædskifte 2",IF($CR43>1,IF(E119<>"",E119,F119),""),"") ->  | K80: =IF(J80<>"",G119,"") ->  | L80: =IF($F$76="Sædskifte 2",IF($CR43>1,IF(H119<>"",H119,J119),""),"") ->  | DC80: 5 | DD80: Tallerken / disc 6 m | DE80: 4.1 | DQ80: Enkorn | DS80: ha/time | DU80: Gødningsspreder | DX80: ha/time | DZ80: 2 | EA80: 3 rk 12 kbm tank | EC80: 0.7
F81: =IF($F$76="Sædskifte 2",IF(CR45>1,VLOOKUP(CR45,_Afg07,2),""),"") ->  | H81: =IF($F$76="Sædskifte 2",IF(CR45>1,C121,""),"") ->  | J81: =IF($F$76="Sædskifte 2",IF($CR45>1,IF(E121<>"",E121,F121),""),"") ->  | K81: =IF(J81<>"",G121,"") ->  | L81: =IF($F$76="Sædskifte 2",IF($CR45>1,IF(H121<>"",H121,J121),""),"") ->  | DQ81: 1 | DR81: 12 rækker | DS81: 2.6 | DU81: 1 | DV81: Liftophængt 24 m / 3 ton | DX81: 6
F82: =IF($F$76="Sædskifte 2",IF(CR47>1,VLOOKUP(CR47,_Afg07,2),""),"") ->  | H82: =IF($F$76="Sædskifte 2",IF(CR47>1,C123,""),"") ->  | J82: =IF($F$76="Sædskifte 2",IF($CR47>1,IF(E123<>"",E123,F123),""),"") ->  | K82: =IF(J82<>"",G123,"") ->  | L82: =IF($F$76="Sædskifte 2",IF($CR47>1,IF(H123<>"",H123,J123),""),"") ->  | DU82: 2 | DV82: Bugseret 20 m / 10 ton | DX82: 9
F83: =IF($F$76="Sædskifte 2",IF(CR49>1,VLOOKUP(CR49,_Afg07,2),""),"") ->  | H83: =IF($F$76="Sædskifte 2",IF(CR49>1,C125,""),"") ->  | J83: =IF($F$76="Sædskifte 2",IF($CR49>1,IF(E125<>"",E125,F125),""),"") ->  | K83: =IF(J83<>"",G125,"") ->  | L83: =IF($F$76="Sædskifte 2",IF($CR49>1,IF(H125<>"",H125,J125),""),"") ->  | DU83: 3 | DV83: Bugseret 16 m / 5 ton | DX83: 7.8
A86: ="Jordtypen er "&IF(JBnr=1,"JB 1+3",IF(JBnr=2,"JB 2+4",IF(JBnr=3,"JB 1-4, vandet",IF(JBnr=4,"JB 5-6","JB 7-9")))) -> Jordtypen er JB 5-6 | C86: =IF(Hdgnr=1,"Ingen husdyrgødning","Husdyrgødning fra "&VLOOKUP(Hdgnr,_Hdg2,2)) -> Ingen husdyrgødning
A87: =IF(HalmJa=1,"Halmen bjærges","Halmen nedmuldes") -> Halmen nedmuldes | C87: =IF(Købernr=1,"Bedriften er netto kornsælger","Bedriften er netto kornkøber") -> Bedriften er netto kornsælger
A90: Sædskifte 1 | C90: Antal | E90: Eget | F90: Udbytte- | H90: Egen | J90: Standard
C91: ha | E91: udbytte | F91: norm | H91: pris | J91: pris
F93: =IF(E93<>"","",IF(VLOOKUP($CR36,_Afg07,$CS$3)=0,"",VLOOKUP($CR36,_Afg07,$CS$3))) ->  | G93: =IF($CR36>1,IF(VLOOKUP($CR36,_Afg07,3)<>"",VLOOKUP($CR36,_Afg07,3),""),"") ->  | J93: =IF(H93<>"","",IF(VLOOKUP($CR36,_Afg07,$R$131)=0,"",VLOOKUP($CR36,_Afg07,$R$131))) ->  | K93: =IF($CR36>1,"kr.","") ->  | O93: =IF(AND(CR36>1,VLOOKUP(CR36,_Afg07,3)=""),"Areal med efterafgrøder tælles ikke med i dyrket areal i alt","") ->  | P93: Her kan du angive, hvilke afgrøder der skal indgå i sædskifte 1 samt arealer, udbytter og priser. For at få sædskifte 1 vist på udskriften skal det vælges i række 16 (nederst i rullelisten)
F95: =IF(E95<>"","",IF(VLOOKUP(CR38,_Afg07,$CS$3)=0,"",VLOOKUP(CR38,_Afg07,$CS$3))) ->  | G95: =IF($CR38>1,IF(VLOOKUP($CR38,_Afg07,3)<>"",VLOOKUP($CR38,_Afg07,3),""),"") ->  | J95: =IF(H95<>"","",IF(VLOOKUP($CR38,_Afg07,$R$131)=0,"",VLOOKUP($CR38,_Afg07,$R$131))) ->  | K95: =IF($CR38>1,"kr.","") ->  | O95: =IF(AND(CR38>1,VLOOKUP(CR38,_Afg07,3)=""),"Areal med efterafgrøder tælles ikke med i dyrket areal i alt","") -> 
F97: =IF(E97<>"","",IF(VLOOKUP(CR40,_Afg07,$CS$3)=0,"",VLOOKUP(CR40,_Afg07,$CS$3))) ->  | G97: =IF($CR40>1,IF(VLOOKUP($CR40,_Afg07,3)<>"",VLOOKUP($CR40,_Afg07,3),""),"") ->  | J97: =IF(H97<>"","",IF(VLOOKUP($CR40,_Afg07,$R$131)=0,"",VLOOKUP($CR40,_Afg07,$R$131))) ->  | K97: =IF($CR40>1,"kr.","") ->  | O97: =IF(AND(CR40>1,VLOOKUP(CR40,_Afg07,3)=""),"Areal med efterafgrøder tælles ikke med i dyrket areal i alt","") -> 
F99: =IF(E99<>"","",IF(VLOOKUP(CR42,_Afg07,$CS$3)=0,"",VLOOKUP(CR42,_Afg07,$CS$3))) ->  | G99: =IF($CR42>1,IF(VLOOKUP($CR42,_Afg07,3)<>"",VLOOKUP($CR42,_Afg07,3),""),"") ->  | J99: =IF(H99<>"","",IF(VLOOKUP($CR42,_Afg07,$R$131)=0,"",VLOOKUP($CR42,_Afg07,$R$131))) ->  | K99: =IF($CR42>1,"kr.","") ->  | O99: =IF(AND(CR42>1,VLOOKUP(CR42,_Afg07,3)=""),"Areal med efterafgrøder tælles ikke med i dyrket areal i alt","") -> 
F101: =IF(E101<>"","",IF(VLOOKUP(CR44,_Afg07,$CS$3)=0,"",VLOOKUP(CR44,_Afg07,$CS$3))) ->  | G101: =IF($CR44>1,IF(VLOOKUP($CR44,_Afg07,3)<>"",VLOOKUP($CR44,_Afg07,3),""),"") ->  | J101: =IF(H101<>"","",IF(VLOOKUP($CR44,_Afg07,$R$131)=0,"",VLOOKUP($CR44,_Afg07,$R$131))) ->  | K101: =IF($CR44>1,"kr.","") ->  | O101: =IF(AND(CR44>1,VLOOKUP(CR44,_Afg07,3)=""),"Areal med efterafgrøder tælles ikke med i dyrket areal i alt","") -> 
F103: =IF(E103<>"","",IF(VLOOKUP(CR46,_Afg07,$CS$3)=0,"",VLOOKUP(CR46,_Afg07,$CS$3))) ->  | G103: =IF($CR46>1,IF(VLOOKUP($CR46,_Afg07,3)<>"",VLOOKUP($CR46,_Afg07,3),""),"") ->  | J103: =IF(H103<>"","",IF(VLOOKUP($CR46,_Afg07,$R$131)=0,"",VLOOKUP($CR46,_Afg07,$R$131))) ->  | K103: =IF($CR46>1,"kr.","") ->  | O103: =IF(AND(CR46>1,VLOOKUP(CR46,_Afg07,3)=""),"Areal med efterafgrøder tælles ikke med i dyrket areal i alt","") -> 
F105: =IF(E105<>"","",IF(VLOOKUP(CR48,_Afg07,$CS$3)=0,"",VLOOKUP(CR48,_Afg07,$CS$3))) ->  | G105: =IF($CR48>1,IF(VLOOKUP($CR48,_Afg07,3)<>"",VLOOKUP($CR48,_Afg07,3),""),"") ->  | J105: =IF(H105<>"","",IF(VLOOKUP($CR48,_Afg07,$R$131)=0,"",VLOOKUP($CR48,_Afg07,$R$131))) ->  | K105: =IF($CR48>1,"kr.","") ->  | O105: =IF(AND(CR48>1,VLOOKUP(CR48,_Afg07,3)=""),"Areal med efterafgrøder tælles ikke med i dyrket areal i alt","") -> 
A107: Dyrket areal i alt | C107: =IF(AND(CR36>1,VLOOKUP(CR36,_Afg07,3)<>""),C93,0)+IF(AND(CR38>1,VLOOKUP(CR38,_Afg07,3)<>""),C95,0)+IF(AND(CR40>1,VLOOKUP(CR40,_Afg07,3)<>""),C97,0)+IF(AND(CR42>1,VLOOKUP(CR42,_Afg07,3)<>""),C99,0)+IF(AND(CR44>1,VLOOKUP(CR44,_Afg07,3)<>""),C101,0)+IF(AND(CR46>1,VLOOKUP(CR46,_Afg07,3)<>""),C103,0)+IF(AND(CR48>1,VLOOKUP(CR48,_Afg07,3)<>""),C105,0) -> 0
A110: Sædskifte 2 | C110: Antal | E110: Eget | F110: Udbytte- | H110: Egen | J110: Standard
C111: ha | E111: udbytte | F111: norm | H111: pris | J111: pris
F113: =IF(E113<>"","",IF(VLOOKUP(CR37,_Afg07,$CS$3)=0,"",VLOOKUP(CR37,_Afg07,$CS$3))) ->  | G113: =IF(CR37>1,IF(VLOOKUP(CR37,_Afg07,3)<>"",VLOOKUP(CR37,_Afg07,3),""),"") ->  | J113: =IF(H113<>"","",IF(VLOOKUP($CR37,_Afg07,$R$131)=0,"",VLOOKUP($CR37,_Afg07,$R$131))) ->  | K113: =IF($CR37>1,"kr.","") ->  | O113: =IF(AND(CR37>1,VLOOKUP(CR37,_Afg07,3)=""),"Areal med efterafgrøder tælles ikke med i dyrket areal i alt","") ->  | P113: Her kan du angive, hvilke afgrøder der skal indgå i sædskifte 2 samt arealer, udbytter og priser. For at få sædskifte 2 vist på udskriften skal det vælges i række 16 (nederst i rullelisten)
F115: =IF(E115<>"","",IF(VLOOKUP(CR39,_Afg07,$CS$3)=0,"",VLOOKUP(CR39,_Afg07,$CS$3))) ->  | G115: =IF(CR39>1,IF(VLOOKUP(CR39,_Afg07,3)<>"",VLOOKUP(CR39,_Afg07,3),""),"") ->  | J115: =IF(H115<>"","",IF(VLOOKUP($CR39,_Afg07,$R$131)=0,"",VLOOKUP($CR39,_Afg07,$R$131))) ->  | K115: =IF($CR39>1,"kr.","") ->  | O115: =IF(AND(CR39>1,VLOOKUP(CR39,_Afg07,3)=""),"Areal med efterafgrøder tælles ikke med i dyrket areal i alt","") -> 
F117: =IF(E117<>"","",IF(VLOOKUP(CR41,_Afg07,$CS$3)=0,"",VLOOKUP(CR41,_Afg07,$CS$3))) ->  | G117: =IF(CR41>1,IF(VLOOKUP(CR41,_Afg07,3)<>"",VLOOKUP(CR41,_Afg07,3),""),"") ->  | J117: =IF(H117<>"","",IF(VLOOKUP($CR41,_Afg07,$R$131)=0,"",VLOOKUP($CR41,_Afg07,$R$131))) ->  | K117: =IF($CR41>1,"kr.","") ->  | O117: =IF(AND(CR41>1,VLOOKUP(CR41,_Afg07,3)=""),"Areal med efterafgrøder tælles ikke med i dyrket areal i alt","") -> 
F119: =IF(E119<>"","",IF(VLOOKUP(CR43,_Afg07,$CS$3)=0,"",VLOOKUP(CR43,_Afg07,$CS$3))) ->  | G119: =IF(CR43>1,IF(VLOOKUP(CR43,_Afg07,3)<>"",VLOOKUP(CR43,_Afg07,3),""),"") ->  | J119: =IF(H119<>"","",IF(VLOOKUP($CR43,_Afg07,$R$131)=0,"",VLOOKUP($CR43,_Afg07,$R$131))) ->  | K119: =IF($CR43>1,"kr.","") ->  | O119: =IF(AND(CR43>1,VLOOKUP(CR43,_Afg07,3)=""),"Areal med efterafgrøder tælles ikke med i dyrket areal i alt","") -> 
F121: =IF(E121<>"","",IF(VLOOKUP(CR45,_Afg07,$CS$3)=0,"",VLOOKUP(CR45,_Afg07,$CS$3))) ->  | G121: =IF(CR45>1,IF(VLOOKUP(CR45,_Afg07,3)<>"",VLOOKUP(CR45,_Afg07,3),""),"") ->  | J121: =IF(H121<>"","",IF(VLOOKUP($CR45,_Afg07,$R$131)=0,"",VLOOKUP($CR45,_Afg07,$R$131))) ->  | K121: =IF($CR45>1,"kr.","") ->  | O121: =IF(AND(CR45>1,VLOOKUP(CR45,_Afg07,3)=""),"Areal med efterafgrøder tælles ikke med i dyrket areal i alt","") -> 
F123: =IF(E123<>"","",IF(VLOOKUP(CR47,_Afg07,$CS$3)=0,"",VLOOKUP(CR47,_Afg07,$CS$3))) ->  | G123: =IF(CR47>1,IF(VLOOKUP(CR47,_Afg07,3)<>"",VLOOKUP(CR47,_Afg07,3),""),"") ->  | J123: =IF(H123<>"","",IF(VLOOKUP($CR47,_Afg07,$R$131)=0,"",VLOOKUP($CR47,_Afg07,$R$131))) ->  | K123: =IF($CR47>1,"kr.","") ->  | O123: =IF(AND(CR47>1,VLOOKUP(CR47,_Afg07,3)=""),"Areal med efterafgrøder tælles ikke med i dyrket areal i alt","") -> 
F125: =IF(E125<>"","",IF(VLOOKUP(CR49,_Afg07,$CS$3)=0,"",VLOOKUP(CR49,_Afg07,$CS$3))) ->  | G125: =IF(CR49>1,IF(VLOOKUP(CR49,_Afg07,3)<>"",VLOOKUP(CR49,_Afg07,3),""),"") ->  | J125: =IF(H125<>"","",IF(VLOOKUP($CR49,_Afg07,$R$131)=0,"",VLOOKUP($CR49,_Afg07,$R$131))) ->  | K125: =IF($CR49>1,"kr.","") ->  | O125: =IF(AND(CR49>1,VLOOKUP(CR49,_Afg07,3)=""),"Areal med efterafgrøder tælles ikke med i dyrket areal i alt","") -> 
A127: Dyrket areal i alt | C127: =IF(AND(CR37>1,VLOOKUP(CR37,_Afg07,3)<>""),C113,0)+IF(AND(CR39>1,VLOOKUP(CR39,_Afg07,3)<>""),C115,0)+IF(AND(CR41>1,VLOOKUP(CR41,_Afg07,3)<>""),C117,0)+IF(AND(CR43>1,VLOOKUP(CR43,_Afg07,3)<>""),C119,0)+IF(AND(CR45>1,VLOOKUP(CR45,_Afg07,3)<>""),C121,0)+IF(AND(CR47>1,VLOOKUP(CR47,_Afg07,3)<>""),C123,0)+IF(AND(CR49>1,VLOOKUP(CR49,_Afg07,3)<>""),C125,0) -> 0
A131: Normer | O131: 1 | P131: 2 | Q131: 3 | R131: 4 | S131: 5 | T131: 6 | U131: 7 | V131: 8 | W131: 9 | X131: 10 | Y131: 11 | Z131: 12 | AA131: 13 | AB131: 14 | AC131: 15 | AD131: 16 | AE131: 17 | AF131: 18 | AG131: 19 | AH131: 20 | AI131: 21 | AJ131: 22 | AK131: 23 | AL131: 24 | AM131: 25 | AN131: 26 | AO131: 27 | AP131: 28 | AQ131: 29 | AR131: 30 | AS131: 31 | AT131: 32 | AU131: 33 | AV131: 34 | AW131: 35 | AX131: 36 | AY131: 37 | AZ131: 38 | BA131: 39 | BB131: 40 | BC131: 41 | BD131: 42 | BE131: 43 | BF131: 44 | BG131: 45 | BH131: 46 | BI131: 47 | BJ131: 48 | BK131: 49 | BL131: 50 | BM131: 51 | BN131: 52 | BO131: 53 | BP131: 54 | BQ131: 55 | BR131: 56 | BS131: 57 | BT131: 58 | BU131: 59 | BV131: 60 | BW131: 61 | BX131: 62 | BY131: 63 | BZ131: 64 | CA131: 65 | CB131: 66 | CC131: 67 | CD131: 68 | CE131: 69 | CF131: 70 | CG131: 71 | CH131: 72
S132: Normudbytter | X132: Halmudbytte, kg pr. ha | AC132: Forfrugtsværdi, merudbytte hkg pr. ha | AH132: Sparet N | AI132: Udsæd | AJ132: Planteværn | AK132: Analyser | AL132: Sum | AM132: N-gødning, kg N pr. ha | AR132: P-start 1 | AS132: P-start 2 | AT132: P-kerne | AU132: P-halm | AV132: K-start | AW132: K-kerne | AX132: K-halm | AY132: Øvrig stykomk (udbytteafhængig) | AZ132: Afgrøder | BA132: Maskin- og arbejdsomk. (med halmbj.), kr. pr. ha | BF132: Maskin- og arbejdsomk. (uden halmbj.), kr. pr. ha | BK132: Tørring | BL132: Eget tørreri | BM132: Gylle omk | BN132: Plansilo | BO132: Stålsilo | BP132: Gastæt silo | BR132: Korn | BS132: Pløjning | BT132: Såbed | BU132: Glyphosat | BV132: Såning | BW132: Harvning | BX132: Høst | BY132: Halm | BZ132: Mejetærskertid | CA132: Enkorn- | CB132: Kartoffel- | CC132: Kartoffel- | CD132: Roe- | CE132: Planteværn | CF132: Gødskning | CG132: Gylle | CH132: Korn-
A133: Kvælstofpris | C133: 6.3 | P133: Afgrøde | Q133: Enhed | R133: Pris | S133: JB 1+3 | T133: JB 2+4 | U133: JB 1-4, vandet | V133: JB 5-6 | W133: JB 7-9 | X133: JB 1+3 | Y133: JB 2+4 | Z133: JB 1-4, vandet | AA133: JB 5-6 | AB133: JB 7-9 | AC133: JB 1+3 | AD133: JB 2+4 | AE133: JB 1-4, vandet | AF133: JB 5-6 | AG133: JB 7-9 | AH133: Alle JB | AI133: Alle JB | AJ133: Alle JB | AK133: Alle JB | AL133: Alle JB | AM133: JB 1+3 | AN133: JB 2+4 | AO133: JB 1-4, vandet | AP133: JB 5-6 | AQ133: JB 7-9 | AR133: Alle JB | AS133: Alle JB | AT133: Alle JB | AU133: Alle JB | AV133: JB1+3 og vandet | AW133: Alle JB | AX133: Alle JB | AY133: Alle JB | BA133: JB 1+3 | BB133: JB 2+4 | BC133: JB 1-4, vandet | BD133: JB 5-6 | BE133: JB 7-9 | BF133: JB 1+3 | BG133: JB 2+4 | BH133: JB 1-4, vandet | BI133: JB 5-6 | BJ133: JB 7-9 | BK133: Kr./hkg | BM133: kr. pr. ton | BN133: kr./hkg | BO133: kr./hkg | BP133: kr./hkg | BQ133: Fesv | BR133: 1 = ja | BT133: Harvning | BW133: efter høst | BX133: (korn og frø) | BZ133: faktor | CA133: såning | CB133: lægning | CC133: optagning | CD133: optagning | CE133: Antal beh. | CF133: Antal beh. | CG133: Ton pr. ha | CH133: type | CI133: Afgrøde
O134: 1 | BR134: 1
A135: Fosforpris | C135: 12 | O135: 2 | P135: Alm. rajgræs 2n | Q135: hkg | R135: 800 | S135: 12 | T135: 12 | U135: 12 | V135: 12 | W135: 12 | X135: 3800 | Y135: 3800 | Z135: 5300 | AA135: 5300 | AB135: 5300 | AC135: 2 | AD135: 4 | AE135: 4 | AF135: 6 | AG135: 6 | AH135: 23 | AI135: 385 | AJ135: 860 | AK135: 175 | AL135: =AI135+AJ135+AK135 -> 1420 | AM135: 170 | AN135: 170 | AO135: 170 | AP135: 170 | AQ135: 170 | AS135: 5 | AT135: 0.396 | AU135: 0.0975 | AV135: 20 | AW135: 0.66 | AX135: 2.125 | AY135: 66.33333333 | AZ135: Alm. rajgræs 2n | BA135: 3866 | BB135: 3866 | BC135: 6377 | BD135: 4537 | BE135: 4537 | BF135: 3115 | BG135: 3115 | BH135: 5315 | BI135: 3475 | BJ135: 3475 | BK135: 30 | BL135: 28 | BM135: 20 | BQ135: 0 | BR135: 2 | BV135: 1 | BW135: 2 | BX135: 2 | BY135: 2 | BZ135: 2.5 | CE135: 3 | CF135: 1 | CG135: 30 | CI135: Alm. rajgræs 2n
O136: 3 | P136: Alm. rajgræs, 2n Øko | Q136: hkg | R136: 1100 | S136: 7.5 | T136: 7.5 | U136: 9.5 | V136: 9.5 | W136: 9.5 | X136: 2400 | Y136: 2400 | Z136: 4500 | AA136: 3000 | AB136: 3000 | AC136: 2 | AD136: 4 | AE136: 4 | AF136: 6 | AG136: 6 | AH136: 23 | AI136: 420 | AJ136: 0 | AK136: 0 | AL136: =AI136+AJ136+AK136 -> 420 | AM136: 105 | AN136: 105 | AO136: 105 | AP136: 105 | AQ136: 105 | AS136: 5 | AT136: 0.396 | AU136: 0.0975 | AV136: 20 | AW136: 0.66 | AX136: 2.125 | AY136: 55.55555556 | AZ136: Alm. rajgræs, 2n Øko | BA136: 3445 | BB136: 3445 | BC136: 5989 | BD136: 3819 | BE136: 3819 | BF136: 2915 | BG136: 2915 | BH136: 5063 | BI136: 3148 | BJ136: 3148 | BK136: 30 | BL136: 28 | BM136: 20 | BQ136: 0 | BR136: 2 | BV136: 1 | BW136: 2 | BX136: 2 | BY136: 2 | BZ136: 2.5 | CG136: 45 | CI136: Alm. rajgræs, 2n Øko
A137: Kaliumpris | C137: 5 | O137: 4 | P137: Alm. rajgræs 4n | Q137: hkg | R137: 800 | S137: 15.9 | T137: 15.9 | U137: 15.9 | V137: 15.9 | W137: 15.9 | X137: 3800 | Y137: 3800 | Z137: 5300 | AA137: 5300 | AB137: 5300 | AC137: 2 | AD137: 4 | AE137: 4 | AF137: 6 | AG137: 6 | AH137: 23 | AI137: 385 | AJ137: 860 | AK137: 175 | AL137: =AI137+AJ137+AK137 -> 1420 | AM137: 170 | AN137: 170 | AO137: 170 | AP137: 170 | AQ137: 170 | AS137: 5 | AT137: 0.396 | AU137: 0.0975 | AV137: 20 | AW137: 0.66 | AX137: 2.125 | AY137: 53.06666667 | AZ137: Alm. rajgræs 4n | BA137: 3866 | BB137: 3866 | BC137: 6377 | BD137: 4537 | BE137: 4537 | BF137: 3115 | BG137: 3115 | BH137: 5315 | BI137: 3475 | BJ137: 3475 | BK137: 30 | BL137: 28 | BM137: 20 | BQ137: 0 | BR137: 2 | BV137: 1 | BW137: 2 | BX137: 2 | BY137: 2 | BZ137: 2.5 | CE137: 3 | CF137: 1 | CG137: 30 | CI137: Alm. rajgræs 4n
O138: 5 | P138: Efterafgr. Olieræddike | R138: 0 | S138: 0 | T138: 0 | U138: 0 | V138: 0 | W138: 0 | AH138: 25 | AI138: 260 | AJ138: 0 | AK138: 0 | AL138: =AI138+AJ138+AK138 -> 260 | AM138: 0 | AN138: 0 | AO138: 0 | AP138: 0 | AQ138: 0 | AZ138: =P138 -> Efterafgr. Olieræddike | BA138: 140 | BB138: 140 | BC138: 140 | BD138: 140 | BE138: 140 | BF138: 140 | BG138: 140 | BH138: 140 | BI138: 140 | BJ138: 140 | BK138: 0 | BL138: 0 | BM138: 0 | BQ138: 0 | BT138: 2 | BV138: 2 | CI138: =P138 -> Efterafgr. Olieræddike
A139: Meromkostning til erstatningskorn | C139: 15 | O139: 6 | P139: Efterafgr. Rajgræs | R139: 0 | S139: 0 | T139: 0 | U139: 0 | V139: 0 | W139: 0 | AH139: 25 | AI139: 280 | AJ139: 0 | AK139: 0 | AL139: =AI139+AJ139+AK139 -> 280 | AM139: 0 | AN139: 0 | AO139: 0 | AP139: 0 | AQ139: 0 | AZ139: =P139 -> Efterafgr. Rajgræs | BA139: 140 | BB139: 140 | BC139: 140 | BD139: 140 | BE139: 140 | BF139: 140 | BG139: 140 | BH139: 140 | BI139: 140 | BJ139: 140 | BK139: 0 | BL139: 0 | BM139: 0 | BQ139: 0 | BT139: 2 | BV139: 2 | CI139: =P139 -> Efterafgr. Rajgræs
O140: 7 | P140: Efterafgr. Gul sennep | R140: 0 | S140: 0 | T140: 0 | U140: 0 | V140: 0 | W140: 0 | AH140: 25 | AI140: 160 | AJ140: 0 | AK140: 0 | AL140: =AI140+AJ140+AK140 -> 160 | AM140: 0 | AN140: 0 | AO140: 0 | AP140: 0 | AQ140: 0 | AZ140: =P140 -> Efterafgr. Gul sennep | BA140: 140 | BB140: 140 | BC140: 140 | BD140: 140 | BE140: 140 | BF140: 140 | BG140: 140 | BH140: 140 | BI140: 140 | BJ140: 140 | BK140: 0 | BL140: 0 | BM140: 0 | BQ140: 0 | BT140: 2 | BV140: 2 | CI140: =P140 -> Efterafgr. Gul sennep
A141: Kornpris, forfrugtsværdi | C141: 130 | O141: 8 | P141: Engrapgræs (mark) | Q141: hkg | R141: 1775 | S141: 11 | T141: 11 | U141: 11 | V141: 11 | W141: 11 | X141: 0 | Y141: 0 | Z141: 0 | AA141: 0 | AB141: 0 | AC141: 2 | AD141: 4 | AE141: 4 | AF141: 6 | AG141: 6 | AH141: 23 | AI141: 808 | AJ141: 690 | AK141: 175 | AL141: 1673 | AM141: 160 | AN141: 160 | AO141: 160 | AP141: 160 | AQ141: 160 | AS141: 5 | AT141: 0.396 | AU141: 0.0975 | AV141: 20 | AW141: 0.66 | AX141: 2.125 | AY141: 73.90909091 | AZ141: Engrapgræs (mark) | BA141: 4549 | BB141: 4549 | BC141: 6074 | BD141: 4549 | BE141: 4549 | BF141: 4549 | BG141: 4549 | BH141: 6074 | BI141: 4549 | BJ141: 4549 | BK141: 30 | BL141: 28 | BM141: 0 | BQ141: 0 | BR141: 2 | BV141: 1 | BW141: 2 | BX141: 1 | BY141: 1 | BZ141: 3 | CE141: 1 | CF141: 2 | CI141: Engrapgræs (mark)
O142: 9 | P142: Engrapgræs (plæne) | Q142: hkg | R142: 1850 | S142: 8 | T142: 8 | U142: 8 | V142: 8 | W142: 8 | X142: 0 | Y142: 0 | Z142: 0 | AA142: 0 | AB142: 0 | AC142: 2 | AD142: 4 | AE142: 4 | AF142: 6 | AG142: 6 | AH142: 23 | AI142: 808 | AJ142: 690 | AK142: 175 | AL142: 1673 | AM142: 120 | AN142: 120 | AO142: 120 | AP142: 120 | AQ142: 120 | AS142: 5 | AT142: 0.396 | AU142: 0.0975 | AV142: 20 | AW142: 0.66 | AX142: 2.125 | AY142: 101.625 | AZ142: Engrapgræs (plæne) | BA142: 4549 | BB142: 4549 | BC142: 6074 | BD142: 4549 | BE142: 4549 | BF142: 4549 | BG142: 4549 | BH142: 6074 | BI142: 4549 | BJ142: 4549 | BK142: 30 | BL142: 28 | BM142: 0 | BQ142: 0 | BR142: 2 | BV142: 1 | BW142: 2 | BX142: 1 | BY142: 1 | BZ142: 3 | CE142: 1 | CF142: 2 | CI142: Engrapgræs (plæne)
A143: N i husdyrgødning fra 1 DE svin | C143: 100 | E143: kg N (total) | O143: 10 | P143: Fabrikskartofler | Q143: hkg | R143: 65 | S143: 482 | T143: 533 | U143: 584 | V143: 584 | W143: 584 | X143: 0 | Y143: 0 | Z143: 0 | AA143: 0 | AB143: 0 | AC143: 2 | AD143: 4 | AE143: 4 | AF143: 6 | AG143: 6 | AH143: 0 | AI143: =1012+2300 -> 3312 | AJ143: 4730 | AK143: 0 | AL143: 8042 | AM143: 219 | AN143: 214 | AO143: 239 | AP143: 214 | AQ143: 214 | AR143: 7.5 | AT143: 0.046 | AU143: 0 | AV143: 20 | AW143: 0.402 | AX143: 0 | AY143: 5.981096408 | AZ143: Fabrikskartofler | BA143: 9710 | BB143: 10699 | BC143: 14276 | BD143: 12075 | BE143: 12075 | BF143: 9710 | BG143: 10699 | BH143: 14276 | BI143: 12075 | BJ143: 12075 | BK143: 0 | BL143: 0 | BM143: 0 | BQ143: 0 | BR143: 2 | BS143: 1 | BT143: 1 | BU143: 1 | BW143: 3 | CB143: 1 | CC143: 1 | CE143: 14 | CF143: 1 | CI143: Fabrikskartofler
O144: 11 | P144: Havre (vårhavre) | Q144: hkg | R144: 100 | S144: 44 | T144: 51 | U144: 56 | V144: 57 | W144: 60 | X144: 2500 | Y144: 2500 | Z144: 3200 | AA144: 3300 | AB144: 3300 | AH144: 0 | AI144: 450 | AJ144: 320 | AK144: 0 | AL144: 770 | AM144: 120 | AN144: 115 | AO144: 138 | AP144: 114 | AQ144: 119 | AS144: 2.5 | AT144: 0.3485 | AU144: 0.119 | AV144: 20 | AW144: 0.425 | AX144: 1.275 | AY144: 0 | AZ144: Havre | BA144: 3946 | BB144: 3946 | BC144: 6077 | BD144: 4357 | BE144: 4357 | BF144: 3465 | BG144: 3465 | BH144: 5450 | BI144: 3710 | BJ144: 3710 | BK144: 10 | BL144: 5 | BM144: 22 | BN144: 8 | BO144: 7 | BP144: 6.5 | BQ144: 87 | BR144: 1 | BS144: 1 | BT144: 1 | BU144: 1 | BV144: 1 | BW144: 2 | BX144: 2 | BY144: 2 | BZ144: 1.2 | CE144: 2 | CF144: 1 | CG144: 32 | CH144: Havre | CI144: Havre
A145: P i husdyrgødning fra 1 DE svin | C145: 25 | E145: kg P | O145: 12 | P145: Havre Øko | Q145: hkg | R145: 210 | S145: 30 | T145: 30 | U145: 50 | V145: 50 | W145: 50 | X145: 2000 | Y145: 2000 | Z145: 2400 | AA145: 2400 | AB145: 2400 | AC145: 5 | AD145: 7 | AE145: 7 | AF145: 8 | AG145: 9 | AH145: 0 | AI145: 765 | AJ145: 0 | AK145: 0 | AL145: 765 | AM145: 55 | AN145: 55 | AO145: 55 | AP145: 55 | AQ145: 55 | AT145: 0.3485 | AU145: 0.119 | AV145: 20 | AW145: 0.425 | AX145: 1.275 | AY145: 0 | AZ145: Havre Øko | BA145: 4113 | BB145: 4113 | BC145: 6378 | BD145: 4691 | BE145: 4691 | BF145: 3717 | BG145: 3717 | BH145: 5887 | BI145: 4197 | BJ145: 4197 | BK145: 10 | BL145: 5 | BM145: 22 | BN145: 8 | BO145: 7 | BP145: 6.5 | BQ145: 87 | BR145: 1 | BS145: 1 | BT145: 1 | BV145: 1 | BW145: 2 | BX145: 2 | BY145: 2 | BZ145: 1.2 | CG145: 20 | CH145: Havre | CI145: Havre Øko
O146: 13 | P146: Hestebønne | Q146: hkg | R146: 130 | S146: 45 | T146: 45 | U146: 45 | V146: 45 | W146: 45 | X146: 0 | Y146: 0 | Z146: 0 | AA146: 0 | AB146: 0 | AC146: 5 | AD146: 7 | AE146: 7 | AF146: 8 | AG146: 9 | AH146: 23 | AI146: 1150 | AJ146: 685 | AK146: 0 | AL146: =AI146+AJ146+AK146 -> 1835 | AM146: 0 | AN146: 0 | AO146: 0 | AP146: 0 | AQ146: 0 | AS146: 2.5 | AT146: 0.4214 | AU146: 0.17 | AV146: 20 | AW146: 0.9804 | AX146: 0.6375 | AY146: 0 | AZ146: Hestebønne | BA146: 4688 | BB146: 4688 | BC146: 5731 | BD146: 3990 | BE146: 3990 | BF146: 4688 | BG146: 4688 | BH146: 5731 | BI146: 3990 | BJ146: 3990 | BK146: 16 | BL146: 14 | BM146: 0 | BQ146: 101 | BR146: 2 | BS146: 1 | BT146: 1 | BU146: 1 | BV146: 1 | BW146: 2 | BZ146: 1 | CC146: 1 | CE146: 2 | CF146: 1 | CG146: 0 | CI146: Hestebønne
A147: K i husdyrgødning fra 1 DE svin | C147: 50 | E147: kg K | O147: 14 | P147: Hestebønne Øko | Q147: hkg | R147: 300 | S147: 20 | T147: 20 | U147: 37 | V147: 37 | W147: 37 | X147: 0 | Y147: 0 | Z147: 0 | AA147: 0 | AB147: 0 | AC147: 2 | AD147: 4 | AE147: 4 | AF147: 6 | AG147: 6 | AH147: 23 | AI147: 1196 | AJ147: 0 | AL147: 1196 | AM147: 0 | AN147: 0 | AO147: 0 | AP147: 0 | AQ147: 0 | AT147: 0.53 | AU147: 0 | AV147: 20 | AW147: 1.03 | AX147: 0 | AZ147: Hestebønne Øko | BA147: 3915 | BB147: 3915 | BC147: 6187 | BD147: 4497 | BE147: 4497 | BF147: 3915 | BG147: 3915 | BH147: 6187 | BI147: 4497 | BJ147: 4497 | BK147: 16 | BL147: 20.6 | BM147: 0 | BN147: 45 | BR147: 2 | BS147: 1 | BT147: 1 | BV147: 1 | BW147: 3 | BZ147: 1 | CC147: 1 | CG147: 0 | CI147: Hestebønne Øko
O148: 15 | P148: Hvidkløver Øko | Q148: hkg | R148: 5200 | S148: 1.5 | T148: 1.5 | U148: 1.5 | V148: 1.5 | W148: 1.5 | X148: 500 | Y148: 500 | Z148: 500 | AA148: 500 | AB148: 500 | AC148: 10 | AD148: 10 | AE148: 10 | AF148: 10 | AG148: 10 | AH148: 95 | AI148: 480 | AJ148: 0 | AK148: 400 | AL148: 880 | AM148: 0 | AN148: 0 | AO148: 0 | AP148: 0 | AQ148: 0 | AT148: 0.38 | AU148: 0 | AV148: 20 | AW148: 1.06 | AX148: 0 | AY148: 74.66666667 | AZ148: Hvidkløver Øko | BA148: 3241.225232 | BB148: 3241.225232 | BC148: 2064.384522 | BD148: 3236.416894 | BE148: 3236.416894 | BF148: 3228.742999 | BG148: 3228.742999 | BH148: 2063.651911 | BI148: 3272.972237 | BJ148: 3272.972237 | BK148: 30 | BL148: 28 | BM148: 0 | BR148: 2 | BW148: 1 | BX148: 1 | BZ148: 3 | CG148: 0 | CI148: Hvidkløver Øko
A149: N i husdyrgødning fra 1 DE kvæg | C149: 100 | E149: kg N (total) | O149: 16 | P149: Hybridrug (vinter) | Q149: hkg | R149: 100 | S149: 60 | T149: 75 | U149: 75 | V149: 86 | W149: 91 | X149: 4200 | Y149: 4200 | Z149: 5400 | AA149: 6200 | AB149: 6200 | AC149: 6 | AD149: 8 | AE149: 8 | AF149: 9 | AG149: 9 | AI149: 638 | AJ149: 690 | AK149: 0 | AL149: 1328 | AM149: 153 | AN149: 156 | AO149: 171 | AP149: 170 | AQ149: 181 | AT149: 0.289 | AU149: 0.0765 | AV149: 20 | AW149: 0.4675 | AX149: 1.02 | AY149: 0 | AZ149: Hybridrug | BA149: 4933 | BB149: 4933 | BC149: 7475 | BD149: 5743 | BE149: 5743 | BF149: 4099 | BG149: 4099 | BH149: 6392 | BI149: 4494 | BJ149: 4494 | BK149: 10 | BL149: 5 | BM149: 20 | BN149: 8 | BO149: 7 | BP149: 6.5 | BQ149: 110 | BR149: 1 | BS149: 3 | BT149: 3 | BU149: 3 | BV149: 3 | BW149: 2 | BX149: 2 | BY149: 2 | BZ149: 1.6 | CE149: 2 | CF149: 2 | CG149: 30 | CH149: Rug | CI149: Hybridrug
O150: 17 | P150: Kløvergræs, slæt | Q150: ae | R150: 128 | S150: 78 | T150: 83 | U150: 99 | V150: 89 | W150: 89 | X150: 0 | Y150: 0 | Z150: 0 | AA150: 0 | AB150: 0 | AC150: 2 | AD150: 4 | AE150: 4 | AF150: 6 | AG150: 6 | AH150: 95 | AI150: 342 | AJ150: 0 | AK150: 0 | AL150: 342 | AM150: 284 | AN150: 286 | AO150: 300 | AP150: 290 | AQ150: 290 | AT150: 0.442 | AU150: 0 | AV150: 20 | AW150: 3 | AX150: 0 | AZ150: kløvergræs, slæt | BA150: 6443 | BB150: 6443 | BC150: 9223 | BD150: 6632 | BE150: 6632 | BF150: 6443 | BG150: 6443 | BH150: 9223 | BI150: 6632 | BJ150: 6632 | BK150: 0 | BL150: 0 | BM150: 25 | BQ150: 0 | BR150: 2 | BS150: 1 | CF150: 3 | CG150: 60 | CI150: Kløvergræs, slæt
A151: P i husdyrgødning fra 1 DE kvæg | C151: 17 | E151: kg P | O151: 18 | P151: Lucerne (tørret) | Q151: hkg | R151: 50 | S151: 110 | T151: 120 | U151: 140 | V151: 130 | W151: 130 | X151: 0 | Y151: 0 | Z151: 0 | AA151: 0 | AB151: 0 | AC151: 2 | AD151: 4 | AE151: 4 | AF151: 6 | AG151: 6 | AH151: 95 | AI151: 600 | AJ151: 0 | AK151: 0 | AL151: 600 | AM151: 0 | AN151: 0 | AO151: 0 | AP151: 0 | AQ151: 0 | AT151: 0.26 | AU151: 0 | AV151: 20 | AW151: 2.6 | AX151: 0 | AZ151: Lucerne (tørret) | BA151: 372 | BB151: 372 | BC151: 372 | BD151: 372 | BE151: 372 | BF151: 372 | BG151: 372 | BH151: 372 | BI151: 372 | BJ151: 372 | BK151: 0 | BL151: 0 | BM151: 0 | BQ151: 0 | BR151: 2 | CE151: 1 | CF151: 2 | CG151: 0 | CI151: Lucerne (tørret)
O152: 19 | P152: Læggekartofler | Q152: hkg | R152: 160 | S152: 315 | T152: 341 | U152: 366 | V152: 366 | W152: 366 | X152: 0 | Y152: 0 | Z152: 0 | AA152: 0 | AB152: 0 | AC152: 2 | AD152: 4 | AE152: 4 | AF152: 6 | AG152: 6 | AH152: 0 | AI152: 8400 | AJ152: 4870 | AK152: 0 | AL152: 13270 | AM152: 136 | AN152: 126 | AO152: 146 | AP152: 121 | AQ152: 121 | AR152: 7.5 | AT152: 0.052 | AU152: 0 | AV152: 20 | AW152: 0.506 | AX152: 0 | AY152: 29.63049853 | AZ152: Læggekartofler | BA152: 0 | BB152: 0 | BC152: 18457 | BD152: 16256 | BE152: 16256 | BF152: 0 | BG152: 0 | BH152: 18457 | BI152: 16256 | BJ152: 16256 | BK152: 0 | BL152: 0 | BM152: 0 | BQ152: 0 | BR152: 2 | BS152: 1 | BT152: 1 | BU152: 1 | BW152: 3 | CB152: 1 | CC152: 1 | CE152: 12 | CF152: 1 | CG152: 0 | CI152: Læggekartofler
A153: K i husdyrgødning fra 1 DE kvæg | C153: 67 | E153: kg K | O153: 20 | P153: Majs, biogas | Q153: hkg ts | R153: 90 | S153: 115.54 | T153: 115.54 | U153: 128.26 | V153: 126.14 | W153: 132.5 | X153: 0 | Y153: 0 | Z153: 0 | AA153: 0 | AB153: 0 | AH153: 0 | AI153: 1600 | AJ153: 500 | AK153: 0 | AL153: 2100 | AM153: 173 | AN153: 158 | AO153: 188 | AP153: 162 | AQ153: 170 | AR153: 7.5 | AT153: 0.26 | AU153: 0 | AV153: 20 | AW153: 1.2 | AX153: 0 | AZ153: Majs, biogas | BA153: 4205 | BB153: 4205 | BC153: 6114 | BD153: 4396 | BE153: 4396 | BF153: 4205 | BG153: 4205 | BH153: 6117 | BI153: 4396 | BJ153: 4396 | BK153: 0 | BL153: 0 | BM153: 22 | BQ153: 0 | BR153: 2 | BS153: 1 | BT153: 1 | BU153: 1 | BW153: 3 | BX153: 3 | BZ153: 2 | CA153: 1 | CE153: 2 | CF153: 1 | CG153: 41 | CI153: Majs, biogas
O154: 21 | P154: Majs, helsæd | Q154: ae | R154: 102 | S154: 102 | T154: 102 | U154: 112 | V154: 111 | W154: 117 | X154: 0 | Y154: 0 | Z154: 0 | AA154: 0 | AB154: 0 | AH154: 0 | AI154: 1600 | AJ154: 500 | AK154: 370 | AL154: 2470 | AM154: 173 | AN154: 158 | AO154: 188 | AP154: 162 | AQ154: 170 | AR154: 7.5 | AT154: 0.3042 | AU154: 0 | AV154: 20 | AW154: 1.404 | AX154: 0 | AZ154: Majs, helsæd | BA154: 4205 | BB154: 4205 | BC154: 6114 | BD154: 4396 | BE154: 4396 | BF154: 4205 | BG154: 4205 | BH154: 6114 | BI154: 4396 | BJ154: 4396 | BK154: 0 | BL154: 0 | BM154: 22 | BQ154: 0 | BR154: 2 | BS154: 1 | BT154: 1 | BU154: 1 | BW154: 3 | BX154: 3 | BZ154: 2 | CA154: 1 | CE154: 2 | CF154: 1 | CG154: 41 | CI154: Majs, helsæd
A155: Udnyttelse af N i svinegødning | C155: 75 | E155: % | O155: 22 | P155: Majs, kerne | Q155: hkg | R155: 119 | S155: 70 | T155: 70 | U155: 78 | V155: 77 | W155: 81 | X155: 0 | Y155: 0 | Z155: 0 | AA155: 0 | AB155: 0 | AI155: 1600 | AJ155: 500 | AK155: 77 | AL155: 2177 | AM155: 173 | AN155: 158 | AO155: 188 | AP155: 162 | AQ155: 170 | AR155: 7.5 | AT155: 0.272 | AU155: 0 | AV155: 20 | AW155: 0.35 | AX155: 0 | AY155: 0 | AZ155: Majs, kerne | BA155: 6068 | BB155: 6068 | BC155: 8007 | BD155: 6377 | BE155: 6377 | BF155: 6068 | BG155: 6068 | BH155: 8007 | BI155: 6377 | BJ155: 6377 | BK155: 0 | BL155: 0 | BM155: 22 | BN155: 28 | BO155: 28 | BP155: 14 | BQ155: 122 | BR155: 1 | BS155: 1 | BT155: 1 | BU155: 1 | BW155: 3 | BX155: 3 | BZ155: 1 | CA155: 1 | CE155: 2 | CF155: 1 | CG155: 41 | CH155: Majs | CI155: Majs, kerne
O156: 23 | P156: Markært | Q156: hkg | R156: 130 | S156: 47 | T156: 47 | U156: 47 | V156: 47 | W156: 47 | X156: 0 | Y156: 0 | Z156: 0 | AA156: 0 | AB156: 0 | AC156: 5 | AD156: 7 | AE156: 7 | AF156: 8 | AG156: 9 | AH156: 23 | AI156: 940 | AJ156: 535 | AK156: 0 | AL156: 1475 | AM156: 0 | AN156: 0 | AO156: 0 | AP156: 0 | AQ156: 0 | AS156: 2.5 | AT156: 0.4214 | AU156: 0.17 | AV156: 20 | AW156: 0.9804 | AX156: 0.6375 | AY156: 0 | AZ156: Markært | BA156: 3851 | BB156: 3851 | BC156: 5701 | BD156: 3960 | BE156: 3960 | BF156: 3851 | BG156: 3851 | BH156: 5701 | BI156: 3960 | BJ156: 3960 | BK156: 16 | BL156: 14 | BM156: 0 | BQ156: 101 | BR156: 2 | BS156: 1 | BT156: 1 | BU156: 1 | BV156: 1 | BW156: 2 | BX156: 2 | BZ156: 1 | CE156: 2 | CF156: 1 | CG156: 0 | CI156: Markært
A157: Udnyttelse af N i kvæggødning | C157: 70 | E157: % | O157: 24 | P157: Markært Øko | Q157: hkg | R157: 305 | S157: 26 | T157: 26 | U157: 28 | V157: 30 | W157: 30 | X157: 0 | Y157: 0 | Z157: 0 | AA157: 0 | AB157: 0 | AC157: 5 | AD157: 7 | AE157: 7 | AF157: 8 | AG157: 9 | AH157: 23 | AI157: 1148 | AL157: 1148 | AM157: 0 | AN157: 0 | AO157: 0 | AP157: 0 | AQ157: 0 | AT157: 0.4214 | AU157: 0.17 | AV157: 20 | AW157: 0.9804 | AX157: 0.6375 | AY157: 0 | AZ157: Markært Øko | BA157: 4603 | BB157: 4603 | BC157: 6568 | BD157: 4490 | BE157: 4490 | BF157: 4603 | BG157: 4603 | BH157: 6569 | BI157: 4490 | BJ157: 4490 | BK157: 16 | BL157: 14 | BM157: 0 | BQ157: 101 | BR157: 2 | BS157: 1 | BT157: 1 | BV157: 1 | BW157: 2 | BX157: 2 | BZ157: 1 | CG157: 0 | CI157: Markært Øko
O158: 25 | P158: Rødkløver Øko | Q158: hkg | R158: 4000 | S158: 2 | T158: 2 | U158: 2 | V158: 2 | W158: 2 | X158: 500 | Y158: 500 | Z158: 500 | AA158: 500 | AB158: 500 | AC158: 10 | AD158: 10 | AE158: 10 | AF158: 10 | AG158: 10 | AH158: 95 | AI158: 405 | AK158: 400 | AL158: 805 | AM158: 0 | AN158: 0 | AO158: 0 | AP158: 0 | AQ158: 0 | AT158: 0.4214 | AU158: 0.17 | AV158: 20 | AW158: 1.06 | AX158: 0 | AY158: 80 | AZ158: Rødkløver Øko | BA158: 2676.240281 | BB158: 2676.240281 | BC158: 4471.895186 | BD158: 2699.761056 | BE158: 2699.761056 | BF158: 2666.074984 | BG158: 2666.074984 | BH158: 4470.342052 | BI158: 2729.83669 | BJ158: 2729.83669 | BK158: 30 | BL158: 28 | BM158: 0 | BR158: 2 | BW158: 2 | BX158: 2 | BZ158: 1 | CG158: 0 | CI158: Rødkløver Øko
A159: Halmpris | C159: 0.5 | E159: kr. pr. kg | O159: 26 | P159: Rødsvingel | Q159: hkg | R159: 925 | S159: 8 | T159: 8 | U159: 8 | V159: 8 | W159: 8 | X159: 0 | Y159: 0 | Z159: 5300 | AA159: 5300 | AB159: 5300 | AC159: 2 | AD159: 4 | AE159: 4 | AF159: 6 | AG159: 6 | AH159: 23 | AI159: 483 | AJ159: 700 | AK159: 175 | AL159: 1358 | AM159: 150 | AN159: 150 | AO159: 150 | AP159: 150 | AQ159: 150 | AS159: 5 | AT159: 0.2992 | AU159: 0.0975 | AV159: 20 | AW159: 0.66 | AX159: 2.125 | AY159: 75 | AZ159: Rødsvingel | BA159: 6162 | BB159: 6162 | BC159: 7356 | BD159: 6162 | BE159: 6162 | BF159: 6162 | BG159: 6162 | BH159: 7356 | BI159: 6162 | BJ159: 6162 | BK159: 30 | BL159: 28 | BM159: 0 | BQ159: 0 | BR159: 2 | BV159: 1 | BW159: 2 | BX159: 2 | BY159: 2 | BZ159: 2.5 | CE159: 3 | CF159: 2 | CG159: 0 | CI159: Rødsvingel
O160: 27 | P160: Smalbl. Lupin Øko | Q160: hkg | R160: 295 | S160: 25 | T160: 25 | U160: 25 | V160: 20 | W160: 20 | X160: 0 | Y160: 0 | Z160: 0 | AA160: 0 | AB160: 0 | AC160: 2 | AD160: 4 | AE160: 4 | AF160: 6 | AG160: 6 | AH160: 23 | AI160: 1260 | AL160: 1260 | AM160: 0 | AN160: 0 | AO160: 0 | AP160: 0 | AQ160: 0 | AT160: 0.61 | AU160: 0 | AV160: 20 | AW160: 1.15 | AX160: 0 | AY160: 0 | AZ160: Smalbl. Lupin Øko | BA160: 4089 | BB160: 4089 | BC160: 5988 | BD160: 4190 | BE160: 4190 | BF160: 4089 | BG160: 4089 | BH160: 5988 | BI160: 4190 | BJ160: 4190 | BK160: 15 | BL160: 20.6 | BM160: 0 | CG160: 0 | CI160: Smalbl. Lupin Øko
A161: Årstal på udskrift | C161: 2018 | O161: 28 | P161: Spisekartofler Øko | Q161: hkg | R161: 220 | S161: 150 | T161: 150 | U161: 200 | V161: 200 | W161: 200 | X161: 0 | Y161: 0 | Z161: 0 | AA161: 0 | AB161: 0 | AC161: 2 | AD161: 4 | AE161: 4 | AF161: 6 | AG161: 6 | AH161: 0 | AI161: 4840 | AL161: 4840 | AM161: 105 | AN161: 105 | AO161: 105 | AP161: 105 | AQ161: 105 | AT161: 0.06 | AU161: 0 | AV161: 20 | AW161: 0.402 | AX161: 0 | AY161: 34.225 | AZ161: Spisekartofler Øko | BA161: 13543 | BB161: 13543 | BC161: 15987 | BD161: 13941 | BE161: 13941 | BF161: 13543 | BG161: 13543 | BH161: 15987 | BI161: 13941 | BJ161: 13941 | BM161: 22 | CG161: 14 | CI161: Spisekartofler Øko
O162: 29 | P162: Spisekartofler | Q162: hkg | R162: 130 | S162: 325 | T162: 402 | U162: 427 | V162: 427 | W162: 427 | X162: 0 | Y162: 0 | Z162: 0 | AA162: 0 | AB162: 0 | AC162: 2 | AD162: 4 | AE162: 4 | AF162: 6 | AG162: 6 | AH162: 0 | AI162: 4800 | AJ162: 3315 | AK162: 0 | AL162: 8115 | AM162: 169 | AN162: 170 | AO162: 190 | AP162: 165 | AQ162: 165 | AR162: 7.5 | AT162: 0.06 | AU162: 0 | AV162: 20 | AW162: 0.402 | AX162: 0 | AY162: 27.18 | AZ162: Spisekartofler | BA162: 12443 | BB162: 14658 | BC162: 18429 | BD162: 16263 | BE162: 16232 | BF162: 12443 | BG162: 14658 | BH162: 18429 | BI162: 16232 | BJ162: 16232 | BK162: 0 | BL162: 0 | BM162: 0 | BQ162: 0 | BR162: 2 | BS162: 1 | BT162: 1 | BU162: 1 | BW162: 3 | CB162: 1 | CC162: 1 | CE162: 10 | CF162: 1 | CG162: 0 | CI162: Spisekartofler
O163: 30 | P163: Sukkerroer | Q163: hkg | R163: 21.2 | S163: 477 | T163: 527 | U163: 527 | V163: 647 | W163: 707 | X163: 0 | Y163: 0 | Z163: 0 | AA163: 0 | AB163: 0 | AC163: 5 | AD163: 7 | AE163: 7 | AF163: 8 | AG163: 9 | AH163: 3 | AI163: 1755 | AJ163: 1620 | AK163: 0 | AL163: 3375 | AM163: 135 | AN163: 125 | AO163: 140 | AP163: 127 | AQ163: 133 | AR163: 7.5 | AT163: 0.04 | AU163: 0 | AV163: 20 | AW163: 0.22 | AX163: 0 | AY163: 2.5 | AZ163: Sukkerroer | BA163: 4311 | BB163: 4367.647059 | BC163: 4367.647059 | BD163: 6606 | BE163: 6606 | BF163: 4311.290323 | BG163: 4367.647059 | BH163: 4367.647059 | BI163: 6606 | BJ163: 6606 | BK163: 0 | BL163: 0 | BM163: 0 | BQ163: 0 | BR163: 2 | BS163: 1 | BT163: 1 | BU163: 1 | BX163: 3 | CA163: 1 | CD163: 1 | CE163: 5 | CF163: 1 | CG163: 0 | CI163: Sukkerroer
O164: 31 | P164: Triticale (vinter) | Q164: hkg | R164: 100 | S164: 46 | T164: 58 | U164: 58 | V164: 66 | W164: 70 | X164: 3400 | Y164: 3400 | Z164: 4300 | AA164: 5000 | AB164: 5000 | AI164: 504 | AJ164: 875 | AK164: 0 | AL164: 1379 | AM164: 177 | AN164: 176 | AO164: 191 | AP164: 186 | AQ164: 195 | AT164: 0.357 | AU164: 0.085 | AV164: 20 | AW164: 0.544 | AX164: 1.02 | AY164: 0 | AZ164: Triticale | BA164: 4791 | BB164: 4791 | BC164: 7239 | BD164: 5444 | BE164: 5444 | BF164: 4123 | BG164: 4123 | BH164: 6384 | BI164: 4444 | BJ164: 4444 | BK164: 10 | BL164: 5 | BM164: 20 | BN164: 8 | BO164: 7 | BP164: 6.5 | BQ164: 113 | BR164: 1 | BS164: 3 | BT164: 3 | BU164: 3 | BV164: 3 | BW164: 2 | BX164: 2 | BY164: 2 | BZ164: 1.2 | CE164: 2 | CF164: 2 | CG164: 30 | CH164: Triticale | CI164: Triticale
O165: 32 | P165: Triticale Øko | Q165: hkg | R165: 230 | S165: 35 | T165: 35 | U165: 50 | V165: 50 | W165: 50 | X165: 2600 | Y165: 2600 | Z165: 4100 | AA165: 4100 | AB165: 4100 | AI165: 799 | AL165: 799 | AM165: 105 | AN165: 105 | AO165: 105 | AP165: 105 | AQ165: 105 | AT165: 0.357 | AU165: 0.085 | AV165: 20 | AW165: 0.544 | AX165: 1.02 | AZ165: Triticale Øko | BA165: 4281 | BB165: 4281 | BC165: 6930 | BD165: 4851 | BE165: 4851 | BF165: 3749 | BG165: 3749 | BH165: 6109 | BI165: 4004 | BJ165: 4004 | BK165: 10 | BL165: 5 | BM165: 20 | BN165: 8 | BO165: 7 | BP165: 6.5 | BQ165: 113 | BR165: 1 | BS165: 3 | BT165: 3 | BV165: 3 | BW165: 2 | BX165: 2 | BY165: 2 | BZ165: 1.2 | CG165: 20 | CH165: Triticale | CI165: Triticale Øko
O166: 33 | P166: Vinterbyg | Q166: hkg | R166: 110 | S166: 55 | T166: 59 | U166: 63 | V166: 78 | W166: 83 | X166: 2600 | Y166: 2600 | Z166: 3000 | AA166: 3900 | AB166: 3900 | AH166: 0 | AI166: 448 | AJ166: 595 | AK166: 0 | AL166: 1043 | AM166: 181 | AN166: 171 | AO166: 191 | AP166: 194 | AQ166: 205 | AT166: 0.323 | AU166: 0.068 | AV166: 20 | AW166: 0.3995 | AX166: 1.02 | AY166: 0 | AZ166: Vinterbyg | BA166: 4408 | BB166: 4408 | BC166: 6699 | BD166: 5022 | BE166: 5022 | BF166: 3906 | BG166: 3906 | BH166: 6114 | BI166: 4250 | BJ166: 4250 | BK166: 10 | BL166: 5 | BM166: 20 | BN166: 8 | BO166: 7 | BP166: 6.5 | BQ166: 103 | BR166: 1 | BS166: 3 | BT166: 3 | BU166: 3 | BV166: 3 | BW166: 1 | BX166: 1 | BY166: 1 | BZ166: 1 | CE166: 2 | CF166: 1 | CG166: 30 | CH166: Byg | CI166: Vinterbyg
O167: 34 | P167: Vinterhvede 1. år | Q167: hkg | R167: 115 | S167: 59 | T167: 75 | U167: 79 | V167: 95 | W167: 100 | X167: 2900 | Y167: 2900 | Z167: 4000 | AA167: 4800 | AB167: 4800 | AC167: -5 | AD167: -7 | AE167: -7 | AF167: -9 | AG167: -9 | AH167: -23 | AI167: 405 | AJ167: 980 | AK167: 0 | AL167: 1385 | AM167: 179 | AN167: 185 | AO167: 206 | AP167: 212 | AQ167: 224 | AT167: 0.289 | AU167: 0.0765 | AV167: 20 | AW167: 0.408 | AX167: 1.275 | AY167: 0 | AZ167: Vinterhvede 1. år | BA167: 4833 | BB167: 4833 | BC167: 7406 | BD167: 5726 | BE167: 5726 | BF167: 4269 | BG167: 4269 | BH167: 6613 | BI167: 4767 | BJ167: 4767 | BK167: 10 | BL167: 5 | BM167: 20 | BN167: 8 | BO167: 7 | BP167: 6.5 | BQ167: 115 | BR167: 1 | BS167: 3 | BT167: 3 | BU167: 3 | BV167: 3 | BW167: 2 | BX167: 2 | BY167: 2 | BZ167: 1.2 | CE167: 3 | CF167: 2 | CG167: 30 | CH167: Hvede | CI167: Vinterhvede 1. år
O168: 35 | P168: Vinterhvede 1. år Øko | Q168: hkg | R168: 235 | S168: 27 | T168: 27 | U168: 50 | V168: 50 | W168: 50 | X168: 2100 | Y168: 2100 | Z168: 2800 | AA168: 2800 | AB168: 2800 | AC168: -5 | AD168: -5 | AE168: -5 | AF168: -6 | AG168: -6 | AH168: -23 | AI168: 940 | AL168: 940 | AM168: 105 | AN168: 105 | AO168: 105 | AP168: 105 | AQ168: 105 | AT168: 0.289 | AU168: 0.0765 | AV168: 20 | AW168: 0.408 | AX168: 1.275 | AZ168: Vinterhvede 1. år Øko | BA168: 4053 | BB168: 4053 | BC168: 6697 | BD168: 4622 | BE168: 4622 | BF168: 3625 | BG168: 3625 | BH168: 6108 | BI168: 4003 | BJ168: 4003 | BK168: 10 | BL168: 5 | BM168: 20 | BN168: 8 | BO168: 7 | BP168: 6.5 | BQ168: 115 | BR168: 1 | BS168: 3 | BT168: 3 | BV168: 3 | BW168: 2 | BX168: 2 | BY168: 2 | BZ168: 1.2 | CG168: 20 | CH168: Hvede | CI168: Vinterhvede 1. år Øko
O169: 36 | P169: Vinterhvede e. korn | Q169: hkg | R169: 115 | S169: 54 | T169: 68 | U169: 72 | V169: 86 | W169: 91 | X169: 2600 | Y169: 2600 | Z169: 3600 | AA169: 4400 | AB169: 4400 | AI169: 459 | AJ169: 980 | AK169: 0 | AL169: 1439 | AM169: 179 | AN169: 185 | AO169: 206 | AP169: 212 | AQ169: 224 | AT169: 0.289 | AU169: 0.0765 | AV169: 20 | AW169: 0.408 | AX169: 1.275 | AY169: 0 | AZ169: Vinterhvede e. korn | BA169: 4709 | BB169: 4709 | BC169: 7250 | BD169: 5550 | BE169: 5550 | BF169: 4207 | BG169: 4207 | BH169: 6540 | BI169: 4674 | BJ169: 4674 | BK169: 10 | BL169: 5 | BM169: 20 | BN169: 8 | BO169: 7 | BP169: 6.5 | BQ169: 115 | BR169: 1 | BS169: 3 | BT169: 3 | BU169: 3 | BV169: 3 | BW169: 2 | BX169: 2 | BY169: 2 | BZ169: 1.2 | CE169: 3 | CF169: 2 | CG169: 30 | CH169: Hvede | CI169: Vinterhvede e. korn
A170: Udskrift (side 2): | O170: 37 | P170: Vinterhvede alle år | Q170: hkg | R170: 115 | S170: 54 | T170: 68 | U170: 72 | V170: 86 | W170: 91 | X170: 2600 | Y170: 2600 | Z170: 3600 | AA170: 4400 | AB170: 4400 | AI170: 459 | AJ170: 980 | AK170: 0 | AL170: 1439 | AM170: 179 | AN170: 185 | AO170: 206 | AP170: 212 | AQ170: 224 | AT170: 0.289 | AU170: 0.0765 | AV170: 20 | AW170: 0.408 | AX170: 1.275 | AY170: 0 | AZ170: Vinterhvede, hvert år | BA170: 4709 | BB170: 4709 | BC170: 7250 | BD170: 5550 | BE170: 5550 | BF170: 4207 | BG170: 4207 | BH170: 6540 | BI170: 4674 | BJ170: 4674 | BK170: 10 | BL170: 5 | BM170: 20 | BN170: 8 | BO170: 7 | BP170: 6.5 | BQ170: 115 | BR170: 1 | BS170: 3 | BT170: 3 | BU170: 3 | BV170: 3 | BW170: 2 | BX170: 2 | BY170: 2 | BZ170: 1.2 | CE170: 3 | CF170: 2 | CG170: 30 | CH170: Hvede | CI170: Vinterhvede, hvert år
O171: 38 | P171: Vinterraps | Q171: hkg | R171: 270 | S171: 30 | T171: 38 | U171: 38 | V171: 43 | W171: 45 | X171: 0 | Y171: 0 | Z171: 0 | AA171: 0 | AB171: 0 | AC171: 5 | AD171: 7 | AE171: 7 | AF171: 9 | AG171: 9 | AH171: 23 | AI171: 644 | AJ171: 1185 | AK171: 90 | AL171: 1919 | AM171: 195 | AN171: 207 | AO171: 207 | AP171: 215 | AQ171: 218 | AT171: 0.819 | AU171: 0.068 | AV171: 20 | AW171: 1.365 | AX171: 1.394 | AY171: 2.619047619 | AZ171: Vinterraps | BA171: 4253 | BB171: 4253 | BC171: 6459 | BD171: 4629 | BE171: 4629 | BF171: 4253 | BG171: 4253 | BH171: 6459 | BI171: 4629 | BJ171: 4629 | BK171: 18 | BL171: 14 | BM171: 20 | BQ171: 0 | BR171: 2 | BS171: 2 | BT171: 2 | BU171: 2 | BV171: 2 | BW171: 1 | BX171: 1 | BZ171: 1 | CE171: 6 | CF171: 2 | CG171: 40 | CI171: Vinterraps
A172: ="Samlet økonomisk resultat for markbruget "&Aar -> Samlet økonomisk resultat for markbruget 2018 | O172: 39 | P172: Vinterraps Øko | Q172: hkg | R172: 700 | S172: 20 | T172: 20 | U172: 23 | V172: 23 | W172: 23 | X172: 1800 | Y172: 1800 | Z172: 2000 | AA172: 2200 | AB172: 2200 | AC172: 5 | AD172: 5 | AE172: 5 | AF172: 6 | AG172: 6 | AH172: 23 | AI172: 675 | AK172: 46 | AL172: 721 | AM172: 105 | AN172: 105 | AO172: 105 | AP172: 105 | AQ172: 105 | AT172: 0.819 | AU172: 0.068 | AV172: 20 | AW172: 1.365 | AX172: 1.394 | AY172: 5 | AZ172: Vinterraps Øko | BA172: 4625 | BB172: 4625 | BC172: 6757 | BD172: 4850 | BE172: 4850 | BF172: 4110 | BG172: 4110 | BH172: 6242 | BI172: 4300 | BJ172: 4300 | BK172: 18 | BL172: 14 | BM172: 20 | BQ172: 0 | BR172: 2 | BS172: 2 | BT172: 2 | BV172: 2 | BW172: 1 | BX172: 1 | BZ172: 1 | CG172: 35 | CI172: Vinterraps Øko
O173: 40 | P173: Vinterrug | Q173: hkg | R173: 105 | S173: 50 | T173: 63 | U173: 62 | V173: 75 | W173: 79 | X173: 3400 | Y173: 3400 | Z173: 4300 | AA173: 5400 | AB173: 5400 | AI173: 360 | AJ173: 690 | AK173: 0 | AL173: 1050 | AM173: 141 | AN173: 142 | AO173: 156 | AP173: 156 | AQ173: 166 | AT173: 0.289 | AU173: 0.0765 | AV173: 20 | AW173: 0.4675 | AX173: 1.02 | AY173: 0 | AZ173: Vinterrug | BA173: 4653 | BB173: 4653 | BC173: 7101 | BD173: 5452 | BE173: 5452 | BF173: 3985 | BG173: 3985 | BH173: 6246 | BI173: 4369 | BJ173: 4369 | BK173: 10 | BL173: 5 | BM173: 20 | BN173: 8 | BO173: 7 | BP173: 6.5 | BQ173: 110 | BR173: 1 | BS173: 3 | BT173: 3 | BU173: 3 | BV173: 3 | BW173: 2 | BX173: 2 | BY173: 2 | BZ173: 1.6 | CE173: 2 | CF173: 2 | CG173: 30 | CH173: Rug | CI173: Vinterrug
E174: =IF(OR($CR$16=$O$185,$CS$16=$O$185,$CT$16=$O$185),$P$185,"") ->  | H174: =IF(OR(CR16=O186,CS16=O186,CT16=O186),P186,"") ->  | K174: =IF(AND($E$174<>"",$H$174<>"")," Forskel","") ->  | O174: 41 | P174: Vinterrug Øko | Q174: hkg | R174: 235 | S174: 37 | T174: 37 | U174: 48 | V174: 57 | W174: 57 | X174: 2600 | Y174: 2600 | Z174: 3800 | AA174: 3800 | AB174: 3800 | AI174: 460 | AL174: 460 | AM174: 105 | AN174: 105 | AO174: 105 | AP174: 105 | AQ174: 105 | AT174: 0.289 | AU174: 0.077 | AV174: 20 | AW174: 0.468 | AX174: 1.02 | AY174: 0 | AZ174: Vinterrug Øko | BA174: 4380 | BB174: 4380 | BC174: 6650 | BD174: 4992 | BE174: 4992 | BF174: 3848 | BG174: 3848 | BH174: 5880 | BI174: 4181 | BJ174: 4181 | BK174: 10 | BL174: 5 | BM174: 20 | BN174: 8 | BO174: 7 | BP174: 6.5 | BQ174: 110 | BR174: 1 | BS174: 3 | BT174: 3 | BV174: 3 | BW174: 2 | BX174: 2 | BY174: 2 | BZ174: 1.6 | CG174: 20 | CH174: Rug | CI174: Vinterrug Øko
A175: Antal ha | C175: =IF(E174="","",C107) ->  | D175: =IF(C175="","","ha") ->  | G175: =IF(H174="","",C127) ->  | H175: =IF(G175="","","ha") ->  | K175: =IF(AND($E$174<>"",$H$174<>""),G175-C175,"") ->  | L175: =IF(K175="","","ha") ->  | O175: 42 | P175: Vårbyg, foder | Q175: hkg | R175: 110 | S175: 46 | T175: 53 | U175: 58 | V175: 65 | W175: 69 | X175: 2400 | Y175: 2400 | Z175: 3100 | AA175: 3500 | AB175: 3500 | AI175: 360 | AJ175: 390 | AK175: 0 | AL175: 750 | AM175: 142 | AN175: 137 | AO175: 160 | AP175: 145 | AQ175: 151 | AS175: 2.5 | AT175: 0.323 | AU175: 0.0765 | AV175: 20 | AW175: 0.3995 | AX175: 1.02 | AY175: 0 | AZ175: Vårbyg, foder | BA175: 4126 | BB175: 4126 | BC175: 6257 | BD175: 4663 | BE175: 4663 | BF175: 3665 | BG175: 3665 | BH175: 5651 | BI175: 3974 | BJ175: 3974 | BK175: 10 | BL175: 5 | BM175: 22 | BN175: 8 | BO175: 7 | BP175: 6.5 | BQ175: 102 | BR175: 1 | BS175: 1 | BT175: 1 | BU175: 1 | BV175: 1 | BW175: 2 | BX175: 2 | BY175: 2 | BZ175: 1 | CE175: 2 | CF175: 1 | CG175: 30 | CH175: Byg | CI175: Vårbyg, foder
O176: 43 | P176: Vårbyg, foder Øko | Q176: hkg | R176: 235 | S176: 27 | T176: 27 | U176: 40 | V176: 40 | W176: 40 | X176: 1600 | Y176: 1600 | Z176: 1900 | AA176: 1900 | AB176: 1900 | AI176: 460 | AL176: 460 | AM176: 105 | AN176: 105 | AO176: 105 | AP176: 105 | AQ176: 105 | AS176: 2.5 | AT176: 0.32 | AU176: 0.08 | AV176: 20 | AW176: 0.4 | AX176: 1.02 | AY176: 0 | AZ176: Vårbyg, foder Øko | BA176: 4169 | BB176: 4169 | BC176: 6308 | BD176: 4632 | BE176: 4632 | BF176: 3844 | BG176: 3844 | BH176: 5906 | BI176: 4215 | BJ176: 4215 | BK176: 10 | BL176: 5 | BM176: 22 | BN176: 8 | BO176: 7 | BP176: 6.5 | BQ176: 102 | BR176: 1 | BS176: 1 | BT176: 1 | BV176: 1 | BW176: 2 | BX176: 2 | BY176: 2 | BZ176: 1 | CG176: 20 | CH176: Byg | CI176: Vårbyg, foder Øko
A177: Udbytte, kerne/frø | B177: =IF($E$174="","",IF(CR$16=O$185,C32,IF(CS$16=O$185,G32,IF(CT$16=O$185,K32,"")))*C$107) ->  | D177: =IF(B177="","","kr.") ->  | F177: =IF($H$174="","",IF(CR$16=O$186,C32,IF(CS$16=O$186,G32,IF(CT$16=O$186,K32,"")))*C$127) ->  | H177: =IF(F177="","","kr.") ->  | J177: =IF(AND($E$174<>"",$H$174<>""),F177-B177,"") ->  | L177: =IF(J177="","","kr.") ->  | O177: 44 | P177: Vårbyg, malt | Q177: hkg | R177: 130 | S177: 45 | T177: 52 | U177: 57 | V177: 64 | W177: 68 | X177: 2400 | Y177: 2400 | Z177: 3100 | AA177: 3500 | AB177: 3500 | AI177: 420 | AJ177: 390 | AK177: 0 | AL177: 810 | AM177: 142 | AN177: 137 | AO177: 160 | AP177: 145 | AQ177: 151 | AS177: 2.5 | AT177: 0.323 | AU177: 0.0765 | AV177: 20 | AW177: 0.3995 | AX177: 1.02 | AY177: 0 | AZ177: Vårbyg, malt | BA177: 4126 | BB177: 4126 | BC177: 6257 | BD177: 4663 | BE177: 4663 | BF177: 3665 | BG177: 3665 | BH177: 5651 | BI177: 3974 | BJ177: 3974 | BK177: 10 | BL177: 5 | BM177: 22 | BQ177: 0 | BR177: 2 | BS177: 1 | BT177: 1 | BU177: 1 | BV177: 1 | BW177: 2 | BX177: 2 | BY177: 2 | BZ177: 1 | CE177: 2 | CF177: 1 | CG177: 0 | CI177: Vårbyg, malt
A178: Udbytte, halm | B178: =IF($E$174="","",IF(HalmJa=2,"",IF(CR$16=O$185,C33,IF(CS$16=O$185,G33,IF(CT$16=O$185,K33,"")))*C$107)) ->  | D178: =IF(B178="","","kr.") ->  | F178: =IF($H$174="","",IF(HalmJa=2,"",IF(CR$16=O$186,C33,IF(CS$16=O$186,G33,IF(CT$16=O$186,K33,"")))*C$127)) ->  | H178: =IF(F178="","","kr.") ->  | J178: =IF(AND($E$174<>"",$H$174<>"",HalmJa=1),F178-B178,"") ->  | L178: =IF(J178="","","kr.") ->  | O178: 45 | P178: Vårbyg, malt Øko | Q178: hkg | R178: 255 | S178: 27 | T178: 27 | U178: 35 | V178: 40 | W178: 40 | X178: 1600 | Y178: 1600 | Z178: 1900 | AA178: 1900 | AB178: 1900 | AI178: 460 | AL178: 460 | AM178: 55 | AN178: 55 | AO178: 55 | AP178: 55 | AQ178: 55 | AS178: 2.5 | AT178: 0.32 | AU178: 0.08 | AV178: 20 | AW178: 0.4 | AX178: 1.02 | AY178: 0 | AZ178: Vårbyg, malt Øko | BA178: 4169 | BB178: 4126 | BC178: 6257 | BD178: 4632 | BE178: 4632 | BF178: 3844 | BG178: 3844 | BH178: 5906 | BI178: 4215 | BJ178: 4215 | BK178: 10 | BL178: 5 | BM178: 0 | BN178: 8 | BO178: 7 | BP178: 6.5 | BQ178: 0 | BR178: 1 | BS178: 1 | BT178: 1 | BV178: 1 | BW178: 2 | BX178: 2 | BY178: 2 | BZ178: 1 | CG178: 0 | CH178: Byg | CI178: Vårbyg, malt Øko
A179: Udbytte i alt | B179: =IF($E$174="","",IF(CR$16=O$185,C36,IF(CS$16=O$185,G36,IF(CT$16=O$185,K36,"")))*C$107) ->  | D179: =IF(B179="","","kr.") ->  | F179: =IF($H$174="","",IF(CR$16=O$186,C36,IF(CS$16=O$186,G36,IF(CT$16=O$186,K36,"")))*C$127) ->  | H179: =IF(F179="","","kr.") ->  | J179: =IF(AND($E$174<>"",$H$174<>""),F179-B179,"") ->  | L179: =IF(J179="","","kr.") ->  | O179: 46 | P179: Vårbyg/ært Øko | Q179: hkg | R179: 270 | S179: 29 | T179: 29 | U179: 35 | V179: 41 | W179: 41 | X179: 1600 | Y179: 1600 | Z179: 1900 | AA179: 1900 | AB179: 1900 | AI179: 1058 | AL179: 1058 | AM179: 0 | AN179: 0 | AO179: 0 | AP179: 0 | AQ179: 0 | AV179: 20 | AZ179: Vårbyg/ært Øko | BA179: 2358 | BB179: 2358 | BC179: 4378 | BD179: 2445 | BE179: 2445 | BF179: 2508 | BG179: 2508 | BH179: 4528 | BI179: 2595 | BJ179: 2595 | BK179: 14.6 | BL179: 14.6 | BM179: 0 | BR179: 2 | BS179: 1 | BT179: 1 | BV179: 1 | BW179: 2 | BX179: 2 | BZ179: 1 | CG179: 20 | CI179: Vårbyg/ært Øko
O180: 47 | P180: Vårhvede | Q180: hkg | R180: 115 | S180: 41 | T180: 47 | U180: 52 | V180: 58 | W180: 62 | X180: 1800 | Y180: 1800 | Z180: 2400 | AA180: 2700 | AB180: 2700 | AI180: 561 | AJ180: 390 | AK180: 0 | AL180: 951 | AM180: 165 | AN180: 159 | AO180: 182 | AP180: 166 | AQ180: 172 | AS180: 2.5 | AT180: 0.323 | AU180: 0.0765 | AV180: 20 | AW180: 0.3995 | AX180: 1.02 | AY180: 0 | AZ180: Vårhvede | BA180: 3950 | BB180: 3950 | BC180: 6062 | BD180: 4424 | BE180: 4424 | BF180: 3614 | BG180: 3614 | BH180: 5601 | BI180: 3901 | BJ180: 3901 | BK180: 10 | BL180: 5 | BM180: 22 | BN180: 8 | BO180: 7 | BP180: 6.5 | BQ180: 115 | BR180: 1 | BS180: 1 | BT180: 1 | BU180: 1 | BV180: 1 | BW180: 2 | BX180: 2 | BY180: 2 | BZ180: 1 | CE180: 2 | CF180: 1 | CG180: 30 | CH180: Hvede | CI180: Vårhvede
A181: Udsæd | B181: =IF($E$174="","",IF(CR$16=O$185,C38,IF(CS$16=O$185,G38,IF(CT$16=O$185,K38,"")))*C$107) ->  | D181: =IF(B181="","","kr.") ->  | F181: =IF($H$174="","",IF(CR$16=O$186,C38,IF(CS$16=O$186,G38,IF(CT$16=O$186,K38,"")))*C$127) ->  | H181: =IF(F181="","","kr.") ->  | J181: =IF(AND($E$174<>"",$H$174<>""),F181-B181,"") ->  | L181: =IF(J181="","","kr.") ->  | O181: 48 | P181: Vårhvede Øko | Q181: hkg | R181: 235 | S181: 27 | T181: 27 | U181: 38 | V181: 38 | W181: 38 | X181: 1300 | Y181: 1300 | Z181: 1500 | AA181: 1500 | AB181: 1500 | AI181: 1058 | AL181: 1058 | AM181: 105 | AN181: 105 | AO181: 105 | AP181: 105 | AQ181: 105 | AS181: 2.5 | AT181: 0.32 | AU181: 0.08 | AV181: 20 | AW181: 0.4 | AX181: 1.02 | AY181: 0 | AZ181: Vårhvede Øko | BA181: 4095 | BB181: 4095 | BC181: 6258 | BD181: 4503 | BE181: 4503 | BF181: 3844 | BG181: 3844 | BH181: 5950 | BI181: 4184 | BJ181: 4184 | BK181: 10 | BL181: 5 | BM181: 22 | BN181: 8 | BO181: 7 | BP181: 6.5 | BQ181: 115 | BR181: 1 | BS181: 1 | BT181: 1 | BV181: 1 | BW181: 2 | BX181: 2 | BY181: 2 | BZ181: 1 | CG181: 20 | CH181: Hvede | CI181: Vårhvede Øko
A182: Gødning | B182: =IF($E$174="","",IF(CR$16=O$185,C39,IF(CS$16=O$185,G39,IF(CT$16=O$185,K39,"")))*C$107) ->  | D182: =IF(B182="","","kr.") ->  | F182: =IF($H$174="","",IF(CR$16=O$186,C39,IF(CS$16=O$186,G39,IF(CT$16=O$186,K39,"")))*C$127) ->  | H182: =IF(F182="","","kr.") ->  | J182: =IF(AND($E$174<>"",$H$174<>""),F182-B182,"") ->  | L182: =IF(J182="","","kr.") ->  | O182: 49 | P182: Vårhvede/ært Øko | Q182: hkg | R182: 270 | S182: 29 | T182: 29 | U182: 34 | V182: 36 | W182: 36 | X182: 1300 | Y182: 1300 | Z182: 1500 | AA182: 1500 | AB182: 1500 | AI182: 1107 | AL182: 1107 | AM182: 55 | AN182: 55 | AO182: 55 | AP182: 55 | AQ182: 55 | AV182: 20 | AZ182: Vårhvede/ært Øko | BA182: 2849 | BB182: 2850 | BC182: 2851 | BD182: 2852 | BE182: 2853 | BF182: 3004 | BG182: 3005 | BH182: 3006 | BI182: 3007 | BJ182: 3008 | BK182: 14.6 | BL182: 14.6 | BM182: 22 | BS182: 1 | BT182: 1 | BU182: 1 | BV182: 1 | BW182: 2 | BX182: 2 | BZ182: 1 | CG182: 20 | CI182: Vårhvede/ært Øko
A183: Planteværn | B183: =IF($E$174="","",IF(CR$16=O$185,C40,IF(CS$16=O$185,G40,IF(CT$16=O$185,K40,"")))*C$107) ->  | D183: =IF(B183="","","kr.") ->  | F183: =IF($H$174="","",IF(CR$16=O$186,C40,IF(CS$16=O$186,G40,IF(CT$16=O$186,K40,"")))*C$127) ->  | H183: =IF(F183="","","kr.") ->  | J183: =IF(AND($E$174<>"",$H$174<>""),F183-B183,"") ->  | L183: =IF(J183="","","kr.") ->  | O183: 50 | P183: Vårtriticale Øko | Q183: hkg | R183: 230 | S183: 32 | T183: 32 | U183: 38 | V183: 38 | W183: 38 | X183: 1500 | Y183: 1500 | Z183: 2100 | AA183: 2100 | AB183: 2100 | AI183: 945 | AL183: 945 | AM183: 105 | AN183: 105 | AO183: 105 | AP183: 105 | AQ183: 105 | AS183: 2.5 | AT183: 0.32 | AU183: 0.07 | AV183: 20 | AW183: 0.4 | AX183: 1.02 | AY183: 0 | AZ183: Vårtriticale Øko | BA183: 3006.629704 | BB183: 3006.629704 | BC183: 4924.233918 | BD183: 3080.359833 | BE183: 3080.359833 | BF183: 3495.372197 | BG183: 3495.372197 | BH183: 5312.296899 | BI183: 3792.733564 | BJ183: 3792.733564 | BK183: 10 | BL183: 5 | BM183: 22 | BN183: 8 | BO183: 7 | BP183: 6.5 | BQ183: 113 | BR183: 1 | BS183: 1 | BT183: 1 | BV183: 1 | BW183: 2 | BX183: 2 | BY183: 2 | BZ183: 1 | CG183: 20 | CH183: Triticale | CI183: Vårtriticale Øko
A184: Diverse | B184: =IF($E$174="","",IF(CR$16=O$185,C41,IF(CS$16=O$185,G41,IF(CT$16=O$185,K41,"")))*C$107) ->  | D184: =IF(B184="","","kr.") ->  | F184: =IF($H$174="","",IF(CR$16=O$186,C41,IF(CS$16=O$186,G41,IF(CT$16=O$186,K41,"")))*C$127) ->  | H184: =IF(F184="","","kr.") ->  | J184: =IF(AND($E$174<>"",$H$174<>""),F184-B184,"") ->  | L184: =IF(J184="","","kr.") ->  | O184: 51 | P184: Vårraps | Q184: hkg | R184: 270 | S184: 19 | T184: 22 | U184: 24 | V184: 25 | W184: 25 | X184: 0 | Y184: 0 | Z184: 0 | AA184: 0 | AB184: 0 | AC184: 5 | AD184: 7 | AE184: 7 | AF184: 9 | AG184: 9 | AH184: 23 | AI184: 644 | AJ184: 500 | AK184: 40 | AL184: 1184 | AM184: 137 | AN184: 126 | AO184: 144 | AP184: 121 | AQ184: 122 | AS184: 2.5 | AT184: 0.819 | AU184: 0.068 | AV184: 20 | AW184: 1.365 | AX184: 1.394 | AY184: 4.074074074 | AZ184: Vårraps | BA184: 3404 | BB184: 3404 | BC184: 5570 | BD184: 3663 | BE184: 3663 | BF184: 3404 | BG184: 3404 | BH184: 5570 | BI184: 3663 | BJ184: 3663 | BK184: 18 | BL184: 14 | BM184: 22 | BQ184: 0 | BR184: 2 | BS184: 1 | BT184: 1 | BU184: 1 | BV184: 1 | BW184: 2 | BX184: 2 | BZ184: 1 | CE184: 2 | CF184: 1 | CG184: 34 | CI184: Vårraps
A185: Stykomkostninger i alt | B185: =IF($E$174="","",IF(CR$16=O$185,C42,IF(CS$16=O$185,G42,IF(CT$16=O$185,K42,"")))*C$107) ->  | D185: =IF(B185="","","kr.") ->  | F185: =IF($H$174="","",IF(CR$16=O$186,C42,IF(CS$16=O$186,G42,IF(CT$16=O$186,K42,"")))*C$127) ->  | H185: =IF(F185="","","kr.") ->  | J185: =IF(AND($E$174<>"",$H$174<>""),F185-B185,"") ->  | L185: =IF(J185="","","kr.") ->  | O185: 52 | P185: Sædskifte 1 | Q185: hkg | R185: =(IF(H93<>"",H93,VLOOKUP($CR$36,_Afg07,R131))*$C$93*IF($E$93<>"",$E$93,VLOOKUP($CR$36,_Afg07,Udbyttenr))+IF(H95<>"",H95,VLOOKUP($CR$38,_Afg07,R131))*$C$95*IF($E$95<>"",$E$95,VLOOKUP($CR$38,_Afg07,Udbyttenr))+IF(H97<>"",H97,VLOOKUP($CR$40,_Afg07,R131))*$C$97*IF($E$97<>"",$E$97,VLOOKUP($CR$40,_Afg07,Udbyttenr))+IF(H99<>"",H99,VLOOKUP($CR$42,_Afg07,R131))*$C$99*IF($E$99<>"",$E$99,VLOOKUP($CR$42,_Afg07,Udbyttenr))+IF(H101<>"",H101,VLOOKUP($CR$44,_Afg07,R131))*$C$101*IF($E$101<>"",$E$101,VLOOKUP($CR$44,_Afg07,Udbyttenr))+IF(H103<>"",H103,VLOOKUP($CR$46,_Afg07,R131))*$C$103*IF($E$103<>"",$E$103,VLOOKUP($CR$46,_Afg07,Udbyttenr))+IF(H105<>"",H105,VLOOKUP($CR$48,_Afg07,R131))*$C$105*IF($E$105<>"",$E$105,VLOOKUP($CR$48,_Afg07,Udbyttenr)))/($C$107*VLOOKUP($O$185,_Afg07,Udbyttenr)) ->  | S185: =(IF($E$93<>"",$E$93,VLOOKUP($CR$36,_Afg07,S131))*$C$93+IF($E$95<>"",$E$95,VLOOKUP($CR$38,_Afg07,S131))*$C$95+IF($E$97<>"",$E$97,VLOOKUP($CR$40,_Afg07,S131))*$C$97+IF($E$99<>"",$E$99,VLOOKUP($CR$42,_Afg07,S131))*$C$99+IF($E$101<>"",$E$101,VLOOKUP($CR$44,_Afg07,S131))*$C$101+IF($E$103<>"",$E$103,VLOOKUP($CR$46,_Afg07,S131))*$C$103+IF($E$105<>"",$E$105,VLOOKUP($CR$48,_Afg07,S131))*$C$105)/$C$107 ->  | T185: =(IF($E$93<>"",$E$93,VLOOKUP($CR$36,_Afg07,T131))*$C$93+IF($E$95<>"",$E$95,VLOOKUP($CR$38,_Afg07,T131))*$C$95+IF($E$97<>"",$E$97,VLOOKUP($CR$40,_Afg07,T131))*$C$97+IF($E$99<>"",$E$99,VLOOKUP($CR$42,_Afg07,T131))*$C$99+IF($E$101<>"",$E$101,VLOOKUP($CR$44,_Afg07,T131))*$C$101+IF($E$103<>"",$E$103,VLOOKUP($CR$46,_Afg07,T131))*$C$103+IF($E$105<>"",$E$105,VLOOKUP($CR$48,_Afg07,T131))*$C$105)/$C$107 ->  | U185: =(IF($E$93<>"",$E$93,VLOOKUP($CR$36,_Afg07,U131))*$C$93+IF($E$95<>"",$E$95,VLOOKUP($CR$38,_Afg07,U131))*$C$95+IF($E$97<>"",$E$97,VLOOKUP($CR$40,_Afg07,U131))*$C$97+IF($E$99<>"",$E$99,VLOOKUP($CR$42,_Afg07,U131))*$C$99+IF($E$101<>"",$E$101,VLOOKUP($CR$44,_Afg07,U131))*$C$101+IF($E$103<>"",$E$103,VLOOKUP($CR$46,_Afg07,U131))*$C$103+IF($E$105<>"",$E$105,VLOOKUP($CR$48,_Afg07,U131))*$C$105)/$C$107 ->  | V185: =(IF($E$93<>"",$E$93,VLOOKUP($CR$36,_Afg07,V131))*$C$93+IF($E$95<>"",$E$95,VLOOKUP($CR$38,_Afg07,V131))*$C$95+IF($E$97<>"",$E$97,VLOOKUP($CR$40,_Afg07,V131))*$C$97+IF($E$99<>"",$E$99,VLOOKUP($CR$42,_Afg07,V131))*$C$99+IF($E$101<>"",$E$101,VLOOKUP($CR$44,_Afg07,V131))*$C$101+IF($E$103<>"",$E$103,VLOOKUP($CR$46,_Afg07,V131))*$C$103+IF($E$105<>"",$E$105,VLOOKUP($CR$48,_Afg07,V131))*$C$105)/$C$107 ->  | W185: =(IF($E$93<>"",$E$93,VLOOKUP($CR$36,_Afg07,W131))*$C$93+IF($E$95<>"",$E$95,VLOOKUP($CR$38,_Afg07,W131))*$C$95+IF($E$97<>"",$E$97,VLOOKUP($CR$40,_Afg07,W131))*$C$97+IF($E$99<>"",$E$99,VLOOKUP($CR$42,_Afg07,W131))*$C$99+IF($E$101<>"",$E$101,VLOOKUP($CR$44,_Afg07,W131))*$C$101+IF($E$103<>"",$E$103,VLOOKUP($CR$46,_Afg07,W131))*$C$103+IF($E$105<>"",$E$105,VLOOKUP($CR$48,_Afg07,W131))*$C$105)/$C$107 ->  | X185: =(VLOOKUP($CR$36,_Afg07,X131)*$C$93+VLOOKUP($CR$38,_Afg07,X131)*$C$95+VLOOKUP($CR$40,_Afg07,X131)*$C$97+VLOOKUP($CR$42,_Afg07,X131)*$C$99+VLOOKUP($CR$44,_Afg07,X131)*$C$101+VLOOKUP($CR$46,_Afg07,X131)*$C$103+VLOOKUP($CR$48,_Afg07,X131)*$C$105)/$C$107 ->  | AT185: =(VLOOKUP($CR$36,_Afg07,AT131)*$C$93*IF($E$93<>"",$E$93,VLOOKUP($CR$36,_Afg07,Udbyttenr))+VLOOKUP($CR$38,_Afg07,AT131)*$C$95*IF($E$95<>"",$E$95,VLOOKUP($CR$38,_Afg07,Udbyttenr))+VLOOKUP($CR$40,_Afg07,AT131)*$C$97*IF($E$97<>"",$E$97,VLOOKUP($CR$40,_Afg07,Udbyttenr))+VLOOKUP($CR$42,_Afg07,AT131)*$C$99*IF($E$99<>"",$E$99,VLOOKUP($CR$42,_Afg07,Udbyttenr))+VLOOKUP($CR$44,_Afg07,AT131)*$C$101*IF($E$101<>"",$E$101,VLOOKUP($CR$44,_Afg07,Udbyttenr))+VLOOKUP($CR$46,_Afg07,AT131)*$C$103*IF($E$103<>"",$E$103,VLOOKUP($CR$46,_Afg07,Udbyttenr))+VLOOKUP($CR$48,_Afg07,AT131)*$C$105*IF($E$105<>"",$E$105,VLOOKUP($CR$48,_Afg07,Udbyttenr)))/($C$107*VLOOKUP($O$185,_Afg07,Udbyttenr)) ->  | AU185: =(VLOOKUP($CR$36,_Afg07,AU131)*$C$93*VLOOKUP($CR$36,_Afg07,Halmnr)+VLOOKUP($CR$38,_Afg07,AU131)*$C$95*VLOOKUP($CR$38,_Afg07,Halmnr)+VLOOKUP($CR$40,_Afg07,AU131)*$C$97*VLOOKUP($CR$40,_Afg07,Halmnr)+VLOOKUP($CR$42,_Afg07,AU131)*$C$99*VLOOKUP($CR$42,_Afg07,Halmnr)+VLOOKUP($CR$44,_Afg07,AU131)*$C$101*VLOOKUP($CR$44,_Afg07,Halmnr)+VLOOKUP($CR$46,_Afg07,AU131)*$C$103*VLOOKUP($CR$46,_Afg07,Halmnr)+VLOOKUP($CR$48,_Afg07,AU131)*$C$105*VLOOKUP($CR$48,_Afg07,Halmnr))/($C$107*VLOOKUP($O$185,_Afg07,Halmnr)) ->  | AV185: =(VLOOKUP($CR$36,_Afg07,AV131)*$C$93+VLOOKUP($CR$38,_Afg07,AV131)*$C$95+VLOOKUP($CR$40,_Afg07,AV131)*$C$97+VLOOKUP($CR$42,_Afg07,AV131)*$C$99+VLOOKUP($CR$44,_Afg07,AV131)*$C$101+VLOOKUP($CR$46,_Afg07,AV131)*$C$103+VLOOKUP($CR$48,_Afg07,AV131)*$C$105)/$C$107 ->  | AW185: =(VLOOKUP($CR$36,_Afg07,AW131)*$C$93*IF($E$93<>"",$E$93,VLOOKUP($CR$36,_Afg07,Udbyttenr))+VLOOKUP($CR$38,_Afg07,AW131)*$C$95*IF($E$95<>"",$E$95,VLOOKUP($CR$38,_Afg07,Udbyttenr))+VLOOKUP($CR$40,_Afg07,AW131)*$C$97*IF($E$97<>"",$E$97,VLOOKUP($CR$40,_Afg07,Udbyttenr))+VLOOKUP($CR$42,_Afg07,AW131)*$C$99*IF($E$99<>"",$E$99,VLOOKUP($CR$42,_Afg07,Udbyttenr))+VLOOKUP($CR$44,_Afg07,AW131)*$C$101*IF($E$101<>"",$E$101,VLOOKUP($CR$44,_Afg07,Udbyttenr))+VLOOKUP($CR$46,_Afg07,AW131)*$C$103*IF($E$103<>"",$E$103,VLOOKUP($CR$46,_Afg07,Udbyttenr))+VLOOKUP($CR$48,_Afg07,AW131)*$C$105*IF($E$105<>"",$E$105,VLOOKUP($CR$48,_Afg07,Udbyttenr)))/($C$107*VLOOKUP($O$185,_Afg07,Udbyttenr)) ->  | AX185: =(VLOOKUP($CR$36,_Afg07,AX131)*$C$93*VLOOKUP($CR$36,_Afg07,Halmnr)+VLOOKUP($CR$38,_Afg07,AX131)*$C$95*VLOOKUP($CR$38,_Afg07,Halmnr)+VLOOKUP($CR$40,_Afg07,AX131)*$C$97*VLOOKUP($CR$40,_Afg07,Halmnr)+VLOOKUP($CR$42,_Afg07,AX131)*$C$99*VLOOKUP($CR$42,_Afg07,Halmnr)+VLOOKUP($CR$44,_Afg07,AX131)*$C$101*VLOOKUP($CR$44,_Afg07,Halmnr)+VLOOKUP($CR$46,_Afg07,AX131)*$C$103*VLOOKUP($CR$46,_Afg07,Halmnr)+VLOOKUP($CR$48,_Afg07,AX131)*$C$105*VLOOKUP($CR$48,_Afg07,Halmnr))/($C$107*VLOOKUP($O$185,_Afg07,Halmnr)) ->  | AY185: =(VLOOKUP($CR$36,_Afg07,AY131)*$C$93*IF($E$93<>"",$E$93,VLOOKUP($CR$36,_Afg07,Udbyttenr))+VLOOKUP($CR$38,_Afg07,AY131)*$C$95*IF($E$95<>"",$E$95,VLOOKUP($CR$38,_Afg07,Udbyttenr))+VLOOKUP($CR$40,_Afg07,AY131)*$C$97*IF($E$97<>"",$E$97,VLOOKUP($CR$40,_Afg07,Udbyttenr))+VLOOKUP($CR$42,_Afg07,AY131)*$C$99*IF($E$99<>"",$E$99,VLOOKUP($CR$42,_Afg07,Udbyttenr))+VLOOKUP($CR$44,_Afg07,AY131)*$C$101*IF($E$101<>"",$E$101,VLOOKUP($CR$44,_Afg07,Udbyttenr))+VLOOKUP($CR$46,_Afg07,AY131)*$C$103*IF($E$103<>"",$E$103,VLOOKUP($CR$46,_Afg07,Udbyttenr))+VLOOKUP($CR$48,_Afg07,AY131)*$C$105*IF($E$105<>"",$E$105,VLOOKUP($CR$48,_Afg07,Udbyttenr)))/($C$107*VLOOKUP($O$185,_Afg07,Udbyttenr)) ->  | AZ185: Sædskifte 1 | BA185: =(VLOOKUP($CR$36,_Afg07,BA131)*$C$93+VLOOKUP($CR$38,_Afg07,BA131)*$C$95+VLOOKUP($CR$40,_Afg07,BA131)*$C$97+VLOOKUP($CR$42,_Afg07,BA131)*$C$99+VLOOKUP($CR$44,_Afg07,BA131)*$C$101+VLOOKUP($CR$46,_Afg07,BA131)*$C$103+VLOOKUP($CR$48,_Afg07,BA131)*$C$105)/$C$107 ->  | BK185: =(IF(AND(VLOOKUP($CR$36,_Afg07,$BR$131)=1,$CU$3=4),0,VLOOKUP($CR$36,_Afg07,BK131)*$C$93*IF($E$93<>"",$E$93,VLOOKUP($CR$36,_Afg07,Udbyttenr)))+IF(AND(VLOOKUP($CR$38,_Afg07,$BR$131)=1,$CU$3=4),0,VLOOKUP($CR$38,_Afg07,BK131)*$C$95*IF($E$95<>"",$E$95,VLOOKUP($CR$38,_Afg07,Udbyttenr)))+IF(AND(VLOOKUP($CR$40,_Afg07,$BR$131)=1,$CU$3=4),0,VLOOKUP($CR$40,_Afg07,BK131)*$C$97*IF($E$97<>"",$E$97,VLOOKUP($CR$40,_Afg07,Udbyttenr)))+IF(AND(VLOOKUP($CR$42,_Afg07,$BR$131)=1,$CU$3=4),0,VLOOKUP($CR$42,_Afg07,BK131)*$C$99*IF($E$99<>"",$E$99,VLOOKUP($CR$42,_Afg07,Udbyttenr)))+IF(AND(VLOOKUP($CR$44,_Afg07,$BR$131)=1,$CU$3=4),0,VLOOKUP($CR$44,_Afg07,BK131)*$C$101*IF($E$101<>"",$E$101,VLOOKUP($CR$44,_Afg07,Udbyttenr)))+IF(AND(VLOOKUP($CR$46,_Afg07,$BR$131)=1,$CU$3=4),0,VLOOKUP($CR$46,_Afg07,BK131)*$C$103*IF($E$103<>"",$E$103,VLOOKUP($CR$46,_Afg07,Udbyttenr)))+IF(AND(VLOOKUP($CR$48,_Afg07,$BR$131)=1,$CU$3=4),0,VLOOKUP($CR$48,_Afg07,BK131)*$C$105*IF($E$105<>"",$E$105,VLOOKUP($CR$48,_Afg07,Udbyttenr))))/($C$107*VLOOKUP($O$185,_Afg07,Udbyttenr)) ->  | BL185: =(IF(AND(VLOOKUP($CR$36,_Afg07,$BR$131)=1,$CU$3=4),0,VLOOKUP($CR$36,_Afg07,BL131)*$C$93*IF($E$93<>"",$E$93,VLOOKUP($CR$36,_Afg07,Udbyttenr)))+IF(AND(VLOOKUP($CR$38,_Afg07,$BR$131)=1,$CU$3=4),0,VLOOKUP($CR$38,_Afg07,BL131)*$C$95*IF($E$95<>"",$E$95,VLOOKUP($CR$38,_Afg07,Udbyttenr)))+IF(AND(VLOOKUP($CR$40,_Afg07,$BR$131)=1,$CU$3=4),0,VLOOKUP($CR$40,_Afg07,BL131)*$C$97*IF($E$97<>"",$E$97,VLOOKUP($CR$40,_Afg07,Udbyttenr)))+IF(AND(VLOOKUP($CR$42,_Afg07,$BR$131)=1,$CU$3=4),0,VLOOKUP($CR$42,_Afg07,BL131)*$C$99*IF($E$99<>"",$E$99,VLOOKUP($CR$42,_Afg07,Udbyttenr)))+IF(AND(VLOOKUP($CR$44,_Afg07,$BR$131)=1,$CU$3=4),0,VLOOKUP($CR$44,_Afg07,BL131)*$C$101*IF($E$101<>"",$E$101,VLOOKUP($CR$44,_Afg07,Udbyttenr)))+IF(AND(VLOOKUP($CR$46,_Afg07,$BR$131)=1,$CU$3=4),0,VLOOKUP($CR$46,_Afg07,BL131)*$C$103*IF($E$103<>"",$E$103,VLOOKUP($CR$46,_Afg07,Udbyttenr)))+IF(AND(VLOOKUP($CR$48,_Afg07,$BR$131)=1,$CU$3=4),0,VLOOKUP($CR$48,_Afg07,BL131)*$C$105*IF($E$105<>"",$E$105,VLOOKUP($CR$48,_Afg07,Udbyttenr))))/($C$107*VLOOKUP($O$185,_Afg07,Udbyttenr)) ->  | BM185: =(IF(AND(VLOOKUP($CR$36,_Afg07,$BR$131)=1,$CU$3=4),0,VLOOKUP($CR$36,_Afg07,BM131)*$C$93*IF($E$93<>"",$E$93,VLOOKUP($CR$36,_Afg07,Udbyttenr)))+IF(AND(VLOOKUP($CR$38,_Afg07,$BR$131)=1,$CU$3=4),0,VLOOKUP($CR$38,_Afg07,BM131)*$C$95*IF($E$95<>"",$E$95,VLOOKUP($CR$38,_Afg07,Udbyttenr)))+IF(AND(VLOOKUP($CR$40,_Afg07,$BR$131)=1,$CU$3=4),0,VLOOKUP($CR$40,_Afg07,BM131)*$C$97*IF($E$97<>"",$E$97,VLOOKUP($CR$40,_Afg07,Udbyttenr)))+IF(AND(VLOOKUP($CR$42,_Afg07,$BR$131)=1,$CU$3=4),0,VLOOKUP($CR$42,_Afg07,BM131)*$C$99*IF($E$99<>"",$E$99,VLOOKUP($CR$42,_Afg07,Udbyttenr)))+IF(AND(VLOOKUP($CR$44,_Afg07,$BR$131)=1,$CU$3=4),0,VLOOKUP($CR$44,_Afg07,BM131)*$C$101*IF($E$101<>"",$E$101,VLOOKUP($CR$44,_Afg07,Udbyttenr)))+IF(AND(VLOOKUP($CR$46,_Afg07,$BR$131)=1,$CU$3=4),0,VLOOKUP($CR$46,_Afg07,BM131)*$C$103*IF($E$103<>"",$E$103,VLOOKUP($CR$46,_Afg07,Udbyttenr)))+IF(AND(VLOOKUP($CR$48,_Afg07,$BR$131)=1,$CU$3=4),0,VLOOKUP($CR$48,_Afg07,BM131)*$C$105*IF($E$105<>"",$E$105,VLOOKUP($CR$48,_Afg07,Udbyttenr))))/($C$107*VLOOKUP($O$185,_Afg07,Udbyttenr)) ->  | BN185: =(IF(VLOOKUP($CR$36,_Afg07,$BR$131)=1,VLOOKUP($CR$36,_Afg07,BN131)*$C$93*IF($E$93<>"",$E$93,VLOOKUP($CR$36,_Afg07,Udbyttenr)),0)+IF(VLOOKUP($CR$38,_Afg07,$BR$131)=1,VLOOKUP($CR$38,_Afg07,BN131)*$C$95*IF($E$95<>"",$E$95,VLOOKUP($CR$38,_Afg07,Udbyttenr)),0)+IF(VLOOKUP($CR$40,_Afg07,$BR$131)=1,VLOOKUP($CR$40,_Afg07,BN131)*$C$97*IF($E$97<>"",$E$97,VLOOKUP($CR$40,_Afg07,Udbyttenr)),0)+IF(VLOOKUP($CR$42,_Afg07,$BR$131)=1,VLOOKUP($CR$42,_Afg07,BN131)*$C$99*IF($E$99<>"",$E$99,VLOOKUP($CR$42,_Afg07,Udbyttenr)),0)+IF(VLOOKUP($CR$44,_Afg07,$BR$131)=1,VLOOKUP($CR$44,_Afg07,BN131)*$C$101*IF($E$101<>"",$E$101,VLOOKUP($CR$44,_Afg07,Udbyttenr)),0)+IF(VLOOKUP($CR$46,_Afg07,$BR$131)=1,VLOOKUP($CR$46,_Afg07,BN131)*$C$103*IF($E$103<>"",$E$103,VLOOKUP($CR$46,_Afg07,Udbyttenr)),0)+IF(VLOOKUP($CR$48,_Afg07,$BR$131)=1,VLOOKUP($CR$48,_Afg07,BN131)*$C$105*IF($E$105<>"",$E$105,VLOOKUP($CR$48,_Afg07,Udbyttenr)),0))/($CU$50) ->  | BO185: =(IF(VLOOKUP($CR$36,_Afg07,$BR$131)=1,VLOOKUP($CR$36,_Afg07,BO131)*$C$93*IF($E$93<>"",$E$93,VLOOKUP($CR$36,_Afg07,Udbyttenr)),0)+IF(VLOOKUP($CR$38,_Afg07,$BR$131)=1,VLOOKUP($CR$38,_Afg07,BO131)*$C$95*IF($E$95<>"",$E$95,VLOOKUP($CR$38,_Afg07,Udbyttenr)),0)+IF(VLOOKUP($CR$40,_Afg07,$BR$131)=1,VLOOKUP($CR$40,_Afg07,BO131)*$C$97*IF($E$97<>"",$E$97,VLOOKUP($CR$40,_Afg07,Udbyttenr)),0)+IF(VLOOKUP($CR$42,_Afg07,$BR$131)=1,VLOOKUP($CR$42,_Afg07,BO131)*$C$99*IF($E$99<>"",$E$99,VLOOKUP($CR$42,_Afg07,Udbyttenr)),0)+IF(VLOOKUP($CR$44,_Afg07,$BR$131)=1,VLOOKUP($CR$44,_Afg07,BO131)*$C$101*IF($E$101<>"",$E$101,VLOOKUP($CR$44,_Afg07,Udbyttenr)),0)+IF(VLOOKUP($CR$46,_Afg07,$BR$131)=1,VLOOKUP($CR$46,_Afg07,BO131)*$C$103*IF($E$103<>"",$E$103,VLOOKUP($CR$46,_Afg07,Udbyttenr)),0)+IF(VLOOKUP($CR$48,_Afg07,$BR$131)=1,VLOOKUP($CR$48,_Afg07,BO131)*$C$105*IF($E$105<>"",$E$105,VLOOKUP($CR$48,_Afg07,Udbyttenr)),0))/($CU$50) ->  | BP185: =(IF(VLOOKUP($CR$36,_Afg07,$BR$131)=1,VLOOKUP($CR$36,_Afg07,BP131)*$C$93*IF($E$93<>"",$E$93,VLOOKUP($CR$36,_Afg07,Udbyttenr)),0)+IF(VLOOKUP($CR$38,_Afg07,$BR$131)=1,VLOOKUP($CR$38,_Afg07,BP131)*$C$95*IF($E$95<>"",$E$95,VLOOKUP($CR$38,_Afg07,Udbyttenr)),0)+IF(VLOOKUP($CR$40,_Afg07,$BR$131)=1,VLOOKUP($CR$40,_Afg07,BP131)*$C$97*IF($E$97<>"",$E$97,VLOOKUP($CR$40,_Afg07,Udbyttenr)),0)+IF(VLOOKUP($CR$42,_Afg07,$BR$131)=1,VLOOKUP($CR$42,_Afg07,BP131)*$C$99*IF($E$99<>"",$E$99,VLOOKUP($CR$42,_Afg07,Udbyttenr)),0)+IF(VLOOKUP($CR$44,_Afg07,$BR$131)=1,VLOOKUP($CR$44,_Afg07,BP131)*$C$101*IF($E$101<>"",$E$101,VLOOKUP($CR$44,_Afg07,Udbyttenr)),0)+IF(VLOOKUP($CR$46,_Afg07,$BR$131)=1,VLOOKUP($CR$46,_Afg07,BP131)*$C$103*IF($E$103<>"",$E$103,VLOOKUP($CR$46,_Afg07,Udbyttenr)),0)+IF(VLOOKUP($CR$48,_Afg07,$BR$131)=1,VLOOKUP($CR$48,_Afg07,BP131)*$C$105*IF($E$105<>"",$E$105,VLOOKUP($CR$48,_Afg07,Udbyttenr)),0))/($CU$50) ->  | BQ185: =(IF(VLOOKUP($CR$36,_Afg07,$BR$131)=1,VLOOKUP($CR$36,_Afg07,BQ131)*$C$93*IF($E$93<>"",$E$93,VLOOKUP($CR$36,_Afg07,Udbyttenr)),0)+IF(VLOOKUP($CR$38,_Afg07,$BR$131)=1,VLOOKUP($CR$38,_Afg07,BQ131)*$C$95*IF($E$95<>"",$E$95,VLOOKUP($CR$38,_Afg07,Udbyttenr)),0)+IF(VLOOKUP($CR$40,_Afg07,$BR$131)=1,VLOOKUP($CR$40,_Afg07,BQ131)*$C$97*IF($E$97<>"",$E$97,VLOOKUP($CR$40,_Afg07,Udbyttenr)),0)+IF(VLOOKUP($CR$42,_Afg07,$BR$131)=1,VLOOKUP($CR$42,_Afg07,BQ131)*$C$99*IF($E$99<>"",$E$99,VLOOKUP($CR$42,_Afg07,Udbyttenr)),0)+IF(VLOOKUP($CR$44,_Afg07,$BR$131)=1,VLOOKUP($CR$44,_Afg07,BQ131)*$C$101*IF($E$101<>"",$E$101,VLOOKUP($CR$44,_Afg07,Udbyttenr)),0)+IF(VLOOKUP($CR$46,_Afg07,$BR$131)=1,VLOOKUP($CR$46,_Afg07,BQ131)*$C$103*IF($E$103<>"",$E$103,VLOOKUP($CR$46,_Afg07,Udbyttenr)),0)+IF(VLOOKUP($CR$48,_Afg07,$BR$131)=1,VLOOKUP($CR$48,_Afg07,BQ131)*$C$105*IF($E$105<>"",$E$105,VLOOKUP($CR$48,_Afg07,Udbyttenr)),0))/($CU$50) ->  | BR185: 3 | CI185: Sædskifte 1
O186: 53 | P186: Sædskifte 2 | Q186: hkg | R186: =(IF(H113<>"",H113,VLOOKUP($CR$37,_Afg07,R131))*$C$113*IF($E$113<>"",$E$113,VLOOKUP($CR$37,_Afg07,Udbyttenr))+IF(H115<>"",H115,VLOOKUP($CR$39,_Afg07,R131))*$C$115*IF($E$115<>"",$E$115,VLOOKUP($CR$39,_Afg07,Udbyttenr))+IF(H117<>"",H117,VLOOKUP($CR$41,_Afg07,R131))*$C$117*IF($E$117<>"",$E$117,VLOOKUP($CR$41,_Afg07,Udbyttenr))+IF(H119<>"",H119,VLOOKUP($CR$43,_Afg07,R131))*$C$119*IF($E$119<>"",$E$119,VLOOKUP($CR$43,_Afg07,Udbyttenr))+IF(H121<>"",H121,VLOOKUP($CR$45,_Afg07,R131))*$C$121*IF($E$121<>"",$E$121,VLOOKUP($CR$45,_Afg07,Udbyttenr))+IF(H123<>"",H123,VLOOKUP($CR$47,_Afg07,R131))*$C$123*IF($E$123<>"",$E$123,VLOOKUP($CR$47,_Afg07,Udbyttenr))+IF(H125<>"",H125,VLOOKUP($CR$49,_Afg07,R131))*$C$125*IF($E$125<>"",$E$125,VLOOKUP($CR$49,_Afg07,Udbyttenr)))/($C$127*VLOOKUP($O$186,_Afg07,Udbyttenr)) ->  | S186: =(IF($E$113<>"",$E$113,VLOOKUP($CR$37,_Afg07,S131))*$C$113+IF($E$115<>"",$E$115,VLOOKUP($CR$39,_Afg07,S131))*$C$115+IF($E$117<>"",$E$117,VLOOKUP($CR$41,_Afg07,S131))*$C$117+IF($E$119<>"",$E$119,VLOOKUP($CR$43,_Afg07,S131))*$C$119+IF($E$121<>"",$E$121,VLOOKUP($CR$45,_Afg07,S131))*$C$121+IF($E$123<>"",$E$123,VLOOKUP($CR$47,_Afg07,S131))*$C$123+IF($E$125<>"",$E$125,VLOOKUP($CR$49,_Afg07,S131))*$C$125)/$C$127 ->  | T186: =(IF($E$113<>"",$E$113,VLOOKUP($CR$37,_Afg07,T131))*$C$113+IF($E$115<>"",$E$115,VLOOKUP($CR$39,_Afg07,T131))*$C$115+IF($E$117<>"",$E$117,VLOOKUP($CR$41,_Afg07,T131))*$C$117+IF($E$119<>"",$E$119,VLOOKUP($CR$43,_Afg07,T131))*$C$119+IF($E$121<>"",$E$121,VLOOKUP($CR$45,_Afg07,T131))*$C$121+IF($E$123<>"",$E$123,VLOOKUP($CR$47,_Afg07,T131))*$C$123+IF($E$125<>"",$E$125,VLOOKUP($CR$49,_Afg07,T131))*$C$125)/$C$127 ->  | U186: =(IF($E$113<>"",$E$113,VLOOKUP($CR$37,_Afg07,U131))*$C$113+IF($E$115<>"",$E$115,VLOOKUP($CR$39,_Afg07,U131))*$C$115+IF($E$117<>"",$E$117,VLOOKUP($CR$41,_Afg07,U131))*$C$117+IF($E$119<>"",$E$119,VLOOKUP($CR$43,_Afg07,U131))*$C$119+IF($E$121<>"",$E$121,VLOOKUP($CR$45,_Afg07,U131))*$C$121+IF($E$123<>"",$E$123,VLOOKUP($CR$47,_Afg07,U131))*$C$123+IF($E$125<>"",$E$125,VLOOKUP($CR$49,_Afg07,U131))*$C$125)/$C$127 ->  | V186: =(IF($E$113<>"",$E$113,VLOOKUP($CR$37,_Afg07,V131))*$C$113+IF($E$115<>"",$E$115,VLOOKUP($CR$39,_Afg07,V131))*$C$115+IF($E$117<>"",$E$117,VLOOKUP($CR$41,_Afg07,V131))*$C$117+IF($E$119<>"",$E$119,VLOOKUP($CR$43,_Afg07,V131))*$C$119+IF($E$121<>"",$E$121,VLOOKUP($CR$45,_Afg07,V131))*$C$121+IF($E$123<>"",$E$123,VLOOKUP($CR$47,_Afg07,V131))*$C$123+IF($E$125<>"",$E$125,VLOOKUP($CR$49,_Afg07,V131))*$C$125)/$C$127 ->  | W186: =(IF($E$113<>"",$E$113,VLOOKUP($CR$37,_Afg07,W131))*$C$113+IF($E$115<>"",$E$115,VLOOKUP($CR$39,_Afg07,W131))*$C$115+IF($E$117<>"",$E$117,VLOOKUP($CR$41,_Afg07,W131))*$C$117+IF($E$119<>"",$E$119,VLOOKUP($CR$43,_Afg07,W131))*$C$119+IF($E$121<>"",$E$121,VLOOKUP($CR$45,_Afg07,W131))*$C$121+IF($E$123<>"",$E$123,VLOOKUP($CR$47,_Afg07,W131))*$C$123+IF($E$125<>"",$E$125,VLOOKUP($CR$49,_Afg07,W131))*$C$125)/$C$127 ->  | X186: =(VLOOKUP($CR$37,_Afg07,X131)*$C$113+VLOOKUP($CR$39,_Afg07,X131)*$C$115+VLOOKUP($CR$41,_Afg07,X131)*$C$117+VLOOKUP($CR$43,_Afg07,X131)*$C$119+VLOOKUP($CR$45,_Afg07,X131)*$C$121+VLOOKUP($CR$47,_Afg07,X131)*$C$123+VLOOKUP($CR$49,_Afg07,X131)*$C$125)/$C$127 ->  | AT186: =(VLOOKUP($CR$37,_Afg07,AT131)*$C$113*IF($E$113<>"",$E$113,VLOOKUP($CR$37,_Afg07,Udbyttenr))+VLOOKUP($CR$39,_Afg07,AT131)*$C$115*IF($E$115<>"",$E$115,VLOOKUP($CR$39,_Afg07,Udbyttenr))+VLOOKUP($CR$41,_Afg07,AT131)*$C$117*IF($E$117<>"",$E$117,VLOOKUP($CR$41,_Afg07,Udbyttenr))+VLOOKUP($CR$43,_Afg07,AT131)*$C$119*IF($E$119<>"",$E$119,VLOOKUP($CR$43,_Afg07,Udbyttenr))+VLOOKUP($CR$45,_Afg07,AT131)*$C$121*IF($E$121<>"",$E$121,VLOOKUP($CR$45,_Afg07,Udbyttenr))+VLOOKUP($CR$47,_Afg07,AT131)*$C$123*IF($E$123<>"",$E$123,VLOOKUP($CR$47,_Afg07,Udbyttenr))+VLOOKUP($CR$49,_Afg07,AT131)*$C$125*IF($E$125<>"",$E$125,VLOOKUP($CR$49,_Afg07,Udbyttenr)))/($C$127*VLOOKUP($O$186,_Afg07,Udbyttenr)) ->  | AU186: =(VLOOKUP($CR$37,_Afg07,AU131)*$C$113*VLOOKUP($CR$37,_Afg07,Halmnr)+VLOOKUP($CR$39,_Afg07,AU131)*$C$115*VLOOKUP($CR$39,_Afg07,Halmnr)+VLOOKUP($CR$41,_Afg07,AU131)*$C$117*VLOOKUP($CR$41,_Afg07,Halmnr)+VLOOKUP($CR$43,_Afg07,AU131)*$C$119*VLOOKUP($CR$43,_Afg07,Halmnr)+VLOOKUP($CR$45,_Afg07,AU131)*$C$121*VLOOKUP($CR$45,_Afg07,Halmnr)+VLOOKUP($CR$47,_Afg07,AU131)*$C$123*VLOOKUP($CR$47,_Afg07,Halmnr)+VLOOKUP($CR$49,_Afg07,AU131)*$C$125*VLOOKUP($CR$49,_Afg07,Halmnr))/($C$127*VLOOKUP($O$186,_Afg07,Halmnr)) ->  | AV186: =(VLOOKUP($CR$37,_Afg07,AV131)*$C$113+VLOOKUP($CR$39,_Afg07,AV131)*$C$115+VLOOKUP($CR$41,_Afg07,AV131)*$C$117+VLOOKUP($CR$43,_Afg07,AV131)*$C$119+VLOOKUP($CR$45,_Afg07,AV131)*$C$121+VLOOKUP($CR$47,_Afg07,AV131)*$C$123+VLOOKUP($CR$49,_Afg07,AV131)*$C$125)/$C$127 ->  | AW186: =(VLOOKUP($CR$37,_Afg07,AW131)*$C$113*IF($E$113<>"",$E$113,VLOOKUP($CR$37,_Afg07,Udbyttenr))+VLOOKUP($CR$39,_Afg07,AW131)*$C$115*IF($E$115<>"",$E$115,VLOOKUP($CR$39,_Afg07,Udbyttenr))+VLOOKUP($CR$41,_Afg07,AW131)*$C$117*IF($E$117<>"",$E$117,VLOOKUP($CR$41,_Afg07,Udbyttenr))+VLOOKUP($CR$43,_Afg07,AW131)*$C$119*IF($E$119<>"",$E$119,VLOOKUP($CR$43,_Afg07,Udbyttenr))+VLOOKUP($CR$45,_Afg07,AW131)*$C$121*IF($E$121<>"",$E$121,VLOOKUP($CR$45,_Afg07,Udbyttenr))+VLOOKUP($CR$47,_Afg07,AW131)*$C$123*IF($E$123<>"",$E$123,VLOOKUP($CR$47,_Afg07,Udbyttenr))+VLOOKUP($CR$49,_Afg07,AW131)*$C$125*IF($E$125<>"",$E$125,VLOOKUP($CR$49,_Afg07,Udbyttenr)))/($C$127*VLOOKUP($O$186,_Afg07,Udbyttenr)) ->  | AX186: =(VLOOKUP($CR$37,_Afg07,AX131)*$C$113*VLOOKUP($CR$37,_Afg07,Halmnr)+VLOOKUP($CR$39,_Afg07,AX131)*$C$115*VLOOKUP($CR$39,_Afg07,Halmnr)+VLOOKUP($CR$41,_Afg07,AX131)*$C$117*VLOOKUP($CR$41,_Afg07,Halmnr)+VLOOKUP($CR$43,_Afg07,AX131)*$C$119*VLOOKUP($CR$43,_Afg07,Halmnr)+VLOOKUP($CR$45,_Afg07,AX131)*$C$121*VLOOKUP($CR$45,_Afg07,Halmnr)+VLOOKUP($CR$47,_Afg07,AX131)*$C$123*VLOOKUP($CR$47,_Afg07,Halmnr)+VLOOKUP($CR$49,_Afg07,AX131)*$C$125*VLOOKUP($CR$49,_Afg07,Halmnr))/($C$127*VLOOKUP($O$186,_Afg07,Halmnr)) ->  | AY186: =(VLOOKUP($CR$37,_Afg07,AY131)*$C$113*IF($E$113<>"",$E$113,VLOOKUP($CR$37,_Afg07,Udbyttenr))+VLOOKUP($CR$39,_Afg07,AY131)*$C$115*IF($E$115<>"",$E$115,VLOOKUP($CR$39,_Afg07,Udbyttenr))+VLOOKUP($CR$41,_Afg07,AY131)*$C$117*IF($E$117<>"",$E$117,VLOOKUP($CR$41,_Afg07,Udbyttenr))+VLOOKUP($CR$43,_Afg07,AY131)*$C$119*IF($E$119<>"",$E$119,VLOOKUP($CR$43,_Afg07,Udbyttenr))+VLOOKUP($CR$45,_Afg07,AY131)*$C$121*IF($E$121<>"",$E$121,VLOOKUP($CR$45,_Afg07,Udbyttenr))+VLOOKUP($CR$47,_Afg07,AY131)*$C$123*IF($E$123<>"",$E$123,VLOOKUP($CR$47,_Afg07,Udbyttenr))+VLOOKUP($CR$49,_Afg07,AY131)*$C$125*IF($E$125<>"",$E$125,VLOOKUP($CR$49,_Afg07,Udbyttenr)))/($C$127*VLOOKUP($O$186,_Afg07,Udbyttenr)) ->  | AZ186: Sædskifte 2 | BA186: =(VLOOKUP($CR$37,_Afg07,BA131)*$C$113+VLOOKUP($CR$39,_Afg07,BA131)*$C$115+VLOOKUP($CR$41,_Afg07,BA131)*$C$117+VLOOKUP($CR$43,_Afg07,BA131)*$C$119+VLOOKUP($CR$45,_Afg07,BA131)*$C$121+VLOOKUP($CR$47,_Afg07,BA131)*$C$123+VLOOKUP($CR$49,_Afg07,BA131)*$C$125)/$C$127 ->  | BK186: =(IF(AND(VLOOKUP($CR$37,_Afg07,$BR$131)=1,$CU$3=4),0,VLOOKUP($CR$37,_Afg07,BK131)*$C$113*IF($E$113<>"",$E$113,VLOOKUP($CR$37,_Afg07,Udbyttenr)))+IF(AND(VLOOKUP($CR$39,_Afg07,$BR$131)=1,$CU$3=4),0,VLOOKUP($CR$39,_Afg07,BK131)*$C$115*IF($E$115<>"",$E$115,VLOOKUP($CR$39,_Afg07,Udbyttenr)))+IF(AND(VLOOKUP($CR$41,_Afg07,$BR$131)=1,$CU$3=4),0,VLOOKUP($CR$41,_Afg07,BK131)*$C$117*IF($E$117<>"",$E$117,VLOOKUP($CR$41,_Afg07,Udbyttenr)))+IF(AND(VLOOKUP($CR$43,_Afg07,$BR$131)=1,$CU$3=4),0,VLOOKUP($CR$43,_Afg07,BK131)*$C$119*IF($E$119<>"",$E$119,VLOOKUP($CR$43,_Afg07,Udbyttenr)))+IF(AND(VLOOKUP($CR$45,_Afg07,$BR$131)=1,$CU$3=4),0,VLOOKUP($CR$45,_Afg07,BK131)*$C$121*IF($E$121<>"",$E$121,VLOOKUP($CR$45,_Afg07,Udbyttenr)))+IF(AND(VLOOKUP($CR$47,_Afg07,$BR$131)=1,$CU$3=4),0,VLOOKUP($CR$47,_Afg07,BK131)*$C$123*IF($E$123<>"",$E$123,VLOOKUP($CR$47,_Afg07,Udbyttenr)))+IF(AND(VLOOKUP($CR$49,_Afg07,$BR$131)=1,$CU$3=4),0,VLOOKUP($CR$49,_Afg07,BK131)*$C$125*IF($E$125<>"",$E$125,VLOOKUP($CR$49,_Afg07,Udbyttenr))))/($C$127*VLOOKUP($O$186,_Afg07,Udbyttenr)) ->  | BL186: =(IF(AND(VLOOKUP($CR$37,_Afg07,$BR$131)=1,$CU$3=4),0,VLOOKUP($CR$37,_Afg07,BL131)*$C$113*IF($E$113<>"",$E$113,VLOOKUP($CR$37,_Afg07,Udbyttenr)))+IF(AND(VLOOKUP($CR$39,_Afg07,$BR$131)=1,$CU$3=4),0,VLOOKUP($CR$39,_Afg07,BL131)*$C$115*IF($E$115<>"",$E$115,VLOOKUP($CR$39,_Afg07,Udbyttenr)))+IF(AND(VLOOKUP($CR$41,_Afg07,$BR$131)=1,$CU$3=4),0,VLOOKUP($CR$41,_Afg07,BL131)*$C$117*IF($E$117<>"",$E$117,VLOOKUP($CR$41,_Afg07,Udbyttenr)))+IF(AND(VLOOKUP($CR$43,_Afg07,$BR$131)=1,$CU$3=4),0,VLOOKUP($CR$43,_Afg07,BL131)*$C$119*IF($E$119<>"",$E$119,VLOOKUP($CR$43,_Afg07,Udbyttenr)))+IF(AND(VLOOKUP($CR$45,_Afg07,$BR$131)=1,$CU$3=4),0,VLOOKUP($CR$45,_Afg07,BL131)*$C$121*IF($E$121<>"",$E$121,VLOOKUP($CR$45,_Afg07,Udbyttenr)))+IF(AND(VLOOKUP($CR$47,_Afg07,$BR$131)=1,$CU$3=4),0,VLOOKUP($CR$47,_Afg07,BL131)*$C$123*IF($E$123<>"",$E$123,VLOOKUP($CR$47,_Afg07,Udbyttenr)))+IF(AND(VLOOKUP($CR$49,_Afg07,$BR$131)=1,$CU$3=4),0,VLOOKUP($CR$49,_Afg07,BL131)*$C$125*IF($E$125<>"",$E$125,VLOOKUP($CR$49,_Afg07,Udbyttenr))))/($C$127*VLOOKUP($O$186,_Afg07,Udbyttenr)) ->  | BM186: =(IF(AND(VLOOKUP($CR$37,_Afg07,$BR$131)=1,$CU$3=4),0,VLOOKUP($CR$37,_Afg07,BM131)*$C$113*IF($E$113<>"",$E$113,VLOOKUP($CR$37,_Afg07,Udbyttenr)))+IF(AND(VLOOKUP($CR$39,_Afg07,$BR$131)=1,$CU$3=4),0,VLOOKUP($CR$39,_Afg07,BM131)*$C$115*IF($E$115<>"",$E$115,VLOOKUP($CR$39,_Afg07,Udbyttenr)))+IF(AND(VLOOKUP($CR$41,_Afg07,$BR$131)=1,$CU$3=4),0,VLOOKUP($CR$41,_Afg07,BM131)*$C$117*IF($E$117<>"",$E$117,VLOOKUP($CR$41,_Afg07,Udbyttenr)))+IF(AND(VLOOKUP($CR$43,_Afg07,$BR$131)=1,$CU$3=4),0,VLOOKUP($CR$43,_Afg07,BM131)*$C$119*IF($E$119<>"",$E$119,VLOOKUP($CR$43,_Afg07,Udbyttenr)))+IF(AND(VLOOKUP($CR$45,_Afg07,$BR$131)=1,$CU$3=4),0,VLOOKUP($CR$45,_Afg07,BM131)*$C$121*IF($E$121<>"",$E$121,VLOOKUP($CR$45,_Afg07,Udbyttenr)))+IF(AND(VLOOKUP($CR$47,_Afg07,$BR$131)=1,$CU$3=4),0,VLOOKUP($CR$47,_Afg07,BM131)*$C$123*IF($E$123<>"",$E$123,VLOOKUP($CR$47,_Afg07,Udbyttenr)))+IF(AND(VLOOKUP($CR$49,_Afg07,$BR$131)=1,$CU$3=4),0,VLOOKUP($CR$49,_Afg07,BM131)*$C$125*IF($E$125<>"",$E$125,VLOOKUP($CR$49,_Afg07,Udbyttenr))))/($C$127*VLOOKUP($O$186,_Afg07,Udbyttenr)) ->  | BN186: =(IF(VLOOKUP($CR$37,_Afg07,$BR$131)=1,VLOOKUP($CR$37,_Afg07,BN131)*$C$113*IF($E$113<>"",$E$113,VLOOKUP($CR$37,_Afg07,Udbyttenr)),0)+IF(VLOOKUP($CR$39,_Afg07,$BR$131)=1,VLOOKUP($CR$39,_Afg07,BN131)*$C$115*IF($E$115<>"",$E$115,VLOOKUP($CR$39,_Afg07,Udbyttenr)),0)+IF(VLOOKUP($CR$41,_Afg07,$BR$131)=1,VLOOKUP($CR$41,_Afg07,BN131)*$C$117*IF($E$117<>"",$E$117,VLOOKUP($CR$41,_Afg07,Udbyttenr)),0)+IF(VLOOKUP($CR$43,_Afg07,$BR$131)=1,VLOOKUP($CR$43,_Afg07,BN131)*$C$119*IF($E$119<>"",$E$119,VLOOKUP($CR$43,_Afg07,Udbyttenr)),0)+IF(VLOOKUP($CR$45,_Afg07,$BR$131)=1,VLOOKUP($CR$45,_Afg07,BN131)*$C$121*IF($E$121<>"",$E$121,VLOOKUP($CR$45,_Afg07,Udbyttenr)),0)+IF(VLOOKUP($CR$47,_Afg07,$BR$131)=1,VLOOKUP($CR$47,_Afg07,BN131)*$C$123*IF($E$123<>"",$E$123,VLOOKUP($CR$47,_Afg07,Udbyttenr)),0)+IF(VLOOKUP($CR$49,_Afg07,$BR$131)=1,VLOOKUP($CR$49,_Afg07,BN131)*$C$125*IF($E$125<>"",$E$125,VLOOKUP($CR$49,_Afg07,Udbyttenr)),0))/($CU$51) ->  | BO186: =(IF(VLOOKUP($CR$37,_Afg07,$BR$131)=1,VLOOKUP($CR$37,_Afg07,BO131)*$C$113*IF($E$113<>"",$E$113,VLOOKUP($CR$37,_Afg07,Udbyttenr)),0)+IF(VLOOKUP($CR$39,_Afg07,$BR$131)=1,VLOOKUP($CR$39,_Afg07,BO131)*$C$115*IF($E$115<>"",$E$115,VLOOKUP($CR$39,_Afg07,Udbyttenr)),0)+IF(VLOOKUP($CR$41,_Afg07,$BR$131)=1,VLOOKUP($CR$41,_Afg07,BO131)*$C$117*IF($E$117<>"",$E$117,VLOOKUP($CR$41,_Afg07,Udbyttenr)),0)+IF(VLOOKUP($CR$43,_Afg07,$BR$131)=1,VLOOKUP($CR$43,_Afg07,BO131)*$C$119*IF($E$119<>"",$E$119,VLOOKUP($CR$43,_Afg07,Udbyttenr)),0)+IF(VLOOKUP($CR$45,_Afg07,$BR$131)=1,VLOOKUP($CR$45,_Afg07,BO131)*$C$121*IF($E$121<>"",$E$121,VLOOKUP($CR$45,_Afg07,Udbyttenr)),0)+IF(VLOOKUP($CR$47,_Afg07,$BR$131)=1,VLOOKUP($CR$47,_Afg07,BO131)*$C$123*IF($E$123<>"",$E$123,VLOOKUP($CR$47,_Afg07,Udbyttenr)),0)+IF(VLOOKUP($CR$49,_Afg07,$BR$131)=1,VLOOKUP($CR$49,_Afg07,BO131)*$C$125*IF($E$125<>"",$E$125,VLOOKUP($CR$49,_Afg07,Udbyttenr)),0))/($CU$51) ->  | BP186: =(IF(VLOOKUP($CR$37,_Afg07,$BR$131)=1,VLOOKUP($CR$37,_Afg07,BP131)*$C$113*IF($E$113<>"",$E$113,VLOOKUP($CR$37,_Afg07,Udbyttenr)),0)+IF(VLOOKUP($CR$39,_Afg07,$BR$131)=1,VLOOKUP($CR$39,_Afg07,BP131)*$C$115*IF($E$115<>"",$E$115,VLOOKUP($CR$39,_Afg07,Udbyttenr)),0)+IF(VLOOKUP($CR$41,_Afg07,$BR$131)=1,VLOOKUP($CR$41,_Afg07,BP131)*$C$117*IF($E$117<>"",$E$117,VLOOKUP($CR$41,_Afg07,Udbyttenr)),0)+IF(VLOOKUP($CR$43,_Afg07,$BR$131)=1,VLOOKUP($CR$43,_Afg07,BP131)*$C$119*IF($E$119<>"",$E$119,VLOOKUP($CR$43,_Afg07,Udbyttenr)),0)+IF(VLOOKUP($CR$45,_Afg07,$BR$131)=1,VLOOKUP($CR$45,_Afg07,BP131)*$C$121*IF($E$121<>"",$E$121,VLOOKUP($CR$45,_Afg07,Udbyttenr)),0)+IF(VLOOKUP($CR$47,_Afg07,$BR$131)=1,VLOOKUP($CR$47,_Afg07,BP131)*$C$123*IF($E$123<>"",$E$123,VLOOKUP($CR$47,_Afg07,Udbyttenr)),0)+IF(VLOOKUP($CR$49,_Afg07,$BR$131)=1,VLOOKUP($CR$49,_Afg07,BP131)*$C$125*IF($E$125<>"",$E$125,VLOOKUP($CR$49,_Afg07,Udbyttenr)),0))/($CU$51) ->  | BQ186: =(IF(VLOOKUP($CR$37,_Afg07,$BR$131)=1,VLOOKUP($CR$37,_Afg07,BQ131)*$C$113*IF($E$113<>"",$E$113,VLOOKUP($CR$37,_Afg07,Udbyttenr)),0)+IF(VLOOKUP($CR$39,_Afg07,$BR$131)=1,VLOOKUP($CR$39,_Afg07,BQ131)*$C$115*IF($E$115<>"",$E$115,VLOOKUP($CR$39,_Afg07,Udbyttenr)),0)+IF(VLOOKUP($CR$41,_Afg07,$BR$131)=1,VLOOKUP($CR$41,_Afg07,BQ131)*$C$117*IF($E$117<>"",$E$117,VLOOKUP($CR$41,_Afg07,Udbyttenr)),0)+IF(VLOOKUP($CR$43,_Afg07,$BR$131)=1,VLOOKUP($CR$43,_Afg07,BQ131)*$C$119*IF($E$119<>"",$E$119,VLOOKUP($CR$43,_Afg07,Udbyttenr)),0)+IF(VLOOKUP($CR$45,_Afg07,$BR$131)=1,VLOOKUP($CR$45,_Afg07,BQ131)*$C$121*IF($E$121<>"",$E$121,VLOOKUP($CR$45,_Afg07,Udbyttenr)),0)+IF(VLOOKUP($CR$47,_Afg07,$BR$131)=1,VLOOKUP($CR$47,_Afg07,BQ131)*$C$123*IF($E$123<>"",$E$123,VLOOKUP($CR$47,_Afg07,Udbyttenr)),0)+IF(VLOOKUP($CR$49,_Afg07,$BR$131)=1,VLOOKUP($CR$49,_Afg07,BQ131)*$C$125*IF($E$125<>"",$E$125,VLOOKUP($CR$49,_Afg07,Udbyttenr)),0))/($CU$51) ->  | BR186: 4 | CI186: Sædskifte 2
A187: Dækningsbidrag | B187: =IF($E$174="","",IF(CR$16=O$185,C44,IF(CS$16=O$185,G44,IF(CT$16=O$185,K44,"")))*C$107) ->  | D187: =IF(B187="","","kr.") ->  | F187: =IF($H$174="","",IF(CR$16=O$186,C44,IF(CS$16=O$186,G44,IF(CT$16=O$186,K44,"")))*C$127) ->  | H187: =IF(F187="","","kr.") ->  | J187: =IF(AND($E$174<>"",$H$174<>""),F187-B187,"") ->  | L187: =IF(J187="","","kr.") -> 
R188: Udbytte | S188: Hektar | X188: Hektar | AC188: Hektar | AH188: Hektar | AI188: Hektar | AJ188: Hektar | AK188: Hektar | AM188: Hektar | AR188: Hektar | AS188: Hektar | AT188: Udbytte | AU188: Halm | AV188: Hektar | AW188: Udbytte | AX188: Halm | AY188: Udbytte | BA188: Hektarrelateret | BF188: Hektar | BK188: Udbytte | BL188: Udbytte | BN188: Udbytterelateret, men skal kun regnes for korn
A189: Maskiner og arbejde | B189: =IF($E$174="","",IF(CR$16=O$185,C46,IF(CS$16=O$185,G46,IF(CT$16=O$185,K46,"")))*C$107) ->  | D189: =IF(B189="","","kr.") ->  | F189: =IF($H$174="","",IF(CR$16=O$186,C46,IF(CS$16=O$186,G46,IF(CT$16=O$186,K46,"")))*C$127) ->  | H189: =IF(F189="","","kr.") ->  | J189: =IF(AND($E$174<>"",$H$174<>""),F189-B189,"") ->  | L189: =IF(J189="","","kr.") ->  | O189: 1 | P189: 2 | Q189: 3 | R189: 4 | S189: 5 | T189: 6 | U189: 7 | V189: 8 | W189: 9 | X189: 10 | Y189: 11 | Z189: 12 | AA189: 13 | AB189: 14 | AC189: 15 | AD189: 16 | AE189: 17 | AF189: 18 | AG189: 19 | AH189: 20 | AI189: 21 | AJ189: 22 | AK189: 23 | AL189: 24 | AM189: 25 | AN189: 26 | AO189: 27 | AP189: 28 | AQ189: 29 | AR189: 30 | AS189: 31 | AT189: 32 | AU189: 33 | AV189: 34 | AW189: 35 | AX189: 36 | AY189: 37 | AZ189: 38 | BA189: 39 | BB189: 40 | BC189: 41 | BD189: 42 | BE189: 43 | BF189: 44 | BG189: 45 | BH189: 46 | BI189: 47 | BJ189: 48 | BK189: 49 | BL189: 50 | BM189: 51 | BN189: 52 | BO189: 53 | BP189: 54 | BQ189: 55 | BR189: 56 | CI189: 57
A190: =IF(Tørringnr=1,"Tørring (løntørring)","Tørring (korn i eget tørreri)") -> Tørring (korn i eget tørreri) | B190: =IF($E$174="","",IF(CR$16=O$185,C47,IF(CS$16=O$185,G47,IF(CT$16=O$185,K47,"")))*C$107) ->  | D190: =IF(B190="","","kr.") ->  | F190: =IF($H$174="","",IF(CR$16=O$186,C47,IF(CS$16=O$186,G47,IF(CT$16=O$186,K47,"")))*C$127) ->  | H190: =IF(F190="","","kr.") ->  | J190: =IF(AND($E$174<>"",$H$174<>""),F190-B190,"") ->  | L190: =IF(J190="","","kr.") ->  | O190: 1 | X190: =(IF(VLOOKUP($CR$36,_Afg07,$BR$131)=1,VLOOKUP($CR$36,_Afg07,X131)*$C$93,0)+IF(VLOOKUP($CR$38,_Afg07,$BR$131)=1,VLOOKUP($CR$38,_Afg07,X131)*$C$95,0)+IF(VLOOKUP($CR$40,_Afg07,$BR$131)=1,VLOOKUP($CR$40,_Afg07,X131)*$C$97,0)+IF(VLOOKUP($CR$42,_Afg07,$BR$131)=1,VLOOKUP($CR$42,_Afg07,X131)*$C$99,0)+IF(VLOOKUP($CR$44,_Afg07,$BR$131)=1,VLOOKUP($CR$44,_Afg07,X131)*$C$101,0)+IF(VLOOKUP($CR$46,_Afg07,$BR$131)=1,VLOOKUP($CR$46,_Afg07,X131)*$C$103,0)+IF(VLOOKUP($CR$48,_Afg07,$BR$131)=1,VLOOKUP($CR$48,_Afg07,X131)*$C$105,0))/($CV$50) ->  | Y190: =(IF(VLOOKUP($CR$36,_Afg07,$BR$131)=1,VLOOKUP($CR$36,_Afg07,Y131)*$C$93,0)+IF(VLOOKUP($CR$38,_Afg07,$BR$131)=1,VLOOKUP($CR$38,_Afg07,Y131)*$C$95,0)+IF(VLOOKUP($CR$40,_Afg07,$BR$131)=1,VLOOKUP($CR$40,_Afg07,Y131)*$C$97,0)+IF(VLOOKUP($CR$42,_Afg07,$BR$131)=1,VLOOKUP($CR$42,_Afg07,Y131)*$C$99,0)+IF(VLOOKUP($CR$44,_Afg07,$BR$131)=1,VLOOKUP($CR$44,_Afg07,Y131)*$C$101,0)+IF(VLOOKUP($CR$46,_Afg07,$BR$131)=1,VLOOKUP($CR$46,_Afg07,Y131)*$C$103,0)+IF(VLOOKUP($CR$48,_Afg07,$BR$131)=1,VLOOKUP($CR$48,_Afg07,Y131)*$C$105,0))/($CV$50) ->  | Z190: =(IF(VLOOKUP($CR$36,_Afg07,$BR$131)=1,VLOOKUP($CR$36,_Afg07,Z131)*$C$93,0)+IF(VLOOKUP($CR$38,_Afg07,$BR$131)=1,VLOOKUP($CR$38,_Afg07,Z131)*$C$95,0)+IF(VLOOKUP($CR$40,_Afg07,$BR$131)=1,VLOOKUP($CR$40,_Afg07,Z131)*$C$97,0)+IF(VLOOKUP($CR$42,_Afg07,$BR$131)=1,VLOOKUP($CR$42,_Afg07,Z131)*$C$99,0)+IF(VLOOKUP($CR$44,_Afg07,$BR$131)=1,VLOOKUP($CR$44,_Afg07,Z131)*$C$101,0)+IF(VLOOKUP($CR$46,_Afg07,$BR$131)=1,VLOOKUP($CR$46,_Afg07,Z131)*$C$103,0)+IF(VLOOKUP($CR$48,_Afg07,$BR$131)=1,VLOOKUP($CR$48,_Afg07,Z131)*$C$105,0))/($CV$50) ->  | AA190: =(IF(VLOOKUP($CR$36,_Afg07,$BR$131)=1,VLOOKUP($CR$36,_Afg07,AA131)*$C$93,0)+IF(VLOOKUP($CR$38,_Afg07,$BR$131)=1,VLOOKUP($CR$38,_Afg07,AA131)*$C$95,0)+IF(VLOOKUP($CR$40,_Afg07,$BR$131)=1,VLOOKUP($CR$40,_Afg07,AA131)*$C$97,0)+IF(VLOOKUP($CR$42,_Afg07,$BR$131)=1,VLOOKUP($CR$42,_Afg07,AA131)*$C$99,0)+IF(VLOOKUP($CR$44,_Afg07,$BR$131)=1,VLOOKUP($CR$44,_Afg07,AA131)*$C$101,0)+IF(VLOOKUP($CR$46,_Afg07,$BR$131)=1,VLOOKUP($CR$46,_Afg07,AA131)*$C$103,0)+IF(VLOOKUP($CR$48,_Afg07,$BR$131)=1,VLOOKUP($CR$48,_Afg07,AA131)*$C$105,0))/($CV$50) ->  | AB190: =(IF(VLOOKUP($CR$36,_Afg07,$BR$131)=1,VLOOKUP($CR$36,_Afg07,AB131)*$C$93,0)+IF(VLOOKUP($CR$38,_Afg07,$BR$131)=1,VLOOKUP($CR$38,_Afg07,AB131)*$C$95,0)+IF(VLOOKUP($CR$40,_Afg07,$BR$131)=1,VLOOKUP($CR$40,_Afg07,AB131)*$C$97,0)+IF(VLOOKUP($CR$42,_Afg07,$BR$131)=1,VLOOKUP($CR$42,_Afg07,AB131)*$C$99,0)+IF(VLOOKUP($CR$44,_Afg07,$BR$131)=1,VLOOKUP($CR$44,_Afg07,AB131)*$C$101,0)+IF(VLOOKUP($CR$46,_Afg07,$BR$131)=1,VLOOKUP($CR$46,_Afg07,AB131)*$C$103,0)+IF(VLOOKUP($CR$48,_Afg07,$BR$131)=1,VLOOKUP($CR$48,_Afg07,AB131)*$C$105,0))/($CV$50) ->  | AI190: =(IF(VLOOKUP($CR$36,_Afg07,$BR$131)=1,VLOOKUP($CR$36,_Afg07,AI131)*$C$93,0)+IF(VLOOKUP($CR$38,_Afg07,$BR$131)=1,VLOOKUP($CR$38,_Afg07,AI131)*$C$95,0)+IF(VLOOKUP($CR$40,_Afg07,$BR$131)=1,VLOOKUP($CR$40,_Afg07,AI131)*$C$97,0)+IF(VLOOKUP($CR$42,_Afg07,$BR$131)=1,VLOOKUP($CR$42,_Afg07,AI131)*$C$99,0)+IF(VLOOKUP($CR$44,_Afg07,$BR$131)=1,VLOOKUP($CR$44,_Afg07,AI131)*$C$101,0)+IF(VLOOKUP($CR$46,_Afg07,$BR$131)=1,VLOOKUP($CR$46,_Afg07,AI131)*$C$103,0)+IF(VLOOKUP($CR$48,_Afg07,$BR$131)=1,VLOOKUP($CR$48,_Afg07,AI131)*$C$105,0))/($CV$50) ->  | AJ190: =(IF(VLOOKUP($CR$36,_Afg07,$BR$131)=1,VLOOKUP($CR$36,_Afg07,AJ131)*$C$93,0)+IF(VLOOKUP($CR$38,_Afg07,$BR$131)=1,VLOOKUP($CR$38,_Afg07,AJ131)*$C$95,0)+IF(VLOOKUP($CR$40,_Afg07,$BR$131)=1,VLOOKUP($CR$40,_Afg07,AJ131)*$C$97,0)+IF(VLOOKUP($CR$42,_Afg07,$BR$131)=1,VLOOKUP($CR$42,_Afg07,AJ131)*$C$99,0)+IF(VLOOKUP($CR$44,_Afg07,$BR$131)=1,VLOOKUP($CR$44,_Afg07,AJ131)*$C$101,0)+IF(VLOOKUP($CR$46,_Afg07,$BR$131)=1,VLOOKUP($CR$46,_Afg07,AJ131)*$C$103,0)+IF(VLOOKUP($CR$48,_Afg07,$BR$131)=1,VLOOKUP($CR$48,_Afg07,AJ131)*$C$105,0))/($CV$50) ->  | AK190: =(IF(VLOOKUP($CR$36,_Afg07,$BR$131)=1,VLOOKUP($CR$36,_Afg07,AK131)*$C$93,0)+IF(VLOOKUP($CR$38,_Afg07,$BR$131)=1,VLOOKUP($CR$38,_Afg07,AK131)*$C$95,0)+IF(VLOOKUP($CR$40,_Afg07,$BR$131)=1,VLOOKUP($CR$40,_Afg07,AK131)*$C$97,0)+IF(VLOOKUP($CR$42,_Afg07,$BR$131)=1,VLOOKUP($CR$42,_Afg07,AK131)*$C$99,0)+IF(VLOOKUP($CR$44,_Afg07,$BR$131)=1,VLOOKUP($CR$44,_Afg07,AK131)*$C$101,0)+IF(VLOOKUP($CR$46,_Afg07,$BR$131)=1,VLOOKUP($CR$46,_Afg07,AK131)*$C$103,0)+IF(VLOOKUP($CR$48,_Afg07,$BR$131)=1,VLOOKUP($CR$48,_Afg07,AK131)*$C$105,0))/($CV$50) ->  | AM190: =(IF(VLOOKUP($CR$36,_Afg07,$BR$131)=1,VLOOKUP($CR$36,_Afg07,AM131)*$C$93,0)+IF(VLOOKUP($CR$38,_Afg07,$BR$131)=1,VLOOKUP($CR$38,_Afg07,AM131)*$C$95,0)+IF(VLOOKUP($CR$40,_Afg07,$BR$131)=1,VLOOKUP($CR$40,_Afg07,AM131)*$C$97,0)+IF(VLOOKUP($CR$42,_Afg07,$BR$131)=1,VLOOKUP($CR$42,_Afg07,AM131)*$C$99,0)+IF(VLOOKUP($CR$44,_Afg07,$BR$131)=1,VLOOKUP($CR$44,_Afg07,AM131)*$C$101,0)+IF(VLOOKUP($CR$46,_Afg07,$BR$131)=1,VLOOKUP($CR$46,_Afg07,AM131)*$C$103,0)+IF(VLOOKUP($CR$48,_Afg07,$BR$131)=1,VLOOKUP($CR$48,_Afg07,AM131)*$C$105,0))/($CV$50) ->  | AT190: =(IF(VLOOKUP($CR$36,_Afg07,$BR$131)=1,VLOOKUP($CR$36,_Afg07,AT131)*$C$93*IF($E$93<>"",$E$93,VLOOKUP($CR$36,_Afg07,Udbyttenr)),0)+IF(VLOOKUP($CR$38,_Afg07,$BR$131)=1,VLOOKUP($CR$38,_Afg07,AT131)*$C$95*IF($E$95<>"",$E$95,VLOOKUP($CR$38,_Afg07,Udbyttenr)),0)+IF(VLOOKUP($CR$40,_Afg07,$BR$131)=1,VLOOKUP($CR$40,_Afg07,AT131)*$C$97*IF($E$97<>"",$E$97,VLOOKUP($CR$40,_Afg07,Udbyttenr)),0)+IF(VLOOKUP($CR$42,_Afg07,$BR$131)=1,VLOOKUP($CR$42,_Afg07,AT131)*$C$99*IF($E$99<>"",$E$99,VLOOKUP($CR$42,_Afg07,Udbyttenr)),0)+IF(VLOOKUP($CR$44,_Afg07,$BR$131)=1,VLOOKUP($CR$44,_Afg07,AT131)*$C$101*IF($E$101<>"",$E$101,VLOOKUP($CR$44,_Afg07,Udbyttenr)),0)+IF(VLOOKUP($CR$46,_Afg07,$BR$131)=1,VLOOKUP($CR$46,_Afg07,AT131)*$C$103*IF($E$103<>"",$E$103,VLOOKUP($CR$46,_Afg07,Udbyttenr)),0)+IF(VLOOKUP($CR$48,_Afg07,$BR$131)=1,VLOOKUP($CR$48,_Afg07,AT131)*$C$105*IF($E$105<>"",$E$105,VLOOKUP($CR$48,_Afg07,Udbyttenr)),0))/($CU$50) ->  | AU190: =(IF(VLOOKUP($CR$36,_Afg07,$BR$131)=1,VLOOKUP($CR$36,_Afg07,AU131)*$C$93*VLOOKUP($CR$36,_Afg07,Halmnr),0)+IF(VLOOKUP($CR$38,_Afg07,$BR$131)=1,VLOOKUP($CR$38,_Afg07,AU131)*$C$95*VLOOKUP($CR$38,_Afg07,Halmnr),0)+IF(VLOOKUP($CR$40,_Afg07,$BR$131)=1,VLOOKUP($CR$40,_Afg07,AU131)*$C$97*VLOOKUP($CR$40,_Afg07,Halmnr),0)+IF(VLOOKUP($CR$42,_Afg07,$BR$131)=1,VLOOKUP($CR$42,_Afg07,AU131)*$C$99*VLOOKUP($CR$42,_Afg07,Halmnr),0)+IF(VLOOKUP($CR$44,_Afg07,$BR$131)=1,VLOOKUP($CR$44,_Afg07,AU131)*$C$101*VLOOKUP($CR$44,_Afg07,Halmnr),0)+IF(VLOOKUP($CR$46,_Afg07,$BR$131)=1,VLOOKUP($CR$46,_Afg07,AU131)*$C$103*VLOOKUP($CR$46,_Afg07,Halmnr),0)+IF(VLOOKUP($CR$48,_Afg07,$BR$131)=1,VLOOKUP($CR$48,_Afg07,AU131)*$C$105*VLOOKUP($CR$48,_Afg07,Halmnr),0))/($CY$50) ->  | AV190: =(IF(VLOOKUP($CR$36,_Afg07,$BR$131)=1,VLOOKUP($CR$36,_Afg07,AV131)*$C$93,0)+IF(VLOOKUP($CR$38,_Afg07,$BR$131)=1,VLOOKUP($CR$38,_Afg07,AV131)*$C$95,0)+IF(VLOOKUP($CR$40,_Afg07,$BR$131)=1,VLOOKUP($CR$40,_Afg07,AV131)*$C$97,0)+IF(VLOOKUP($CR$42,_Afg07,$BR$131)=1,VLOOKUP($CR$42,_Afg07,AV131)*$C$99,0)+IF(VLOOKUP($CR$44,_Afg07,$BR$131)=1,VLOOKUP($CR$44,_Afg07,AV131)*$C$101,0)+IF(VLOOKUP($CR$46,_Afg07,$BR$131)=1,VLOOKUP($CR$46,_Afg07,AV131)*$C$103,0)+IF(VLOOKUP($CR$48,_Afg07,$BR$131)=1,VLOOKUP($CR$48,_Afg07,AV131)*$C$105,0))/($CV$50) ->  | AW190: =(IF(VLOOKUP($CR$36,_Afg07,$BR$131)=1,VLOOKUP($CR$36,_Afg07,AW131)*$C$93*IF($E$93<>"",$E$93,VLOOKUP($CR$36,_Afg07,Udbyttenr)),0)+IF(VLOOKUP($CR$38,_Afg07,$BR$131)=1,VLOOKUP($CR$38,_Afg07,AW131)*$C$95*IF($E$95<>"",$E$95,VLOOKUP($CR$38,_Afg07,Udbyttenr)),0)+IF(VLOOKUP($CR$40,_Afg07,$BR$131)=1,VLOOKUP($CR$40,_Afg07,AW131)*$C$97*IF($E$97<>"",$E$97,VLOOKUP($CR$40,_Afg07,Udbyttenr)),0)+IF(VLOOKUP($CR$42,_Afg07,$BR$131)=1,VLOOKUP($CR$42,_Afg07,AW131)*$C$99*IF($E$99<>"",$E$99,VLOOKUP($CR$42,_Afg07,Udbyttenr)),0)+IF(VLOOKUP($CR$44,_Afg07,$BR$131)=1,VLOOKUP($CR$44,_Afg07,AW131)*$C$101*IF($E$101<>"",$E$101,VLOOKUP($CR$44,_Afg07,Udbyttenr)),0)+IF(VLOOKUP($CR$46,_Afg07,$BR$131)=1,VLOOKUP($CR$46,_Afg07,AW131)*$C$103*IF($E$103<>"",$E$103,VLOOKUP($CR$46,_Afg07,Udbyttenr)),0)+IF(VLOOKUP($CR$48,_Afg07,$BR$131)=1,VLOOKUP($CR$48,_Afg07,AW131)*$C$105*IF($E$105<>"",$E$105,VLOOKUP($CR$48,_Afg07,Udbyttenr)),0))/($CU$50) ->  | AX190: =(IF(VLOOKUP($CR$36,_Afg07,$BR$131)=1,VLOOKUP($CR$36,_Afg07,AX131)*$C$93*VLOOKUP($CR$36,_Afg07,Halmnr),0)+IF(VLOOKUP($CR$38,_Afg07,$BR$131)=1,VLOOKUP($CR$38,_Afg07,AX131)*$C$95*VLOOKUP($CR$38,_Afg07,Halmnr),0)+IF(VLOOKUP($CR$40,_Afg07,$BR$131)=1,VLOOKUP($CR$40,_Afg07,AX131)*$C$97*VLOOKUP($CR$40,_Afg07,Halmnr),0)+IF(VLOOKUP($CR$42,_Afg07,$BR$131)=1,VLOOKUP($CR$42,_Afg07,AX131)*$C$99*VLOOKUP($CR$42,_Afg07,Halmnr),0)+IF(VLOOKUP($CR$44,_Afg07,$BR$131)=1,VLOOKUP($CR$44,_Afg07,AX131)*$C$101*VLOOKUP($CR$44,_Afg07,Halmnr),0)+IF(VLOOKUP($CR$46,_Afg07,$BR$131)=1,VLOOKUP($CR$46,_Afg07,AX131)*$C$103*VLOOKUP($CR$46,_Afg07,Halmnr),0)+IF(VLOOKUP($CR$48,_Afg07,$BR$131)=1,VLOOKUP($CR$48,_Afg07,AX131)*$C$105*VLOOKUP($CR$48,_Afg07,Halmnr),0))/($CY$50) ->  | AY190: =(IF(VLOOKUP($CR$36,_Afg07,$BR$131)=1,VLOOKUP($CR$36,_Afg07,AY131)*$C$93*IF($E$93<>"",$E$93,VLOOKUP($CR$36,_Afg07,Udbyttenr)),0)+IF(VLOOKUP($CR$38,_Afg07,$BR$131)=1,VLOOKUP($CR$38,_Afg07,AY131)*$C$95*IF($E$95<>"",$E$95,VLOOKUP($CR$38,_Afg07,Udbyttenr)),0)+IF(VLOOKUP($CR$40,_Afg07,$BR$131)=1,VLOOKUP($CR$40,_Afg07,AY131)*$C$97*IF($E$97<>"",$E$97,VLOOKUP($CR$40,_Afg07,Udbyttenr)),0)+IF(VLOOKUP($CR$42,_Afg07,$BR$131)=1,VLOOKUP($CR$42,_Afg07,AY131)*$C$99*IF($E$99<>"",$E$99,VLOOKUP($CR$42,_Afg07,Udbyttenr)),0)+IF(VLOOKUP($CR$44,_Afg07,$BR$131)=1,VLOOKUP($CR$44,_Afg07,AY131)*$C$101*IF($E$101<>"",$E$101,VLOOKUP($CR$44,_Afg07,Udbyttenr)),0)+IF(VLOOKUP($CR$46,_Afg07,$BR$131)=1,VLOOKUP($CR$46,_Afg07,AY131)*$C$103*IF($E$103<>"",$E$103,VLOOKUP($CR$46,_Afg07,Udbyttenr)),0)+IF(VLOOKUP($CR$48,_Afg07,$BR$131)=1,VLOOKUP($CR$48,_Afg07,AY131)*$C$105*IF($E$105<>"",$E$105,VLOOKUP($CR$48,_Afg07,Udbyttenr)),0))/($CU$50) ->  | BA190: =(IF(VLOOKUP($CR$36,_Afg07,$BR$131)=1,VLOOKUP($CR$36,_Afg07,BA131)*$C$93,0)+IF(VLOOKUP($CR$38,_Afg07,$BR$131)=1,VLOOKUP($CR$38,_Afg07,BA131)*$C$95,0)+IF(VLOOKUP($CR$40,_Afg07,$BR$131)=1,VLOOKUP($CR$40,_Afg07,BA131)*$C$97,0)+IF(VLOOKUP($CR$42,_Afg07,$BR$131)=1,VLOOKUP($CR$42,_Afg07,BA131)*$C$99,0)+IF(VLOOKUP($CR$44,_Afg07,$BR$131)=1,VLOOKUP($CR$44,_Afg07,BA131)*$C$101,0)+IF(VLOOKUP($CR$46,_Afg07,$BR$131)=1,VLOOKUP($CR$46,_Afg07,BA131)*$C$103,0)+IF(VLOOKUP($CR$48,_Afg07,$BR$131)=1,VLOOKUP($CR$48,_Afg07,BA131)*$C$105,0))/($CV$50) ->  | BK190: =(IF(VLOOKUP($CR$36,_Afg07,$BR$131)=1,VLOOKUP($CR$36,_Afg07,BK131)*$C$93*IF($E$93<>"",$E$93,VLOOKUP($CR$36,_Afg07,Udbyttenr)),0)+IF(VLOOKUP($CR$38,_Afg07,$BR$131)=1,VLOOKUP($CR$38,_Afg07,BK131)*$C$95*IF($E$95<>"",$E$95,VLOOKUP($CR$38,_Afg07,Udbyttenr)),0)+IF(VLOOKUP($CR$40,_Afg07,$BR$131)=1,VLOOKUP($CR$40,_Afg07,BK131)*$C$97*IF($E$97<>"",$E$97,VLOOKUP($CR$40,_Afg07,Udbyttenr)),0)+IF(VLOOKUP($CR$42,_Afg07,$BR$131)=1,VLOOKUP($CR$42,_Afg07,BK131)*$C$99*IF($E$99<>"",$E$99,VLOOKUP($CR$42,_Afg07,Udbyttenr)),0)+IF(VLOOKUP($CR$44,_Afg07,$BR$131)=1,VLOOKUP($CR$44,_Afg07,BK131)*$C$101*IF($E$101<>"",$E$101,VLOOKUP($CR$44,_Afg07,Udbyttenr)),0)+IF(VLOOKUP($CR$46,_Afg07,$BR$131)=1,VLOOKUP($CR$46,_Afg07,BK131)*$C$103*IF($E$103<>"",$E$103,VLOOKUP($CR$46,_Afg07,Udbyttenr)),0)+IF(VLOOKUP($CR$48,_Afg07,$BR$131)=1,VLOOKUP($CR$48,_Afg07,BK131)*$C$105*IF($E$105<>"",$E$105,VLOOKUP($CR$48,_Afg07,Udbyttenr)),0))/($CU$50) ->  | BL190: =(IF(VLOOKUP($CR$36,_Afg07,$BR$131)=1,VLOOKUP($CR$36,_Afg07,BL131)*$C$93*IF($E$93<>"",$E$93,VLOOKUP($CR$36,_Afg07,Udbyttenr)),0)+IF(VLOOKUP($CR$38,_Afg07,$BR$131)=1,VLOOKUP($CR$38,_Afg07,BL131)*$C$95*IF($E$95<>"",$E$95,VLOOKUP($CR$38,_Afg07,Udbyttenr)),0)+IF(VLOOKUP($CR$40,_Afg07,$BR$131)=1,VLOOKUP($CR$40,_Afg07,BL131)*$C$97*IF($E$97<>"",$E$97,VLOOKUP($CR$40,_Afg07,Udbyttenr)),0)+IF(VLOOKUP($CR$42,_Afg07,$BR$131)=1,VLOOKUP($CR$42,_Afg07,BL131)*$C$99*IF($E$99<>"",$E$99,VLOOKUP($CR$42,_Afg07,Udbyttenr)),0)+IF(VLOOKUP($CR$44,_Afg07,$BR$131)=1,VLOOKUP($CR$44,_Afg07,BL131)*$C$101*IF($E$101<>"",$E$101,VLOOKUP($CR$44,_Afg07,Udbyttenr)),0)+IF(VLOOKUP($CR$46,_Afg07,$BR$131)=1,VLOOKUP($CR$46,_Afg07,BL131)*$C$103*IF($E$103<>"",$E$103,VLOOKUP($CR$46,_Afg07,Udbyttenr)),0)+IF(VLOOKUP($CR$48,_Afg07,$BR$131)=1,VLOOKUP($CR$48,_Afg07,BL131)*$C$105*IF($E$105<>"",$E$105,VLOOKUP($CR$48,_Afg07,Udbyttenr)),0))/($CU$50) ->  | BN190: =(IF(VLOOKUP($CR$36,_Afg07,$BR$131)=1,VLOOKUP($CR$36,_Afg07,BN131)*$C$93*IF($E$93<>"",$E$93,VLOOKUP($CR$36,_Afg07,Udbyttenr)),0)+IF(VLOOKUP($CR$38,_Afg07,$BR$131)=1,VLOOKUP($CR$38,_Afg07,BN131)*$C$95*IF($E$95<>"",$E$95,VLOOKUP($CR$38,_Afg07,Udbyttenr)),0)+IF(VLOOKUP($CR$40,_Afg07,$BR$131)=1,VLOOKUP($CR$40,_Afg07,BN131)*$C$97*IF($E$97<>"",$E$97,VLOOKUP($CR$40,_Afg07,Udbyttenr)),0)+IF(VLOOKUP($CR$42,_Afg07,$BR$131)=1,VLOOKUP($CR$42,_Afg07,BN131)*$C$99*IF($E$99<>"",$E$99,VLOOKUP($CR$42,_Afg07,Udbyttenr)),0)+IF(VLOOKUP($CR$44,_Afg07,$BR$131)=1,VLOOKUP($CR$44,_Afg07,BN131)*$C$101*IF($E$101<>"",$E$101,VLOOKUP($CR$44,_Afg07,Udbyttenr)),0)+IF(VLOOKUP($CR$46,_Afg07,$BR$131)=1,VLOOKUP($CR$46,_Afg07,BN131)*$C$103*IF($E$103<>"",$E$103,VLOOKUP($CR$46,_Afg07,Udbyttenr)),0)+IF(VLOOKUP($CR$48,_Afg07,$BR$131)=1,VLOOKUP($CR$48,_Afg07,BN131)*$C$105*IF($E$105<>"",$E$105,VLOOKUP($CR$48,_Afg07,Udbyttenr)),0))/($CU$50) ->  | BO190: =(IF(VLOOKUP($CR$36,_Afg07,$BR$131)=1,VLOOKUP($CR$36,_Afg07,BO131)*$C$93*IF($E$93<>"",$E$93,VLOOKUP($CR$36,_Afg07,Udbyttenr)),0)+IF(VLOOKUP($CR$38,_Afg07,$BR$131)=1,VLOOKUP($CR$38,_Afg07,BO131)*$C$95*IF($E$95<>"",$E$95,VLOOKUP($CR$38,_Afg07,Udbyttenr)),0)+IF(VLOOKUP($CR$40,_Afg07,$BR$131)=1,VLOOKUP($CR$40,_Afg07,BO131)*$C$97*IF($E$97<>"",$E$97,VLOOKUP($CR$40,_Afg07,Udbyttenr)),0)+IF(VLOOKUP($CR$42,_Afg07,$BR$131)=1,VLOOKUP($CR$42,_Afg07,BO131)*$C$99*IF($E$99<>"",$E$99,VLOOKUP($CR$42,_Afg07,Udbyttenr)),0)+IF(VLOOKUP($CR$44,_Afg07,$BR$131)=1,VLOOKUP($CR$44,_Afg07,BO131)*$C$101*IF($E$101<>"",$E$101,VLOOKUP($CR$44,_Afg07,Udbyttenr)),0)+IF(VLOOKUP($CR$46,_Afg07,$BR$131)=1,VLOOKUP($CR$46,_Afg07,BO131)*$C$103*IF($E$103<>"",$E$103,VLOOKUP($CR$46,_Afg07,Udbyttenr)),0)+IF(VLOOKUP($CR$48,_Afg07,$BR$131)=1,VLOOKUP($CR$48,_Afg07,BO131)*$C$105*IF($E$105<>"",$E$105,VLOOKUP($CR$48,_Afg07,Udbyttenr)),0))/($CU$50) ->  | BP190: =(IF(VLOOKUP($CR$36,_Afg07,$BR$131)=1,VLOOKUP($CR$36,_Afg07,BP131)*$C$93*IF($E$93<>"",$E$93,VLOOKUP($CR$36,_Afg07,Udbyttenr)),0)+IF(VLOOKUP($CR$38,_Afg07,$BR$131)=1,VLOOKUP($CR$38,_Afg07,BP131)*$C$95*IF($E$95<>"",$E$95,VLOOKUP($CR$38,_Afg07,Udbyttenr)),0)+IF(VLOOKUP($CR$40,_Afg07,$BR$131)=1,VLOOKUP($CR$40,_Afg07,BP131)*$C$97*IF($E$97<>"",$E$97,VLOOKUP($CR$40,_Afg07,Udbyttenr)),0)+IF(VLOOKUP($CR$42,_Afg07,$BR$131)=1,VLOOKUP($CR$42,_Afg07,BP131)*$C$99*IF($E$99<>"",$E$99,VLOOKUP($CR$42,_Afg07,Udbyttenr)),0)+IF(VLOOKUP($CR$44,_Afg07,$BR$131)=1,VLOOKUP($CR$44,_Afg07,BP131)*$C$101*IF($E$101<>"",$E$101,VLOOKUP($CR$44,_Afg07,Udbyttenr)),0)+IF(VLOOKUP($CR$46,_Afg07,$BR$131)=1,VLOOKUP($CR$46,_Afg07,BP131)*$C$103*IF($E$103<>"",$E$103,VLOOKUP($CR$46,_Afg07,Udbyttenr)),0)+IF(VLOOKUP($CR$48,_Afg07,$BR$131)=1,VLOOKUP($CR$48,_Afg07,BP131)*$C$105*IF($E$105<>"",$E$105,VLOOKUP($CR$48,_Afg07,Udbyttenr)),0))/($CU$50) ->  | BQ190: =(IF(VLOOKUP($CR$36,_Afg07,$BR$131)=1,VLOOKUP($CR$36,_Afg07,BQ131)*$C$93*IF($E$93<>"",$E$93,VLOOKUP($CR$36,_Afg07,Udbyttenr)),0)+IF(VLOOKUP($CR$38,_Afg07,$BR$131)=1,VLOOKUP($CR$38,_Afg07,BQ131)*$C$95*IF($E$95<>"",$E$95,VLOOKUP($CR$38,_Afg07,Udbyttenr)),0)+IF(VLOOKUP($CR$40,_Afg07,$BR$131)=1,VLOOKUP($CR$40,_Afg07,BQ131)*$C$97*IF($E$97<>"",$E$97,VLOOKUP($CR$40,_Afg07,Udbyttenr)),0)+IF(VLOOKUP($CR$42,_Afg07,$BR$131)=1,VLOOKUP($CR$42,_Afg07,BQ131)*$C$99*IF($E$99<>"",$E$99,VLOOKUP($CR$42,_Afg07,Udbyttenr)),0)+IF(VLOOKUP($CR$44,_Afg07,$BR$131)=1,VLOOKUP($CR$44,_Afg07,BQ131)*$C$101*IF($E$101<>"",$E$101,VLOOKUP($CR$44,_Afg07,Udbyttenr)),0)+IF(VLOOKUP($CR$46,_Afg07,$BR$131)=1,VLOOKUP($CR$46,_Afg07,BQ131)*$C$103*IF($E$103<>"",$E$103,VLOOKUP($CR$46,_Afg07,Udbyttenr)),0)+IF(VLOOKUP($CR$48,_Afg07,$BR$131)=1,VLOOKUP($CR$48,_Afg07,BQ131)*$C$105*IF($E$105<>"",$E$105,VLOOKUP($CR$48,_Afg07,Udbyttenr)),0))/($CU$50) -> 
A191: =IF(Købernr=2,"Erstatningskorn","") ->  | B191: =IF(Købernr=1,"",IF($E$174="","",IF(CR$16=O$185,C48,IF(CS$16=O$185,G48,IF(CT$16=O$185,K48,"")))*C$107)) ->  | D191: =IF(B191="","","kr.") ->  | F191: =IF(Købernr=1,"",IF($H$174="","",IF(CR$16=O$186,C48,IF(CS$16=O$186,G48,IF(CT$16=O$186,K48,"")))*C$127)) ->  | H191: =IF(F191="","","kr.") ->  | J191: =IF(Købernr=1,"",IF(AND($E$174<>"",$H$174<>""),F191-B191,"")) ->  | L191: =IF(J191="","","kr.") ->  | O191: 2 | X191: =(IF(VLOOKUP($CR$37,_Afg07,$BR$131)=1,VLOOKUP($CR$37,_Afg07,X131)*$C$113,0)+IF(VLOOKUP($CR$39,_Afg07,$BR$131)=1,VLOOKUP($CR$39,_Afg07,X131)*$C$115,0)+IF(VLOOKUP($CR$41,_Afg07,$BR$131)=1,VLOOKUP($CR$41,_Afg07,X131)*$C$117,0)+IF(VLOOKUP($CR$43,_Afg07,$BR$131)=1,VLOOKUP($CR$43,_Afg07,X131)*$C$119,0)+IF(VLOOKUP($CR$45,_Afg07,$BR$131)=1,VLOOKUP($CR$45,_Afg07,X131)*$C$121,0)+IF(VLOOKUP($CR$47,_Afg07,$BR$131)=1,VLOOKUP($CR$47,_Afg07,X131)*$C$123,0)+IF(VLOOKUP($CR$49,_Afg07,$BR$131)=1,VLOOKUP($CR$49,_Afg07,X131)*$C$125,0))/($CV$51) ->  | Y191: =(IF(VLOOKUP($CR$37,_Afg07,$BR$131)=1,VLOOKUP($CR$37,_Afg07,Y131)*$C$113,0)+IF(VLOOKUP($CR$39,_Afg07,$BR$131)=1,VLOOKUP($CR$39,_Afg07,Y131)*$C$115,0)+IF(VLOOKUP($CR$41,_Afg07,$BR$131)=1,VLOOKUP($CR$41,_Afg07,Y131)*$C$117,0)+IF(VLOOKUP($CR$43,_Afg07,$BR$131)=1,VLOOKUP($CR$43,_Afg07,Y131)*$C$119,0)+IF(VLOOKUP($CR$45,_Afg07,$BR$131)=1,VLOOKUP($CR$45,_Afg07,Y131)*$C$121,0)+IF(VLOOKUP($CR$47,_Afg07,$BR$131)=1,VLOOKUP($CR$47,_Afg07,Y131)*$C$123,0)+IF(VLOOKUP($CR$49,_Afg07,$BR$131)=1,VLOOKUP($CR$49,_Afg07,Y131)*$C$125,0))/($CV$51) ->  | Z191: =(IF(VLOOKUP($CR$37,_Afg07,$BR$131)=1,VLOOKUP($CR$37,_Afg07,Z131)*$C$113,0)+IF(VLOOKUP($CR$39,_Afg07,$BR$131)=1,VLOOKUP($CR$39,_Afg07,Z131)*$C$115,0)+IF(VLOOKUP($CR$41,_Afg07,$BR$131)=1,VLOOKUP($CR$41,_Afg07,Z131)*$C$117,0)+IF(VLOOKUP($CR$43,_Afg07,$BR$131)=1,VLOOKUP($CR$43,_Afg07,Z131)*$C$119,0)+IF(VLOOKUP($CR$45,_Afg07,$BR$131)=1,VLOOKUP($CR$45,_Afg07,Z131)*$C$121,0)+IF(VLOOKUP($CR$47,_Afg07,$BR$131)=1,VLOOKUP($CR$47,_Afg07,Z131)*$C$123,0)+IF(VLOOKUP($CR$49,_Afg07,$BR$131)=1,VLOOKUP($CR$49,_Afg07,Z131)*$C$125,0))/($CV$51) ->  | AA191: =(IF(VLOOKUP($CR$37,_Afg07,$BR$131)=1,VLOOKUP($CR$37,_Afg07,AA131)*$C$113,0)+IF(VLOOKUP($CR$39,_Afg07,$BR$131)=1,VLOOKUP($CR$39,_Afg07,AA131)*$C$115,0)+IF(VLOOKUP($CR$41,_Afg07,$BR$131)=1,VLOOKUP($CR$41,_Afg07,AA131)*$C$117,0)+IF(VLOOKUP($CR$43,_Afg07,$BR$131)=1,VLOOKUP($CR$43,_Afg07,AA131)*$C$119,0)+IF(VLOOKUP($CR$45,_Afg07,$BR$131)=1,VLOOKUP($CR$45,_Afg07,AA131)*$C$121,0)+IF(VLOOKUP($CR$47,_Afg07,$BR$131)=1,VLOOKUP($CR$47,_Afg07,AA131)*$C$123,0)+IF(VLOOKUP($CR$49,_Afg07,$BR$131)=1,VLOOKUP($CR$49,_Afg07,AA131)*$C$125,0))/($CV$51) ->  | AB191: =(IF(VLOOKUP($CR$37,_Afg07,$BR$131)=1,VLOOKUP($CR$37,_Afg07,AB131)*$C$113,0)+IF(VLOOKUP($CR$39,_Afg07,$BR$131)=1,VLOOKUP($CR$39,_Afg07,AB131)*$C$115,0)+IF(VLOOKUP($CR$41,_Afg07,$BR$131)=1,VLOOKUP($CR$41,_Afg07,AB131)*$C$117,0)+IF(VLOOKUP($CR$43,_Afg07,$BR$131)=1,VLOOKUP($CR$43,_Afg07,AB131)*$C$119,0)+IF(VLOOKUP($CR$45,_Afg07,$BR$131)=1,VLOOKUP($CR$45,_Afg07,AB131)*$C$121,0)+IF(VLOOKUP($CR$47,_Afg07,$BR$131)=1,VLOOKUP($CR$47,_Afg07,AB131)*$C$123,0)+IF(VLOOKUP($CR$49,_Afg07,$BR$131)=1,VLOOKUP($CR$49,_Afg07,AB131)*$C$125,0))/($CV$51) ->  | AI191: =(IF(VLOOKUP($CR$37,_Afg07,$BR$131)=1,VLOOKUP($CR$37,_Afg07,AI131)*$C$113,0)+IF(VLOOKUP($CR$39,_Afg07,$BR$131)=1,VLOOKUP($CR$39,_Afg07,AI131)*$C$115,0)+IF(VLOOKUP($CR$41,_Afg07,$BR$131)=1,VLOOKUP($CR$41,_Afg07,AI131)*$C$117,0)+IF(VLOOKUP($CR$43,_Afg07,$BR$131)=1,VLOOKUP($CR$43,_Afg07,AI131)*$C$119,0)+IF(VLOOKUP($CR$45,_Afg07,$BR$131)=1,VLOOKUP($CR$45,_Afg07,AI131)*$C$121,0)+IF(VLOOKUP($CR$47,_Afg07,$BR$131)=1,VLOOKUP($CR$47,_Afg07,AI131)*$C$123,0)+IF(VLOOKUP($CR$49,_Afg07,$BR$131)=1,VLOOKUP($CR$49,_Afg07,AI131)*$C$125,0))/($CV$51) ->  | AJ191: =(IF(VLOOKUP($CR$37,_Afg07,$BR$131)=1,VLOOKUP($CR$37,_Afg07,AJ131)*$C$113,0)+IF(VLOOKUP($CR$39,_Afg07,$BR$131)=1,VLOOKUP($CR$39,_Afg07,AJ131)*$C$115,0)+IF(VLOOKUP($CR$41,_Afg07,$BR$131)=1,VLOOKUP($CR$41,_Afg07,AJ131)*$C$117,0)+IF(VLOOKUP($CR$43,_Afg07,$BR$131)=1,VLOOKUP($CR$43,_Afg07,AJ131)*$C$119,0)+IF(VLOOKUP($CR$45,_Afg07,$BR$131)=1,VLOOKUP($CR$45,_Afg07,AJ131)*$C$121,0)+IF(VLOOKUP($CR$47,_Afg07,$BR$131)=1,VLOOKUP($CR$47,_Afg07,AJ131)*$C$123,0)+IF(VLOOKUP($CR$49,_Afg07,$BR$131)=1,VLOOKUP($CR$49,_Afg07,AJ131)*$C$125,0))/($CV$51) ->  | AK191: =(IF(VLOOKUP($CR$37,_Afg07,$BR$131)=1,VLOOKUP($CR$37,_Afg07,AK131)*$C$113,0)+IF(VLOOKUP($CR$39,_Afg07,$BR$131)=1,VLOOKUP($CR$39,_Afg07,AK131)*$C$115,0)+IF(VLOOKUP($CR$41,_Afg07,$BR$131)=1,VLOOKUP($CR$41,_Afg07,AK131)*$C$117,0)+IF(VLOOKUP($CR$43,_Afg07,$BR$131)=1,VLOOKUP($CR$43,_Afg07,AK131)*$C$119,0)+IF(VLOOKUP($CR$45,_Afg07,$BR$131)=1,VLOOKUP($CR$45,_Afg07,AK131)*$C$121,0)+IF(VLOOKUP($CR$47,_Afg07,$BR$131)=1,VLOOKUP($CR$47,_Afg07,AK131)*$C$123,0)+IF(VLOOKUP($CR$49,_Afg07,$BR$131)=1,VLOOKUP($CR$49,_Afg07,AK131)*$C$125,0))/($CV$51) ->  | AM191: =(IF(VLOOKUP($CR$37,_Afg07,$BR$131)=1,VLOOKUP($CR$37,_Afg07,AM131)*$C$113,0)+IF(VLOOKUP($CR$39,_Afg07,$BR$131)=1,VLOOKUP($CR$39,_Afg07,AM131)*$C$115,0)+IF(VLOOKUP($CR$41,_Afg07,$BR$131)=1,VLOOKUP($CR$41,_Afg07,AM131)*$C$117,0)+IF(VLOOKUP($CR$43,_Afg07,$BR$131)=1,VLOOKUP($CR$43,_Afg07,AM131)*$C$119,0)+IF(VLOOKUP($CR$45,_Afg07,$BR$131)=1,VLOOKUP($CR$45,_Afg07,AM131)*$C$121,0)+IF(VLOOKUP($CR$47,_Afg07,$BR$131)=1,VLOOKUP($CR$47,_Afg07,AM131)*$C$123,0)+IF(VLOOKUP($CR$49,_Afg07,$BR$131)=1,VLOOKUP($CR$49,_Afg07,AM131)*$C$125,0))/($CV$51) ->  | AT191: =(IF(VLOOKUP($CR$37,_Afg07,$BR$131)=1,VLOOKUP($CR$37,_Afg07,AT131)*$C$113*IF($E$113<>"",$E$113,VLOOKUP($CR$37,_Afg07,Udbyttenr)),0)+IF(VLOOKUP($CR$39,_Afg07,$BR$131)=1,VLOOKUP($CR$39,_Afg07,AT131)*$C$115*IF($E$115<>"",$E$115,VLOOKUP($CR$39,_Afg07,Udbyttenr)),0)+IF(VLOOKUP($CR$41,_Afg07,$BR$131)=1,VLOOKUP($CR$41,_Afg07,AT131)*$C$117*IF($E$117<>"",$E$117,VLOOKUP($CR$41,_Afg07,Udbyttenr)),0)+IF(VLOOKUP($CR$43,_Afg07,$BR$131)=1,VLOOKUP($CR$43,_Afg07,AT131)*$C$119*IF($E$119<>"",$E$119,VLOOKUP($CR$43,_Afg07,Udbyttenr)),0)+IF(VLOOKUP($CR$45,_Afg07,$BR$131)=1,VLOOKUP($CR$45,_Afg07,AT131)*$C$121*IF($E$121<>"",$E$121,VLOOKUP($CR$45,_Afg07,Udbyttenr)),0)+IF(VLOOKUP($CR$47,_Afg07,$BR$131)=1,VLOOKUP($CR$47,_Afg07,AT131)*$C$123*IF($E$123<>"",$E$123,VLOOKUP($CR$47,_Afg07,Udbyttenr)),0)+IF(VLOOKUP($CR$49,_Afg07,$BR$131)=1,VLOOKUP($CR$49,_Afg07,AT131)*$C$125*IF($E$125<>"",$E$125,VLOOKUP($CR$49,_Afg07,Udbyttenr)),0))/($CU$51) ->  | AU191: =(IF(VLOOKUP($CR$37,_Afg07,$BR$131)=1,VLOOKUP($CR$37,_Afg07,AU131)*$C$113*VLOOKUP($CR$37,_Afg07,Halmnr),0)+IF(VLOOKUP($CR$39,_Afg07,$BR$131)=1,VLOOKUP($CR$39,_Afg07,AU131)*$C$115*VLOOKUP($CR$39,_Afg07,Halmnr),0)+IF(VLOOKUP($CR$41,_Afg07,$BR$131)=1,VLOOKUP($CR$41,_Afg07,AU131)*$C$117*VLOOKUP($CR$41,_Afg07,Halmnr),0)+IF(VLOOKUP($CR$43,_Afg07,$BR$131)=1,VLOOKUP($CR$43,_Afg07,AU131)*$C$119*VLOOKUP($CR$43,_Afg07,Halmnr),0)+IF(VLOOKUP($CR$45,_Afg07,$BR$131)=1,VLOOKUP($CR$45,_Afg07,AU131)*$C$121*VLOOKUP($CR$45,_Afg07,Halmnr),0)+IF(VLOOKUP($CR$47,_Afg07,$BR$131)=1,VLOOKUP($CR$47,_Afg07,AU131)*$C$123*VLOOKUP($CR$47,_Afg07,Halmnr),0)+IF(VLOOKUP($CR$49,_Afg07,$BR$131)=1,VLOOKUP($CR$49,_Afg07,AU131)*$C$125*VLOOKUP($CR$49,_Afg07,Halmnr),0))/($CY$51) ->  | AV191: =(IF(VLOOKUP($CR$37,_Afg07,$BR$131)=1,VLOOKUP($CR$37,_Afg07,AV131)*$C$113,0)+IF(VLOOKUP($CR$39,_Afg07,$BR$131)=1,VLOOKUP($CR$39,_Afg07,AV131)*$C$115,0)+IF(VLOOKUP($CR$41,_Afg07,$BR$131)=1,VLOOKUP($CR$41,_Afg07,AV131)*$C$117,0)+IF(VLOOKUP($CR$43,_Afg07,$BR$131)=1,VLOOKUP($CR$43,_Afg07,AV131)*$C$119,0)+IF(VLOOKUP($CR$45,_Afg07,$BR$131)=1,VLOOKUP($CR$45,_Afg07,AV131)*$C$121,0)+IF(VLOOKUP($CR$47,_Afg07,$BR$131)=1,VLOOKUP($CR$47,_Afg07,AV131)*$C$123,0)+IF(VLOOKUP($CR$49,_Afg07,$BR$131)=1,VLOOKUP($CR$49,_Afg07,AV131)*$C$125,0))/($CV$51) ->  | AW191: =(IF(VLOOKUP($CR$37,_Afg07,$BR$131)=1,VLOOKUP($CR$37,_Afg07,AW131)*$C$113*IF($E$113<>"",$E$113,VLOOKUP($CR$37,_Afg07,Udbyttenr)),0)+IF(VLOOKUP($CR$39,_Afg07,$BR$131)=1,VLOOKUP($CR$39,_Afg07,AW131)*$C$115*IF($E$115<>"",$E$115,VLOOKUP($CR$39,_Afg07,Udbyttenr)),0)+IF(VLOOKUP($CR$41,_Afg07,$BR$131)=1,VLOOKUP($CR$41,_Afg07,AW131)*$C$117*IF($E$117<>"",$E$117,VLOOKUP($CR$41,_Afg07,Udbyttenr)),0)+IF(VLOOKUP($CR$43,_Afg07,$BR$131)=1,VLOOKUP($CR$43,_Afg07,AW131)*$C$119*IF($E$119<>"",$E$119,VLOOKUP($CR$43,_Afg07,Udbyttenr)),0)+IF(VLOOKUP($CR$45,_Afg07,$BR$131)=1,VLOOKUP($CR$45,_Afg07,AW131)*$C$121*IF($E$121<>"",$E$121,VLOOKUP($CR$45,_Afg07,Udbyttenr)),0)+IF(VLOOKUP($CR$47,_Afg07,$BR$131)=1,VLOOKUP($CR$47,_Afg07,AW131)*$C$123*IF($E$123<>"",$E$123,VLOOKUP($CR$47,_Afg07,Udbyttenr)),0)+IF(VLOOKUP($CR$49,_Afg07,$BR$131)=1,VLOOKUP($CR$49,_Afg07,AW131)*$C$125*IF($E$125<>"",$E$125,VLOOKUP($CR$49,_Afg07,Udbyttenr)),0))/($CU$51) ->  | AX191: =(IF(VLOOKUP($CR$37,_Afg07,$BR$131)=1,VLOOKUP($CR$37,_Afg07,AX131)*$C$113*VLOOKUP($CR$37,_Afg07,Halmnr),0)+IF(VLOOKUP($CR$39,_Afg07,$BR$131)=1,VLOOKUP($CR$39,_Afg07,AX131)*$C$115*VLOOKUP($CR$39,_Afg07,Halmnr),0)+IF(VLOOKUP($CR$41,_Afg07,$BR$131)=1,VLOOKUP($CR$41,_Afg07,AX131)*$C$117*VLOOKUP($CR$41,_Afg07,Halmnr),0)+IF(VLOOKUP($CR$43,_Afg07,$BR$131)=1,VLOOKUP($CR$43,_Afg07,AX131)*$C$119*VLOOKUP($CR$43,_Afg07,Halmnr),0)+IF(VLOOKUP($CR$45,_Afg07,$BR$131)=1,VLOOKUP($CR$45,_Afg07,AX131)*$C$121*VLOOKUP($CR$45,_Afg07,Halmnr),0)+IF(VLOOKUP($CR$47,_Afg07,$BR$131)=1,VLOOKUP($CR$47,_Afg07,AX131)*$C$123*VLOOKUP($CR$47,_Afg07,Halmnr),0)+IF(VLOOKUP($CR$49,_Afg07,$BR$131)=1,VLOOKUP($CR$49,_Afg07,AX131)*$C$125*VLOOKUP($CR$49,_Afg07,Halmnr),0))/($CY$51) ->  | AY191: =(IF(VLOOKUP($CR$37,_Afg07,$BR$131)=1,VLOOKUP($CR$37,_Afg07,AY131)*$C$113*IF($E$113<>"",$E$113,VLOOKUP($CR$37,_Afg07,Udbyttenr)),0)+IF(VLOOKUP($CR$39,_Afg07,$BR$131)=1,VLOOKUP($CR$39,_Afg07,AY131)*$C$115*IF($E$115<>"",$E$115,VLOOKUP($CR$39,_Afg07,Udbyttenr)),0)+IF(VLOOKUP($CR$41,_Afg07,$BR$131)=1,VLOOKUP($CR$41,_Afg07,AY131)*$C$117*IF($E$117<>"",$E$117,VLOOKUP($CR$41,_Afg07,Udbyttenr)),0)+IF(VLOOKUP($CR$43,_Afg07,$BR$131)=1,VLOOKUP($CR$43,_Afg07,AY131)*$C$119*IF($E$119<>"",$E$119,VLOOKUP($CR$43,_Afg07,Udbyttenr)),0)+IF(VLOOKUP($CR$45,_Afg07,$BR$131)=1,VLOOKUP($CR$45,_Afg07,AY131)*$C$121*IF($E$121<>"",$E$121,VLOOKUP($CR$45,_Afg07,Udbyttenr)),0)+IF(VLOOKUP($CR$47,_Afg07,$BR$131)=1,VLOOKUP($CR$47,_Afg07,AY131)*$C$123*IF($E$123<>"",$E$123,VLOOKUP($CR$47,_Afg07,Udbyttenr)),0)+IF(VLOOKUP($CR$49,_Afg07,$BR$131)=1,VLOOKUP($CR$49,_Afg07,AY131)*$C$125*IF($E$125<>"",$E$125,VLOOKUP($CR$49,_Afg07,Udbyttenr)),0))/($CU$51) ->  | BA191: =(IF(VLOOKUP($CR$37,_Afg07,$BR$131)=1,VLOOKUP($CR$37,_Afg07,BA131)*$C$113,0)+IF(VLOOKUP($CR$39,_Afg07,$BR$131)=1,VLOOKUP($CR$39,_Afg07,BA131)*$C$115,0)+IF(VLOOKUP($CR$41,_Afg07,$BR$131)=1,VLOOKUP($CR$41,_Afg07,BA131)*$C$117,0)+IF(VLOOKUP($CR$43,_Afg07,$BR$131)=1,VLOOKUP($CR$43,_Afg07,BA131)*$C$119,0)+IF(VLOOKUP($CR$45,_Afg07,$BR$131)=1,VLOOKUP($CR$45,_Afg07,BA131)*$C$121,0)+IF(VLOOKUP($CR$47,_Afg07,$BR$131)=1,VLOOKUP($CR$47,_Afg07,BA131)*$C$123,0)+IF(VLOOKUP($CR$49,_Afg07,$BR$131)=1,VLOOKUP($CR$49,_Afg07,BA131)*$C$125,0))/($CV$51) ->  | BK191: =(IF(VLOOKUP($CR$37,_Afg07,$BR$131)=1,VLOOKUP($CR$37,_Afg07,BK131)*$C$113*IF($E$113<>"",$E$113,VLOOKUP($CR$37,_Afg07,Udbyttenr)),0)+IF(VLOOKUP($CR$39,_Afg07,$BR$131)=1,VLOOKUP($CR$39,_Afg07,BK131)*$C$115*IF($E$115<>"",$E$115,VLOOKUP($CR$39,_Afg07,Udbyttenr)),0)+IF(VLOOKUP($CR$41,_Afg07,$BR$131)=1,VLOOKUP($CR$41,_Afg07,BK131)*$C$117*IF($E$117<>"",$E$117,VLOOKUP($CR$41,_Afg07,Udbyttenr)),0)+IF(VLOOKUP($CR$43,_Afg07,$BR$131)=1,VLOOKUP($CR$43,_Afg07,BK131)*$C$119*IF($E$119<>"",$E$119,VLOOKUP($CR$43,_Afg07,Udbyttenr)),0)+IF(VLOOKUP($CR$45,_Afg07,$BR$131)=1,VLOOKUP($CR$45,_Afg07,BK131)*$C$121*IF($E$121<>"",$E$121,VLOOKUP($CR$45,_Afg07,Udbyttenr)),0)+IF(VLOOKUP($CR$47,_Afg07,$BR$131)=1,VLOOKUP($CR$47,_Afg07,BK131)*$C$123*IF($E$123<>"",$E$123,VLOOKUP($CR$47,_Afg07,Udbyttenr)),0)+IF(VLOOKUP($CR$49,_Afg07,$BR$131)=1,VLOOKUP($CR$49,_Afg07,BK131)*$C$125*IF($E$125<>"",$E$125,VLOOKUP($CR$49,_Afg07,Udbyttenr)),0))/($CU$51) ->  | BL191: =(IF(VLOOKUP($CR$37,_Afg07,$BR$131)=1,VLOOKUP($CR$37,_Afg07,BL131)*$C$113*IF($E$113<>"",$E$113,VLOOKUP($CR$37,_Afg07,Udbyttenr)),0)+IF(VLOOKUP($CR$39,_Afg07,$BR$131)=1,VLOOKUP($CR$39,_Afg07,BL131)*$C$115*IF($E$115<>"",$E$115,VLOOKUP($CR$39,_Afg07,Udbyttenr)),0)+IF(VLOOKUP($CR$41,_Afg07,$BR$131)=1,VLOOKUP($CR$41,_Afg07,BL131)*$C$117*IF($E$117<>"",$E$117,VLOOKUP($CR$41,_Afg07,Udbyttenr)),0)+IF(VLOOKUP($CR$43,_Afg07,$BR$131)=1,VLOOKUP($CR$43,_Afg07,BL131)*$C$119*IF($E$119<>"",$E$119,VLOOKUP($CR$43,_Afg07,Udbyttenr)),0)+IF(VLOOKUP($CR$45,_Afg07,$BR$131)=1,VLOOKUP($CR$45,_Afg07,BL131)*$C$121*IF($E$121<>"",$E$121,VLOOKUP($CR$45,_Afg07,Udbyttenr)),0)+IF(VLOOKUP($CR$47,_Afg07,$BR$131)=1,VLOOKUP($CR$47,_Afg07,BL131)*$C$123*IF($E$123<>"",$E$123,VLOOKUP($CR$47,_Afg07,Udbyttenr)),0)+IF(VLOOKUP($CR$49,_Afg07,$BR$131)=1,VLOOKUP($CR$49,_Afg07,BL131)*$C$125*IF($E$125<>"",$E$125,VLOOKUP($CR$49,_Afg07,Udbyttenr)),0))/($CU$51) ->  | BN191: =(IF(VLOOKUP($CR$37,_Afg07,$BR$131)=1,VLOOKUP($CR$37,_Afg07,BN131)*$C$113*IF($E$113<>"",$E$113,VLOOKUP($CR$37,_Afg07,Udbyttenr)),0)+IF(VLOOKUP($CR$39,_Afg07,$BR$131)=1,VLOOKUP($CR$39,_Afg07,BN131)*$C$115*IF($E$115<>"",$E$115,VLOOKUP($CR$39,_Afg07,Udbyttenr)),0)+IF(VLOOKUP($CR$41,_Afg07,$BR$131)=1,VLOOKUP($CR$41,_Afg07,BN131)*$C$117*IF($E$117<>"",$E$117,VLOOKUP($CR$41,_Afg07,Udbyttenr)),0)+IF(VLOOKUP($CR$43,_Afg07,$BR$131)=1,VLOOKUP($CR$43,_Afg07,BN131)*$C$119*IF($E$119<>"",$E$119,VLOOKUP($CR$43,_Afg07,Udbyttenr)),0)+IF(VLOOKUP($CR$45,_Afg07,$BR$131)=1,VLOOKUP($CR$45,_Afg07,BN131)*$C$121*IF($E$121<>"",$E$121,VLOOKUP($CR$45,_Afg07,Udbyttenr)),0)+IF(VLOOKUP($CR$47,_Afg07,$BR$131)=1,VLOOKUP($CR$47,_Afg07,BN131)*$C$123*IF($E$123<>"",$E$123,VLOOKUP($CR$47,_Afg07,Udbyttenr)),0)+IF(VLOOKUP($CR$49,_Afg07,$BR$131)=1,VLOOKUP($CR$49,_Afg07,BN131)*$C$125*IF($E$125<>"",$E$125,VLOOKUP($CR$49,_Afg07,Udbyttenr)),0))/($CU$51) ->  | BO191: =(IF(VLOOKUP($CR$37,_Afg07,$BR$131)=1,VLOOKUP($CR$37,_Afg07,BO131)*$C$113*IF($E$113<>"",$E$113,VLOOKUP($CR$37,_Afg07,Udbyttenr)),0)+IF(VLOOKUP($CR$39,_Afg07,$BR$131)=1,VLOOKUP($CR$39,_Afg07,BO131)*$C$115*IF($E$115<>"",$E$115,VLOOKUP($CR$39,_Afg07,Udbyttenr)),0)+IF(VLOOKUP($CR$41,_Afg07,$BR$131)=1,VLOOKUP($CR$41,_Afg07,BO131)*$C$117*IF($E$117<>"",$E$117,VLOOKUP($CR$41,_Afg07,Udbyttenr)),0)+IF(VLOOKUP($CR$43,_Afg07,$BR$131)=1,VLOOKUP($CR$43,_Afg07,BO131)*$C$119*IF($E$119<>"",$E$119,VLOOKUP($CR$43,_Afg07,Udbyttenr)),0)+IF(VLOOKUP($CR$45,_Afg07,$BR$131)=1,VLOOKUP($CR$45,_Afg07,BO131)*$C$121*IF($E$121<>"",$E$121,VLOOKUP($CR$45,_Afg07,Udbyttenr)),0)+IF(VLOOKUP($CR$47,_Afg07,$BR$131)=1,VLOOKUP($CR$47,_Afg07,BO131)*$C$123*IF($E$123<>"",$E$123,VLOOKUP($CR$47,_Afg07,Udbyttenr)),0)+IF(VLOOKUP($CR$49,_Afg07,$BR$131)=1,VLOOKUP($CR$49,_Afg07,BO131)*$C$125*IF($E$125<>"",$E$125,VLOOKUP($CR$49,_Afg07,Udbyttenr)),0))/($CU$51) ->  | BP191: =(IF(VLOOKUP($CR$37,_Afg07,$BR$131)=1,VLOOKUP($CR$37,_Afg07,BP131)*$C$113*IF($E$113<>"",$E$113,VLOOKUP($CR$37,_Afg07,Udbyttenr)),0)+IF(VLOOKUP($CR$39,_Afg07,$BR$131)=1,VLOOKUP($CR$39,_Afg07,BP131)*$C$115*IF($E$115<>"",$E$115,VLOOKUP($CR$39,_Afg07,Udbyttenr)),0)+IF(VLOOKUP($CR$41,_Afg07,$BR$131)=1,VLOOKUP($CR$41,_Afg07,BP131)*$C$117*IF($E$117<>"",$E$117,VLOOKUP($CR$41,_Afg07,Udbyttenr)),0)+IF(VLOOKUP($CR$43,_Afg07,$BR$131)=1,VLOOKUP($CR$43,_Afg07,BP131)*$C$119*IF($E$119<>"",$E$119,VLOOKUP($CR$43,_Afg07,Udbyttenr)),0)+IF(VLOOKUP($CR$45,_Afg07,$BR$131)=1,VLOOKUP($CR$45,_Afg07,BP131)*$C$121*IF($E$121<>"",$E$121,VLOOKUP($CR$45,_Afg07,Udbyttenr)),0)+IF(VLOOKUP($CR$47,_Afg07,$BR$131)=1,VLOOKUP($CR$47,_Afg07,BP131)*$C$123*IF($E$123<>"",$E$123,VLOOKUP($CR$47,_Afg07,Udbyttenr)),0)+IF(VLOOKUP($CR$49,_Afg07,$BR$131)=1,VLOOKUP($CR$49,_Afg07,BP131)*$C$125*IF($E$125<>"",$E$125,VLOOKUP($CR$49,_Afg07,Udbyttenr)),0))/($CU$51) ->  | BQ191: =(IF(VLOOKUP($CR$37,_Afg07,$BR$131)=1,VLOOKUP($CR$37,_Afg07,BQ131)*$C$113*IF($E$113<>"",$E$113,VLOOKUP($CR$37,_Afg07,Udbyttenr)),0)+IF(VLOOKUP($CR$39,_Afg07,$BR$131)=1,VLOOKUP($CR$39,_Afg07,BQ131)*$C$115*IF($E$115<>"",$E$115,VLOOKUP($CR$39,_Afg07,Udbyttenr)),0)+IF(VLOOKUP($CR$41,_Afg07,$BR$131)=1,VLOOKUP($CR$41,_Afg07,BQ131)*$C$117*IF($E$117<>"",$E$117,VLOOKUP($CR$41,_Afg07,Udbyttenr)),0)+IF(VLOOKUP($CR$43,_Afg07,$BR$131)=1,VLOOKUP($CR$43,_Afg07,BQ131)*$C$119*IF($E$119<>"",$E$119,VLOOKUP($CR$43,_Afg07,Udbyttenr)),0)+IF(VLOOKUP($CR$45,_Afg07,$BR$131)=1,VLOOKUP($CR$45,_Afg07,BQ131)*$C$121*IF($E$121<>"",$E$121,VLOOKUP($CR$45,_Afg07,Udbyttenr)),0)+IF(VLOOKUP($CR$47,_Afg07,$BR$131)=1,VLOOKUP($CR$47,_Afg07,BQ131)*$C$123*IF($E$123<>"",$E$123,VLOOKUP($CR$47,_Afg07,Udbyttenr)),0)+IF(VLOOKUP($CR$49,_Afg07,$BR$131)=1,VLOOKUP($CR$49,_Afg07,BQ131)*$C$125*IF($E$125<>"",$E$125,VLOOKUP($CR$49,_Afg07,Udbyttenr)),0))/($CU$51) -> 
A193: Resultat | B193: =IF($E$174="","",IF(CR$16=O$185,C50,IF(CS$16=O$185,G50,IF(CT$16=O$185,K50,"")))*C$107) ->  | D193: =IF(B193="","","kr.") ->  | F193: =IF($H$174="","",IF(CR$16=O$186,C50,IF(CS$16=O$186,G50,IF(CT$16=O$186,K50,"")))*C$127) ->  | H193: =IF(F193="","","kr.") ->  | J193: =IF(AND($E$174<>"",$H$174<>""),F193-B193,"") ->  | L193: =IF(J193="","","kr.") -> 
P194: Den samlede økonomi for hele markbruget (alle ha i sædskifterne) er beregnet ud fra de samme tal, som vises på side 1. På side 2 vises kun tal for sædskifte 1 og 2. Sæd-skifte 1 og 2 behøver ikke indeholder lige mange ha.
A196: =IF(FEnr=1,"Foderbehov (korn)","") -> Foderbehov (korn) | B196: =IF(OR($E$174="",FEnr=2),"",B236) ->  | D196: =IF(B196<>"","FEsv","") ->  | F196: =IF(OR($H$174="",FEnr=2),"",B236) ->  | H196: =IF(F196<>"","FEsv","") -> 
A197: =IF(FEnr=1,"Foder produceret","") -> Foder produceret | B197: =IF(OR($E$174="",FEnr=2),"",IF(CR$16=O$185,C57,IF(CS$16=O$185,G57,IF(CT$16=O$185,K57,"")))*C$107) ->  | D197: =IF(B197<>"","FEsv","") ->  | F197: =IF(OR($H$174="",FEnr=2),"",IF(CR$16=O$186,C57,IF(CS$16=O$186,G57,IF(CT$16=O$186,K57,"")))*C$127) ->  | H197: =IF(F197<>"","FEsv","") ->  | J197: =IF(AND($E$174<>"",$H$174<>"",FEnr=1),F197-B197,"") ->  | L197: =IF(J197<>"","FEsv","") -> 
A200: =F67 ->  | C200: Areal | F200: Udbytte | H200: Pris
A201: I alt | B201: =C175 ->  | C201: =D175 -> 
A202: =F68 ->  | B202: =H68 ->  | E202: =J68 -> 
P206: =IF(AND(B196>B197,B191=""),"Foderbehov er større end foder produceret; men du har angivet, at bedriften er kornsælger.",IF(AND(B197>B196,B191<>""),"Foder produceret er større end foderbehov; men du har angivet, at bedriften er kornkøber.","")) -> 
A210: =F76 ->  | C210: =IF(H175="","","Areal ") ->  | F210: =IF(H174="","","Udbytte ") ->  | H210: =IF(H174="","","Pris") -> 
A211: =IF(H174="","","I alt") ->  | B211: =G175 ->  | C211: =H175 -> 
A212: =F77 ->  | B212: =H77 ->  | E212: =J77 -> 
A221: ="Jordtypen er "&IF(JBnr=1,"JB 1+3",IF(JBnr=2,"JB 2+4",IF(JBnr=3,"JB 1-4, vandet",IF(JBnr=4,"JB 5-6","JB 7-9")))) -> Jordtypen er JB 5-6 | C221: =IF(Hdgnr=1,"Ingen husdyrgødning","Husdyrgødning fra "&VLOOKUP(Hdgnr,_Hdg2,2)) -> Ingen husdyrgødning
A222: =IF(HalmJa=1,"Halmen bjærges","Halmen nedmuldes") -> Halmen nedmuldes | C222: =IF(Købernr=1,"Bedriften er netto kornsælger","Bedriften er netto kornkøber") -> Bedriften er netto kornsælger
A226: Foderbehov
C228: Besætning | F228: Vægtinterval | J228: Foderforbrug | CU228: Foderforbrug_FE | CV228: Korn-FE
A230: Søer m. smågrise | D230: årssøer | J230: =IF(L230<>"","",1482) -> 1482 | K230: =IF(J230<>"","FE","") -> FE | M230: FE | P230: Du kan beregne besætningen foderbehov (korn) i foderenheder. Resultatet bliver vist på udskriften side 2, så man kan vurdere, om bedriften er netto kornkøber eller kornsælger. | CR230: 81 | CS230: % | CU230: =C230*IF(L230<>"",L230,J230) -> 0 | CV230: =CU230*CR230*0.01 -> 0
A232: Smågrise | D232: stk. | F232: 6.7 | G232: kg | H232: 31 | I232: kg | J232: =IF(L232<>"","",1.98) -> 1.98 | K232: =IF(J232<>"","Fesv","") -> Fesv | M232: Fesv | CR232: 68 | CS232: % | CU232: =C232*(H232-F232)*IF(L232<>"",L232,J232) -> 0 | CV232: =CU232*CR232*0.01 -> 0
A234: Slagtesvin | D234: stk. | F234: 31 | G234: kg | H234: 113 | I234: kg | J234: =IF(L234<>"","",2.83) -> 2.83 | K234: =IF(J234<>"","Fesv","") -> Fesv | M234: Fesv | CR234: 78 | CS234: % | CU234: =C234*(H234-F234)*IF(L234<>"",L234,J234) -> 0 | CV234: =CU234*CR234*0.01 -> 0
A236: Foderbehov (korn) | B236: =IF(CV230+CV232+CV234=0,0,CV230+CV232+CV234) -> 0 | D236: Fesv i alt
A240: Tidsforbrug til jordbearbejdning, såning og høst
P241: Der kan beregnes tidsforbrug (netto) og arbejdsprofil for forskellige sædskifter og forskellige bedriftsstørrelser. Angivelse af om der pløjes eller harves mv. anvendes kun til beregning af tidsforbrug. Det har ingen indflydelse på de økonomiske beregninger. Tidsforbrug beregnes for 'Sædskifte 1' og 'Sædskifte 2'.
A243: Sædskifte 1 | D243: Harvning | F243: Såbeds- | H243: Glyphosat
B244: Pløjning | D244: e. høst | F244: harvning | H244: før såning
A246: =IF(CR36=1,"",VLOOKUP(CR36,_Afg07,2)) -> 
A248: =IF(CR38=1,"",VLOOKUP(CR38,_Afg07,2)) -> 
A250: =IF(CR40=1,"",VLOOKUP(CR40,_Afg07,2)) -> 
A252: =IF(CR42=1,"",VLOOKUP(CR42,_Afg07,2)) -> 
A254: =IF(CR44=1,"",VLOOKUP(CR44,_Afg07,2)) -> 
A256: =IF(CR46=1,"",VLOOKUP(CR46,_Afg07,2)) -> 
A258: =IF(CR48=1,"",VLOOKUP(CR48,_Afg07,2)) -> 
A261: Sædskifte 2 | D261: Harvning | F261: Såbeds- | H261: Glyphosat
B262: Pløjning | D262: e. høst | F262: harvning | H262: før såning
A264: =IF(CR37=1,"",VLOOKUP(CR37,_Afg07,2)) -> 
A266: =IF(CR39=1,"",VLOOKUP(CR39,_Afg07,2)) -> 
A268: =IF(CR41=1,"",VLOOKUP(CR41,_Afg07,2)) -> 
A270: =IF(CR43=1,"",VLOOKUP(CR43,_Afg07,2)) -> 
... 91 more rows

Sheet Ark2
A1: Sædskifteplan m. foderproduktion. Foderbehov (korn).
A5: Delsædskifte 1
S6: Dette regneark kan anvendes til at udarbejde en sædskifteplan med op til 3 delsædskifter. Foderproduktionen (korn til svin) bliver beregnet ud fra sædskifteplanen. I regnearket kan man endvidere beregne foderbehovet (korn til svin). Foderbehovet fordeles på kornarter. Du kan angive både afgrøder og efterafgrøde. Man kan også dele arealet melem 2 afgrøder.
B8: Marker/ejendomme: | AG8: Udbyttenr2
B10: Jordtype | AF10: 4 | AG10: =IF(AF10=1,5,IF(AF10=2,6,IF(AF10=3,7,IF(AF10=4,8,IF(AF10=5,9,""))))) -> 8 | AH10: Areal | AM10: Database
AH11: til fordeling | AI11: Fordelt_areal
B12: Samlet areal | D12: ha | AH12: =C12-AH50 -> 0 | AI12: =Areal_fordel/Antal_skifter -> 
A14: Afgrødefølge | C14: Areal | G14: Udbytte pr. ha | L14: Kommentarer | AG14: Antal | AH14: Areal | AI14: Efter- | AJ14: Areal | AM14: Afgnr | AN14: Areal | AO14: Udbyt_ha | AP14: Udbyt_alt | AQ14: Efterafgrøde
AE15: Afgrødefølge | AG15: skifter | AH15: indtastet | AI15: afgrøde | AJ15: indtastet efterafgrøde
A16: 1 | C16: =IF(E16>0,"",IF(AND(AF16>1,AF18>1,AI16+AI18=0),Fordelt_areal/2,IF(AF16>1,Fordelt_areal,""))) ->  | D16: =IF(C16<>"","ha","") ->  | F16: ha | G16: =IF(I16<>"","",IF(VLOOKUP(AF16,_Afg07,Udbyttenr2)=0,"",VLOOKUP(AF16,_Afg07,Udbyttenr2))) ->  | H16: =IF(G16="","",IF(AF16>1,IF(VLOOKUP(AF16,_Afg07,3)<>"",VLOOKUP(AF16,_Afg07,3),""),"")) ->  | J16: hkg | AE16: =A16 -> 1 | AF16: 1 | AG16: =IF(AND(AF16>1,AH16=0),1,0) -> 0 | AH16: =IF(AND(E16<>"",VLOOKUP(AF16,_Afg07,3)<>""),E16,0) -> 0 | AI16: =IF(AND(AF16>1,VLOOKUP(AF16,_Afg07,3)=""),1,0) -> 0 | AJ16: =IF(AND(E16<>"",AF16>1,VLOOKUP(AF16,_Afg07,3)=""),E16,0) -> 0 | AM16: =AF16 -> 1 | AN16: =IF(E16<>"",E16,C16) ->  | AO16: =IF(I16<>"",I16,G16) ->  | AP16: =IF(ISERROR(AN16*AO16),0,AN16*AO16) -> 0 | AQ16: =AI16 -> 0
AM17: =AF17 -> 0 | AN17: =IF(E17<>"",E17,C17) -> 0 | AO17: =IF(I17<>"",I17,G17) -> 0 | AP17: =IF(ISERROR(AN17*AO17),0,AN17*AO17) -> 0 | AQ17: =AI17 -> 0
C18: =IF(E18>0,"",IF(E16>0,"",IF(AND(AF18>1,AI16+AI18=0),Fordelt_areal/2,IF(AF18>1,Fordelt_areal,"")))) ->  | D18: =IF(C18<>"","ha","") ->  | F18: ha | G18: =IF(I18<>"","",IF(VLOOKUP(AF18,_Afg07,Udbyttenr2)=0,"",VLOOKUP(AF18,_Afg07,Udbyttenr2))) ->  | H18: =IF(G18="","",IF(AF18>1,IF(VLOOKUP(AF18,_Afg07,3)<>"",VLOOKUP(AF18,_Afg07,3),""),"")) ->  | J18: hkg | AF18: 1 | AH18: =IF(AND(E18<>"",VLOOKUP(AF18,_Afg07,3)<>""),E18,0) -> 0 | AI18: =IF(AND(AF18>1,VLOOKUP(AF18,_Afg07,3)=""),1,0) -> 0 | AJ18: =IF(AND(E18<>"",AF18>1,VLOOKUP(AF18,_Afg07,3)=""),E18,0) -> 0 | AM18: 1 | AP18: 0 | AQ18: 0
AM19: 0 | AN19: 0 | AO19: 0 | AP19: 0 | AQ19: 0
AM20: 0 | AN20: 0 | AO20: 0 | AP20: 0 | AQ20: 0
A21: 2 | C21: =IF(E21>0,"",IF(AND(AF21>1,AF23>1,AI21+AI23=0),Fordelt_areal/2,IF(AF21>1,Fordelt_areal,""))) ->  | D21: =IF(C21<>"","ha","") ->  | F21: ha | G21: =IF(I21<>"","",IF(VLOOKUP(AF21,_Afg07,Udbyttenr2)=0,"",VLOOKUP(AF21,_Afg07,Udbyttenr2))) ->  | H21: =IF(G21="","",IF(AF21>1,IF(VLOOKUP(AF21,_Afg07,3)<>"",VLOOKUP(AF21,_Afg07,3),""),"")) ->  | J21: hkg | AE21: =A21 -> 2 | AF21: 1 | AG21: =IF(AND(AF21>1,AH21=0),1,0) -> 0 | AH21: =IF(AND(E21<>"",VLOOKUP(AF21,_Afg07,3)<>""),E21,0) -> 0 | AI21: =IF(AND(AF21>1,VLOOKUP(AF21,_Afg07,3)=""),1,0) -> 0 | AJ21: =IF(AND(E21<>"",AF21>1,VLOOKUP(AF21,_Afg07,3)=""),E21,0) -> 0 | AM21: 1 | AP21: 0 | AQ21: 0
AM22: 0 | AN22: 0 | AO22: 0 | AP22: 0 | AQ22: 0
C23: =IF(E23>0,"",IF(E21>0,"",IF(AND(AF23>1,AI21+AI23=0),Fordelt_areal/2,IF(AF23>1,Fordelt_areal,"")))) ->  | D23: =IF(C23<>"","ha","") ->  | F23: ha | G23: =IF(I23<>"","",IF(VLOOKUP(AF23,_Afg07,Udbyttenr2)=0,"",VLOOKUP(AF23,_Afg07,Udbyttenr2))) ->  | H23: =IF(G23="","",IF(AF23>1,IF(VLOOKUP(AF23,_Afg07,3)<>"",VLOOKUP(AF23,_Afg07,3),""),"")) ->  | J23: hkg | AF23: 1 | AH23: =IF(AND(E23<>"",VLOOKUP(AF23,_Afg07,3)<>""),E23,0) -> 0 | AI23: =IF(AND(AF23>1,VLOOKUP(AF23,_Afg07,3)=""),1,0) -> 0 | AJ23: =IF(AND(E23<>"",AF23>1,VLOOKUP(AF23,_Afg07,3)=""),E23,0) -> 0 | AM23: 1 | AP23: 0 | AQ23: 0
AM24: 0 | AN24: 0 | AO24: 0 | AP24: 0 | AQ24: 0
AM25: 0 | AN25: 0 | AO25: 0 | AP25: 0 | AQ25: 0
A26: 3 | C26: =IF(E26>0,"",IF(AND(AF26>1,AF28>1,AI26+AI28=0),Fordelt_areal/2,IF(AF26>1,Fordelt_areal,""))) ->  | D26: =IF(C26<>"","ha","") ->  | F26: ha | G26: =IF(I26<>"","",IF(VLOOKUP(AF26,_Afg07,Udbyttenr2)=0,"",VLOOKUP(AF26,_Afg07,Udbyttenr2))) ->  | H26: =IF(G26="","",IF(AF26>1,IF(VLOOKUP(AF26,_Afg07,3)<>"",VLOOKUP(AF26,_Afg07,3),""),"")) ->  | J26: hkg | AE26: =A26 -> 3 | AF26: 1 | AG26: =IF(AND(AF26>1,AH26=0),1,0) -> 0 | AH26: =IF(AND(E26<>"",VLOOKUP(AF26,_Afg07,3)<>""),E26,0) -> 0 | AI26: =IF(AND(AF26>1,VLOOKUP(AF26,_Afg07,3)=""),1,0) -> 0 | AJ26: =IF(AND(E26<>"",AF26>1,VLOOKUP(AF26,_Afg07,3)=""),E26,0) -> 0 | AM26: 1 | AP26: 0 | AQ26: 0
AM27: 0 | AN27: 0 | AO27: 0 | AP27: 0 | AQ27: 0
C28: =IF(E28>0,"",IF(E26>0,"",IF(AND(AF28>1,AI26+AI28=0),Fordelt_areal/2,IF(AF28>1,Fordelt_areal,"")))) ->  | D28: =IF(C28<>"","ha","") ->  | F28: ha | G28: =IF(I28<>"","",IF(VLOOKUP(AF28,_Afg07,Udbyttenr2)=0,"",VLOOKUP(AF28,_Afg07,Udbyttenr2))) ->  | H28: =IF(G28="","",IF(AF28>1,IF(VLOOKUP(AF28,_Afg07,3)<>"",VLOOKUP(AF28,_Afg07,3),""),"")) ->  | J28: hkg | AF28: 1 | AH28: =IF(AND(E28<>"",VLOOKUP(AF28,_Afg07,3)<>""),E28,0) -> 0 | AI28: =IF(AND(AF28>1,VLOOKUP(AF28,_Afg07,3)=""),1,0) -> 0 | AJ28: =IF(AND(E28<>"",AF28>1,VLOOKUP(AF28,_Afg07,3)=""),E28,0) -> 0 | AM28: 1 | AP28: 0 | AQ28: 0
AM29: 0 | AN29: 0 | AO29: 0 | AP29: 0 | AQ29: 0
AM30: 0 | AN30: 0 | AO30: 0 | AP30: 0 | AQ30: 0
A31: 4 | C31: =IF(E31>0,"",IF(AND(AF31>1,AF33>1,AI31+AI33=0),Fordelt_areal/2,IF(AF31>1,Fordelt_areal,""))) ->  | D31: =IF(C31<>"","ha","") ->  | F31: ha | G31: =IF(I31<>"","",IF(VLOOKUP(AF31,_Afg07,Udbyttenr2)=0,"",VLOOKUP(AF31,_Afg07,Udbyttenr2))) ->  | H31: =IF(G31="","",IF(AF31>1,IF(VLOOKUP(AF31,_Afg07,3)<>"",VLOOKUP(AF31,_Afg07,3),""),"")) ->  | J31: hkg | AE31: =A31 -> 4 | AF31: 1 | AG31: =IF(AND(AF31>1,AH31=0),1,0) -> 0 | AH31: =IF(AND(E31<>"",VLOOKUP(AF31,_Afg07,3)<>""),E31,0) -> 0 | AI31: =IF(AND(AF31>1,VLOOKUP(AF31,_Afg07,3)=""),1,0) -> 0 | AJ31: =IF(AND(E31<>"",AF31>1,VLOOKUP(AF31,_Afg07,3)=""),E31,0) -> 0 | AM31: 1 | AP31: 0 | AQ31: 0
AM32: 0 | AN32: 0 | AO32: 0 | AP32: 0 | AQ32: 0
C33: =IF(E33>0,"",IF(E31>0,"",IF(AND(AF33>1,AI31+AI33=0),Fordelt_areal/2,IF(AF33>1,Fordelt_areal,"")))) ->  | D33: =IF(C33<>"","ha","") ->  | F33: ha | G33: =IF(I33<>"","",IF(VLOOKUP(AF33,_Afg07,Udbyttenr2)=0,"",VLOOKUP(AF33,_Afg07,Udbyttenr2))) ->  | H33: =IF(G33="","",IF(AF33>1,IF(VLOOKUP(AF33,_Afg07,3)<>"",VLOOKUP(AF33,_Afg07,3),""),"")) ->  | J33: hkg | AF33: 1 | AH33: =IF(AND(E33<>"",VLOOKUP(AF33,_Afg07,3)<>""),E33,0) -> 0 | AI33: =IF(AND(AF33>1,VLOOKUP(AF33,_Afg07,3)=""),1,0) -> 0 | AJ33: =IF(AND(E33<>"",AF33>1,VLOOKUP(AF33,_Afg07,3)=""),E33,0) -> 0 | AM33: 1 | AP33: 0 | AQ33: 0
AM34: 0 | AN34: 0 | AO34: 0 | AP34: 0 | AQ34: 0
AM35: 0 | AN35: 0 | AO35: 0 | AP35: 0 | AQ35: 0
A36: 5 | C36: =IF(E36>0,"",IF(AND(AF36>1,AF38>1,AI36+AI38=0),Fordelt_areal/2,IF(AF36>1,Fordelt_areal,""))) ->  | D36: =IF(C36<>"","ha","") ->  | F36: ha | G36: =IF(I36<>"","",IF(VLOOKUP(AF36,_Afg07,Udbyttenr2)=0,"",VLOOKUP(AF36,_Afg07,Udbyttenr2))) ->  | H36: =IF(G36="","",IF(AF36>1,IF(VLOOKUP(AF36,_Afg07,3)<>"",VLOOKUP(AF36,_Afg07,3),""),"")) ->  | J36: hkg | AE36: =A36 -> 5 | AF36: 1 | AG36: =IF(AND(AF36>1,AH36=0),1,0) -> 0 | AH36: =IF(AND(E36<>"",VLOOKUP(AF36,_Afg07,3)<>""),E36,0) -> 0 | AI36: =IF(AND(AF36>1,VLOOKUP(AF36,_Afg07,3)=""),1,0) -> 0 | AJ36: =IF(AND(E36<>"",AF36>1,VLOOKUP(AF36,_Afg07,3)=""),E36,0) -> 0 | AM36: 1 | AP36: 0 | AQ36: 0
AM37: 0 | AN37: 0 | AO37: 0 | AP37: 0 | AQ37: 0
C38: =IF(E38>0,"",IF(E36>0,"",IF(AND(AF38>1,AI36+AI38=0),Fordelt_areal/2,IF(AF38>1,Fordelt_areal,"")))) ->  | D38: =IF(C38<>"","ha","") ->  | F38: ha | G38: =IF(I38<>"","",IF(VLOOKUP(AF38,_Afg07,Udbyttenr2)=0,"",VLOOKUP(AF38,_Afg07,Udbyttenr2))) ->  | H38: =IF(G38="","",IF(AF38>1,IF(VLOOKUP(AF38,_Afg07,3)<>"",VLOOKUP(AF38,_Afg07,3),""),"")) ->  | J38: hkg | AF38: 1 | AH38: =IF(AND(E38<>"",VLOOKUP(AF38,_Afg07,3)<>""),E38,0) -> 0 | AI38: =IF(AND(AF38>1,VLOOKUP(AF38,_Afg07,3)=""),1,0) -> 0 | AJ38: =IF(AND(E38<>"",AF38>1,VLOOKUP(AF38,_Afg07,3)=""),E38,0) -> 0 | AM38: 1 | AP38: 0 | AQ38: 0
AM39: 0 | AN39: 0 | AO39: 0 | AP39: 0 | AQ39: 0
AM40: 0 | AN40: 0 | AO40: 0 | AP40: 0 | AQ40: 0
A41: 6 | C41: =IF(E41>0,"",IF(AND(AF41>1,AF43>1,AI41+AI43=0),Fordelt_areal/2,IF(AF41>1,Fordelt_areal,""))) ->  | D41: =IF(C41<>"","ha","") ->  | F41: ha | G41: =IF(I41<>"","",IF(VLOOKUP(AF41,_Afg07,Udbyttenr2)=0,"",VLOOKUP(AF41,_Afg07,Udbyttenr2))) ->  | H41: =IF(G41="","",IF(AF41>1,IF(VLOOKUP(AF41,_Afg07,3)<>"",VLOOKUP(AF41,_Afg07,3),""),"")) ->  | J41: hkg | AE41: =A41 -> 6 | AF41: 1 | AG41: =IF(AND(AF41>1,AH41=0),1,0) -> 0 | AH41: =IF(AND(E41<>"",VLOOKUP(AF41,_Afg07,3)<>""),E41,0) -> 0 | AI41: =IF(AND(AF41>1,VLOOKUP(AF41,_Afg07,3)=""),1,0) -> 0 | AJ41: =IF(AND(E41<>"",AF41>1,VLOOKUP(AF41,_Afg07,3)=""),E41,0) -> 0 | AM41: 1 | AP41: 0 | AQ41: 0
AM42: 0 | AN42: 0 | AO42: 0 | AP42: 0 | AQ42: 0
C43: =IF(E43>0,"",IF(E41>0,"",IF(AND(AF43>1,AI41+AI43=0),Fordelt_areal/2,IF(AF43>1,Fordelt_areal,"")))) ->  | D43: =IF(C43<>"","ha","") ->  | F43: ha | G43: =IF(I43<>"","",IF(VLOOKUP(AF43,_Afg07,Udbyttenr2)=0,"",VLOOKUP(AF43,_Afg07,Udbyttenr2))) ->  | H43: =IF(G43="","",IF(AF43>1,IF(VLOOKUP(AF43,_Afg07,3)<>"",VLOOKUP(AF43,_Afg07,3),""),"")) ->  | J43: hkg | AF43: 1 | AH43: =IF(AND(E43<>"",VLOOKUP(AF43,_Afg07,3)<>""),E43,0) -> 0 | AI43: =IF(AND(AF43>1,VLOOKUP(AF43,_Afg07,3)=""),1,0) -> 0 | AJ43: =IF(AND(E43<>"",AF43>1,VLOOKUP(AF43,_Afg07,3)=""),E43,0) -> 0 | AM43: 1 | AP43: 0 | AQ43: 0
AM44: 0 | AN44: 0 | AO44: 0 | AP44: 0 | AQ44: 0
AM45: 0 | AN45: 0 | AO45: 0 | AP45: 0 | AQ45: 0
A46: 7 | C46: =IF(E46>0,"",IF(AND(AF46>1,AF48>1,AI46+AI48=0),Fordelt_areal/2,IF(AF46>1,Fordelt_areal,""))) ->  | D46: =IF(C46<>"","ha","") ->  | F46: ha | G46: =IF(I46<>"","",IF(VLOOKUP(AF46,_Afg07,Udbyttenr2)=0,"",VLOOKUP(AF46,_Afg07,Udbyttenr2))) ->  | H46: =IF(G46="","",IF(AF46>1,IF(VLOOKUP(AF46,_Afg07,3)<>"",VLOOKUP(AF46,_Afg07,3),""),"")) ->  | J46: hkg | AE46: =A46 -> 7 | AF46: 1 | AG46: =IF(AND(AF46>1,AH46=0),1,0) -> 0 | AH46: =IF(AND(E46<>"",VLOOKUP(AF46,_Afg07,3)<>""),E46,0) -> 0 | AI46: =IF(AND(AF46>1,VLOOKUP(AF46,_Afg07,3)=""),1,0) -> 0 | AJ46: =IF(AND(E46<>"",AF46>1,VLOOKUP(AF46,_Afg07,3)=""),E46,0) -> 0 | AM46: 1 | AP46: 0 | AQ46: 0
AM47: 0 | AN47: 0 | AO47: 0 | AP47: 0 | AQ47: 0
C48: =IF(E48>0,"",IF(E46>0,"",IF(AND(AF48>1,AI46+AI48=0),Fordelt_areal/2,IF(AF48>1,Fordelt_areal,"")))) ->  | D48: =IF(C48<>"","ha","") ->  | F48: ha | G48: =IF(I48<>"","",IF(VLOOKUP(AF48,_Afg07,Udbyttenr2)=0,"",VLOOKUP(AF48,_Afg07,Udbyttenr2))) ->  | H48: =IF(G48="","",IF(AF48>1,IF(VLOOKUP(AF48,_Afg07,3)<>"",VLOOKUP(AF48,_Afg07,3),""),"")) ->  | J48: hkg | AF48: 1 | AH48: =IF(AND(E48<>"",VLOOKUP(AF48,_Afg07,3)<>""),E48,0) -> 0 | AI48: =IF(AND(AF48>1,VLOOKUP(AF48,_Afg07,3)=""),1,0) -> 0 | AJ48: =IF(AND(E48<>"",AF48>1,VLOOKUP(AF48,_Afg07,3)=""),E48,0) -> 0 | AM48: 1 | AP48: 0 | AQ48: 0
AE50: Sum | AG50: =AG16+AG18+AG21+AG23+AG26+AG28+AG31+AG33+AG36+AG38+AG41+AG43+AG46+AG48 -> 0 | AH50: =AH16+AH18+AH21+AH23+AH26+AH28+AH31+AH33+AH36+AH38+AH41+AH43+AH46+AH48 -> 0 | AJ50: =AJ16+AJ18+AJ21+AJ23+AJ26+AJ28+AJ31+AJ33+AJ36+AJ38+AJ41+AJ43+AJ46+AJ48 -> 0
A51: Delsædskifte 2
B54: Marker/ejendomme: | AG54: Udbyttenr3
B56: Jordtype | AF56: 4 | AG56: =IF(AF56=1,5,IF(AF56=2,6,IF(AF56=3,7,IF(AF56=4,8,IF(AF56=5,9,""))))) -> 8 | AH56: Areal
AH57: til fordeling | AI57: Fordelt_areal
B58: Samlet areal | D58: ha | AH58: =C58-AH96 -> 0 | AI58: =Areal_fordel2/Antal_skifter2 -> 
A60: Afgrødefølge | C60: Areal | G60: Udbytte pr. ha | L60: Kommentarer | AG60: Antal | AH60: Areal | AI60: Efter- | AJ60: Areal
AE61: Afgrødefølge | AG61: skifter | AH61: indtastet | AI61: afgrøde | AJ61: indtastet efterafgrøde
A62: 1 | C62: =IF(E62>0,"",IF(AND(AF62>1,AF64>1,AI62+AI64=0),Fordelt_areal2/2,IF(AF62>1,Fordelt_areal2,""))) ->  | D62: =IF(C62<>"","ha","") ->  | F62: ha | G62: =IF(I62<>"","",IF(VLOOKUP(AF62,_Afg07,Udbyttenr3)=0,"",VLOOKUP(AF62,_Afg07,Udbyttenr3))) ->  | H62: =IF(G62="","",IF(AF62>1,IF(VLOOKUP(AF62,_Afg07,3)<>"",VLOOKUP(AF62,_Afg07,3),""),"")) ->  | J62: hkg | S62: Du kan angive både afgrøde og efterafgrøde. Man kan også dele arealet mellem 2 afgrøder. | AE62: =A62 -> 1 | AF62: 1 | AG62: =IF(AND(AF62>1,AH62=0),1,0) -> 0 | AH62: =IF(AND(E62<>"",VLOOKUP(AF62,_Afg07,3)<>""),E62,0) -> 0 | AI62: =IF(AND(AF62>1,VLOOKUP(AF62,_Afg07,3)=""),1,0) -> 0 | AJ62: =IF(AND(E62<>"",AF62>1,VLOOKUP(AF62,_Afg07,3)=""),E62,0) -> 0 | AM62: 1 | AP62: 0 | AQ62: =AI62 -> 0
AM63: 0 | AN63: 0 | AO63: 0 | AP63: 0 | AQ63: 0
C64: =IF(E64>0,"",IF(E62>0,"",IF(AND(AF64>1,AI62+AI64=0),Fordelt_areal2/2,IF(AF64>1,Fordelt_areal2,"")))) ->  | D64: =IF(C64<>"","ha","") ->  | F64: ha | G64: =IF(I64<>"","",IF(VLOOKUP(AF64,_Afg07,Udbyttenr3)=0,"",VLOOKUP(AF64,_Afg07,Udbyttenr3))) ->  | H64: =IF(G64="","",IF(AF64>1,IF(VLOOKUP(AF64,_Afg07,3)<>"",VLOOKUP(AF64,_Afg07,3),""),"")) ->  | J64: hkg | AF64: 1 | AH64: =IF(AND(E64<>"",VLOOKUP(AF64,_Afg07,3)<>""),E64,0) -> 0 | AI64: =IF(AND(AF64>1,VLOOKUP(AF64,_Afg07,3)=""),1,0) -> 0 | AJ64: =IF(AND(E64<>"",AF64>1,VLOOKUP(AF64,_Afg07,3)=""),E64,0) -> 0 | AM64: 1 | AP64: 0 | AQ64: 0
AM65: 0 | AN65: 0 | AO65: 0 | AP65: 0 | AQ65: 0
AM66: 0 | AN66: 0 | AO66: 0 | AP66: 0 | AQ66: 0
A67: 2 | C67: =IF(E67>0,"",IF(AND(AF67>1,AF69>1,AI67+AI69=0),Fordelt_areal2/2,IF(AF67>1,Fordelt_areal2,""))) ->  | D67: =IF(C67<>"","ha","") ->  | F67: ha | G67: =IF(I67<>"","",IF(VLOOKUP(AF67,_Afg07,Udbyttenr3)=0,"",VLOOKUP(AF67,_Afg07,Udbyttenr3))) ->  | H67: =IF(G67="","",IF(AF67>1,IF(VLOOKUP(AF67,_Afg07,3)<>"",VLOOKUP(AF67,_Afg07,3),""),"")) ->  | J67: hkg | AE67: =A67 -> 2 | AF67: 1 | AG67: =IF(AND(AF67>1,AH67=0),1,0) -> 0 | AH67: =IF(AND(E67<>"",VLOOKUP(AF67,_Afg07,3)<>""),E67,0) -> 0 | AI67: =IF(AND(AF67>1,VLOOKUP(AF67,_Afg07,3)=""),1,0) -> 0 | AJ67: =IF(AND(E67<>"",AF67>1,VLOOKUP(AF67,_Afg07,3)=""),E67,0) -> 0 | AM67: 1 | AP67: 0 | AQ67: 0
AM68: 0 | AN68: 0 | AO68: 0 | AP68: 0 | AQ68: 0
C69: =IF(E69>0,"",IF(E67>0,"",IF(AND(AF69>1,AI67+AI69=0),Fordelt_areal2/2,IF(AF69>1,Fordelt_areal2,"")))) ->  | D69: =IF(C69<>"","ha","") ->  | F69: ha | G69: =IF(I69<>"","",IF(VLOOKUP(AF69,_Afg07,Udbyttenr3)=0,"",VLOOKUP(AF69,_Afg07,Udbyttenr3))) ->  | H69: =IF(G69="","",IF(AF69>1,IF(VLOOKUP(AF69,_Afg07,3)<>"",VLOOKUP(AF69,_Afg07,3),""),"")) ->  | J69: hkg | AF69: 1 | AH69: =IF(AND(E69<>"",VLOOKUP(AF69,_Afg07,3)<>""),E69,0) -> 0 | AI69: =IF(AND(AF69>1,VLOOKUP(AF69,_Afg07,3)=""),1,0) -> 0 | AJ69: =IF(AND(E69<>"",AF69>1,VLOOKUP(AF69,_Afg07,3)=""),E69,0) -> 0 | AM69: 1 | AP69: 0 | AQ69: 0
AM70: 0 | AN70: 0 | AO70: 0 | AP70: 0 | AQ70: 0
AF71: 2 | AM71: 2 | AN71: 0 | AO71: 0 | AP71: 0 | AQ71: 0
A72: 3 | C72: =IF(E72>0,"",IF(AND(AF72>1,AF74>1,AI72+AI74=0),Fordelt_areal2/2,IF(AF72>1,Fordelt_areal2,""))) ->  | D72: =IF(C72<>"","ha","") ->  | F72: ha | G72: =IF(I72<>"","",IF(VLOOKUP(AF72,_Afg07,Udbyttenr3)=0,"",VLOOKUP(AF72,_Afg07,Udbyttenr3))) ->  | H72: =IF(G72="","",IF(AF72>1,IF(VLOOKUP(AF72,_Afg07,3)<>"",VLOOKUP(AF72,_Afg07,3),""),"")) ->  | J72: hkg | AE72: =A72 -> 3 | AF72: 1 | AG72: =IF(AND(AF72>1,AH72=0),1,0) -> 0 | AH72: =IF(AND(E72<>"",VLOOKUP(AF72,_Afg07,3)<>""),E72,0) -> 0 | AI72: =IF(AND(AF72>1,VLOOKUP(AF72,_Afg07,3)=""),1,0) -> 0 | AJ72: =IF(AND(E72<>"",AF72>1,VLOOKUP(AF72,_Afg07,3)=""),E72,0) -> 0 | AM72: 1 | AP72: 0 | AQ72: 0
AM73: 0 | AN73: 0 | AO73: 0 | AP73: 0 | AQ73: 0
C74: =IF(E74>0,"",IF(E72>0,"",IF(AND(AF74>1,AI72+AI74=0),Fordelt_areal2/2,IF(AF74>1,Fordelt_areal2,"")))) ->  | D74: =IF(C74<>"","ha","") ->  | F74: ha | G74: =IF(I74<>"","",IF(VLOOKUP(AF74,_Afg07,Udbyttenr3)=0,"",VLOOKUP(AF74,_Afg07,Udbyttenr3))) ->  | H74: =IF(G74="","",IF(AF74>1,IF(VLOOKUP(AF74,_Afg07,3)<>"",VLOOKUP(AF74,_Afg07,3),""),"")) ->  | J74: hkg | AF74: 1 | AH74: =IF(AND(E74<>"",VLOOKUP(AF74,_Afg07,3)<>""),E74,0) -> 0 | AI74: =IF(AND(AF74>1,VLOOKUP(AF74,_Afg07,3)=""),1,0) -> 0 | AJ74: =IF(AND(E74<>"",AF74>1,VLOOKUP(AF74,_Afg07,3)=""),E74,0) -> 0 | AM74: 1 | AP74: 0 | AQ74: 0
AM75: 0 | AN75: 0 | AO75: 0 | AP75: 0 | AQ75: 0
AM76: 0 | AN76: 0 | AO76: 0 | AP76: 0 | AQ76: 0
A77: 4 | C77: =IF(E77>0,"",IF(AND(AF77>1,AF79>1,AI77+AI79=0),Fordelt_areal2/2,IF(AF77>1,Fordelt_areal2,""))) ->  | D77: =IF(C77<>"","ha","") ->  | F77: ha | G77: =IF(I77<>"","",IF(VLOOKUP(AF77,_Afg07,Udbyttenr3)=0,"",VLOOKUP(AF77,_Afg07,Udbyttenr3))) ->  | H77: =IF(G77="","",IF(AF77>1,IF(VLOOKUP(AF77,_Afg07,3)<>"",VLOOKUP(AF77,_Afg07,3),""),"")) ->  | J77: hkg | AE77: =A77 -> 4 | AF77: 1 | AG77: =IF(AND(AF77>1,AH77=0),1,0) -> 0 | AH77: =IF(AND(E77<>"",VLOOKUP(AF77,_Afg07,3)<>""),E77,0) -> 0 | AI77: =IF(AND(AF77>1,VLOOKUP(AF77,_Afg07,3)=""),1,0) -> 0 | AJ77: =IF(AND(E77<>"",AF77>1,VLOOKUP(AF77,_Afg07,3)=""),E77,0) -> 0 | AM77: 1 | AP77: 0 | AQ77: 0
AM78: 0 | AN78: 0 | AO78: 0 | AP78: 0 | AQ78: 0
C79: =IF(E79>0,"",IF(E77>0,"",IF(AND(AF79>1,AI77+AI79=0),Fordelt_areal2/2,IF(AF79>1,Fordelt_areal2,"")))) ->  | D79: =IF(C79<>"","ha","") ->  | F79: ha | G79: =IF(I79<>"","",IF(VLOOKUP(AF79,_Afg07,Udbyttenr3)=0,"",VLOOKUP(AF79,_Afg07,Udbyttenr3))) ->  | H79: =IF(G79="","",IF(AF79>1,IF(VLOOKUP(AF79,_Afg07,3)<>"",VLOOKUP(AF79,_Afg07,3),""),"")) ->  | J79: hkg | AF79: 1 | AH79: =IF(AND(E79<>"",VLOOKUP(AF79,_Afg07,3)<>""),E79,0) -> 0 | AI79: =IF(AND(AF79>1,VLOOKUP(AF79,_Afg07,3)=""),1,0) -> 0 | AJ79: =IF(AND(E79<>"",AF79>1,VLOOKUP(AF79,_Afg07,3)=""),E79,0) -> 0 | AM79: 1 | AP79: 0 | AQ79: 0
AM80: 0 | AN80: 0 | AO80: 0 | AP80: 0 | AQ80: 0
AM81: =AF81 -> 0 | AN81: =IF(E81<>"",E81,C81) -> 0 | AO81: =IF(I81<>"",I81,G81) -> 0 | AP81: =IF(ISERROR(AN81*AO81),0,AN81*AO81) -> 0 | AQ81: 0
A82: 5 | C82: =IF(E82>0,"",IF(AND(AF82>1,AF84>1,AI82+AI84=0),Fordelt_areal2/2,IF(AF82>1,Fordelt_areal2,""))) ->  | D82: =IF(C82<>"","ha","") ->  | F82: ha | G82: =IF(I82<>"","",IF(VLOOKUP(AF82,_Afg07,Udbyttenr3)=0,"",VLOOKUP(AF82,_Afg07,Udbyttenr3))) ->  | H82: =IF(G82="","",IF(AF82>1,IF(VLOOKUP(AF82,_Afg07,3)<>"",VLOOKUP(AF82,_Afg07,3),""),"")) ->  | J82: hkg | AE82: =A82 -> 5 | AF82: 1 | AG82: =IF(AND(AF82>1,AH82=0),1,0) -> 0 | AH82: =IF(AND(E82<>"",VLOOKUP(AF82,_Afg07,3)<>""),E82,0) -> 0 | AI82: =IF(AND(AF82>1,VLOOKUP(AF82,_Afg07,3)=""),1,0) -> 0 | AJ82: =IF(AND(E82<>"",AF82>1,VLOOKUP(AF82,_Afg07,3)=""),E82,0) -> 0 | AM82: 1 | AP82: 0 | AQ82: 0
AM83: 0 | AN83: 0 | AO83: 0 | AP83: 0 | AQ83: 0
C84: =IF(E84>0,"",IF(E82>0,"",IF(AND(AF84>1,AI82+AI84=0),Fordelt_areal2/2,IF(AF84>1,Fordelt_areal2,"")))) ->  | D84: =IF(C84<>"","ha","") ->  | F84: ha | G84: =IF(I84<>"","",IF(VLOOKUP(AF84,_Afg07,Udbyttenr3)=0,"",VLOOKUP(AF84,_Afg07,Udbyttenr3))) ->  | H84: =IF(G84="","",IF(AF84>1,IF(VLOOKUP(AF84,_Afg07,3)<>"",VLOOKUP(AF84,_Afg07,3),""),"")) ->  | J84: hkg | AF84: 1 | AH84: =IF(AND(E84<>"",VLOOKUP(AF84,_Afg07,3)<>""),E84,0) -> 0 | AI84: =IF(AND(AF84>1,VLOOKUP(AF84,_Afg07,3)=""),1,0) -> 0 | AJ84: =IF(AND(E84<>"",AF84>1,VLOOKUP(AF84,_Afg07,3)=""),E84,0) -> 0 | AM84: 1 | AP84: 0 | AQ84: 0
AM85: 0 | AN85: 0 | AO85: 0 | AP85: 0 | AQ85: 0
AM86: 0 | AN86: 0 | AO86: 0 | AP86: 0 | AQ86: 0
A87: 6 | C87: =IF(E87>0,"",IF(AND(AF87>1,AF89>1,AI87+AI89=0),Fordelt_areal2/2,IF(AF87>1,Fordelt_areal2,""))) ->  | D87: =IF(C87<>"","ha","") ->  | F87: ha | G87: =IF(I87<>"","",IF(VLOOKUP(AF87,_Afg07,Udbyttenr3)=0,"",VLOOKUP(AF87,_Afg07,Udbyttenr3))) ->  | H87: =IF(G87="","",IF(AF87>1,IF(VLOOKUP(AF87,_Afg07,3)<>"",VLOOKUP(AF87,_Afg07,3),""),"")) ->  | J87: hkg | AE87: =A87 -> 6 | AF87: 1 | AG87: =IF(AND(AF87>1,AH87=0),1,0) -> 0 | AH87: =IF(AND(E87<>"",VLOOKUP(AF87,_Afg07,3)<>""),E87,0) -> 0 | AI87: =IF(AND(AF87>1,VLOOKUP(AF87,_Afg07,3)=""),1,0) -> 0 | AJ87: =IF(AND(E87<>"",AF87>1,VLOOKUP(AF87,_Afg07,3)=""),E87,0) -> 0 | AM87: 1 | AP87: 0 | AQ87: 0
AM88: 0 | AN88: 0 | AO88: 0 | AP88: 0 | AQ88: 0
C89: =IF(E89>0,"",IF(E87>0,"",IF(AND(AF89>1,AI87+AI89=0),Fordelt_areal2/2,IF(AF89>1,Fordelt_areal2,"")))) ->  | D89: =IF(C89<>"","ha","") ->  | F89: ha | G89: =IF(I89<>"","",IF(VLOOKUP(AF89,_Afg07,Udbyttenr3)=0,"",VLOOKUP(AF89,_Afg07,Udbyttenr3))) ->  | H89: =IF(G89="","",IF(AF89>1,IF(VLOOKUP(AF89,_Afg07,3)<>"",VLOOKUP(AF89,_Afg07,3),""),"")) ->  | J89: hkg | AF89: 1 | AH89: =IF(AND(E89<>"",VLOOKUP(AF89,_Afg07,3)<>""),E89,0) -> 0 | AI89: =IF(AND(AF89>1,VLOOKUP(AF89,_Afg07,3)=""),1,0) -> 0 | AJ89: =IF(AND(E89<>"",AF89>1,VLOOKUP(AF89,_Afg07,3)=""),E89,0) -> 0 | AM89: 1 | AP89: 0 | AQ89: 0
AM90: 0 | AN90: 0 | AO90: 0 | AP90: 0 | AQ90: 0
AM91: 0 | AN91: 0 | AO91: 0 | AP91: 0 | AQ91: 0
A92: 7 | C92: =IF(E92>0,"",IF(AND(AF92>1,AF94>1,AI92+AI94=0),Fordelt_areal2/2,IF(AF92>1,Fordelt_areal2,""))) ->  | D92: =IF(C92<>"","ha","") ->  | F92: ha | G92: =IF(I92<>"","",IF(VLOOKUP(AF92,_Afg07,Udbyttenr3)=0,"",VLOOKUP(AF92,_Afg07,Udbyttenr3))) ->  | H92: =IF(G92="","",IF(AF92>1,IF(VLOOKUP(AF92,_Afg07,3)<>"",VLOOKUP(AF92,_Afg07,3),""),"")) ->  | J92: hkg | AE92: =A92 -> 7 | AF92: 1 | AG92: =IF(AND(AF92>1,AH92=0),1,0) -> 0 | AH92: =IF(AND(E92<>"",VLOOKUP(AF92,_Afg07,3)<>""),E92,0) -> 0 | AI92: =IF(AND(AF92>1,VLOOKUP(AF92,_Afg07,3)=""),1,0) -> 0 | AJ92: =IF(AND(E92<>"",AF92>1,VLOOKUP(AF92,_Afg07,3)=""),E92,0) -> 0 | AM92: 1 | AP92: 0 | AQ92: 0
AM93: 0 | AN93: 0 | AO93: 0 | AP93: 0 | AQ93: 0
C94: =IF(E94>0,"",IF(E92>0,"",IF(AND(AF94>1,AI92+AI94=0),Fordelt_areal2/2,IF(AF94>1,Fordelt_areal2,"")))) ->  | D94: =IF(C94<>"","ha","") ->  | F94: ha | G94: =IF(I94<>"","",IF(VLOOKUP(AF94,_Afg07,Udbyttenr3)=0,"",VLOOKUP(AF94,_Afg07,Udbyttenr3))) ->  | H94: =IF(G94="","",IF(AF94>1,IF(VLOOKUP(AF94,_Afg07,3)<>"",VLOOKUP(AF94,_Afg07,3),""),"")) ->  | J94: hkg | AF94: 1 | AH94: =IF(AND(E94<>"",VLOOKUP(AF94,_Afg07,3)<>""),E94,0) -> 0 | AI94: =IF(AND(AF94>1,VLOOKUP(AF94,_Afg07,3)=""),1,0) -> 0 | AJ94: =IF(AND(E94<>"",AF94>1,VLOOKUP(AF94,_Afg07,3)=""),E94,0) -> 0 | AM94: 1 | AP94: 0 | AQ94: 0
AE96: Sum | AG96: =AG62+AG64+AG67+AG69+AG72+AG74+AG77+AG79+AG82+AG84+AG87+AG89+AG92+AG94 -> 0 | AH96: =AH62+AH64+AH67+AH69+AH72+AH74+AH77+AH79+AH82+AH84+AH87+AH89+AH92+AH94 -> 0 | AJ96: =AJ62+AJ64+AJ67+AJ69+AJ72+AJ74+AJ77+AJ79+AJ82+AJ84+AJ87+AJ89+AJ92+AJ94 -> 0
A97: Delsædskifte 3
B100: Marker/ejendomme: | AG100: Udbyttenr4
B102: Jordtype | AF102: 4 | AG102: =IF(AF102=1,5,IF(AF102=2,6,IF(AF102=3,7,IF(AF102=4,8,IF(AF102=5,9,""))))) -> 8 | AH102: Areal
AH103: til fordeling | AI103: Fordelt_areal
B104: Samlet areal | D104: ha | AH104: =C104-AH142 -> 0 | AI104: =Areal_fordel3/Antal_skifter3 -> 
A106: Afgrødefølge | C106: Areal | G106: Udbytte pr. ha | L106: Kommentarer | AG106: Antal | AH106: Areal | AI106: Efter- | AJ106: Areal
AE107: Afgrødefølge | AG107: skifter | AH107: indtastet | AI107: afgrøde | AJ107: indtastet efterafgrøde
A108: 1 | C108: =IF(E108>0,"",IF(AND(AF108>1,AF110>1,AI108+AI110=0),Fordelt_areal3/2,IF(AF108>1,Fordelt_areal3,""))) ->  | D108: =IF(C108<>"","ha","") ->  | F108: ha | G108: =IF(I108<>"","",IF(VLOOKUP(AF108,_Afg07,Udbyttenr4)=0,"",VLOOKUP(AF108,_Afg07,Udbyttenr4))) ->  | H108: =IF(G108="","",IF(AF108>1,IF(VLOOKUP(AF108,_Afg07,3)<>"",VLOOKUP(AF108,_Afg07,3),""),"")) ->  | J108: hkg | AE108: =A108 -> 1 | AF108: 1 | AG108: =IF(AND(AF108>1,AH108=0),1,0) -> 0 | AH108: =IF(AND(E108<>"",VLOOKUP(AF108,_Afg07,3)<>""),E108,0) -> 0 | AI108: =IF(AND(AF108>1,VLOOKUP(AF108,_Afg07,3)=""),1,0) -> 0 | AJ108: =IF(AND(E108<>"",AF108>1,VLOOKUP(AF108,_Afg07,3)=""),E108,0) -> 0 | AM108: 1 | AP108: 0 | AQ108: =AI108 -> 0
AM109: 0 | AN109: 0 | AO109: 0 | AP109: 0 | AQ109: 0
C110: =IF(E110>0,"",IF(E108>0,"",IF(AND(AF110>1,AI108+AI110=0),Fordelt_areal3/2,IF(AF110>1,Fordelt_areal3,"")))) ->  | D110: =IF(C110<>"","ha","") ->  | F110: ha | G110: =IF(I110<>"","",IF(VLOOKUP(AF110,_Afg07,Udbyttenr4)=0,"",VLOOKUP(AF110,_Afg07,Udbyttenr4))) ->  | H110: =IF(G110="","",IF(AF110>1,IF(VLOOKUP(AF110,_Afg07,3)<>"",VLOOKUP(AF110,_Afg07,3),""),"")) ->  | J110: hkg | AF110: 1 | AH110: =IF(AND(E110<>"",VLOOKUP(AF110,_Afg07,3)<>""),E110,0) -> 0 | AI110: =IF(AND(AF110>1,VLOOKUP(AF110,_Afg07,3)=""),1,0) -> 0 | AJ110: =IF(AND(E110<>"",AF110>1,VLOOKUP(AF110,_Afg07,3)=""),E110,0) -> 0 | AM110: 1 | AP110: 0 | AQ110: 0
AM111: 0 | AN111: 0 | AO111: 0 | AP111: 0 | AQ111: 0
AM112: 0 | AN112: 0 | AO112: 0 | AP112: 0 | AQ112: 0
A113: 2 | C113: =IF(E113>0,"",IF(AND(AF113>1,AF115>1,AI113+AI115=0),Fordelt_areal3/2,IF(AF113>1,Fordelt_areal3,""))) ->  | D113: =IF(C113<>"","ha","") ->  | F113: ha | G113: =IF(I113<>"","",IF(VLOOKUP(AF113,_Afg07,Udbyttenr4)=0,"",VLOOKUP(AF113,_Afg07,Udbyttenr4))) ->  | H113: =IF(G113="","",IF(AF113>1,IF(VLOOKUP(AF113,_Afg07,3)<>"",VLOOKUP(AF113,_Afg07,3),""),"")) ->  | J113: hkg | AE113: =A113 -> 2 | AF113: 1 | AG113: =IF(AND(AF113>1,AH113=0),1,0) -> 0 | AH113: =IF(AND(E113<>"",VLOOKUP(AF113,_Afg07,3)<>""),E113,0) -> 0 | AI113: =IF(AND(AF113>1,VLOOKUP(AF113,_Afg07,3)=""),1,0) -> 0 | AJ113: =IF(AND(E113<>"",AF113>1,VLOOKUP(AF113,_Afg07,3)=""),E113,0) -> 0 | AM113: 1 | AP113: 0 | AQ113: 0
AM114: 0 | AN114: 0 | AO114: 0 | AP114: 0 | AQ114: 0
C115: =IF(E115>0,"",IF(E113>0,"",IF(AND(AF115>1,AI113+AI115=0),Fordelt_areal3/2,IF(AF115>1,Fordelt_areal3,"")))) ->  | D115: =IF(C115<>"","ha","") ->  | F115: ha | G115: =IF(I115<>"","",IF(VLOOKUP(AF115,_Afg07,Udbyttenr4)=0,"",VLOOKUP(AF115,_Afg07,Udbyttenr4))) ->  | H115: =IF(G115="","",IF(AF115>1,IF(VLOOKUP(AF115,_Afg07,3)<>"",VLOOKUP(AF115,_Afg07,3),""),"")) ->  | J115: hkg | AF115: 1 | AH115: =IF(AND(E115<>"",VLOOKUP(AF115,_Afg07,3)<>""),E115,0) -> 0 | AI115: =IF(AND(AF115>1,VLOOKUP(AF115,_Afg07,3)=""),1,0) -> 0 | AJ115: =IF(AND(E115<>"",AF115>1,VLOOKUP(AF115,_Afg07,3)=""),E115,0) -> 0 | AM115: 1 | AP115: 0 | AQ115: 0
AM116: 0 | AN116: 0 | AO116: 0 | AP116: 0 | AQ116: 0
AM117: 0 | AN117: 0 | AO117: 0 | AP117: 0 | AQ117: 0
A118: 3 | C118: =IF(E118>0,"",IF(AND(AF118>1,AF120>1,AI118+AI120=0),Fordelt_areal3/2,IF(AF118>1,Fordelt_areal3,""))) ->  | D118: =IF(C118<>"","ha","") ->  | F118: ha | G118: =IF(I118<>"","",IF(VLOOKUP(AF118,_Afg07,Udbyttenr4)=0,"",VLOOKUP(AF118,_Afg07,Udbyttenr4))) ->  | H118: =IF(G118="","",IF(AF118>1,IF(VLOOKUP(AF118,_Afg07,3)<>"",VLOOKUP(AF118,_Afg07,3),""),"")) ->  | J118: hkg | AE118: =A118 -> 3 | AF118: 1 | AG118: =IF(AND(AF118>1,AH118=0),1,0) -> 0 | AH118: =IF(AND(E118<>"",VLOOKUP(AF118,_Afg07,3)<>""),E118,0) -> 0 | AI118: =IF(AND(AF118>1,VLOOKUP(AF118,_Afg07,3)=""),1,0) -> 0 | AJ118: =IF(AND(E118<>"",AF118>1,VLOOKUP(AF118,_Afg07,3)=""),E118,0) -> 0 | AM118: 1 | AP118: 0 | AQ118: 0
AM119: 0 | AN119: 0 | AO119: 0 | AP119: 0 | AQ119: 0
C120: =IF(E120>0,"",IF(E118>0,"",IF(AND(AF120>1,AI118+AI120=0),Fordelt_areal3/2,IF(AF120>1,Fordelt_areal3,"")))) ->  | D120: =IF(C120<>"","ha","") ->  | F120: ha | G120: =IF(I120<>"","",IF(VLOOKUP(AF120,_Afg07,Udbyttenr4)=0,"",VLOOKUP(AF120,_Afg07,Udbyttenr4))) ->  | H120: =IF(G120="","",IF(AF120>1,IF(VLOOKUP(AF120,_Afg07,3)<>"",VLOOKUP(AF120,_Afg07,3),""),"")) ->  | J120: hkg | AF120: 1 | AH120: =IF(AND(E120<>"",VLOOKUP(AF120,_Afg07,3)<>""),E120,0) -> 0 | AI120: =IF(AND(AF120>1,VLOOKUP(AF120,_Afg07,3)=""),1,0) -> 0 | AJ120: =IF(AND(E120<>"",AF120>1,VLOOKUP(AF120,_Afg07,3)=""),E120,0) -> 0 | AM120: 1 | AP120: 0 | AQ120: 0
AM121: 0 | AN121: 0 | AO121: 0 | AP121: 0 | AQ121: 0
AM122: 0 | AN122: 0 | AO122: 0 | AP122: 0 | AQ122: 0
A123: 4 | C123: =IF(E123>0,"",IF(AND(AF123>1,AF125>1,AI123+AI125=0),Fordelt_areal3/2,IF(AF123>1,Fordelt_areal3,""))) ->  | D123: =IF(C123<>"","ha","") ->  | F123: ha | G123: =IF(I123<>"","",IF(VLOOKUP(AF123,_Afg07,Udbyttenr4)=0,"",VLOOKUP(AF123,_Afg07,Udbyttenr4))) ->  | H123: =IF(G123="","",IF(AF123>1,IF(VLOOKUP(AF123,_Afg07,3)<>"",VLOOKUP(AF123,_Afg07,3),""),"")) ->  | J123: hkg | AE123: =A123 -> 4 | AF123: 1 | AG123: =IF(AND(AF123>1,AH123=0),1,0) -> 0 | AH123: =IF(AND(E123<>"",VLOOKUP(AF123,_Afg07,3)<>""),E123,0) -> 0 | AI123: =IF(AND(AF123>1,VLOOKUP(AF123,_Afg07,3)=""),1,0) -> 0 | AJ123: =IF(AND(E123<>"",AF123>1,VLOOKUP(AF123,_Afg07,3)=""),E123,0) -> 0 | AM123: 1 | AP123: 0 | AQ123: 0
AM124: 0 | AN124: 0 | AO124: 0 | AP124: 0 | AQ124: 0
C125: =IF(E125>0,"",IF(E123>0,"",IF(AND(AF125>1,AI123+AI125=0),Fordelt_areal3/2,IF(AF125>1,Fordelt_areal3,"")))) ->  | D125: =IF(C125<>"","ha","") ->  | F125: ha | G125: =IF(I125<>"","",IF(VLOOKUP(AF125,_Afg07,Udbyttenr4)=0,"",VLOOKUP(AF125,_Afg07,Udbyttenr4))) ->  | H125: =IF(G125="","",IF(AF125>1,IF(VLOOKUP(AF125,_Afg07,3)<>"",VLOOKUP(AF125,_Afg07,3),""),"")) ->  | J125: hkg | AF125: 1 | AH125: =IF(AND(E125<>"",VLOOKUP(AF125,_Afg07,3)<>""),E125,0) -> 0 | AI125: =IF(AND(AF125>1,VLOOKUP(AF125,_Afg07,3)=""),1,0) -> 0 | AJ125: =IF(AND(E125<>"",AF125>1,VLOOKUP(AF125,_Afg07,3)=""),E125,0) -> 0 | AM125: 1 | AP125: 0 | AQ125: 0
AM126: 0 | AN126: 0 | AO126: 0 | AP126: 0 | AQ126: 0
AM127: 0 | AN127: 0 | AO127: 0 | AP127: 0 | AQ127: 0
A128: 5 | C128: =IF(E128>0,"",IF(AND(AF128>1,AF130>1,AI128+AI130=0),Fordelt_areal3/2,IF(AF128>1,Fordelt_areal3,""))) ->  | D128: =IF(C128<>"","ha","") ->  | F128: ha | G128: =IF(I128<>"","",IF(VLOOKUP(AF128,_Afg07,Udbyttenr4)=0,"",VLOOKUP(AF128,_Afg07,Udbyttenr4))) ->  | H128: =IF(G128="","",IF(AF128>1,IF(VLOOKUP(AF128,_Afg07,3)<>"",VLOOKUP(AF128,_Afg07,3),""),"")) ->  | J128: hkg | AE128: =A128 -> 5 | AF128: 1 | AG128: =IF(AND(AF128>1,AH128=0),1,0) -> 0 | AH128: =IF(AND(E128<>"",VLOOKUP(AF128,_Afg07,3)<>""),E128,0) -> 0 | AI128: =IF(AND(AF128>1,VLOOKUP(AF128,_Afg07,3)=""),1,0) -> 0 | AJ128: =IF(AND(E128<>"",AF128>1,VLOOKUP(AF128,_Afg07,3)=""),E128,0) -> 0 | AM128: 1 | AP128: 0 | AQ128: 0
AM129: 0 | AN129: 0 | AO129: 0 | AP129: 0 | AQ129: 0
C130: =IF(E130>0,"",IF(E128>0,"",IF(AND(AF130>1,AI128+AI130=0),Fordelt_areal3/2,IF(AF130>1,Fordelt_areal3,"")))) ->  | D130: =IF(C130<>"","ha","") ->  | F130: ha | G130: =IF(I130<>"","",IF(VLOOKUP(AF130,_Afg07,Udbyttenr4)=0,"",VLOOKUP(AF130,_Afg07,Udbyttenr4))) ->  | H130: =IF(G130="","",IF(AF130>1,IF(VLOOKUP(AF130,_Afg07,3)<>"",VLOOKUP(AF130,_Afg07,3),""),"")) ->  | J130: hkg | AF130: 1 | AH130: =IF(AND(E130<>"",VLOOKUP(AF130,_Afg07,3)<>""),E130,0) -> 0 | AI130: =IF(AND(AF130>1,VLOOKUP(AF130,_Afg07,3)=""),1,0) -> 0 | AJ130: =IF(AND(E130<>"",AF130>1,VLOOKUP(AF130,_Afg07,3)=""),E130,0) -> 0 | AM130: 1 | AP130: 0 | AQ130: 0
AM131: 0 | AN131: 0 | AO131: 0 | AP131: 0 | AQ131: 0
AM132: 0 | AN132: 0 | AO132: 0 | AP132: 0 | AQ132: 0
A133: 6 | C133: =IF(E133>0,"",IF(AND(AF133>1,AF135>1,AI133+AI135=0),Fordelt_areal3/2,IF(AF133>1,Fordelt_areal3,""))) ->  | D133: =IF(C133<>"","ha","") ->  | F133: ha | G133: =IF(I133<>"","",IF(VLOOKUP(AF133,_Afg07,Udbyttenr4)=0,"",VLOOKUP(AF133,_Afg07,Udbyttenr4))) ->  | H133: =IF(G133="","",IF(AF133>1,IF(VLOOKUP(AF133,_Afg07,3)<>"",VLOOKUP(AF133,_Afg07,3),""),"")) ->  | J133: hkg | AE133: =A133 -> 6 | AF133: 1 | AG133: =IF(AND(AF133>1,AH133=0),1,0) -> 0 | AH133: =IF(AND(E133<>"",VLOOKUP(AF133,_Afg07,3)<>""),E133,0) -> 0 | AI133: =IF(AND(AF133>1,VLOOKUP(AF133,_Afg07,3)=""),1,0) -> 0 | AJ133: =IF(AND(E133<>"",AF133>1,VLOOKUP(AF133,_Afg07,3)=""),E133,0) -> 0 | AM133: 1 | AP133: 0 | AQ133: 0
AM134: 0 | AN134: 0 | AO134: 0 | AP134: 0 | AQ134: 0
C135: =IF(E135>0,"",IF(E133>0,"",IF(AND(AF135>1,AI133+AI135=0),Fordelt_areal3/2,IF(AF135>1,Fordelt_areal3,"")))) ->  | D135: =IF(C135<>"","ha","") ->  | F135: ha | G135: =IF(I135<>"","",IF(VLOOKUP(AF135,_Afg07,Udbyttenr4)=0,"",VLOOKUP(AF135,_Afg07,Udbyttenr4))) ->  | H135: =IF(G135="","",IF(AF135>1,IF(VLOOKUP(AF135,_Afg07,3)<>"",VLOOKUP(AF135,_Afg07,3),""),"")) ->  | J135: hkg | AF135: 1 | AH135: =IF(AND(E135<>"",VLOOKUP(AF135,_Afg07,3)<>""),E135,0) -> 0 | AI135: =IF(AND(AF135>1,VLOOKUP(AF135,_Afg07,3)=""),1,0) -> 0 | AJ135: =IF(AND(E135<>"",AF135>1,VLOOKUP(AF135,_Afg07,3)=""),E135,0) -> 0 | AM135: 1 | AP135: 0 | AQ135: 0
AM136: 0 | AN136: 0 | AO136: 0 | AP136: 0 | AQ136: 0
AM137: 0 | AN137: 0 | AO137: 0 | AP137: 0 | AQ137: 0
A138: 7 | C138: =IF(E138>0,"",IF(AND(AF138>1,AF140>1,AI138+AI140=0),Fordelt_areal3/2,IF(AF138>1,Fordelt_areal3,""))) ->  | D138: =IF(C138<>"","ha","") ->  | F138: ha | G138: =IF(I138<>"","",IF(VLOOKUP(AF138,_Afg07,Udbyttenr4)=0,"",VLOOKUP(AF138,_Afg07,Udbyttenr4))) ->  | H138: =IF(G138="","",IF(AF138>1,IF(VLOOKUP(AF138,_Afg07,3)<>"",VLOOKUP(AF138,_Afg07,3),""),"")) ->  | J138: hkg | AE138: =A138 -> 7 | AF138: 1 | AG138: =IF(AND(AF138>1,AH138=0),1,0) -> 0 | AH138: =IF(AND(E138<>"",VLOOKUP(AF138,_Afg07,3)<>""),E138,0) -> 0 | AI138: =IF(AND(AF138>1,VLOOKUP(AF138,_Afg07,3)=""),1,0) -> 0 | AJ138: =IF(AND(E138<>"",AF138>1,VLOOKUP(AF138,_Afg07,3)=""),E138,0) -> 0 | AM138: 1 | AP138: 0 | AQ138: 0
AM139: 0 | AN139: 0 | AO139: 0 | AP139: 0 | AQ139: 0
C140: =IF(E140>0,"",IF(E138>0,"",IF(AND(AF140>1,AI138+AI140=0),Fordelt_areal3/2,IF(AF140>1,Fordelt_areal3,"")))) ->  | D140: =IF(C140<>"","ha","") ->  | F140: ha | G140: =IF(I140<>"","",IF(VLOOKUP(AF140,_Afg07,Udbyttenr4)=0,"",VLOOKUP(AF140,_Afg07,Udbyttenr4))) ->  | H140: =IF(G140="","",IF(AF140>1,IF(VLOOKUP(AF140,_Afg07,3)<>"",VLOOKUP(AF140,_Afg07,3),""),"")) ->  | J140: hkg | AF140: 1 | AH140: =IF(AND(E140<>"",VLOOKUP(AF140,_Afg07,3)<>""),E140,0) -> 0 | AI140: =IF(AND(AF140>1,VLOOKUP(AF140,_Afg07,3)=""),1,0) -> 0 | AJ140: =IF(AND(E140<>"",AF140>1,VLOOKUP(AF140,_Afg07,3)=""),E140,0) -> 0 | AM140: 1 | AP140: 0 | AQ140: 0
AE142: Sum | AG142: =AG108+AG110+AG113+AG115+AG118+AG120+AG123+AG125+AG128+AG130+AG133+AG135+AG138+AG140 -> 0 | AH142: =AH108+AH110+AH113+AH115+AH118+AH120+AH123+AH125+AH128+AH130+AH133+AH135+AH138+AH140 -> 0 | AJ142: =AJ108+AJ110+AJ113+AJ115+AJ118+AJ120+AJ123+AJ125+AJ128+AJ130+AJ133+AJ135+AJ138+AJ140 -> 0
A143: Samlet produktion | AI143: Foderproduktion fordelt på korntyper
AI144: Hvede | AK144: Byg | AM144: Havre | AO144: Rug | AQ144: Triticale | AS144: Majs | AW144: Areal med efterafgrøder
B145: Afgrøder | C145: Areal | E145: Gns. udbytte | H145: Udbytte i alt | J145: Foderudbytte | AX145: Efterafgrøde
AF146: Afgnr | AG146: Foderudbytte | AI146: Hkg | AJ146: Fesv | AK146: Hkg | AL146: Fesv | AM146: Hkg | AN146: Fesv | AO146: Hkg | AP146: Fesv | AQ146: Hkg | AR146: Fesv | AS146: Hkg | AT146: Fesv | AX146: 1
C147: =IF(AF147>1,IF(DSUM(Base,2,$AF146:$AF147)=0,"",DSUM(Base,2,$AF146:$AF147))) -> FALSE | D147: =IF(C147="","","ha") -> ha | E147: =IF(ISERROR(G147/C147),"",G147/C147) ->  | F147: =IF(E147="","","hkg") ->  | G147: =IF(DSUM(Base,4,$AF146:$AF147)=0,"",DSUM(Base,4,$AF146:$AF147)) ->  | I147: =IF(G147="","","hkg") ->  | J147: =IF(ISERROR(G147*VLOOKUP(AF147,_Afg07,'Ark1'!$BQ$131)),"",G147*VLOOKUP(AF147,_Afg07,'Ark1'!$BQ$131)) ->  | L147: =IF(J147="","","FEsv") ->  | AF147: 1 | AG147: =IF(J147<>"",J147,0) -> 0 | AI147: =IF(VLOOKUP($AF147,_Afg07,'Ark1'!$CH$131)="Hvede",$G147,0) -> 0 | AJ147: =IF(VLOOKUP($AF147,_Afg07,'Ark1'!$CH$131)="Hvede",$J147,0) -> 0 | AK147: =IF(VLOOKUP($AF147,_Afg07,'Ark1'!$CH$131)="Byg",$G147,0) -> 0 | AL147: =IF(VLOOKUP($AF147,_Afg07,'Ark1'!$CH$131)="Byg",$J147,0) -> 0 | AM147: =IF(VLOOKUP($AF147,_Afg07,'Ark1'!$CH$131)="Havre",$G147,0) -> 0 | AN147: =IF(VLOOKUP($AF147,_Afg07,'Ark1'!$CH$131)="Havre",$J147,0) -> 0 | AO147: =IF(VLOOKUP($AF147,_Afg07,'Ark1'!$CH$131)="Rug",$G147,0) -> 0 | AP147: =IF(VLOOKUP($AF147,_Afg07,'Ark1'!$CH$131)="Rug",$J147,0) -> 0 | AQ147: =IF(VLOOKUP($AF147,_Afg07,'Ark1'!$CH$131)="Triticale",$G147,0) -> 0 | AR147: =IF(VLOOKUP($AF147,_Afg07,'Ark1'!$CH$131)="Triticale",$J147,0) -> 0 | AS147: =IF(VLOOKUP($AF147,_Afg07,'Ark1'!$CH$131)="Majs",$G147,0) -> 0 | AT147: =IF(VLOOKUP($AF147,_Afg07,'Ark1'!$CH$131)="Majs",$J147,0) -> 0 | AX147: =DSUM(Base,2,AX145:AX146) -> 0
AF148: Afgnr | AX148: =IF(ISERROR(AX147*100/C310),"",ROUND(AX147*100/C310,1)) -> 
C149: =IF(AF149>1,IF(DSUM(Base,2,$AF148:$AF149)=0,"",DSUM(Base,2,$AF148:$AF149)),"") ->  | D149: =IF(C149="","","ha") ->  | E149: =IF(ISERROR(G149/C149),"",G149/C149) ->  | F149: =IF(E149="","","hkg") ->  | G149: =IF(DSUM(Base,4,$AF148:$AF149)=0,"",DSUM(Base,4,$AF148:$AF149)) ->  | I149: =IF(G149="","","hkg") ->  | J149: =IF(ISERROR(G149*VLOOKUP(AF149,_Afg07,'Ark1'!$BQ$131)),"",G149*VLOOKUP(AF149,_Afg07,'Ark1'!$BQ$131)) ->  | L149: =IF(J149="","","FEsv") ->  | AF149: 1 | AG149: =IF(J149<>"",J149,0) -> 0 | AI149: =IF(VLOOKUP($AF149,_Afg07,'Ark1'!$CH$131)="Hvede",$G149,0) -> 0 | AJ149: =IF(VLOOKUP($AF149,_Afg07,'Ark1'!$CH$131)="Hvede",$J149,0) -> 0 | AK149: =IF(VLOOKUP($AF149,_Afg07,'Ark1'!$CH$131)="Byg",$G149,0) -> 0 | AL149: =IF(VLOOKUP($AF149,_Afg07,'Ark1'!$CH$131)="Byg",$J149,0) -> 0 | AM149: =IF(VLOOKUP($AF149,_Afg07,'Ark1'!$CH$131)="Havre",$G149,0) -> 0 | AN149: =IF(VLOOKUP($AF149,_Afg07,'Ark1'!$CH$131)="Havre",$J149,0) -> 0 | AO149: =IF(VLOOKUP($AF149,_Afg07,'Ark1'!$CH$131)="Rug",$G149,0) -> 0 | AP149: =IF(VLOOKUP($AF149,_Afg07,'Ark1'!$CH$131)="Rug",$J149,0) -> 0 | AQ149: =IF(VLOOKUP($AF149,_Afg07,'Ark1'!$CH$131)="Triticale",$G149,0) -> 0 | AR149: =IF(VLOOKUP($AF149,_Afg07,'Ark1'!$CH$131)="Triticale",$J149,0) -> 0 | AS149: =IF(VLOOKUP($AF149,_Afg07,'Ark1'!$CH$131)="Majs",$G149,0) -> 0 | AT149: =IF(VLOOKUP($AF149,_Afg07,'Ark1'!$CH$131)="Majs",$J149,0) -> 0
AF150: Afgnr
C151: =IF(AF151>1,IF(DSUM(Base,2,$AF150:$AF151)=0,"",DSUM(Base,2,$AF150:$AF151)),"") ->  | D151: =IF(C151="","","ha") ->  | E151: =IF(ISERROR(G151/C151),"",G151/C151) ->  | F151: =IF(E151="","","hkg") ->  | G151: =IF(DSUM(Base,4,$AF150:$AF151)=0,"",DSUM(Base,4,$AF150:$AF151)) ->  | I151: =IF(G151="","","hkg") ->  | J151: =IF(ISERROR(G151*VLOOKUP(AF151,_Afg07,'Ark1'!$BQ$131)),"",G151*VLOOKUP(AF151,_Afg07,'Ark1'!$BQ$131)) ->  | L151: =IF(J151="","","FEsv") ->  | AF151: 1 | AG151: =IF(J151<>"",J151,0) -> 0 | AI151: =IF(VLOOKUP($AF151,_Afg07,'Ark1'!$CH$131)="Hvede",$G151,0) -> 0 | AJ151: =IF(VLOOKUP($AF151,_Afg07,'Ark1'!$CH$131)="Hvede",$J151,0) -> 0 | AK151: =IF(VLOOKUP($AF151,_Afg07,'Ark1'!$CH$131)="Byg",$G151,0) -> 0 | AL151: =IF(VLOOKUP($AF151,_Afg07,'Ark1'!$CH$131)="Byg",$J151,0) -> 0 | AM151: =IF(VLOOKUP($AF151,_Afg07,'Ark1'!$CH$131)="Havre",$G151,0) -> 0 | AN151: =IF(VLOOKUP($AF151,_Afg07,'Ark1'!$CH$131)="Havre",$J151,0) -> 0 | AO151: =IF(VLOOKUP($AF151,_Afg07,'Ark1'!$CH$131)="Rug",$G151,0) -> 0 | AP151: =IF(VLOOKUP($AF151,_Afg07,'Ark1'!$CH$131)="Rug",$J151,0) -> 0 | AQ151: =IF(VLOOKUP($AF151,_Afg07,'Ark1'!$CH$131)="Triticale",$G151,0) -> 0 | AR151: =IF(VLOOKUP($AF151,_Afg07,'Ark1'!$CH$131)="Triticale",$J151,0) -> 0 | AS151: =IF(VLOOKUP($AF151,_Afg07,'Ark1'!$CH$131)="Majs",$G151,0) -> 0 | AT151: =IF(VLOOKUP($AF151,_Afg07,'Ark1'!$CH$131)="Majs",$J151,0) -> 0
AF152: Afgnr
C153: =IF(AF153>1,IF(DSUM(Base,2,$AF152:$AF153)=0,"",DSUM(Base,2,$AF152:$AF153)),"") ->  | D153: =IF(C153="","","ha") ->  | E153: =IF(ISERROR(G153/C153),"",G153/C153) ->  | F153: =IF(E153="","","hkg") ->  | G153: =IF(DSUM(Base,4,$AF152:$AF153)=0,"",DSUM(Base,4,$AF152:$AF153)) ->  | I153: =IF(G153="","","hkg") ->  | J153: =IF(ISERROR(G153*VLOOKUP(AF153,_Afg07,'Ark1'!$BQ$131)),"",G153*VLOOKUP(AF153,_Afg07,'Ark1'!$BQ$131)) ->  | L153: =IF(J153="","","FEsv") ->  | AF153: 1 | AG153: =IF(J153<>"",J153,0) -> 0 | AI153: =IF(VLOOKUP($AF153,_Afg07,'Ark1'!$CH$131)="Hvede",$G153,0) -> 0 | AJ153: =IF(VLOOKUP($AF153,_Afg07,'Ark1'!$CH$131)="Hvede",$J153,0) -> 0 | AK153: =IF(VLOOKUP($AF153,_Afg07,'Ark1'!$CH$131)="Byg",$G153,0) -> 0 | AL153: =IF(VLOOKUP($AF153,_Afg07,'Ark1'!$CH$131)="Byg",$J153,0) -> 0 | AM153: =IF(VLOOKUP($AF153,_Afg07,'Ark1'!$CH$131)="Havre",$G153,0) -> 0 | AN153: =IF(VLOOKUP($AF153,_Afg07,'Ark1'!$CH$131)="Havre",$J153,0) -> 0 | AO153: =IF(VLOOKUP($AF153,_Afg07,'Ark1'!$CH$131)="Rug",$G153,0) -> 0 | AP153: =IF(VLOOKUP($AF153,_Afg07,'Ark1'!$CH$131)="Rug",$J153,0) -> 0 | AQ153: =IF(VLOOKUP($AF153,_Afg07,'Ark1'!$CH$131)="Triticale",$G153,0) -> 0 | AR153: =IF(VLOOKUP($AF153,_Afg07,'Ark1'!$CH$131)="Triticale",$J153,0) -> 0 | AS153: =IF(VLOOKUP($AF153,_Afg07,'Ark1'!$CH$131)="Majs",$G153,0) -> 0 | AT153: =IF(VLOOKUP($AF153,_Afg07,'Ark1'!$CH$131)="Majs",$J153,0) -> 0
AF154: Afgnr
C155: =IF(AF155>1,IF(DSUM(Base,2,$AF154:$AF155)=0,"",DSUM(Base,2,$AF154:$AF155)),"") ->  | D155: =IF(C155="","","ha") ->  | E155: =IF(ISERROR(G155/C155),"",G155/C155) ->  | F155: =IF(E155="","","hkg") ->  | G155: =IF(DSUM(Base,4,$AF154:$AF155)=0,"",DSUM(Base,4,$AF154:$AF155)) ->  | I155: =IF(G155="","","hkg") ->  | J155: =IF(ISERROR(G155*VLOOKUP(AF155,_Afg07,'Ark1'!$BQ$131)),"",G155*VLOOKUP(AF155,_Afg07,'Ark1'!$BQ$131)) ->  | L155: =IF(J155="","","FEsv") ->  | AF155: 1 | AG155: =IF(J155<>"",J155,0) -> 0 | AI155: =IF(VLOOKUP($AF155,_Afg07,'Ark1'!$CH$131)="Hvede",$G155,0) -> 0 | AJ155: =IF(VLOOKUP($AF155,_Afg07,'Ark1'!$CH$131)="Hvede",$J155,0) -> 0 | AK155: =IF(VLOOKUP($AF155,_Afg07,'Ark1'!$CH$131)="Byg",$G155,0) -> 0 | AL155: =IF(VLOOKUP($AF155,_Afg07,'Ark1'!$CH$131)="Byg",$J155,0) -> 0 | AM155: =IF(VLOOKUP($AF155,_Afg07,'Ark1'!$CH$131)="Havre",$G155,0) -> 0 | AN155: =IF(VLOOKUP($AF155,_Afg07,'Ark1'!$CH$131)="Havre",$J155,0) -> 0 | AO155: =IF(VLOOKUP($AF155,_Afg07,'Ark1'!$CH$131)="Rug",$G155,0) -> 0 | AP155: =IF(VLOOKUP($AF155,_Afg07,'Ark1'!$CH$131)="Rug",$J155,0) -> 0 | AQ155: =IF(VLOOKUP($AF155,_Afg07,'Ark1'!$CH$131)="Triticale",$G155,0) -> 0 | AR155: =IF(VLOOKUP($AF155,_Afg07,'Ark1'!$CH$131)="Triticale",$J155,0) -> 0 | AS155: =IF(VLOOKUP($AF155,_Afg07,'Ark1'!$CH$131)="Majs",$G155,0) -> 0 | AT155: =IF(VLOOKUP($AF155,_Afg07,'Ark1'!$CH$131)="Majs",$J155,0) -> 0
AF156: Afgnr
C157: =IF(AF157>1,IF(DSUM(Base,2,$AF156:$AF157)=0,"",DSUM(Base,2,$AF156:$AF157)),"") ->  | D157: =IF(C157="","","ha") ->  | E157: =IF(ISERROR(G157/C157),"",G157/C157) ->  | F157: =IF(E157="","","hkg") ->  | G157: =IF(DSUM(Base,4,$AF156:$AF157)=0,"",DSUM(Base,4,$AF156:$AF157)) ->  | I157: =IF(G157="","","hkg") ->  | J157: =IF(ISERROR(G157*VLOOKUP(AF157,_Afg07,'Ark1'!$BQ$131)),"",G157*VLOOKUP(AF157,_Afg07,'Ark1'!$BQ$131)) ->  | L157: =IF(J157="","","FEsv") ->  | AF157: 1 | AG157: =IF(J157<>"",J157,0) -> 0 | AI157: =IF(VLOOKUP($AF157,_Afg07,'Ark1'!$CH$131)="Hvede",$G157,0) -> 0 | AJ157: =IF(VLOOKUP($AF157,_Afg07,'Ark1'!$CH$131)="Hvede",$J157,0) -> 0 | AK157: =IF(VLOOKUP($AF157,_Afg07,'Ark1'!$CH$131)="Byg",$G157,0) -> 0 | AL157: =IF(VLOOKUP($AF157,_Afg07,'Ark1'!$CH$131)="Byg",$J157,0) -> 0 | AM157: =IF(VLOOKUP($AF157,_Afg07,'Ark1'!$CH$131)="Havre",$G157,0) -> 0 | AN157: =IF(VLOOKUP($AF157,_Afg07,'Ark1'!$CH$131)="Havre",$J157,0) -> 0 | AO157: =IF(VLOOKUP($AF157,_Afg07,'Ark1'!$CH$131)="Rug",$G157,0) -> 0 | AP157: =IF(VLOOKUP($AF157,_Afg07,'Ark1'!$CH$131)="Rug",$J157,0) -> 0 | AQ157: =IF(VLOOKUP($AF157,_Afg07,'Ark1'!$CH$131)="Triticale",$G157,0) -> 0 | AR157: =IF(VLOOKUP($AF157,_Afg07,'Ark1'!$CH$131)="Triticale",$J157,0) -> 0 | AS157: =IF(VLOOKUP($AF157,_Afg07,'Ark1'!$CH$131)="Majs",$G157,0) -> 0 | AT157: =IF(VLOOKUP($AF157,_Afg07,'Ark1'!$CH$131)="Majs",$J157,0) -> 0
AF158: Afgnr
C159: =IF(AF159>1,IF(DSUM(Base,2,$AF158:$AF159)=0,"",DSUM(Base,2,$AF158:$AF159)),"") ->  | D159: =IF(C159="","","ha") ->  | E159: =IF(ISERROR(G159/C159),"",G159/C159) ->  | F159: =IF(E159="","","hkg") ->  | G159: =IF(DSUM(Base,4,$AF158:$AF159)=0,"",DSUM(Base,4,$AF158:$AF159)) ->  | I159: =IF(G159="","","hkg") ->  | J159: =IF(ISERROR(G159*VLOOKUP(AF159,_Afg07,'Ark1'!$BQ$131)),"",G159*VLOOKUP(AF159,_Afg07,'Ark1'!$BQ$131)) ->  | L159: =IF(J159="","","FEsv") ->  | AF159: 1 | AG159: =IF(J159<>"",J159,0) -> 0 | AI159: =IF(VLOOKUP($AF159,_Afg07,'Ark1'!$CH$131)="Hvede",$G159,0) -> 0 | AJ159: =IF(VLOOKUP($AF159,_Afg07,'Ark1'!$CH$131)="Hvede",$J159,0) -> 0 | AK159: =IF(VLOOKUP($AF159,_Afg07,'Ark1'!$CH$131)="Byg",$G159,0) -> 0 | AL159: =IF(VLOOKUP($AF159,_Afg07,'Ark1'!$CH$131)="Byg",$J159,0) -> 0 | AM159: =IF(VLOOKUP($AF159,_Afg07,'Ark1'!$CH$131)="Havre",$G159,0) -> 0 | AN159: =IF(VLOOKUP($AF159,_Afg07,'Ark1'!$CH$131)="Havre",$J159,0) -> 0 | AO159: =IF(VLOOKUP($AF159,_Afg07,'Ark1'!$CH$131)="Rug",$G159,0) -> 0 | AP159: =IF(VLOOKUP($AF159,_Afg07,'Ark1'!$CH$131)="Rug",$J159,0) -> 0 | AQ159: =IF(VLOOKUP($AF159,_Afg07,'Ark1'!$CH$131)="Triticale",$G159,0) -> 0 | AR159: =IF(VLOOKUP($AF159,_Afg07,'Ark1'!$CH$131)="Triticale",$J159,0) -> 0 | AS159: =IF(VLOOKUP($AF159,_Afg07,'Ark1'!$CH$131)="Majs",$G159,0) -> 0 | AT159: =IF(VLOOKUP($AF159,_Afg07,'Ark1'!$CH$131)="Majs",$J159,0) -> 0
AF160: Afgnr
C161: =IF(AF161>1,IF(DSUM(Base,2,$AF160:$AF161)=0,"",DSUM(Base,2,$AF160:$AF161)),"") ->  | D161: =IF(C161="","","ha") ->  | E161: =IF(ISERROR(G161/C161),"",G161/C161) ->  | F161: =IF(E161="","","hkg") ->  | G161: =IF(DSUM(Base,4,$AF160:$AF161)=0,"",DSUM(Base,4,$AF160:$AF161)) ->  | I161: =IF(G161="","","hkg") ->  | J161: =IF(ISERROR(G161*VLOOKUP(AF161,_Afg07,'Ark1'!$BQ$131)),"",G161*VLOOKUP(AF161,_Afg07,'Ark1'!$BQ$131)) ->  | L161: =IF(J161="","","FEsv") ->  | AF161: 1 | AG161: =IF(J161<>"",J161,0) -> 0 | AI161: =IF(VLOOKUP($AF161,_Afg07,'Ark1'!$CH$131)="Hvede",$G161,0) -> 0 | AJ161: =IF(VLOOKUP($AF161,_Afg07,'Ark1'!$CH$131)="Hvede",$J161,0) -> 0 | AK161: =IF(VLOOKUP($AF161,_Afg07,'Ark1'!$CH$131)="Byg",$G161,0) -> 0 | AL161: =IF(VLOOKUP($AF161,_Afg07,'Ark1'!$CH$131)="Byg",$J161,0) -> 0 | AM161: =IF(VLOOKUP($AF161,_Afg07,'Ark1'!$CH$131)="Havre",$G161,0) -> 0 | AN161: =IF(VLOOKUP($AF161,_Afg07,'Ark1'!$CH$131)="Havre",$J161,0) -> 0 | AO161: =IF(VLOOKUP($AF161,_Afg07,'Ark1'!$CH$131)="Rug",$G161,0) -> 0 | AP161: =IF(VLOOKUP($AF161,_Afg07,'Ark1'!$CH$131)="Rug",$J161,0) -> 0 | AQ161: =IF(VLOOKUP($AF161,_Afg07,'Ark1'!$CH$131)="Triticale",$G161,0) -> 0 | AR161: =IF(VLOOKUP($AF161,_Afg07,'Ark1'!$CH$131)="Triticale",$J161,0) -> 0 | AS161: =IF(VLOOKUP($AF161,_Afg07,'Ark1'!$CH$131)="Majs",$G161,0) -> 0 | AT161: =IF(VLOOKUP($AF161,_Afg07,'Ark1'!$CH$131)="Majs",$J161,0) -> 0
AF162: I alt | AG162: =AG147+AG149+AG151+AG153+AG155+AG157+AG159+AG161 -> 0 | AI162: =AI147+AI149+AI151+AI153+AI155+AI157+AI159+AI161 -> 0 | AJ162: 0 | AK162: 0 | AL162: 0 | AM162: 0 | AN162: 0 | AO162: 0 | AP162: 0 | AQ162: 0 | AR162: 0 | AS162: 0 | AT162: 0
A164: Foderbehov | R164: Andel i kornration (vægtpct.) | AJ164: Hkg af hver kornart
B166: Besætning | J166: Foderforbrug | N166: Kornandel af Fesv | R166: Byg | T166: Havre | V166: Rug | X166: Triticale | Z166: Majs | AB166: Hvede | AF166: Foderforbrug_FE | AG166: Korn-FE | AH166: Gns FE/kg korn | AI166: hkg korn | AJ166: Byg | AK166: Havre | AL166: Rug | AM166: Triticale | AN166: Majs | AO166: Hvede
B168: Søer m. smågrise | D168: årssøer | J168: 1482 | K168: FE | M168: FE | N168: 81 | O168: % | Q168: % | R168: 50 | S168: % | U168: % | W168: % | Y168: % | AA168: % | AB168: =100-R168-T168-V168-X168-Z168 -> 50 | AC168: % | AF168: =C168*IF(L168<>"",L168,J168) -> 0 | AG168: =AF168*IF(P168<>"",P168,N168)*0.01 -> 0 | AH168: =R168*0.01*102+T168*0.01*87+V168*0.01*110+X168*0.01*113+Z168*0.01*122+AB168*0.01*115 -> 108.5 | AI168: =AG168/AH168 -> 0 | AJ168: =$AI168*R168*0.01 -> 0 | AK168: =$AI168*T168*0.01 -> 0 | AL168: =$AI168*V168*0.01 -> 0 | AM168: =$AI168*X168*0.01 -> 0 | AN168: =$AI168*Z168*0.01 -> 0 | AO168: =$AI168*AB168*0.01 -> 0
B170: Smågrise | D170: stk. | E170: Fra | F170: 7 | G170: kg Til | H170: 32 | I170: kg | J170: 1.98 | K170: Fesv | M170: Fesv | N170: 68 | O170: % | Q170: % | R170: 22 | S170: % | U170: % | W170: % | Y170: % | AA170: % | AB170: =100-R170-T170-V170-X170-Z170 -> 78 | AC170: % | AF170: =C170*(H170-F170)*IF(L170<>"",L170,J170) -> 0 | AG170: =AF170*IF(P170<>"",P170,N170)*0.01 -> 0 | AH170: =R170*0.01*102+T170*0.01*87+V170*0.01*110+X170*0.01*113+Z170*0.01*122+AB170*0.01*115 -> 112.14 | AI170: =AG170/AH170 -> 0 | AJ170: =$AI170*R170*0.01 -> 0 | AK170: =$AI170*T170*0.01 -> 0 | AL170: =$AI170*V170*0.01 -> 0 | AM170: =$AI170*X170*0.01 -> 0 | AN170: =$AI170*Z170*0.01 -> 0 | AO170: =$AI170*AB170*0.01 -> 0
B172: Slagtesvin | D172: stk. | E172: Fra | F172: 32 | G172: kg Til | H172: 107 | I172: kg | J172: 2.83 | K172: Fesv | M172: Fesv | N172: 78 | O172: % | Q172: % | R172: 25 | S172: % | U172: % | W172: % | Y172: % | AA172: % | AB172: =100-R172-T172-V172-X172-Z172 -> 75 | AC172: % | AF172: =C172*(H172-F172)*IF(L172<>"",L172,J172) -> 0 | AG172: =AF172*IF(P172<>"",P172,N172)*0.01 -> 0 | AH172: =R172*0.01*102+T172*0.01*87+V172*0.01*110+X172*0.01*113+Z172*0.01*122+AB172*0.01*115 -> 111.75 | AI172: =AG172/AH172 -> 0 | AJ172: =$AI172*R172*0.01 -> 0 | AK172: =$AI172*T172*0.01 -> 0 | AL172: =$AI172*V172*0.01 -> 0 | AM172: =$AI172*X172*0.01 -> 0 | AN172: =$AI172*Z172*0.01 -> 0 | AO172: =$AI172*AB172*0.01 -> 0
AI174: Sum | AJ174: =AJ168+AJ170+AJ172 -> 0 | AK174: 0 | AL174: 0 | AM174: 0 | AN174: 0 | AO174: 0
A176: Udskrift
A177: ="Sædskifteplan" -> Sædskifteplan
A179: Delsædskifte 1
A181: Marker/ejendom: | C181: =IF(C8<>"",C8,"") -> 
A183: Areal sædskifte 1: | C183: =C12 -> 0 | D183: =IF(C183="","","ha") -> ha | F183: =VLOOKUP(JBnr2,Jordtyper,2) -> JB 5-6
A186: 1 | B186: =IF(AF16>1,VLOOKUP(AF16,_Afg07,2),"") ->  | C186: =IF(AN16>0,AN16,"") ->  | D186: =IF(C186="","","ha") ->  | E186: =IF(AO16>0,AO16,"") ->  | F186: =IF(E186="","","hkg") ->  | H186: =IF(L16="","",L16) -> 
B188: =IF(AF18>1,VLOOKUP(AF18,_Afg07,2),"") ->  | C188: =IF(AN18>0,AN18,"") ->  | D188: =IF(C188="","","ha") ->  | E188: =IF(AO18>0,AO18,"") ->  | F188: =IF(E188="","","hkg") -> 
A191: 2 | B191: =IF(AF21>1,VLOOKUP(AF21,_Afg07,2),"") ->  | C191: =IF(AN21>0,AN21,"") ->  | D191: =IF(C191="","","ha") ->  | E191: =IF(AO21>0,AO21,"") ->  | F191: =IF(E191="","","hkg") ->  | H191: =IF(L21="","",L21) -> 
B193: =IF(AF23>1,VLOOKUP(AF23,_Afg07,2),"") ->  | C193: =IF(AN23>0,AN23,"") ->  | D193: =IF(C193="","","ha") ->  | E193: =IF(AO23>0,AO23,"") ->  | F193: =IF(E193="","","hkg") -> 
A196: 3 | B196: =IF(AF26>1,VLOOKUP(AF26,_Afg07,2),"") ->  | C196: =IF(AN26>0,AN26,"") ->  | D196: =IF(C196="","","ha") ->  | E196: =IF(AO26>0,AO26,"") ->  | F196: =IF(E196="","","hkg") ->  | H196: =IF(L26="","",L26) -> 
B198: =IF(AF28>1,VLOOKUP(AF28,_Afg07,2),"") ->  | C198: =IF(AN28>0,AN28,"") ->  | D198: =IF(C198="","","ha") ->  | E198: =IF(AO28>0,AO28,"") ->  | F198: =IF(E198="","","hkg") -> 
A201: 4 | B201: =IF(AF31>1,VLOOKUP(AF31,_Afg07,2),"") ->  | C201: =IF(AN31>0,AN31,"") ->  | D201: =IF(C201="","","ha") ->  | E201: =IF(AO31>0,AO31,"") ->  | F201: =IF(E201="","","hkg") ->  | H201: =IF(L31="","",L31) -> 
B203: =IF(AF33>1,VLOOKUP(AF33,_Afg07,2),"") ->  | C203: =IF(AN33>0,AN33,"") ->  | D203: =IF(C203="","","ha") ->  | E203: =IF(AO33>0,AO33,"") ->  | F203: =IF(E203="","","hkg") -> 
A206: 5 | B206: =IF(AF36>1,VLOOKUP(AF36,_Afg07,2),"") ->  | C206: =IF(AN36>0,AN36,"") ->  | D206: =IF(C206="","","ha") ->  | E206: =IF(AO36>0,AO36,"") ->  | F206: =IF(E206="","","hkg") ->  | H206: =IF(L36="","",L36) -> 
B208: =IF(AF38>1,VLOOKUP(AF38,_Afg07,2),"") ->  | C208: =IF(AN38>0,AN38,"") ->  | D208: =IF(C208="","","ha") ->  | E208: =IF(AO38>0,AO38,"") ->  | F208: =IF(E208="","","hkg") -> 
A211: 6 | B211: =IF(AF41>1,VLOOKUP(AF41,_Afg07,2),"") ->  | C211: =IF(AN41>0,AN41,"") ->  | D211: =IF(C211="","","ha") ->  | E211: =IF(AO41>0,AO41,"") ->  | F211: =IF(E211="","","hkg") ->  | H211: =IF(L41="","",L41) -> 
B213: =IF(AF43>1,VLOOKUP(AF43,_Afg07,2),"") ->  | C213: =IF(AN43>0,AN43,"") ->  | D213: =IF(C213="","","ha") ->  | E213: =IF(AO43>0,AO43,"") ->  | F213: =IF(E213="","","hkg") -> 
A216: 7 | B216: =IF(AF46>1,VLOOKUP(AF46,_Afg07,2),"") ->  | C216: =IF(AN46>0,AN46,"") ->  | D216: =IF(C216="","","ha") ->  | E216: =IF(AO46>0,AO46,"") ->  | F216: =IF(E216="","","hkg") ->  | H216: =IF(L46="","",L46) -> 
B218: =IF(AF48>1,VLOOKUP(AF48,_Afg07,2),"") ->  | C218: =IF(AN48>0,AN48,"") ->  | D218: =IF(C218="","","ha") ->  | E218: =IF(AO48>0,AO48,"") ->  | F218: =IF(E218="","","hkg") -> 
A222: Delsædskifte 2
A224: Marker/ejendom: | C224: =IF(C54<>"",C54,"") -> 
A226: Areal sædskifte 2: | C226: =C58 -> 0 | D226: =IF(C226="","","ha") -> ha | F226: =VLOOKUP(JBnr3,Jordtyper,2) -> JB 5-6
A229: 1 | B229: =IF(AF62>1,VLOOKUP(AF62,_Afg07,2),"") ->  | C229: =IF(AN62>0,AN62,"") ->  | D229: =IF(C229="","","ha") ->  | E229: =IF(AO62>0,AO62,"") ->  | F229: =IF(E229="","","hkg") ->  | H229: =IF(L62="","",L62) -> 
B231: =IF(AF64>1,VLOOKUP(AF64,_Afg07,2),"") ->  | C231: =IF(AN64>0,AN64,"") ->  | D231: =IF(C231="","","ha") ->  | E231: =IF(AO64>0,AO64,"") ->  | F231: =IF(E231="","","hkg") -> 
A234: 2 | B234: =IF(AF67>1,VLOOKUP(AF67,_Afg07,2),"") ->  | C234: =IF(AN67>0,AN67,"") ->  | D234: =IF(C234="","","ha") ->  | E234: =IF(AO67>0,AO67,"") ->  | F234: =IF(E234="","","hkg") ->  | H234: =IF(L67="","",L67) -> 
B236: =IF(AF69>1,VLOOKUP(AF69,_Afg07,2),"") ->  | C236: =IF(AN69>0,AN69,"") ->  | D236: =IF(C236="","","ha") ->  | E236: =IF(AO69>0,AO69,"") ->  | F236: =IF(E236="","","hkg") -> 
A239: 3 | B239: =IF(AF72>1,VLOOKUP(AF72,_Afg07,2),"") ->  | C239: =IF(AN72>0,AN72,"") ->  | D239: =IF(C239="","","ha") ->  | E239: =IF(AO72>0,AO72,"") ->  | F239: =IF(E239="","","hkg") ->  | H239: =IF(L72="","",L72) -> 
B241: =IF(AF74>1,VLOOKUP(AF74,_Afg07,2),"") ->  | C241: =IF(AN74>0,AN74,"") ->  | D241: =IF(C241="","","ha") ->  | E241: =IF(AO74>0,AO74,"") ->  | F241: =IF(E241="","","hkg") -> 
A244: 4 | B244: =IF(AF77>1,VLOOKUP(AF77,_Afg07,2),"") ->  | C244: =IF(AN77>0,AN77,"") ->  | D244: =IF(C244="","","ha") ->  | E244: =IF(AO77>0,AO77,"") ->  | F244: =IF(E244="","","hkg") ->  | H244: =IF(L77="","",L77) -> 
B246: =IF(AF79>1,VLOOKUP(AF79,_Afg07,2),"") ->  | C246: =IF(AN79>0,AN79,"") ->  | D246: =IF(C246="","","ha") ->  | E246: =IF(AO79>0,AO79,"") ->  | F246: =IF(E246="","","hkg") -> 
A249: 5 | B249: =IF(AF82>1,VLOOKUP(AF82,_Afg07,2),"") ->  | C249: =IF(AN82>0,AN82,"") ->  | D249: =IF(C249="","","ha") ->  | E249: =IF(AO82>0,AO82,"") ->  | F249: =IF(E249="","","hkg") ->  | H249: =IF(L82="","",L82) -> 
B251: =IF(AF84>1,VLOOKUP(AF84,_Afg07,2),"") ->  | C251: =IF(AN84>0,AN84,"") ->  | D251: =IF(C251="","","ha") ->  | E251: =IF(AO84>0,AO84,"") ->  | F251: =IF(E251="","","hkg") -> 
A254: 6 | B254: =IF(AF87>1,VLOOKUP(AF87,_Afg07,2),"") ->  | C254: =IF(AN87>0,AN87,"") ->  | D254: =IF(C254="","","ha") ->  | E254: =IF(AO87>0,AO87,"") ->  | F254: =IF(E254="","","hkg") ->  | H254: =IF(L87="","",L87) -> 
B256: =IF(AF89>1,VLOOKUP(AF89,_Afg07,2),"") ->  | C256: =IF(AN89>0,AN89,"") ->  | D256: =IF(C256="","","ha") ->  | E256: =IF(AO89>0,AO89,"") ->  | F256: =IF(E256="","","hkg") -> 
A259: 7 | B259: =IF(AF92>1,VLOOKUP(AF92,_Afg07,2),"") ->  | C259: =IF(AN92>0,AN92,"") ->  | D259: =IF(C259="","","ha") ->  | E259: =IF(AO92>0,AO92,"") ->  | F259: =IF(E259="","","hkg") ->  | H259: =IF(L92="","",L92) -> 
B261: =IF(AF94>1,VLOOKUP(AF94,_Afg07,2),"") ->  | C261: =IF(AN94>0,AN94,"") ->  | D261: =IF(C261="","","ha") ->  | E261: =IF(AO94>0,AO94,"") ->  | F261: =IF(E261="","","hkg") -> 
A263: ="Sædskifteplan - fortsat" -> Sædskifteplan - fortsat
A265: Delsædskifte 3
A267: Marker/ejendom: | C267: =IF(C100<>"",C100,"") -> 
A269: Areal sædskifte 3: | C269: =C104 -> 0 | D269: =IF(C269="","","ha") -> ha | F269: =VLOOKUP(JBnr4,Jordtyper,2) -> JB 5-6
A272: 1 | B272: =IF(AF108>1,VLOOKUP(AF108,_Afg07,2),"") ->  | C272: =IF(AN108>0,AN108,"") ->  | D272: =IF(C272="","","ha") ->  | E272: =IF(AO108>0,AO108,"") ->  | F272: =IF(E272="","","hkg") ->  | H272: =IF(L108="","",L108) -> 
B274: =IF(AF110>1,VLOOKUP(AF110,_Afg07,2),"") ->  | C274: =IF(AN110>0,AN110,"") ->  | D274: =IF(C274="","","ha") ->  | E274: =IF(AO110>0,AO110,"") ->  | F274: =IF(E274="","","hkg") -> 
A277: 2 | B277: =IF(AF113>1,VLOOKUP(AF113,_Afg07,2),"") ->  | C277: =IF(AN113>0,AN113,"") ->  | D277: =IF(C277="","","ha") ->  | E277: =IF(AO113>0,AO113,"") ->  | F277: =IF(E277="","","hkg") ->  | H277: =IF(L113="","",L113) -> 
B279: =IF(AF115>1,VLOOKUP(AF115,_Afg07,2),"") ->  | C279: =IF(AN115>0,AN115,"") ->  | D279: =IF(C279="","","ha") ->  | E279: =IF(AO115>0,AO115,"") ->  | F279: =IF(E279="","","hkg") -> 
A282: 3 | B282: =IF(AF118>1,VLOOKUP(AF118,_Afg07,2),"") ->  | C282: =IF(AN118>0,AN118,"") ->  | D282: =IF(C282="","","ha") ->  | E282: =IF(AO118>0,AO118,"") ->  | F282: =IF(E282="","","hkg") ->  | H282: =IF(L118="","",L118) -> 
B284: =IF(AF120>1,VLOOKUP(AF120,_Afg07,2),"") ->  | C284: =IF(AN120>0,AN120,"") ->  | D284: =IF(C284="","","ha") ->  | E284: =IF(AO120>0,AO120,"") ->  | F284: =IF(E284="","","hkg") -> 
A287: 4 | B287: =IF(AF123>1,VLOOKUP(AF123,_Afg07,2),"") ->  | C287: =IF(AN123>0,AN123,"") ->  | D287: =IF(C287="","","ha") ->  | E287: =IF(AO123>0,AO123,"") ->  | F287: =IF(E287="","","hkg") ->  | H287: =IF(L123="","",L123) -> 
B289: =IF(AF125>1,VLOOKUP(AF125,_Afg07,2),"") ->  | C289: =IF(AN125>0,AN125,"") ->  | D289: =IF(C289="","","ha") ->  | E289: =IF(AO125>0,AO125,"") ->  | F289: =IF(E289="","","hkg") -> 
A292: 5 | B292: =IF(AF128>1,VLOOKUP(AF128,_Afg07,2),"") ->  | C292: =IF(AN128>0,AN128,"") ->  | D292: =IF(C292="","","ha") ->  | E292: =IF(AO128>0,AO128,"") ->  | F292: =IF(E292="","","hkg") ->  | H292: =IF(L128="","",L128) -> 
... 36 more rows

Sheet Ark3
J3: Udgiver: | K3: SEGES
K4: Planter & Miljø
J5: Udgivelsesdato: | K5: 2018-12-12
B6: Med dette regneark kan man sammenligne økonomien i forskellige afgrøder og sædskifter. Forfrugtsværdi, husdyrgødning, om man er kornkøber eller -sælger, halmnedmuldning, tørring og lagring kan indregnes i de økonomiske konkurrenceforhold. Det er også muligt at beregne netto tidsforbrug i marken. | J6: Forfatter: | K6: Ove Lund / Søren Kolind Hvid / Marianne Haugaard-Christensen
J7: Version: | K7: 1.30
J8: Datagrundlag: | K8: Budgetkalkuler 2018
J9: Dokument: | K9: Se artikel
J10: Ansvar: | K10: Se vilkår
B17: Dette regneark kan anvendes til at opstille en sædskifteplan med op til 3 delsædskifter på en bedrift. Placering af efterafgrøder i sædskiftet kan angives. Endvidere beregnes produktionen af korn til svinefoder. Svinebesætningens foderbehov (korn) kan beregnes. Bemærk at dette regneark ikke på nogen måde er sammenkædet med ovenstående regneark.
